Workbook

Sheet Sample Report (hidden)
A2: Date
A3: Hen
A4: Program
A5: Start at 999999
A6: Sequence component 1 | B6: Time 1 | C6: Seqeunce Component 2 | D6: Time 2 | E6: Seqeunce Component 3 | F6: Time 3 | G6: Correct 0 = No 1=Yes | J6: Seqeunce | K6: Time
A7: 12 | B7: 7 | C7: 12 | D7: 42 | E7: 13 | F7: 18 | G7: if 77 new line, if 31 or 41 = yes new line on 77, | J7: =string of Seqeunce compponent 1, 2 & 3 | K7: =time 3
A8: This continues until ther is a 1 on its own to indicate start of summary data
J9: 10-19 =1
A10: Summary Data | J10: 20-29 =2
A11: Correct | B11: Incorrect | C11: Rft | D11: total | E11: Av Correct | F11: Av Incorrect | G11: Percent correct | H11: Time | J11: in this example the seqeunce would be 111
A12: 40 | B12: 33 | C12: 40 | D12: 73 | E12: 23.95 | F12: 15 | G12: 54 | H12: 806

Sheet Summary
A2: Day | B2: Date | C2: Average Response Rate | D2: Target % | E2: RF for non correct sequence | F2: U Value | K2: Block 1 | L2: Block 2 | M2: Block 3 | N2: Block 4 | O2: Block 5 | P2: Block 6
A3: 1 | B3: ='!MB30B30.096'!B2:C2 -> <date> | C3: =('!MB30B30.096'!F210/60)/'!MB30B30.096'!Q3 -> 1.941219512 | D3: ='!MB30B30.096'!N20/'!MB30B30.096'!Q3 -> 0.0243902439 | E3: =SUM('!MB30B30.096'!L20:Q20)/'!MB30B30.096'!Q3 -> 1.43902439 | F3: ='!MB30B30.096'!Q16 -> 0.2775649776 | J3: Average Response Rate | K3: =AVERAGE(C3:C7) -> 1.922517167 | L3: =AVERAGE(C8:C12) -> 1.939179236 | M3: =AVERAGE(C13:C17) -> 2.094540015 | N3: =AVERAGE(C18:C22) -> 1.970438205 | O3: =AVERAGE(C23:C27) -> 1.916872196 | P3: =AVERAGE(C28:C32) -> 2.154880717
A4: 2 | B4: ='!MC01B10.096'!B2:C2 -> <date> | C4: =('!MC01B10.096'!F214/60)/'!MC01B10.096'!Q3 -> 1.917387821 | D4: ='!MC01B10.096'!N20/'!MC01B10.096'!Q3 -> 0.004807692308 | E4: =SUM('!MC01B10.096'!L20:Q20)/'!MC01B10.096'!Q3 -> 1.355769231 | F4: ='!MC01B10.096'!Q16 -> 0.2217175132 | J4: Target % | K4: =AVERAGE(D3:D7) -> 0.01165549464 | L4: =AVERAGE(D8:D12) -> 0.004897786844 | M4: =AVERAGE(D13:D17) -> 0.301679655 | N4: =AVERAGE(D18:D22) -> 0.474796444 | O4: =AVERAGE(D23:D27) -> 0.5298965734 | P4: =AVERAGE(D28:D32) -> 0.4479410178
A5: 3 | B5: ='!MC02B30.096'!B2:C2 -> <date> | C5: =('!MC02B30.096'!F212/60)/'!MC02B30.096'!Q3 -> 1.935113269 | D5: ='!MC02B30.096'!N20/'!MC02B30.096'!Q3 -> 0.02427184466 | E5: =SUM('!MC02B30.096'!L20:Q20)/'!MC02B30.096'!Q3 -> 1.388349515 | F5: ='!MC02B30.096'!Q16 -> 0.2998734581 | J5: CCRF | K5: =AVERAGE(E3:E7) -> 1.29933925 | L5: =AVERAGE(E8:E12) -> 1.091018519 | M5: =AVERAGE(E13:E17) -> 2.101835436 | N5: =AVERAGE(E18:E22) -> 3.069547388 | O5: =AVERAGE(E23:E27) -> 3.627396619 | P5: =AVERAGE(E28:E32) -> 2.880237367
A6: 4 | B6: ='!MC03830.096'!B2:C2 -> <date> | C6: =('!MC03830.096'!F214/60)/'!MC03830.096'!Q3 -> 1.922516026 | D6: ='!MC03830.096'!N20/'!MC03830.096'!Q3 -> 0.004807692308 | E6: =SUM('!MC03830.096'!L20:Q20)/'!MC03830.096'!Q3 -> 0.9230769231 | F6: ='!MC03830.096'!Q16 -> 0.2728538181 | J6: U Value | K6: =AVERAGE(F3:F7) -> 0.274322106 | L6: =AVERAGE(F8:F12) -> 0.3201273122 | M6: =AVERAGE(F13:F17) -> 0.2769070066 | N6: =AVERAGE(F18:F22) -> 0.2549580835 | O6: =AVERAGE(F23:F27) -> 0.1996117013 | P6: =AVERAGE(F28:F32) -> 0.1951373243
A7: 5 | B7: ='!MC04B20.096'!B2:C2 -> <date> | C7: =('!MC04B20.096'!F215/60)/'!MC04B20.096'!Q3 -> 1.896349206 | D7: ='!MC04B20.096'!N20/'!MC04B20.096'!Q3 -> 0 | E7: =SUM('!MC04B20.096'!L20:Q20)/'!MC04B20.096'!Q3 -> 1.39047619 | F7: ='!MC04B20.096'!Q16 -> 0.2996007631
A8: 6 | B8: ='!MC05950.096'!B2:C2 -> <date> | C8: =('!MC05950.096'!F213/60)/'!MC05950.096'!Q3 -> 1.913942308 | D8: ='!MC05950.096'!N20/'!MC05950.096'!Q3 -> 0 | E8: =SUM('!MC05950.096'!L20:Q20)/'!MC05950.096'!Q3 -> 1.399038462 | F8: ='!MC05950.096'!Q16 -> 0.3222597599
A9: 7 | B9: ='!MC07B00.096'!B2:C2 -> <date> | C9: =('!MC07B00.096'!F214/60)/'!MC07B00.096'!Q3 -> 1.915785256 | D9: ='!MC07B00.096'!N20/'!MC07B00.096'!Q3 -> 0 | E9: =SUM('!MC07B00.096'!L20:Q20)/'!MC07B00.096'!Q3 -> 1.399038462 | F9: ='!MC07B00.096'!Q16 -> 0.3255760342
A10: 8 | B10: ='!MC08A10.096'!B2:C2 -> <date> | C10: =('!MC08A10.096'!F213/60)/'!MC08A10.096'!Q3 -> 1.930515298 | D10: ='!MC08A10.096'!N20/'!MC08A10.096'!Q3 -> 0.009661835749 | E10: =SUM('!MC08A10.096'!L20:Q20)/'!MC08A10.096'!Q3 -> 0.8792270531 | F10: ='!MC08A10.096'!Q16 -> 0.3259804108
A11: 9 | B11: ='!MC09A50.096'!B2:C2 -> <date> | C11: =('!MC09A50.096'!F209/60)/'!MC09A50.096'!Q3 -> 1.964696223 | D11: ='!MC09A50.096'!N20/'!MC09A50.096'!Q3 -> 0.004926108374 | E11: =SUM('!MC09A50.096'!L20:Q20)/'!MC09A50.096'!Q3 -> 0.8866995074 | F11: ='!MC09A50.096'!Q16 -> 0.2963501975
A12: 10 | B12: ='!MC10B30.096'!B2:C2 -> <date> | C12: =('!MC10B30.096'!F207/60)/'!MC10B30.096'!Q3 -> 1.970957096 | D12: ='!MC10B30.096'!N20/'!MC10B30.096'!Q3 -> 0.009900990099 | E12: =SUM('!MC10B30.096'!L20:Q20)/'!MC10B30.096'!Q3 -> 0.8910891089 | F12: ='!MC10B30.096'!Q16 -> 0.3304701585
A13: 11 | B13: ='!MC16A00.096'!B2:C2 -> <date> | C13: =('!MC16A00.096'!F156/60)/'!MC16A00.096'!Q3 -> 2.039888889 | D13: ='!MC16A00.096'!N20/'!MC16A00.096'!Q3 -> 0.1 | E13: =SUM('!MC16A00.096'!L20:Q20)/'!MC16A00.096'!Q3 -> 1.246666667 | F13: ='!MC16A00.096'!Q16 -> 0.3410802799
A14: 12 | B14: ='!MC19A50.096'!B2:C2 -> <date> | C14: =('!MC19A50.096'!F126/60)/'!MC19A50.096'!Q3 -> 2.069583333 | D14: ='!MC19A50.096'!N20/'!MC19A50.096'!Q3 -> 0.175 | E14: =SUM('!MC19A50.096'!L20:Q20)/'!MC19A50.096'!Q3 -> 1.433333333 | F14: ='!MC19A50.096'!Q16 -> 0.206589791
A15: 13 | B15: ='!MC20C10.096'!B2:C2 -> <date> | C15: =('!MC20C10.096'!F109/60)/'!MC20C10.096'!Q3 -> 2.115210356 | D15: ='!MC20C10.096'!N20/'!MC20C10.096'!Q3 -> 0.3009708738 | E15: =SUM('!MC20C10.096'!L20:Q20)/'!MC20C10.096'!Q3 -> 1.708737864 | F15: ='!MC20C10.096'!Q16 -> 0.3012408619
A16: 14 | B16: ='!MC21C10.096'!B2:C2 -> <date> | C16: =('!MC21C10.096'!F85/60)/'!MC21C10.096'!Q3 -> 2.18649789 | D16: ='!MC21C10.096'!N20/'!MC21C10.096'!Q3 -> 0.417721519 | E16: =SUM('!MC21C10.096'!L20:Q20)/'!MC21C10.096'!Q3 -> 2.164556962 | F16: ='!MC21C10.096'!Q16 -> 0.2752390177
A17: 15 | B17: ='!MC22A20.096'!B2:C2 -> <date> | C17: =('!MC22A20.096'!F74/60)/'!MC22A20.096'!Q3 -> 2.061519608 | D17: ='!MC22A20.096'!N20/'!MC22A20.096'!Q3 -> 0.5147058824 | E17: =SUM('!MC22A20.096'!L20:Q20)/'!MC22A20.096'!Q3 -> 3.955882353 | F17: ='!MC22A20.096'!Q16 -> 0.2603850826
A18: 16 | B18: ='!MC23A50.096'!B2:C2 -> <date> | C18: =('!MC23A50.096'!F88/60)/'!MC23A50.096'!Q3 -> 2.038821138 | D18: ='!MC23A50.096'!N20/'!MC23A50.096'!Q3 -> 0.4146341463 | E18: =SUM('!MC23A50.096'!L20:Q20)/'!MC23A50.096'!Q3 -> 3.43902439 | F18: ='!MC23A50.096'!Q16 -> 0.3012445415
A19: 17 | B19: ='!MC24C00.096'!B2:C2 -> <date> | C19: =('!MC24C00.096'!F87/60)/'!MC24C00.096'!Q3 -> 2.006378601 | D19: ='!MC24C00.096'!N20/'!MC24C00.096'!Q3 -> 0.4074074074 | E19: =SUM('!MC24C00.096'!L20:Q20)/'!MC24C00.096'!Q3 -> 3.345679012 | F19: ='!MC24C00.096'!Q16 -> 0.2971949283
A20: 18 | B20: ='!N102C00.096'!B2:C2 -> <date> | C20: =('!N102C00.096'!F71/60)/'!N102C00.096'!Q3 -> 1.907435897 | D20: ='!N102C00.096'!N20/'!N102C00.096'!Q3 -> 0.5538461538 | E20: =SUM('!N102C00.096'!L20:Q20)/'!N102C00.096'!Q3 -> 2.6 | F20: ='!N102C00.096'!Q16 -> 0.2237239838
A21: 19 | B21: ='!N104D30.096'!B2:C2 -> <date> | C21: =('!N104D30.096'!F88/60)/'!N104D30.096'!Q3 -> 1.955284553 | D21: ='!N104D30.096'!N20/'!N104D30.096'!Q3 -> 0.4512195122 | E21: =SUM('!N104D30.096'!L20:Q20)/'!N104D30.096'!Q3 -> 3.353658537 | F21: ='!N104D30.096'!Q16 -> 0.2433074594
A22: 20 | B22: ='!N108B30.096'!B2:C2 -> <date> | C22: =('!N108B30.096'!F70/60)/'!N108B30.096'!Q3 -> 1.944270833 | D22: ='!N108B30.096'!N20/'!N108B30.096'!Q3 -> 0.546875 | E22: =SUM('!N108B30.096'!L20:Q20)/'!N108B30.096'!Q3 -> 2.609375 | F22: ='!N108B30.096'!Q16 -> 0.2093195043
A23: 21 | B23: ='!N110B40.096'!B2:C2 -> <date> | C23: =('!N110B40.096'!F80/60)/'!N110B40.096'!Q3 -> 1.902927928 | D23: ='!N110B40.096'!N20/'!N110B40.096'!Q3 -> 0.472972973 | E23: =SUM('!N110B40.096'!L20:Q20)/'!N110B40.096'!Q3 -> 3.662162162 | F23: ='!N110B40.096'!Q16 -> 0.2011965802
A24: 22 | B24: ='!N112A00.096'!B2:C2 -> <date> | C24: =('!N112A00.096'!F71/60)/'!N112A00.096'!Q3 -> 1.936410256 | D24: ='!N112A00.096'!N20/'!N112A00.096'!Q3 -> 0.5230769231 | E24: =SUM('!N112A00.096'!L20:Q20)/'!N112A00.096'!Q3 -> 4.107692308 | F24: ='!N112A00.096'!Q16 -> 0.165792407
A25: 23 | B25: ='!N113B10.096'!B2:C2 -> <date> | C25: =('!N113B10.096'!F75/60)/'!N113B10.096'!Q3 -> 1.950241546 | D25: ='!N113B10.096'!N20/'!N113B10.096'!Q3 -> 0.5507246377 | E25: =SUM('!N113B10.096'!L20:Q20)/'!N113B10.096'!Q3 -> 2.492753623 | F25: ='!N113B10.096'!Q16 -> 0.2384770083
A26: 24 | B26: ='!N115A30.096'!B2:C2 -> <date> | C26: =('!N115A30.096'!F70/60)/'!N115A30.096'!Q3 -> 1.867447917 | D26: ='!N115A30.096'!N20/'!N115A30.096'!Q3 -> 0.609375 | E26: =SUM('!N115A30.096'!L20:Q20)/'!N115A30.096'!Q3 -> 4.234375 | F26: ='!N115A30.096'!Q16 -> 0.2177881448
A27: 25 | B27: ='!N118D30.096'!B2:C2 -> <date> | C27: =('!N118D30.096'!F81/60)/'!N118D30.096'!Q3 -> 1.927333333 | D27: ='!N118D30.096'!N20/'!N118D30.096'!Q3 -> 0.4933333333 | E27: =SUM('!N118D30.096'!L20:Q20)/'!N118D30.096'!Q3 -> 3.64 | F27: ='!N118D30.096'!Q16 -> 0.1748043662
A28: 26 | B28: ='!N123D10.096'!B2:C2 -> <date> | C28: =('!N123D10.096'!F89/60)/'!N123D10.096'!Q3 -> 2.328915663 | D28: ='!N123D10.096'!N20/'!N123D10.096'!Q3 -> 0.3734939759 | E28: =SUM('!N123D10.096'!L20:Q20)/'!N123D10.096'!Q3 -> 3.253012048 | F28: ='!N123D10.096'!Q16 -> 0.1764324125
A29: 27 | B29: ='!N127C40.096'!B2:C2 -> <date> | C29: =('!N127C40.096'!F73/60)/'!N127C40.096'!Q3 -> 1.980845771 | D29: ='!N127C40.096'!N20/'!N127C40.096'!Q3 -> 0.5223880597 | E29: =SUM('!N127C40.096'!L20:Q20)/'!N127C40.096'!Q3 -> 2.507462687 | F29: ='!N127C40.096'!Q16 -> 0.2138422361
A30: 28
A31: 29
A32: 30

Sheet Start
F1: Use Folder 51 | H1: Auto Clean Up | J1: Correct sequence
F2: FALSE | H2: TRUE | J2: 211
A4: Working with Folder | G4: Process All/Or Pick A number: ALL or an integer
A5: F:\Hen Chapter\Raw Data\96_176\phase 1 any_con\ | G5: ALL
A6: Filenames:
A7: !MB30B30.096 | G7: Paint Cells
A8: !N108B30.096 | G8: FALSE
A9: !N110B40.096
A10: !N112A00.096
A11: !N113B10.096
A12: !N115A30.096
A13: !N118D30.096
A14: !N123D10.096
A15: !N127C40.096
A16: !MC01B10.096
A17: !MC02B30.096
A18: !MC04B20.096
A19: !MC07B00.096
A20: !MC08A10.096
A21: !MC09A50.096
A22: !MC10B30.096
A23: !MC16A00.096
A24: !MC19A50.096
A25: !MC20C10.096
A26: !MC21C10.096
A27: !MC22A20.096
A28: !MC23A50.096
A29: !MC24C00.096
A30: !MC03830.096
A31: !MC05950.096
A32: !N102C00.096
A33: !N104D30.096

Sheet !MB30B30.096
A1: Report for:!MB30B30.096
A2: Date: | B2: <date>
A3: Hen: | B3: <hen> | F3: Correct Sequence | G3: =Start!J2 -> 211 | P3: Total Sequences in Data | Q3: =4994-COUNTBLANK(L7:L5000) -> 205 | V3: Total Sequences in Block Data | W3: =COUNTA(L7:L40) -> 34 | AA3: Total Sequences in Block Data | AB3: =COUNTA(L41:L74) -> 34 | AF3: Total Sequences in Block Data | AG3: =COUNTA(L75:L109) -> 35 | AK3: Total Sequences in Block Data | AL3: =COUNTA(L110:L143) -> 34 | AP3: Total Sequences in Block Data | AQ3: =COUNTA(L144:L177) -> 34 | AU3: Total Sequences in Block Data | AV3: =COUNTA(L178:L211) -> 34
P4: Total Sequences in Summary | Q4: =SUM(O7:O14) -> 204 | V4: Total Sequences in Block Summary | W4: =SUM(U7:U14) -> 34 | AA4: Total Sequences in Block Summary | AB4: =SUM(Z7:Z14) -> 34 | AF4: Total Sequences in Block Summary | AG4: =SUM(AE7:AE14) -> 35 | AK4: Total Sequences in Block Summary | AL4: =SUM(AJ7:AJ14) -> 34 | AP4: Total Sequences in Block Summary | AQ4: =SUM(AO7:AO14) -> 34 | AU4: Total Sequences in Block Summary | AV4: =SUM(AT7:AT14) -> 33
T5: Block 1 | Y5: Block 2 | AD5: Block 3 | AI5: Block 4 | AN5: Block 5 | AS5: Block 6
A6: Sequence Component 1 | B6: Time 1 | C6: Sequence Component 2 | D6: Time 2 | E6: Sequence Component 3 | F6: Time 3 | G6: Sequence Component 4 | H6: Time 4 | I6: Sequence Component 5 | J6: Time 5 | K6: Correct? 0=No 1=Yes | L6: Sequence | N6: Frequency | P6: Relative Frequency | Q6: Variability | T6: Frequency | V6: Relative Frequency | W6: Variability | Y6: Frequency | AA6: Relative Frequency | AB6: Variability | AD6: Frequency | AF6: Relative Frequency | AG6: Variability | AI6: Frequency | AK6: Relative Frequency | AL6: Variability | AN6: Frequency | AP6: Relative Frequency | AQ6: Variability | AS6: Frequency | AU6: Relative Frequency | AV6: Variability
A7: 21 | B7: 9 | C7: 22 | D7: 13 | E7: 24 | F7: 18 | K7: 0 | L7: 222 | N7: 111 | O7: =COUNTIF($L$7:$L$500,N7) -> 1 | P7: =O7/$Q$4 -> 0.004901960784 | Q7: =IF(P7=0,0,(P7*((LOG(P7))/LOG(2)))) -> -0.03760992815 | T7: =N7 -> 111 | U7: =COUNTIF(L7:L40,T7) -> 0 | V7: =U7/(W4-U11) -> 0 | W7: =IF(V7=0,0,(V7*((LOG(V7))/LOG(2)))) -> 0 | Y7: =N7 -> 111 | Z7: =COUNTIF(L41:L74,Y7) -> 1 | AA7: =Z7/(AB4-Z11) -> 0.03225806452 | AB7: =IF(AA7=0,0,(AA7*((LOG(AA7))/LOG(2)))) -> -0.1598127842 | AD7: =N7 -> 111 | AE7: =COUNTIF(L75:L109,AD7) -> 0 | AF7: =AE7/(AG4-AE11) -> 0 | AG7: =IF(AF7=0,0,(AF7*((LOG(AF7))/LOG(2)))) -> 0 | AI7: =N7 -> 111 | AJ7: =COUNTIF(L110:L143,AI7) -> 0 | AK7: =AJ7/(AL4-AJ11) -> 0 | AL7: =IF(AK7=0,0,(AK7*((LOG(AK7))/LOG(2)))) -> 0 | AN7: =N7 -> 111 | AO7: =COUNTIF(L144:L177,AN7) -> 0 | AP7: =AO7/(AQ4-AO11) -> 0 | AQ7: =IF(AP7=0,0,(AP7*((LOG(AP7))/LOG(2)))) -> 0 | AS7: =N7 -> 111 | AT7: =COUNTIF(L178:L211,AS7) -> 0 | AU7: =AT7/(AV4-AT11) -> 0 | AV7: =IF(AU7=0,0,(AU7*((LOG(AU7))/LOG(2)))) -> 0
A8: 21 | B8: 119 | C8: 11 | D8: 136 | E8: 22 | F8: 143 | K8: 0 | L8: 212 | N8: 112 | O8: =COUNTIF($L$7:$L$500,N8) -> 3 | P8: =O8/$Q$4 -> 0.01470588235 | Q8: =IF(P8=0,0,(P8*((LOG(P8))/LOG(2)))) -> -0.08952151237 | T8: =N8 -> 112 | U8: =COUNTIF(L7:L40,T8) -> 0 | V8: =U8/(W4-U11) -> 0 | W8: =IF(V8=0,0,(V8*((LOG(V8))/LOG(2)))) -> 0 | Y8: =N8 -> 112 | Z8: =COUNTIF(L41:L74,Y8) -> 2 | AA8: =Z8/(AB4-Z11) -> 0.06451612903 | AB8: =IF(AA8=0,0,(AA8*((LOG(AA8))/LOG(2)))) -> -0.2551094394 | AD8: =N8 -> 112 | AE8: =COUNTIF(L75:L109,AD8) -> 0 | AF8: =AE8/(AG4-AE11) -> 0 | AG8: =IF(AF8=0,0,(AF8*((LOG(AF8))/LOG(2)))) -> 0 | AI8: =N8 -> 112 | AJ8: =COUNTIF(L110:L143,AI8) -> 0 | AK8: =AJ8/(AL4-AJ11) -> 0 | AL8: =IF(AK8=0,0,(AK8*((LOG(AK8))/LOG(2)))) -> 0 | AN8: =N8 -> 112 | AO8: =COUNTIF(L144:L177,AN8) -> 0 | AP8: =AO8/(AQ4-AO11) -> 0 | AQ8: =IF(AP8=0,0,(AP8*((LOG(AP8))/LOG(2)))) -> 0 | AS8: =N8 -> 112 | AT8: =COUNTIF(L178:L211,AS8) -> 1 | AU8: =AT8/(AV4-AT11) -> 0.03125 | AV8: =IF(AU8=0,0,(AU8*((LOG(AU8))/LOG(2)))) -> -0.15625
A9: 21 | B9: 242 | C9: 22 | D9: 246 | E9: 13 | F9: 254 | K9: 0 | L9: 221 | N9: 121 | O9: =COUNTIF($L$7:$L$500,N9) -> 6 | P9: =O9/$Q$4 -> 0.02941176471 | Q9: =IF(P9=0,0,(P9*((LOG(P9))/LOG(2)))) -> -0.14963126 | T9: =N9 -> 121 | U9: =COUNTIF(L7:L40,T9) -> 2 | V9: =U9/(W4-U11) -> 0.06060606061 | W9: =IF(V9=0,0,(V9*((LOG(V9))/LOG(2)))) -> -0.2451147951 | Y9: =N9 -> 121 | Z9: =COUNTIF(L41:L74,Y9) -> 1 | AA9: =Z9/(AB4-Z11) -> 0.03225806452 | AB9: =IF(AA9=0,0,(AA9*((LOG(AA9))/LOG(2)))) -> -0.1598127842 | AD9: =N9 -> 121 | AE9: =COUNTIF(L75:L109,AD9) -> 1 | AF9: =AE9/(AG4-AE11) -> 0.02857142857 | AG9: =IF(AF9=0,0,(AF9*((LOG(AF9))/LOG(2)))) -> -0.1465509433 | AI9: =N9 -> 121 | AJ9: =COUNTIF(L110:L143,AI9) -> 2 | AK9: =AJ9/(AL4-AJ11) -> 0.05882352941 | AL9: =IF(AK9=0,0,(AK9*((LOG(AK9))/LOG(2)))) -> -0.2404389907 | AN9: =N9 -> 121 | AO9: =COUNTIF(L144:L177,AN9) -> 0 | AP9: =AO9/(AQ4-AO11) -> 0 | AQ9: =IF(AP9=0,0,(AP9*((LOG(AP9))/LOG(2)))) -> 0 | AS9: =N9 -> 121 | AT9: =COUNTIF(L178:L211,AS9) -> 0 | AU9: =AT9/(AV4-AT11) -> 0 | AV9: =IF(AU9=0,0,(AU9*((LOG(AU9))/LOG(2)))) -> 0
A10: 21 | B10: 355 | C10: 22 | D10: 360 | E10: 13 | F10: 367 | K10: 0 | L10: 221 | N10: 122 | O10: =COUNTIF($L$7:$L$500,N10) -> 12 | P10: =O10/$Q$4 -> 0.05882352941 | Q10: =IF(P10=0,0,(P10*((LOG(P10))/LOG(2)))) -> -0.2404389907 | T10: =N10 -> 122 | U10: =COUNTIF(L7:L40,T10) -> 4 | V10: =U10/(W4-U11) -> 0.1212121212 | W10: =IF(V10=0,0,(V10*((LOG(V10))/LOG(2)))) -> -0.369017469 | Y10: =N10 -> 122 | Z10: =COUNTIF(L41:L74,Y10) -> 0 | AA10: =Z10/(AB4-Z11) -> 0 | AB10: =IF(AA10=0,0,(AA10*((LOG(AA10))/LOG(2)))) -> 0 | AD10: =N10 -> 122 | AE10: =COUNTIF(L75:L109,AD10) -> 2 | AF10: =AE10/(AG4-AE11) -> 0.05714285714 | AG10: =IF(AF10=0,0,(AF10*((LOG(AF10))/LOG(2)))) -> -0.2359590295 | AI10: =N10 -> 122 | AJ10: =COUNTIF(L110:L143,AI10) -> 3 | AK10: =AJ10/(AL4-AJ11) -> 0.08823529412 | AL10: =IF(AK10=0,0,(AK10*((LOG(AK10))/LOG(2)))) -> -0.3090441477 | AN10: =N10 -> 122 | AO10: =COUNTIF(L144:L177,AN10) -> 1 | AP10: =AO10/(AQ4-AO11) -> 0.02941176471 | AQ10: =IF(AP10=0,0,(AP10*((LOG(AP10))/LOG(2)))) -> -0.14963126 | AS10: =N10 -> 122 | AT10: =COUNTIF(L178:L211,AS10) -> 2 | AU10: =AT10/(AV4-AT11) -> 0.0625 | AV10: =IF(AU10=0,0,(AU10*((LOG(AU10))/LOG(2)))) -> -0.25
A11: 21 | B11: 468 | C11: 22 | D11: 472 | E11: 13 | F11: 479 | K11: 0 | L11: 221 | N11: 211 | O11: =COUNTIF($L$7:$L$500,N11) -> 5 | P11: =O11/$Q$4 -> 0.02450980392 | Q11: =IF(P11=0,0,(P11*((LOG(P11))/LOG(2)))) -> -0.1311396384 | T11: =N11 -> 211 | U11: =COUNTIF(L7:L40,T11) -> 1 | Y11: =N11 -> 211 | Z11: =COUNTIF(L41:L74,Y11) -> 3 | AD11: =N11 -> 211 | AE11: =COUNTIF(L75:L109,AD11) -> 0 | AI11: =N11 -> 211 | AJ11: =COUNTIF(L110:L143,AI11) -> 0 | AN11: =N11 -> 211 | AO11: =COUNTIF(L144:L177,AN11) -> 0 | AS11: =N11 -> 211 | AT11: =COUNTIF(L178:L211,AS11) -> 1
A12: 21 | B12: 580 | C12: 22 | D12: 584 | E12: 24 | F12: 588 | K12: 0 | L12: 222 | N12: 212 | O12: =COUNTIF($L$7:$L$500,N12) -> 46 | P12: =O12/$Q$4 -> 0.2254901961 | Q12: =IF(P12=0,0,(P12*((LOG(P12))/LOG(2)))) -> -0.4845476262 | T12: =N12 -> 212 | U12: =COUNTIF(L7:L40,T12) -> 7 | V12: =U12/(W4-U11) -> 0.2121212121 | W12: =IF(V12=0,0,(V12*((LOG(V12))/LOG(2)))) -> -0.4745234661 | Y12: =N12 -> 212 | Z12: =COUNTIF(L41:L74,Y12) -> 15 | AA12: =Z12/(AB4-Z11) -> 0.4838709677 | AB12: =IF(AA12=0,0,(AA12*((LOG(AA12))/LOG(2)))) -> -0.5067608297 | AD12: =N12 -> 212 | AE12: =COUNTIF(L75:L109,AD12) -> 5 | AF12: =AE12/(AG4-AE11) -> 0.1428571429 | AG12: =IF(AF12=0,0,(AF12*((LOG(AF12))/LOG(2)))) -> -0.4010507032 | AI12: =N12 -> 212 | AJ12: =COUNTIF(L110:L143,AI12) -> 7 | AK12: =AJ12/(AL4-AJ11) -> 0.2058823529 | AL12: =IF(AK12=0,0,(AK12*((LOG(AK12))/LOG(2)))) -> -0.4694339834 | AN12: =N12 -> 212 | AO12: =COUNTIF(L144:L177,AN12) -> 6 | AP12: =AO12/(AQ4-AO11) -> 0.1764705882 | AQ12: =IF(AP12=0,0,(AP12*((LOG(AP12))/LOG(2)))) -> -0.4416177072 | AS12: =N12 -> 212 | AT12: =COUNTIF(L178:L211,AS12) -> 6 | AU12: =AT12/(AV4-AT11) -> 0.1875 | AV12: =IF(AU12=0,0,(AU12*((LOG(AU12))/LOG(2)))) -> -0.4528195311
A13: 21 | B13: 687 | C13: 22 | D13: 691 | E13: 24 | F13: 697 | K13: 0 | L13: 222 | N13: 221 | O13: =COUNTIF($L$7:$L$500,N13) -> 43 | P13: =O13/$Q$4 -> 0.2107843137 | Q13: =IF(P13=0,0,(P13*((LOG(P13))/LOG(2)))) -> -0.4734554179 | T13: =N13 -> 221 | U13: =COUNTIF(L7:L40,T13) -> 8 | V13: =U13/(W4-U11) -> 0.2424242424 | W13: =IF(V13=0,0,(V13*((LOG(V13))/LOG(2)))) -> -0.4956106956 | Y13: =N13 -> 221 | Z13: =COUNTIF(L41:L74,Y13) -> 6 | AA13: =Z13/(AB4-Z11) -> 0.1935483871 | AB13: =IF(AA13=0,0,(AA13*((LOG(AA13))/LOG(2)))) -> -0.4585613825 | AD13: =N13 -> 221 | AE13: =COUNTIF(L75:L109,AD13) -> 7 | AF13: =AE13/(AG4-AE11) -> 0.2 | AG13: =IF(AF13=0,0,(AF13*((LOG(AF13))/LOG(2)))) -> -0.464385619 | AI13: =N13 -> 221 | AJ13: =COUNTIF(L110:L143,AI13) -> 3 | AK13: =AJ13/(AL4-AJ11) -> 0.08823529412 | AL13: =IF(AK13=0,0,(AK13*((LOG(AK13))/LOG(2)))) -> -0.3090441477 | AN13: =N13 -> 221 | AO13: =COUNTIF(L144:L177,AN13) -> 8 | AP13: =AO13/(AQ4-AO11) -> 0.2352941176 | AQ13: =IF(AP13=0,0,(AP13*((LOG(AP13))/LOG(2)))) -> -0.4911677274 | AS13: =N13 -> 221 | AT13: =COUNTIF(L178:L211,AS13) -> 11 | AU13: =AT13/(AV4-AT11) -> 0.34375 | AV13: =IF(AU13=0,0,(AU13*((LOG(AU13))/LOG(2)))) -> -0.5295703811
A14: 21 | B14: 797 | C14: 22 | D14: 801 | E14: 24 | F14: 805 | K14: 0 | L14: 222 | N14: 222 | O14: =COUNTIF($L$7:$L$500,N14) -> 88 | P14: =O14/$Q$4 -> 0.431372549 | Q14: =IF(P14=0,0,(P14*((LOG(P14))/LOG(2)))) -> -0.5232521944 | T14: =N14 -> 222 | U14: =COUNTIF(L7:L40,T14) -> 12 | V14: =U14/(W4-U11) -> 0.3636363636 | W14: =IF(V14=0,0,(V14*((LOG(V14))/LOG(2)))) -> -0.5307024068 | Y14: =N14 -> 222 | Z14: =COUNTIF(L41:L74,Y14) -> 6 | AA14: =Z14/(AB4-Z11) -> 0.1935483871 | AB14: =IF(AA14=0,0,(AA14*((LOG(AA14))/LOG(2)))) -> -0.4585613825 | AD14: =N14 -> 222 | AE14: =COUNTIF(L75:L109,AD14) -> 20 | AF14: =AE14/(AG4-AE11) -> 0.5714285714 | AG14: =IF(AF14=0,0,(AF14*((LOG(AF14))/LOG(2)))) -> -0.4613456697 | AI14: =N14 -> 222 | AJ14: =COUNTIF(L110:L143,AI14) -> 19 | AK14: =AJ14/(AL4-AJ11) -> 0.5588235294 | AL14: =IF(AK14=0,0,(AK14*((LOG(AK14))/LOG(2)))) -> -0.469152095 | AN14: =N14 -> 222 | AO14: =COUNTIF(L144:L177,AN14) -> 19 | AP14: =AO14/(AQ4-AO11) -> 0.5588235294 | AQ14: =IF(AP14=0,0,(AP14*((LOG(AP14))/LOG(2)))) -> -0.469152095 | AS14: =N14 -> 222 | AT14: =COUNTIF(L178:L211,AS14) -> 12 | AU14: =AT14/(AV4-AT11) -> 0.375 | AV14: =IF(AU14=0,0,(AU14*((LOG(AU14))/LOG(2)))) -> -0.5306390622
A15: 21 | B15: 903 | C15: 22 | D15: 907 | E15: 24 | F15: 912 | K15: 0 | L15: 222 | P15: =SUM(P7:P14) -> 1 | Q15: =-SUM(Q7:Q14) -> 2.129596568 | V15: =SUM(V7:V14) -> 1 | W15: =-SUM(W7:W14) -> 2.114968833 | AA15: =SUM(AA7:AA14) -> 1 | AB15: =-SUM(AB7:AB14) -> 1.998618603 | AF15: =SUM(AF7:AF14) -> 1 | AG15: =-SUM(AG7:AG14) -> 1.709291965 | AK15: =SUM(AK7:AK14) -> 1 | AL15: =-SUM(AL7:AL14) -> 1.797113364 | AP15: =SUM(AP7:AP14) -> 1 | AQ15: =-SUM(AQ7:AQ14) -> 1.551568789 | AU15: =SUM(AU7:AU14) -> 1 | AV15: =-SUM(AV7:AV14) -> 1.919278974
A16: 21 | B16: 1017 | C16: 22 | D16: 1021 | E16: 13 | F16: 1031 | K16: 0 | L16: 221 | P16: U= | Q16: =Q15/(LOG(Q4)/LOG(2)) -> 0.2775649776 | V16: U1= | W16: =W15/(LOG(W4)/LOG(2)) -> 0.4157217259 | AA16: U2= | AB16: =AB15/(LOG(AB4)/LOG(2)) -> 0.3928517347 | AF16: U3= | AG16: =AG15/(LOG(AG4)/LOG(2)) -> 0.3332418896 | AK16: U4= | AL16: =AL15/(LOG(AL4)/LOG(2)) -> 0.3532435362 | AP16: U5= | AQ16: =AQ15/(LOG(AQ4)/LOG(2)) -> 0.3049788938 | AU16: U6= | AV16: =AV15/(LOG(AV4)/LOG(2)) -> 0.3804776013
A17: 21 | B17: 1127 | C17: 22 | D17: 1131 | E17: 24 | F17: 1136 | K17: 0 | L17: 222
A18: 21 | B18: 1234 | C18: 22 | D18: 1238 | E18: 24 | F18: 1242 | K18: 0 | L18: 222
A19: 12 | B19: 1350 | C19: 24 | D19: 1358 | E19: 13 | F19: 1367 | K19: 0 | L19: 121 | N19: Total Target Seq
A20: 21 | B20: 1481 | C20: 22 | D20: 1493 | E20: 24 | F20: 1508 | K20: 0 | L20: 222 | N20: =COUNTIF(L7:L211,G3) -> 5 | P20: 34 | Q20: 34 | R20: 35 | S20: 34 | T20: 34 | U20: 34
A21: 21 | B21: 1603 | C21: 11 | D21: 1613 | E21: 22 | F21: 1639 | K21: 0 | L21: 212 | P21: % of reinforcement given in 6 equal intervals based on number of trials
A22: 12 | B22: 1734 | C22: 24 | D22: 1744 | E22: 24 | F22: 1759 | K22: 0 | L22: 122 | P22: %_1 | Q22: %_2 | R22: %_3 | S22: %_4 | T22: %_5 | U22: %_6
A23: 21 | B23: 1862 | C23: 11 | D23: 1871 | E23: 22 | F23: 1894 | K23: 0 | L23: 212 | O23: target sequence | P23: =$G$3 -> 211 | Q23: =$G$3 -> 211 | R23: =$G$3 -> 211 | S23: =$G$3 -> 211 | T23: =$G$3 -> 211 | U23: =$G$3 -> 211
A24: 21 | B24: 1994 | C24: 11 | D24: 2020 | E24: 22 | F24: 2026 | K24: 0 | L24: 212 | O24: total reinforcement | P24: =U11 -> 1 | Q24: =Z11 -> 3 | R24: =AE11 -> 0 | S24: =AJ11 -> 0 | T24: =AO11 -> 0 | U24: =AT11 -> 1
A25: 21 | B25: 2126 | C25: 11 | D25: 2134 | E25: 22 | F25: 2142 | K25: 0 | L25: 212 | O25: % target
A26: 21 | B26: 2243 | C26: 22 | D26: 2257 | E26: 24 | F26: 2285 | K26: 0 | L26: 222 | O26: CCRF
A27: 21 | B27: 2384 | C27: 11 | D27: 2401 | E27: 22 | F27: 2409 | K27: 0 | L27: 212 | O27: % CCRf
A28: 21 | B28: 2510 | C28: 22 | D28: 2520 | E28: 13 | F28: 2529 | K28: 0 | L28: 221 | O28: average response rate | P28: =F40/P20 -> 115.5 | Q28: =(F74-F40)/Q20 -> 121.0882353 | R28: =(F109-F74)/R20 -> 115.8 | S28: =(F143-F109)/S20 -> 116.8235294 | T28: =(F177-F143)/T20 -> 115.4117647 | U28: =(F211-F177)/U20 -> -588.0294118
A29: 21 | B29: 2628 | C29: 11 | D29: 2637 | E29: 11 | F29: 2649 | K29: 0 | L29: 211
A30: 21 | B30: 2743 | C30: 22 | D30: 2748 | E30: 13 | F30: 2757 | K30: 0 | L30: 221
A31: 21 | B31: 2849 | C31: 22 | D31: 2853 | E31: 24 | F31: 2858 | K31: 0 | L31: 222
A32: 12 | B32: 2961 | C32: 24 | D32: 2973 | E32: 13 | F32: 2981 | K32: 0 | L32: 121
A33: 12 | B33: 3086 | C33: 24 | D33: 3094 | E33: 24 | F33: 3100 | K33: 0 | L33: 122
A34: 21 | B34: 3198 | C34: 22 | D34: 3202 | E34: 24 | F34: 3207 | K34: 0 | L34: 222
A35: 21 | B35: 3310 | C35: 22 | D35: 3314 | E35: 13 | F35: 3322 | K35: 0 | L35: 221
A36: 21 | B36: 3423 | C36: 22 | D36: 3427 | E36: 24 | F36: 3431 | K36: 0 | L36: 222
A37: 21 | B37: 3526 | C37: 22 | D37: 3530 | E37: 13 | F37: 3540 | K37: 0 | L37: 221
A38: 12 | B38: 3654 | C38: 24 | D38: 3661 | E38: 24 | F38: 3669 | K38: 0 | L38: 122
A39: 12 | B39: 3781 | C39: 24 | D39: 3790 | E39: 24 | F39: 3797 | K39: 0 | L39: 122
A40: 21 | B40: 3911 | C40: 11 | D40: 3920 | E40: 22 | F40: 3927 | K40: 0 | L40: 212
A41: 21 | B41: 4022 | C41: 11 | D41: 4030 | E41: 22 | F41: 4051 | K41: 0 | L41: 212
A42: 21 | B42: 4151 | C42: 11 | D42: 4158 | E42: 11 | F42: 4181 | K42: 0 | L42: 211
A43: 12 | B43: 4289 | C43: 13 | D43: 4302 | E43: 13 | F43: 4320 | K43: 0 | L43: 111
A44: 21 | B44: 4414 | C44: 11 | D44: 4432 | E44: 22 | F44: 4443 | K44: 0 | L44: 212
A45: 21 | B45: 4542 | C45: 11 | D45: 4549 | E45: 22 | F45: 4558 | K45: 0 | L45: 212
A46: 21 | B46: 4661 | C46: 11 | D46: 4669 | E46: 22 | F46: 4678 | K46: 0 | L46: 212
A47: 21 | B47: 4771 | C47: 11 | D47: 4779 | E47: 11 | F47: 4795 | K47: 0 | L47: 211
A48: 21 | B48: 4889 | C48: 22 | D48: 4893 | E48: 13 | F48: 4901 | K48: 0 | L48: 221
A49: 21 | B49: 4999 | C49: 22 | D49: 5003 | E49: 24 | F49: 5007 | K49: 0 | L49: 222
A50: 21 | B50: 5107 | C50: 22 | D50: 5112 | E50: 13 | F50: 5122 | K50: 0 | L50: 221
A51: 12 | B51: 5231 | C51: 13 | D51: 5245 | E51: 24 | F51: 5262 | K51: 0 | L51: 112
A52: 21 | B52: 5362 | C52: 11 | D52: 5382 | E52: 22 | F52: 5390 | K52: 0 | L52: 212
A53: 21 | B53: 5489 | C53: 11 | D53: 5496 | E53: 22 | F53: 5503 | K53: 0 | L53: 212
A54: 21 | B54: 5602 | C54: 11 | D54: 5610 | E54: 22 | F54: 5619 | K54: 0 | L54: 212
A55: 21 | B55: 5718 | C55: 22 | D55: 5735 | E55: 13 | F55: 5742 | K55: 0 | L55: 221
A56: 12 | B56: 5843 | C56: 24 | D56: 5850 | E56: 13 | F56: 5869 | K56: 0 | L56: 121
A57: 21 | B57: 6001 | C57: 22 | D57: 6017 | E57: 24 | F57: 6029 | K57: 0 | L57: 222
A58: 21 | B58: 6134 | C58: 11 | D58: 6142 | E58: 22 | F58: 6148 | K58: 0 | L58: 212
A59: 21 | B59: 6252 | C59: 11 | D59: 6259 | E59: 22 | F59: 6268 | K59: 0 | L59: 212
A60: 21 | B60: 6367 | C60: 11 | D60: 6375 | E60: 22 | F60: 6382 | K60: 0 | L60: 212
A61: 21 | B61: 6482 | C61: 11 | D61: 6491 | E61: 22 | F61: 6498 | K61: 0 | L61: 212
A62: 21 | B62: 6597 | C62: 11 | D62: 6605 | E62: 22 | F62: 6612 | K62: 0 | L62: 212
A63: 21 | B63: 6711 | C63: 11 | D63: 6720 | E63: 22 | F63: 6728 | K63: 0 | L63: 212
A64: 21 | B64: 6828 | C64: 22 | D64: 6832 | E64: 13 | F64: 6840 | K64: 0 | L64: 221
A65: 21 | B65: 6932 | C65: 22 | D65: 6955 | E65: 13 | F65: 6964 | K65: 0 | L65: 221
A66: 21 | B66: 7066 | C66: 11 | D66: 7075 | E66: 11 | F66: 7086 | K66: 0 | L66: 211
A67: 21 | B67: 7185 | C67: 22 | D67: 7189 | E67: 13 | F67: 7197 | K67: 0 | L67: 221
A68: 21 | B68: 7294 | C68: 22 | D68: 7299 | E68: 24 | F68: 7304 | K68: 0 | L68: 222
A69: 21 | B69: 7402 | C69: 22 | D69: 7405 | E69: 24 | F69: 7410 | K69: 0 | L69: 222
A70: 12 | B70: 7510 | C70: 13 | D70: 7522 | E70: 24 | F70: 7530 | K70: 0 | L70: 112
A71: 21 | B71: 7641 | C71: 11 | D71: 7648 | E71: 22 | F71: 7658 | K71: 0 | L71: 212
A72: 21 | B72: 7758 | C72: 22 | D72: 7771 | E72: 24 | F72: 7781 | K72: 0 | L72: 222
A73: 21 | B73: 7899 | C73: 22 | D73: 7916 | E73: 24 | F73: 7924 | K73: 0 | L73: 222
A74: 21 | B74: 8030 | C74: 11 | D74: 8037 | E74: 22 | F74: 8044 | K74: 0 | L74: 212
A75: 21 | B75: 8143 | C75: 11 | D75: 8150 | E75: 22 | F75: 8157 | K75: 0 | L75: 212
A76: 21 | B76: 8260 | C76: 11 | D76: 8267 | E76: 22 | F76: 8277 | K76: 0 | L76: 212
A77: 21 | B77: 8376 | C77: 22 | D77: 8380 | E77: 13 | F77: 8388 | K77: 0 | L77: 221
A78: 21 | B78: 8486 | C78: 22 | D78: 8490 | E78: 13 | F78: 8511 | K78: 0 | L78: 221
A79: 21 | B79: 8607 | C79: 11 | D79: 8627 | E79: 22 | F79: 8635 | K79: 0 | L79: 212
A80: 12 | B80: 8727 | C80: 24 | D80: 8741 | E80: 13 | F80: 8748 | K80: 0 | L80: 121
A81: 21 | B81: 8845 | C81: 22 | D81: 8850 | E81: 24 | F81: 8876 | K81: 0 | L81: 222
A82: 12 | B82: 8980 | C82: 24 | D82: 9000 | E82: 24 | F82: 9015 | K82: 0 | L82: 122
A83: 21 | B83: 9116 | C83: 11 | D83: 9125 | E83: 22 | F83: 9132 | K83: 0 | L83: 212
A84: 21 | B84: 9231 | C84: 22 | D84: 9239 | E84: 24 | F84: 9251 | K84: 0 | L84: 222
A85: 21 | B85: 9350 | C85: 22 | D85: 9354 | E85: 24 | F85: 9358 | K85: 0 | L85: 222
A86: 21 | B86: 9458 | C86: 22 | D86: 9462 | E86: 13 | F86: 9470 | K86: 0 | L86: 221
A87: 21 | B87: 9573 | C87: 22 | D87: 9578 | E87: 24 | F87: 9588 | K87: 0 | L87: 222
A88: 21 | B88: 9686 | C88: 22 | D88: 9690 | E88: 24 | F88: 9703 | K88: 0 | L88: 222
A89: 21 | B89: 9804 | C89: 22 | D89: 9808 | E89: 24 | F89: 9815 | K89: 0 | L89: 222
A90: 21 | B90: 9910 | C90: 22 | D90: 9931 | E90: 24 | F90: 9939 | K90: 0 | L90: 222
A91: 21 | B91: 10039 | C91: 22 | D91: 10044 | E91: 24 | F91: 10048 | K91: 0 | L91: 222
A92: 21 | B92: 10147 | C92: 22 | D92: 10151 | E92: 24 | F92: 10161 | K92: 0 | L92: 222
A93: 21 | B93: 10258 | C93: 22 | D93: 10262 | E93: 13 | F93: 10270 | K93: 0 | L93: 221
A94: 21 | B94: 10369 | C94: 22 | D94: 10373 | E94: 24 | F94: 10377 | K94: 0 | L94: 222
A95: 12 | B95: 10481 | C95: 24 | D95: 10488 | E95: 24 | F95: 10495 | K95: 0 | L95: 122
A96: 21 | B96: 10596 | C96: 22 | D96: 10600 | E96: 24 | F96: 10604 | K96: 0 | L96: 222
A97: 21 | B97: 10703 | C97: 22 | D97: 10707 | E97: 24 | F97: 10711 | K97: 0 | L97: 222
A98: 21 | B98: 10809 | C98: 11 | D98: 10819 | E98: 22 | F98: 10826 | K98: 0 | L98: 212
A99: 21 | B99: 10925 | C99: 22 | D99: 10932 | E99: 24 | F99: 10943 | K99: 0 | L99: 222
A100: 21 | B100: 11044 | C100: 22 | D100: 11064 | E100: 24 | F100: 11069 | K100: 0 | L100: 222
A101: 21 | B101: 11171 | C101: 22 | D101: 11186 | E101: 24 | F101: 11195 | K101: 0 | L101: 222
A102: 21 | B102: 11298 | C102: 22 | D102: 11302 | E102: 24 | F102: 11306 | K102: 0 | L102: 222
A103: 21 | B103: 11400 | C103: 22 | D103: 11404 | E103: 13 | F103: 11415 | K103: 0 | L103: 221
A104: 21 | B104: 11513 | C104: 22 | D104: 11517 | E104: 24 | F104: 11532 | K104: 0 | L104: 222
A105: 21 | B105: 11631 | C105: 22 | D105: 11635 | E105: 24 | F105: 11640 | K105: 0 | L105: 222
A106: 21 | B106: 11735 | C106: 22 | D106: 11751 | E106: 13 | F106: 11762 | K106: 0 | L106: 221
A107: 21 | B107: 11865 | C107: 22 | D107: 11871 | E107: 13 | F107: 11881 | K107: 0 | L107: 221
A108: 21 | B108: 11981 | C108: 22 | D108: 11985 | E108: 24 | F108: 11988 | K108: 0 | L108: 222
A109: 21 | B109: 12086 | C109: 22 | D109: 12090 | E109: 24 | F109: 12097 | K109: 0 | L109: 222
A110: 21 | B110: 12198 | C110: 22 | D110: 12214 | E110: 24 | F110: 12228 | K110: 0 | L110: 222
A111: 21 | B111: 12332 | C111: 22 | D111: 12345 | E111: 24 | F111: 12352 | K111: 0 | L111: 222
A112: 21 | B112: 12452 | C112: 22 | D112: 12468 | E112: 13 | F112: 12477 | K112: 0 | L112: 221
A113: 21 | B113: 12573 | C113: 22 | D113: 12577 | E113: 13 | F113: 12587 | K113: 0 | L113: 221
A114: 21 | B114: 12687 | C114: 22 | D114: 12691 | E114: 24 | F114: 12697 | K114: 0 | L114: 222
A115: 21 | B115: 12801 | C115: 11 | D115: 12808 | E115: 22 | F115: 12814 | K115: 0 | L115: 212
A116: 21 | B116: 12917 | C116: 22 | D116: 12929 | E116: 13 | F116: 12952 | K116: 0 | L116: 221
A117: 21 | B117: 13050 | C117: 22 | D117: 13054 | E117: 24 | F117: 13067 | K117: 0 | L117: 222
A118: 21 | B118: 13167 | C118: 22 | D118: 13171 | E118: 24 | F118: 13175 | K118: 0 | L118: 222
A119: 21 | B119: 13272 | C119: 22 | D119: 13276 | E119: 24 | F119: 13280 | K119: 0 | L119: 222
A120: 12 | B120: 13387 | C120: 24 | D120: 13399 | E120: 13 | F120: 13409 | K120: 0 | L120: 121
A121: 21 | B121: 13509 | C121: 22 | D121: 13513 | E121: 24 | F121: 13517 | K121: 0 | L121: 222
A122: 21 | B122: 13619 | C122: 22 | D122: 13623 | E122: 24 | F122: 13627 | K122: 0 | L122: 222
A123: 21 | B123: 13724 | C123: 22 | D123: 13727 | E123: 24 | F123: 13731 | K123: 0 | L123: 222
A124: 21 | B124: 13831 | C124: 22 | D124: 13835 | E124: 24 | F124: 13839 | K124: 0 | L124: 222
A125: 21 | B125: 13942 | C125: 22 | D125: 13946 | E125: 24 | F125: 13952 | K125: 0 | L125: 222
A126: 21 | B126: 14051 | C126: 22 | D126: 14055 | E126: 24 | F126: 14059 | K126: 0 | L126: 222
A127: 12 | B127: 14171 | C127: 24 | D127: 14178 | E127: 13 | F127: 14187 | K127: 0 | L127: 121
A128: 21 | B128: 14291 | C128: 11 | D128: 14299 | E128: 22 | F128: 14306 | K128: 0 | L128: 212
A129: 12 | B129: 14398 | C129: 24 | D129: 14412 | E129: 24 | F129: 14419 | K129: 0 | L129: 122
A130: 12 | B130: 14524 | C130: 24 | D130: 14535 | E130: 24 | F130: 14541 | K130: 0 | L130: 122
A131: 21 | B131: 14643 | C131: 22 | D131: 14656 | E131: 24 | F131: 14663 | K131: 0 | L131: 222
A132: 21 | B132: 14764 | C132: 22 | D132: 14769 | E132: 24 | F132: 14776 | K132: 0 | L132: 222
A133: 21 | B133: 14879 | C133: 11 | D133: 14888 | E133: 22 | F133: 14894 | K133: 0 | L133: 212
A134: 21 | B134: 14995 | C134: 22 | D134: 15003 | E134: 24 | F134: 15017 | K134: 0 | L134: 222
A135: 21 | B135: 15118 | C135: 22 | D135: 15121 | E135: 24 | F135: 15125 | K135: 0 | L135: 222
A136: 21 | B136: 15231 | C136: 11 | D136: 15239 | E136: 22 | F136: 15247 | K136: 0 | L136: 212
A137: 12 | B137: 15351 | C137: 24 | D137: 15360 | E137: 24 | F137: 15368 | K137: 0 | L137: 122
A138: 21 | B138: 15470 | C138: 22 | D138: 15485 | E138: 24 | F138: 15501 | K138: 0 | L138: 222
A139: 21 | B139: 15600 | C139: 22 | D139: 15604 | E139: 24 | F139: 15610 | K139: 0 | L139: 222
A140: 21 | B140: 15711 | C140: 22 | D140: 15716 | E140: 24 | F140: 15721 | K140: 0 | L140: 222
A141: 21 | B141: 15816 | C141: 11 | D141: 15825 | E141: 22 | F141: 15832 | K141: 0 | L141: 212
A142: 21 | B142: 15933 | C142: 11 | D142: 15942 | E142: 22 | F142: 15949 | K142: 0 | L142: 212
A143: 21 | B143: 16049 | C143: 11 | D143: 16061 | E143: 22 | F143: 16069 | K143: 0 | L143: 212
A144: 21 | B144: 16169 | C144: 22 | D144: 16175 | E144: 13 | F144: 16186 | K144: 0 | L144: 221
A145: 21 | B145: 16287 | C145: 22 | D145: 16292 | E145: 24 | F145: 16296 | K145: 0 | L145: 222
A146: 21 | B146: 16398 | C146: 22 | D146: 16405 | E146: 24 | F146: 16427 | K146: 0 | L146: 222
A147: 21 | B147: 16527 | C147: 22 | D147: 16531 | E147: 24 | F147: 16535 | K147: 0 | L147: 222
A148: 21 | B148: 16636 | C148: 22 | D148: 16640 | E148: 24 | F148: 16649 | K148: 0 | L148: 222
A149: 21 | B149: 16748 | C149: 22 | D149: 16753 | E149: 24 | F149: 16757 | K149: 0 | L149: 222
A150: 21 | B150: 16858 | C150: 22 | D150: 16862 | E150: 24 | F150: 16866 | K150: 0 | L150: 222
A151: 21 | B151: 16972 | C151: 22 | D151: 16976 | E151: 24 | F151: 16980 | K151: 0 | L151: 222
A152: 21 | B152: 17083 | C152: 22 | D152: 17087 | E152: 24 | F152: 17091 | K152: 0 | L152: 222
A153: 21 | B153: 17188 | C153: 11 | D153: 17199 | E153: 22 | F153: 17207 | K153: 0 | L153: 212
A154: 21 | B154: 17307 | C154: 22 | D154: 17313 | E154: 24 | F154: 17324 | K154: 0 | L154: 222
A155: 21 | B155: 17427 | C155: 22 | D155: 17442 | E155: 24 | F155: 17450 | K155: 0 | L155: 222
A156: 21 | B156: 17554 | C156: 11 | D156: 17563 | E156: 22 | F156: 17570 | K156: 0 | L156: 212
A157: 21 | B157: 17670 | C157: 22 | D157: 17676 | E157: 24 | F157: 17687 | K157: 0 | L157: 222
A158: 21 | B158: 17787 | C158: 22 | D158: 17803 | E158: 24 | F158: 17812 | K158: 0 | L158: 222
A159: 21 | B159: 17910 | C159: 22 | D159: 17914 | E159: 13 | F159: 17923 | K159: 0 | L159: 221
A160: 12 | B160: 18025 | C160: 24 | D160: 18032 | E160: 24 | F160: 18039 | K160: 0 | L160: 122
A161: 21 | B161: 18136 | C161: 22 | D161: 18141 | E161: 24 | F161: 18145 | K161: 0 | L161: 222
A162: 21 | B162: 18244 | C162: 22 | D162: 18248 | E162: 24 | F162: 18253 | K162: 0 | L162: 222
A163: 21 | B163: 18352 | C163: 22 | D163: 18368 | E163: 13 | F163: 18378 | K163: 0 | L163: 221
A164: 21 | B164: 18478 | C164: 11 | D164: 18485 | E164: 22 | F164: 18492 | K164: 0 | L164: 212
A165: 21 | B165: 18591 | C165: 11 | D165: 18601 | E165: 22 | F165: 18612 | K165: 0 | L165: 212
A166: 21 | B166: 18712 | C166: 22 | D166: 18716 | E166: 24 | F166: 18723 | K166: 0 | L166: 222
A167: 21 | B167: 18829 | C167: 11 | D167: 18836 | E167: 22 | F167: 18844 | K167: 0 | L167: 212
A168: 21 | B168: 18944 | C168: 22 | D168: 18950 | E168: 13 | F168: 18959 | K168: 0 | L168: 221
A169: 21 | B169: 19057 | C169: 22 | D169: 19069 | E169: 13 | F169: 19079 | K169: 0 | L169: 221
A170: 21 | B170: 19176 | C170: 22 | D170: 19180 | E170: 24 | F170: 19184 | K170: 0 | L170: 222
A171: 21 | B171: 19282 | C171: 22 | D171: 19286 | E171: 24 | F171: 19290 | K171: 0 | L171: 222
A172: 21 | B172: 19393 | C172: 22 | D172: 19397 | E172: 24 | F172: 19404 | K172: 0 | L172: 222
A173: 21 | B173: 19501 | C173: 11 | D173: 19512 | E173: 22 | F173: 19519 | K173: 0 | L173: 212
A174: 21 | B174: 19619 | C174: 22 | D174: 19626 | E174: 13 | F174: 19639 | K174: 0 | L174: 221
A175: 21 | B175: 19739 | C175: 22 | D175: 19755 | E175: 13 | F175: 19765 | K175: 0 | L175: 221
A176: 21 | B176: 19864 | C176: 22 | D176: 19869 | E176: 24 | F176: 19873 | K176: 0 | L176: 222
A177: 21 | B177: 19968 | C177: 22 | D177: 19984 | E177: 13 | F177: 19993 | K177: 0 | L177: 221
A178: 21 | B178: 20092 | C178: 11 | D178: 20101 | E178: 22 | F178: 20109 | K178: 0 | L178: 212
A179: 21 | B179: 20208 | C179: 22 | D179: 20214 | E179: 13 | F179: 20222 | K179: 0 | L179: 221
A180: 21 | B180: 20325 | C180: 22 | D180: 20329 | E180: 13 | F180: 20337 | K180: 0 | L180: 221
A181: 21 | B181: 20433 | C181: 22 | D181: 20437 | E181: 24 | F181: 20441 | K181: 0 | L181: 222
A182: 21 | B182: 20539 | C182: 22 | D182: 20543 | E182: 13 | F182: 20553 | K182: 0 | L182: 221
A183: 21 | B183: 20661 | C183: 11 | D183: 20671 | E183: 22 | F183: 20678 | K183: 0 | L183: 212
A184: 21 | B184: 20773 | C184: 22 | D184: 20778 | E184: 24 | F184: 20789 | K184: 0 | L184: 222
A185: 21 | B185: 20887 | C185: 22 | D185: 20894 | E185: 13 | F185: 20902 | K185: 0 | L185: 221
A186: 21 | B186: 20999 | C186: 22 | D186: 21002 | E186: 24 | F186: 21006 | K186: 0 | L186: 222
A187: 21 | B187: 21108 | C187: 22 | D187: 21111 | E187: 13 | F187: 21124 | K187: 0 | L187: 221
A188: 21 | B188: 21226 | C188: 22 | D188: 21242 | E188: 13 | F188: 21252 | K188: 0 | L188: 221
A189: 21 | B189: 21354 | C189: 22 | D189: 21357 | E189: 24 | F189: 21361 | K189: 0 | L189: 222
A190: 21 | B190: 21462 | C190: 22 | D190: 21466 | E190: 24 | F190: 21471 | K190: 0 | L190: 222
A191: 21 | B191: 21563 | C191: 22 | D191: 21568 | E191: 13 | F191: 21576 | K191: 0 | L191: 221
A192: 21 | B192: 21674 | C192: 22 | D192: 21678 | E192: 24 | F192: 21682 | K192: 0 | L192: 222
A193: 21 | B193: 21785 | C193: 22 | D193: 21791 | E193: 13 | F193: 21801 | K193: 0 | L193: 221
A194: 21 | B194: 21903 | C194: 22 | D194: 21907 | E194: 24 | F194: 21914 | K194: 0 | L194: 222
A195: 21 | B195: 22015 | C195: 22 | D195: 22019 | E195: 24 | F195: 22023 | K195: 0 | L195: 222
A196: 12 | B196: 22122 | C196: 24 | D196: 22133 | E196: 24 | F196: 22138 | K196: 0 | L196: 122
A197: 21 | B197: 22231 | C197: 11 | D197: 22242 | E197: 11 | F197: 22261 | K197: 0 | L197: 211
A198: 21 | B198: 22358 | C198: 22 | D198: 22371 | E198: 24 | F198: 22390 | K198: 0 | L198: 222
A199: 21 | B199: 22496 | C199: 22 | D199: 22503 | E199: 13 | F199: 22513 | K199: 0 | L199: 221
A200: 21 | B200: 22614 | C200: 22 | D200: 22635 | E200: 13 | F200: 22645 | K200: 0 | L200: 221
... 11 more rows

Sheet !MC01B10.096
A1: Report for:!MC01B10.096
A2: Date: | B2: <date>
A3: Hen: | B3: <hen> | F3: Correct Sequence | G3: =Start!J2 -> 211 | P3: Total Sequences in Data | Q3: =4994-COUNTBLANK(L7:L5000) -> 208 | V3: Total Sequences in Block Data | W3: =COUNTA(L7:L41) -> 35 | AA3: Total Sequences in Block Data | AB3: =COUNTA(L42:L75) -> 34 | AF3: Total Sequences in Block Data | AG3: =COUNTA(L76:L110) -> 35 | AK3: Total Sequences in Block Data | AL3: =COUNTA(L111:L145) -> 35 | AP3: Total Sequences in Block Data | AQ3: =COUNTA(L146:L179) -> 34 | AU3: Total Sequences in Block Data | AV3: =COUNTA(L180:L214) -> 35
P4: Total Sequences in Summary | Q4: =SUM(O7:O14) -> 208 | V4: Total Sequences in Block Summary | W4: =SUM(U7:U14) -> 35 | AA4: Total Sequences in Block Summary | AB4: =SUM(Z7:Z14) -> 34 | AF4: Total Sequences in Block Summary | AG4: =SUM(AE7:AE14) -> 35 | AK4: Total Sequences in Block Summary | AL4: =SUM(AJ7:AJ14) -> 35 | AP4: Total Sequences in Block Summary | AQ4: =SUM(AO7:AO14) -> 34 | AU4: Total Sequences in Block Summary | AV4: =SUM(AT7:AT14) -> 35
T5: Block 1 | Y5: Block 2 | AD5: Block 3 | AI5: Block 4 | AN5: Block 5 | AS5: Block 6
A6: Sequence Component 1 | B6: Time 1 | C6: Sequence Component 2 | D6: Time 2 | E6: Sequence Component 3 | F6: Time 3 | G6: Sequence Component 4 | H6: Time 4 | I6: Sequence Component 5 | J6: Time 5 | K6: Correct? 0=No 1=Yes | L6: Sequence | N6: Frequency | P6: Relative Frequency | Q6: Variability | T6: Frequency | V6: Relative Frequency | W6: Variability | Y6: Frequency | AA6: Relative Frequency | AB6: Variability | AD6: Frequency | AF6: Relative Frequency | AG6: Variability | AI6: Frequency | AK6: Relative Frequency | AL6: Variability | AN6: Frequency | AP6: Relative Frequency | AQ6: Variability | AS6: Frequency | AU6: Relative Frequency | AV6: Variability
A7: 21 | B7: 9 | C7: 22 | D7: 15 | E7: 13 | F7: 23 | K7: 0 | L7: 221 | N7: 111 | O7: =COUNTIF($L$7:$L$500,N7) -> 0 | P7: =O7/$Q$4 -> 0 | Q7: =IF(P7=0,0,(P7*((LOG(P7))/LOG(2)))) -> 0 | T7: =N7 -> 111 | U7: =COUNTIF(L7:L41,T7) -> 0 | V7: =U7/(W4-U11) -> 0 | W7: =IF(V7=0,0,(V7*((LOG(V7))/LOG(2)))) -> 0 | Y7: =N7 -> 111 | Z7: =COUNTIF(L42:L75,Y7) -> 0 | AA7: =Z7/(AB4-Z11) -> 0 | AB7: =IF(AA7=0,0,(AA7*((LOG(AA7))/LOG(2)))) -> 0 | AD7: =N7 -> 111 | AE7: =COUNTIF(L76:L110,AD7) -> 0 | AF7: =AE7/(AG4-AE11) -> 0 | AG7: =IF(AF7=0,0,(AF7*((LOG(AF7))/LOG(2)))) -> 0 | AI7: =N7 -> 111 | AJ7: =COUNTIF(L111:L145,AI7) -> 0 | AK7: =AJ7/(AL4-AJ11) -> 0 | AL7: =IF(AK7=0,0,(AK7*((LOG(AK7))/LOG(2)))) -> 0 | AN7: =N7 -> 111 | AO7: =COUNTIF(L146:L179,AN7) -> 0 | AP7: =AO7/(AQ4-AO11) -> 0 | AQ7: =IF(AP7=0,0,(AP7*((LOG(AP7))/LOG(2)))) -> 0 | AS7: =N7 -> 111 | AT7: =COUNTIF(L180:L214,AS7) -> 0 | AU7: =AT7/(AV4-AT11) -> 0 | AV7: =IF(AU7=0,0,(AU7*((LOG(AU7))/LOG(2)))) -> 0
A8: 12 | B8: 132 | C8: 24 | D8: 139 | E8: 24 | F8: 153 | K8: 0 | L8: 122 | N8: 112 | O8: =COUNTIF($L$7:$L$500,N8) -> 0 | P8: =O8/$Q$4 -> 0 | Q8: =IF(P8=0,0,(P8*((LOG(P8))/LOG(2)))) -> 0 | T8: =N8 -> 112 | U8: =COUNTIF(L7:L41,T8) -> 0 | V8: =U8/(W4-U11) -> 0 | W8: =IF(V8=0,0,(V8*((LOG(V8))/LOG(2)))) -> 0 | Y8: =N8 -> 112 | Z8: =COUNTIF(L42:L75,Y8) -> 0 | AA8: =Z8/(AB4-Z11) -> 0 | AB8: =IF(AA8=0,0,(AA8*((LOG(AA8))/LOG(2)))) -> 0 | AD8: =N8 -> 112 | AE8: =COUNTIF(L76:L110,AD8) -> 0 | AF8: =AE8/(AG4-AE11) -> 0 | AG8: =IF(AF8=0,0,(AF8*((LOG(AF8))/LOG(2)))) -> 0 | AI8: =N8 -> 112 | AJ8: =COUNTIF(L111:L145,AI8) -> 0 | AK8: =AJ8/(AL4-AJ11) -> 0 | AL8: =IF(AK8=0,0,(AK8*((LOG(AK8))/LOG(2)))) -> 0 | AN8: =N8 -> 112 | AO8: =COUNTIF(L146:L179,AN8) -> 0 | AP8: =AO8/(AQ4-AO11) -> 0 | AQ8: =IF(AP8=0,0,(AP8*((LOG(AP8))/LOG(2)))) -> 0 | AS8: =N8 -> 112 | AT8: =COUNTIF(L180:L214,AS8) -> 0 | AU8: =AT8/(AV4-AT11) -> 0 | AV8: =IF(AU8=0,0,(AU8*((LOG(AU8))/LOG(2)))) -> 0
A9: 21 | B9: 251 | C9: 22 | D9: 262 | E9: 24 | F9: 268 | K9: 0 | L9: 222 | N9: 121 | O9: =COUNTIF($L$7:$L$500,N9) -> 7 | P9: =O9/$Q$4 -> 0.03365384615 | Q9: =IF(P9=0,0,(P9*((LOG(P9))/LOG(2)))) -> -0.1646711229 | T9: =N9 -> 121 | U9: =COUNTIF(L7:L41,T9) -> 3 | V9: =U9/(W4-U11) -> 0.08823529412 | W9: =IF(V9=0,0,(V9*((LOG(V9))/LOG(2)))) -> -0.3090441477 | Y9: =N9 -> 121 | Z9: =COUNTIF(L42:L75,Y9) -> 4 | AA9: =Z9/(AB4-Z11) -> 0.1176470588 | AB9: =IF(AA9=0,0,(AA9*((LOG(AA9))/LOG(2)))) -> -0.3632309225 | AD9: =N9 -> 121 | AE9: =COUNTIF(L76:L110,AD9) -> 0 | AF9: =AE9/(AG4-AE11) -> 0 | AG9: =IF(AF9=0,0,(AF9*((LOG(AF9))/LOG(2)))) -> 0 | AI9: =N9 -> 121 | AJ9: =COUNTIF(L111:L145,AI9) -> 0 | AK9: =AJ9/(AL4-AJ11) -> 0 | AL9: =IF(AK9=0,0,(AK9*((LOG(AK9))/LOG(2)))) -> 0 | AN9: =N9 -> 121 | AO9: =COUNTIF(L146:L179,AN9) -> 0 | AP9: =AO9/(AQ4-AO11) -> 0 | AQ9: =IF(AP9=0,0,(AP9*((LOG(AP9))/LOG(2)))) -> 0 | AS9: =N9 -> 121 | AT9: =COUNTIF(L180:L214,AS9) -> 0 | AU9: =AT9/(AV4-AT11) -> 0 | AV9: =IF(AU9=0,0,(AU9*((LOG(AU9))/LOG(2)))) -> 0
A10: 21 | B10: 370 | C10: 22 | D10: 374 | E10: 24 | F10: 378 | K10: 0 | L10: 222 | N10: 122 | O10: =COUNTIF($L$7:$L$500,N10) -> 25 | P10: =O10/$Q$4 -> 0.1201923077 | Q10: =IF(P10=0,0,(P10*((LOG(P10))/LOG(2)))) -> -0.3673778279 | T10: =N10 -> 122 | U10: =COUNTIF(L7:L41,T10) -> 6 | V10: =U10/(W4-U11) -> 0.1764705882 | W10: =IF(V10=0,0,(V10*((LOG(V10))/LOG(2)))) -> -0.4416177072 | Y10: =N10 -> 122 | Z10: =COUNTIF(L42:L75,Y10) -> 4 | AA10: =Z10/(AB4-Z11) -> 0.1176470588 | AB10: =IF(AA10=0,0,(AA10*((LOG(AA10))/LOG(2)))) -> -0.3632309225 | AD10: =N10 -> 122 | AE10: =COUNTIF(L76:L110,AD10) -> 2 | AF10: =AE10/(AG4-AE11) -> 0.05714285714 | AG10: =IF(AF10=0,0,(AF10*((LOG(AF10))/LOG(2)))) -> -0.2359590295 | AI10: =N10 -> 122 | AJ10: =COUNTIF(L111:L145,AI10) -> 0 | AK10: =AJ10/(AL4-AJ11) -> 0 | AL10: =IF(AK10=0,0,(AK10*((LOG(AK10))/LOG(2)))) -> 0 | AN10: =N10 -> 122 | AO10: =COUNTIF(L146:L179,AN10) -> 4 | AP10: =AO10/(AQ4-AO11) -> 0.1176470588 | AQ10: =IF(AP10=0,0,(AP10*((LOG(AP10))/LOG(2)))) -> -0.3632309225 | AS10: =N10 -> 122 | AT10: =COUNTIF(L180:L214,AS10) -> 9 | AU10: =AT10/(AV4-AT11) -> 0.2571428571 | AV10: =IF(AU10=0,0,(AU10*((LOG(AU10))/LOG(2)))) -> -0.5038349183
A11: 21 | B11: 481 | C11: 22 | D11: 485 | E11: 24 | F11: 490 | K11: 0 | L11: 222 | N11: 211 | O11: =COUNTIF($L$7:$L$500,N11) -> 1 | P11: =O11/$Q$4 -> 0.004807692308 | Q11: =IF(P11=0,0,(P11*((LOG(P11))/LOG(2)))) -> -0.0370213448 | T11: =N11 -> 211 | U11: =COUNTIF(L7:L41,T11) -> 1 | Y11: =N11 -> 211 | Z11: =COUNTIF(L42:L75,Y11) -> 0 | AD11: =N11 -> 211 | AE11: =COUNTIF(L76:L110,AD11) -> 0 | AI11: =N11 -> 211 | AJ11: =COUNTIF(L111:L145,AI11) -> 0 | AN11: =N11 -> 211 | AO11: =COUNTIF(L146:L179,AN11) -> 0 | AS11: =N11 -> 211 | AT11: =COUNTIF(L180:L214,AS11) -> 0
A12: 21 | B12: 584 | C12: 22 | D12: 589 | E12: 24 | F12: 593 | K12: 0 | L12: 222 | N12: 212 | O12: =COUNTIF($L$7:$L$500,N12) -> 27 | P12: =O12/$Q$4 -> 0.1298076923 | Q12: =IF(P12=0,0,(P12*((LOG(P12))/LOG(2)))) -> -0.3823553357 | T12: =N12 -> 212 | U12: =COUNTIF(L7:L41,T12) -> 8 | V12: =U12/(W4-U11) -> 0.2352941176 | W12: =IF(V12=0,0,(V12*((LOG(V12))/LOG(2)))) -> -0.4911677274 | Y12: =N12 -> 212 | Z12: =COUNTIF(L42:L75,Y12) -> 4 | AA12: =Z12/(AB4-Z11) -> 0.1176470588 | AB12: =IF(AA12=0,0,(AA12*((LOG(AA12))/LOG(2)))) -> -0.3632309225 | AD12: =N12 -> 212 | AE12: =COUNTIF(L76:L110,AD12) -> 6 | AF12: =AE12/(AG4-AE11) -> 0.1714285714 | AG12: =IF(AF12=0,0,(AF12*((LOG(AF12))/LOG(2)))) -> -0.4361692314 | AI12: =N12 -> 212 | AJ12: =COUNTIF(L111:L145,AI12) -> 5 | AK12: =AJ12/(AL4-AJ11) -> 0.1428571429 | AL12: =IF(AK12=0,0,(AK12*((LOG(AK12))/LOG(2)))) -> -0.4010507032 | AN12: =N12 -> 212 | AO12: =COUNTIF(L146:L179,AN12) -> 4 | AP12: =AO12/(AQ4-AO11) -> 0.1176470588 | AQ12: =IF(AP12=0,0,(AP12*((LOG(AP12))/LOG(2)))) -> -0.3632309225 | AS12: =N12 -> 212 | AT12: =COUNTIF(L180:L214,AS12) -> 0 | AU12: =AT12/(AV4-AT11) -> 0 | AV12: =IF(AU12=0,0,(AU12*((LOG(AU12))/LOG(2)))) -> 0
A13: 21 | B13: 698 | C13: 22 | D13: 702 | E13: 24 | F13: 706 | K13: 0 | L13: 222 | N13: 221 | O13: =COUNTIF($L$7:$L$500,N13) -> 20 | P13: =O13/$Q$4 -> 0.09615384615 | Q13: =IF(P13=0,0,(P13*((LOG(P13))/LOG(2)))) -> -0.3248568869 | T13: =N13 -> 221 | U13: =COUNTIF(L7:L41,T13) -> 5 | V13: =U13/(W4-U11) -> 0.1470588235 | W13: =IF(V13=0,0,(V13*((LOG(V13))/LOG(2)))) -> -0.4066962862 | Y13: =N13 -> 221 | Z13: =COUNTIF(L42:L75,Y13) -> 9 | AA13: =Z13/(AB4-Z11) -> 0.2647058824 | AB13: =IF(AA13=0,0,(AA13*((LOG(AA13))/LOG(2)))) -> -0.5075835458 | AD13: =N13 -> 221 | AE13: =COUNTIF(L76:L110,AD13) -> 1 | AF13: =AE13/(AG4-AE11) -> 0.02857142857 | AG13: =IF(AF13=0,0,(AF13*((LOG(AF13))/LOG(2)))) -> -0.1465509433 | AI13: =N13 -> 221 | AJ13: =COUNTIF(L111:L145,AI13) -> 2 | AK13: =AJ13/(AL4-AJ11) -> 0.05714285714 | AL13: =IF(AK13=0,0,(AK13*((LOG(AK13))/LOG(2)))) -> -0.2359590295 | AN13: =N13 -> 221 | AO13: =COUNTIF(L146:L179,AN13) -> 1 | AP13: =AO13/(AQ4-AO11) -> 0.02941176471 | AQ13: =IF(AP13=0,0,(AP13*((LOG(AP13))/LOG(2)))) -> -0.14963126 | AS13: =N13 -> 221 | AT13: =COUNTIF(L180:L214,AS13) -> 2 | AU13: =AT13/(AV4-AT11) -> 0.05714285714 | AV13: =IF(AU13=0,0,(AU13*((LOG(AU13))/LOG(2)))) -> -0.2359590295
A14: 21 | B14: 805 | C14: 11 | D14: 816 | E14: 22 | F14: 823 | K14: 0 | L14: 212 | N14: 222 | O14: =COUNTIF($L$7:$L$500,N14) -> 128 | P14: =O14/$Q$4 -> 0.6153846154 | Q14: =IF(P14=0,0,(P14*((LOG(P14))/LOG(2)))) -> -0.4310398265 | T14: =N14 -> 222 | U14: =COUNTIF(L7:L41,T14) -> 12 | V14: =U14/(W4-U11) -> 0.3529411765 | W14: =IF(V14=0,0,(V14*((LOG(V14))/LOG(2)))) -> -0.5302942378 | Y14: =N14 -> 222 | Z14: =COUNTIF(L42:L75,Y14) -> 13 | AA14: =Z14/(AB4-Z11) -> 0.3823529412 | AB14: =IF(AA14=0,0,(AA14*((LOG(AA14))/LOG(2)))) -> -0.5303323706 | AD14: =N14 -> 222 | AE14: =COUNTIF(L76:L110,AD14) -> 26 | AF14: =AE14/(AG4-AE11) -> 0.7428571429 | AG14: =IF(AF14=0,0,(AF14*((LOG(AF14))/LOG(2)))) -> -0.3185693077 | AI14: =N14 -> 222 | AJ14: =COUNTIF(L111:L145,AI14) -> 28 | AK14: =AJ14/(AL4-AJ11) -> 0.8 | AL14: =IF(AK14=0,0,(AK14*((LOG(AK14))/LOG(2)))) -> -0.2575424759 | AN14: =N14 -> 222 | AO14: =COUNTIF(L146:L179,AN14) -> 25 | AP14: =AO14/(AQ4-AO11) -> 0.7352941176 | AQ14: =IF(AP14=0,0,(AP14*((LOG(AP14))/LOG(2)))) -> -0.3261813614 | AS14: =N14 -> 222 | AT14: =COUNTIF(L180:L214,AS14) -> 24 | AU14: =AT14/(AV4-AT11) -> 0.6857142857 | AV14: =IF(AU14=0,0,(AU14*((LOG(AU14))/LOG(2)))) -> -0.373248354
A15: 12 | B15: 910 | C15: 24 | D15: 922 | E15: 24 | F15: 926 | K15: 0 | L15: 122 | P15: =SUM(P7:P14) -> 1 | Q15: =-SUM(Q7:Q14) -> 1.707322345 | V15: =SUM(V7:V14) -> 1 | W15: =-SUM(W7:W14) -> 2.178820106 | AA15: =SUM(AA7:AA14) -> 1 | AB15: =-SUM(AB7:AB14) -> 2.127608684 | AF15: =SUM(AF7:AF14) -> 1 | AG15: =-SUM(AG7:AG14) -> 1.137248512 | AK15: =SUM(AK7:AK14) -> 1 | AL15: =-SUM(AL7:AL14) -> 0.8945522086 | AP15: =SUM(AP7:AP14) -> 1 | AQ15: =-SUM(AQ7:AQ14) -> 1.202274466 | AU15: =SUM(AU7:AU14) -> 1 | AV15: =-SUM(AV7:AV14) -> 1.113042302
A16: 21 | B16: 1046 | C16: 22 | D16: 1061 | E16: 13 | F16: 1071 | K16: 0 | L16: 221 | P16: U= | Q16: =Q15/(LOG(Q4)/LOG(2)) -> 0.2217175132 | V16: U1= | W16: =W15/(LOG(W4)/LOG(2)) -> 0.4247806368 | AA16: U2= | AB16: =AB15/(LOG(AB4)/LOG(2)) -> 0.4182062357 | AF16: U3= | AG16: =AG15/(LOG(AG4)/LOG(2)) -> 0.2217168575 | AK16: U4= | AL16: =AL15/(LOG(AL4)/LOG(2)) -> 0.1744010236 | AP16: U5= | AQ16: =AQ15/(LOG(AQ4)/LOG(2)) -> 0.2363210315 | AU16: U6= | AV16: =AV15/(LOG(AV4)/LOG(2)) -> 0.2169976385
A17: 12 | B17: 1179 | C17: 24 | D17: 1186 | E17: 24 | F17: 1194 | K17: 0 | L17: 122
A18: 21 | B18: 1292 | C18: 11 | D18: 1301 | E18: 22 | F18: 1309 | K18: 0 | L18: 212
A19: 21 | B19: 1409 | C19: 22 | D19: 1415 | E19: 24 | F19: 1426 | K19: 0 | L19: 222 | N19: Total Target Seq
A20: 21 | B20: 1534 | C20: 11 | D20: 1542 | E20: 22 | F20: 1549 | K20: 0 | L20: 212 | N20: =COUNTIF(L7:L214,G3) -> 1 | P20: 35 | Q20: 34 | R20: 35 | S20: 35 | T20: 34 | U20: 35
A21: 12 | B21: 1641 | C21: 24 | D21: 1649 | E21: 24 | F21: 1653 | K21: 0 | L21: 122 | P21: % of reinforcement given in 6 equal intervals based on number of trials
A22: 12 | B22: 1761 | C22: 24 | D22: 1768 | E22: 13 | F22: 1790 | K22: 0 | L22: 121 | P22: %_1 | Q22: %_2 | R22: %_3 | S22: %_4 | T22: %_5 | U22: %_6
A23: 21 | B23: 1886 | C23: 22 | D23: 1890 | E23: 13 | F23: 1900 | K23: 0 | L23: 221 | O23: target sequence | P23: =$G$3 -> 211 | Q23: =$G$3 -> 211 | R23: =$G$3 -> 211 | S23: =$G$3 -> 211 | T23: =$G$3 -> 211 | U23: =$G$3 -> 211
A24: 21 | B24: 2000 | C24: 11 | D24: 2010 | E24: 22 | F24: 2018 | K24: 0 | L24: 212 | O24: total reinforcement | P24: =U11 -> 1 | Q24: =Z11 -> 0 | R24: =AE11 -> 0 | S24: =AJ11 -> 0 | T24: =AO11 -> 0 | U24: =AT11 -> 0
A25: 12 | B25: 2111 | C25: 24 | D25: 2120 | E25: 13 | F25: 2130 | K25: 0 | L25: 121 | O25: % target
A26: 21 | B26: 2242 | C26: 11 | D26: 2250 | E26: 22 | F26: 2262 | K26: 0 | L26: 212 | O26: CCRF
A27: 21 | B27: 2361 | C27: 22 | D27: 2367 | E27: 24 | F27: 2376 | K27: 0 | L27: 222 | O27: % CCRf
A28: 21 | B28: 2475 | C28: 22 | D28: 2480 | E28: 24 | F28: 2494 | K28: 0 | L28: 222 | O28: average response rate | P28: =F41/P20 -> 115.8285714 | Q28: =(F75-F41)/Q20 -> 116.4411765 | R28: =(F110-F75)/R20 -> 113.1428571 | S28: =(F145-F110)/S20 -> 116.9428571 | T28: =(F179-F145)/T20 -> 114.0882353 | U28: =(F214-F179)/U20 -> 113.8285714
A29: 21 | B29: 2591 | C29: 22 | D29: 2595 | E29: 24 | F29: 2603 | K29: 0 | L29: 222
A30: 12 | B30: 2708 | C30: 24 | D30: 2715 | E30: 24 | F30: 2727 | K30: 0 | L30: 122
A31: 21 | B31: 2819 | C31: 22 | D31: 2823 | E31: 13 | F31: 2833 | K31: 0 | L31: 221
A32: 12 | B32: 2948 | C32: 24 | D32: 2958 | E32: 24 | F32: 2988 | K32: 0 | L32: 122
A33: 21 | B33: 3090 | C33: 11 | D33: 3100 | E33: 22 | F33: 3108 | K33: 0 | L33: 212
A34: 21 | B34: 3201 | C34: 11 | D34: 3209 | E34: 11 | F34: 3231 | K34: 0 | L34: 211
A35: 12 | B35: 3342 | C35: 24 | D35: 3350 | E35: 13 | F35: 3369 | K35: 0 | L35: 121
A36: 21 | B36: 3472 | C36: 22 | D36: 3476 | E36: 13 | F36: 3488 | K36: 0 | L36: 221
A37: 21 | B37: 3586 | C37: 22 | D37: 3590 | E37: 24 | F37: 3593 | K37: 0 | L37: 222
A38: 21 | B38: 3697 | C38: 11 | D38: 3704 | E38: 22 | F38: 3711 | K38: 0 | L38: 212
A39: 21 | B39: 3812 | C39: 22 | D39: 3818 | E39: 24 | F39: 3825 | K39: 0 | L39: 222
A40: 21 | B40: 3919 | C40: 11 | D40: 3929 | E40: 22 | F40: 3936 | K40: 0 | L40: 212
A41: 21 | B41: 4035 | C41: 22 | D41: 4039 | E41: 24 | F41: 4054 | K41: 0 | L41: 222
A42: 21 | B42: 4159 | C42: 11 | D42: 4172 | E42: 22 | F42: 4182 | K42: 0 | L42: 212
A43: 21 | B43: 4283 | C43: 22 | D43: 4291 | E43: 13 | F43: 4301 | K43: 0 | L43: 221
A44: 12 | B44: 4412 | C44: 24 | D44: 4419 | E44: 13 | F44: 4433 | K44: 0 | L44: 121
A45: 12 | B45: 4540 | C45: 24 | D45: 4548 | E45: 24 | F45: 4561 | K45: 0 | L45: 122
A46: 21 | B46: 4659 | C46: 22 | D46: 4663 | E46: 24 | F46: 4669 | K46: 0 | L46: 222
A47: 21 | B47: 4766 | C47: 22 | D47: 4770 | E47: 24 | F47: 4774 | K47: 0 | L47: 222
A48: 21 | B48: 4871 | C48: 22 | D48: 4881 | E48: 13 | F48: 4888 | K48: 0 | L48: 221
A49: 12 | B49: 5000 | C49: 24 | D49: 5007 | E49: 13 | F49: 5033 | K49: 0 | L49: 121
A50: 21 | B50: 5135 | C50: 22 | D50: 5140 | E50: 13 | F50: 5150 | K50: 0 | L50: 221
A51: 21 | B51: 5247 | C51: 22 | D51: 5251 | E51: 24 | F51: 5255 | K51: 0 | L51: 222
A52: 21 | B52: 5352 | C52: 22 | D52: 5356 | E52: 24 | F52: 5360 | K52: 0 | L52: 222
A53: 21 | B53: 5461 | C53: 22 | D53: 5466 | E53: 13 | F53: 5473 | K53: 0 | L53: 221
A54: 21 | B54: 5579 | C54: 22 | D54: 5584 | E54: 13 | F54: 5595 | K54: 0 | L54: 221
A55: 21 | B55: 5700 | C55: 22 | D55: 5708 | E55: 13 | F55: 5717 | K55: 0 | L55: 221
A56: 21 | B56: 5809 | C56: 22 | D56: 5813 | E56: 13 | F56: 5822 | K56: 0 | L56: 221
A57: 21 | B57: 5923 | C57: 22 | D57: 5931 | E57: 24 | F57: 5938 | K57: 0 | L57: 222
A58: 12 | B58: 6048 | C58: 24 | D58: 6055 | E58: 13 | F58: 6071 | K58: 0 | L58: 121
A59: 21 | B59: 6170 | C59: 22 | D59: 6175 | E59: 24 | F59: 6181 | K59: 0 | L59: 222
A60: 21 | B60: 6282 | C60: 11 | D60: 6292 | E60: 22 | F60: 6299 | K60: 0 | L60: 212
A61: 12 | B61: 6401 | C61: 24 | D61: 6408 | E61: 24 | F61: 6416 | K61: 0 | L61: 122
A62: 21 | B62: 6515 | C62: 22 | D62: 6519 | E62: 13 | F62: 6533 | K62: 0 | L62: 221
A63: 21 | B63: 6637 | C63: 22 | D63: 6641 | E63: 24 | F63: 6647 | K63: 0 | L63: 222
A64: 21 | B64: 6745 | C64: 22 | D64: 6749 | E64: 24 | F64: 6753 | K64: 0 | L64: 222
A65: 21 | B65: 6850 | C65: 22 | D65: 6860 | E65: 13 | F65: 6868 | K65: 0 | L65: 221
A66: 21 | B66: 6969 | C66: 22 | D66: 6972 | E66: 24 | F66: 6976 | K66: 0 | L66: 222
A67: 21 | B67: 7074 | C67: 22 | D67: 7078 | E67: 24 | F67: 7082 | K67: 0 | L67: 222
A68: 21 | B68: 7188 | C68: 22 | D68: 7194 | E68: 24 | F68: 7198 | K68: 0 | L68: 222
A69: 12 | B69: 7315 | C69: 24 | D69: 7322 | E69: 24 | F69: 7329 | K69: 0 | L69: 122
A70: 21 | B70: 7426 | C70: 11 | D70: 7435 | E70: 22 | F70: 7442 | K70: 0 | L70: 212
A71: 21 | B71: 7545 | C71: 22 | D71: 7552 | E71: 24 | F71: 7559 | K71: 0 | L71: 222
A72: 21 | B72: 7658 | C72: 11 | D72: 7668 | E72: 22 | F72: 7675 | K72: 0 | L72: 212
A73: 12 | B73: 7767 | C73: 24 | D73: 7774 | E73: 24 | F73: 7779 | K73: 0 | L73: 122
A74: 21 | B74: 7880 | C74: 22 | D74: 7884 | E74: 24 | F74: 7888 | K74: 0 | L74: 222
A75: 12 | B75: 7994 | C75: 24 | D75: 8002 | E75: 13 | F75: 8013 | K75: 0 | L75: 121
A76: 21 | B76: 8115 | C76: 22 | D76: 8127 | E76: 24 | F76: 8133 | K76: 0 | L76: 222
A77: 21 | B77: 8233 | C77: 22 | D77: 8237 | E77: 24 | F77: 8242 | K77: 0 | L77: 222
A78: 21 | B78: 8339 | C78: 22 | D78: 8343 | E78: 24 | F78: 8349 | K78: 0 | L78: 222
A79: 21 | B79: 8448 | C79: 22 | D79: 8453 | E79: 24 | F79: 8457 | K79: 0 | L79: 222
A80: 21 | B80: 8559 | C80: 11 | D80: 8568 | E80: 22 | F80: 8575 | K80: 0 | L80: 212
A81: 21 | B81: 8674 | C81: 22 | D81: 8680 | E81: 24 | F81: 8685 | K81: 0 | L81: 222
A82: 21 | B82: 8784 | C82: 22 | D82: 8788 | E82: 24 | F82: 8792 | K82: 0 | L82: 222
A83: 21 | B83: 8890 | C83: 22 | D83: 8894 | E83: 24 | F83: 8898 | K83: 0 | L83: 222
A84: 21 | B84: 8998 | C84: 22 | D84: 9002 | E84: 24 | F84: 9009 | K84: 0 | L84: 222
A85: 21 | B85: 9112 | C85: 22 | D85: 9117 | E85: 24 | F85: 9121 | K85: 0 | L85: 222
A86: 21 | B86: 9221 | C86: 22 | D86: 9225 | E86: 24 | F86: 9229 | K86: 0 | L86: 222
A87: 21 | B87: 9329 | C87: 22 | D87: 9333 | E87: 24 | F87: 9338 | K87: 0 | L87: 222
A88: 21 | B88: 9433 | C88: 11 | D88: 9444 | E88: 22 | F88: 9451 | K88: 0 | L88: 212
A89: 21 | B89: 9553 | C89: 22 | D89: 9559 | E89: 24 | F89: 9566 | K89: 0 | L89: 222
A90: 21 | B90: 9667 | C90: 22 | D90: 9671 | E90: 24 | F90: 9675 | K90: 0 | L90: 222
A91: 21 | B91: 9781 | C91: 22 | D91: 9785 | E91: 24 | F91: 9793 | K91: 0 | L91: 222
A92: 21 | B92: 9890 | C92: 22 | D92: 9895 | E92: 24 | F92: 9900 | K92: 0 | L92: 222
A93: 21 | B93: 10002 | C93: 22 | D93: 10006 | E93: 24 | F93: 10013 | K93: 0 | L93: 222
A94: 21 | B94: 10115 | C94: 11 | D94: 10125 | E94: 22 | F94: 10131 | K94: 0 | L94: 212
A95: 21 | B95: 10235 | C95: 22 | D95: 10241 | E95: 24 | F95: 10249 | K95: 0 | L95: 222
A96: 21 | B96: 10356 | C96: 22 | D96: 10360 | E96: 24 | F96: 10364 | K96: 0 | L96: 222
A97: 21 | B97: 10464 | C97: 22 | D97: 10468 | E97: 24 | F97: 10472 | K97: 0 | L97: 222
A98: 21 | B98: 10575 | C98: 22 | D98: 10580 | E98: 24 | F98: 10584 | K98: 0 | L98: 222
A99: 12 | B99: 10699 | C99: 24 | D99: 10706 | E99: 24 | F99: 10713 | K99: 0 | L99: 122
A100: 21 | B100: 10821 | C100: 11 | D100: 10834 | E100: 22 | F100: 10841 | K100: 0 | L100: 212
A101: 21 | B101: 10934 | C101: 11 | D101: 10942 | E101: 22 | F101: 10949 | K101: 0 | L101: 212
A102: 21 | B102: 11041 | C102: 11 | D102: 11051 | E102: 22 | F102: 11058 | K102: 0 | L102: 212
A103: 21 | B103: 11157 | C103: 22 | D103: 11162 | E103: 24 | F103: 11168 | K103: 0 | L103: 222
A104: 12 | B104: 11279 | C104: 24 | D104: 11288 | E104: 24 | F104: 11294 | K104: 0 | L104: 122
A105: 21 | B105: 11393 | C105: 22 | D105: 11397 | E105: 24 | F105: 11405 | K105: 0 | L105: 222
A106: 21 | B106: 11502 | C106: 22 | D106: 11506 | E106: 24 | F106: 11511 | K106: 0 | L106: 222
A107: 21 | B107: 11608 | C107: 22 | D107: 11612 | E107: 24 | F107: 11616 | K107: 0 | L107: 222
A108: 21 | B108: 11722 | C108: 22 | D108: 11726 | E108: 24 | F108: 11730 | K108: 0 | L108: 222
A109: 21 | B109: 11829 | C109: 22 | D109: 11834 | E109: 13 | F109: 11841 | K109: 0 | L109: 221
A110: 21 | B110: 11964 | C110: 22 | D110: 11968 | E110: 24 | F110: 11973 | K110: 0 | L110: 222
A111: 21 | B111: 12072 | C111: 22 | D111: 12075 | E111: 24 | F111: 12083 | K111: 0 | L111: 222
A112: 21 | B112: 12190 | C112: 22 | D112: 12197 | E112: 24 | F112: 12204 | K112: 0 | L112: 222
A113: 21 | B113: 12307 | C113: 22 | D113: 12310 | E113: 24 | F113: 12314 | K113: 0 | L113: 222
A114: 21 | B114: 12414 | C114: 22 | D114: 12418 | E114: 24 | F114: 12423 | K114: 0 | L114: 222
A115: 21 | B115: 12529 | C115: 11 | D115: 12539 | E115: 22 | F115: 12546 | K115: 0 | L115: 212
A116: 21 | B116: 12643 | C116: 22 | D116: 12647 | E116: 24 | F116: 12651 | K116: 0 | L116: 222
A117: 21 | B117: 12751 | C117: 22 | D117: 12755 | E117: 13 | F117: 12767 | K117: 0 | L117: 221
A118: 21 | B118: 12871 | C118: 22 | D118: 12878 | E118: 24 | F118: 12884 | K118: 0 | L118: 222
A119: 21 | B119: 12994 | C119: 22 | D119: 12998 | E119: 24 | F119: 13005 | K119: 0 | L119: 222
A120: 21 | B120: 13104 | C120: 22 | D120: 13108 | E120: 24 | F120: 13111 | K120: 0 | L120: 222
A121: 21 | B121: 13209 | C121: 22 | D121: 13213 | E121: 24 | F121: 13217 | K121: 0 | L121: 222
A122: 21 | B122: 13316 | C122: 22 | D122: 13320 | E122: 13 | F122: 13331 | K122: 0 | L122: 221
A123: 21 | B123: 13435 | C123: 22 | D123: 13439 | E123: 24 | F123: 13443 | K123: 0 | L123: 222
A124: 21 | B124: 13545 | C124: 11 | D124: 13554 | E124: 22 | F124: 13561 | K124: 0 | L124: 212
A125: 21 | B125: 13665 | C125: 22 | D125: 13673 | E125: 24 | F125: 13695 | K125: 0 | L125: 222
A126: 21 | B126: 13795 | C126: 22 | D126: 13800 | E126: 24 | F126: 13805 | K126: 0 | L126: 222
A127: 21 | B127: 13912 | C127: 22 | D127: 13917 | E127: 24 | F127: 13923 | K127: 0 | L127: 222
A128: 21 | B128: 14031 | C128: 22 | D128: 14043 | E128: 24 | F128: 14050 | K128: 0 | L128: 222
A129: 21 | B129: 14150 | C129: 22 | D129: 14154 | E129: 24 | F129: 14158 | K129: 0 | L129: 222
A130: 21 | B130: 14258 | C130: 22 | D130: 14262 | E130: 24 | F130: 14267 | K130: 0 | L130: 222
A131: 21 | B131: 14368 | C131: 22 | D131: 14373 | E131: 24 | F131: 14377 | K131: 0 | L131: 222
A132: 21 | B132: 14480 | C132: 22 | D132: 14490 | E132: 24 | F132: 14497 | K132: 0 | L132: 222
A133: 21 | B133: 14604 | C133: 22 | D133: 14618 | E133: 24 | F133: 14628 | K133: 0 | L133: 222
A134: 21 | B134: 14758 | C134: 11 | D134: 14768 | E134: 22 | F134: 14775 | K134: 0 | L134: 212
A135: 21 | B135: 14875 | C135: 22 | D135: 14881 | E135: 24 | F135: 14896 | K135: 0 | L135: 222
A136: 21 | B136: 14996 | C136: 22 | D136: 15000 | E136: 24 | F136: 15005 | K136: 0 | L136: 222
A137: 21 | B137: 15102 | C137: 11 | D137: 15113 | E137: 22 | F137: 15120 | K137: 0 | L137: 212
A138: 21 | B138: 15219 | C138: 22 | D138: 15224 | E138: 24 | F138: 15229 | K138: 0 | L138: 222
A139: 21 | B139: 15322 | C139: 22 | D139: 15326 | E139: 24 | F139: 15335 | K139: 0 | L139: 222
A140: 21 | B140: 15449 | C140: 11 | D140: 15459 | E140: 22 | F140: 15467 | K140: 0 | L140: 212
A141: 21 | B141: 15571 | C141: 22 | D141: 15587 | E141: 24 | F141: 15594 | K141: 0 | L141: 222
A142: 21 | B142: 15693 | C142: 22 | D142: 15697 | E142: 24 | F142: 15709 | K142: 0 | L142: 222
A143: 21 | B143: 15807 | C143: 22 | D143: 15812 | E143: 24 | F143: 15818 | K143: 0 | L143: 222
A144: 21 | B144: 15928 | C144: 22 | D144: 15935 | E144: 24 | F144: 15942 | K144: 0 | L144: 222
A145: 21 | B145: 16043 | C145: 22 | D145: 16060 | E145: 24 | F145: 16066 | K145: 0 | L145: 222
A146: 21 | B146: 16166 | C146: 22 | D146: 16169 | E146: 24 | F146: 16174 | K146: 0 | L146: 222
A147: 21 | B147: 16267 | C147: 22 | D147: 16275 | E147: 24 | F147: 16286 | K147: 0 | L147: 222
A148: 21 | B148: 16391 | C148: 11 | D148: 16401 | E148: 22 | F148: 16408 | K148: 0 | L148: 212
A149: 21 | B149: 16511 | C149: 22 | D149: 16517 | E149: 24 | F149: 16525 | K149: 0 | L149: 222
A150: 21 | B150: 16625 | C150: 22 | D150: 16629 | E150: 24 | F150: 16636 | K150: 0 | L150: 222
A151: 21 | B151: 16740 | C151: 22 | D151: 16745 | E151: 24 | F151: 16749 | K151: 0 | L151: 222
A152: 21 | B152: 16851 | C152: 22 | D152: 16854 | E152: 24 | F152: 16859 | K152: 0 | L152: 222
A153: 21 | B153: 16961 | C153: 22 | D153: 16965 | E153: 24 | F153: 16971 | K153: 0 | L153: 222
A154: 21 | B154: 17073 | C154: 22 | D154: 17077 | E154: 24 | F154: 17082 | K154: 0 | L154: 222
A155: 21 | B155: 17185 | C155: 22 | D155: 17188 | E155: 24 | F155: 17193 | K155: 0 | L155: 222
A156: 21 | B156: 17306 | C156: 22 | D156: 17312 | E156: 24 | F156: 17320 | K156: 0 | L156: 222
A157: 21 | B157: 17427 | C157: 22 | D157: 17434 | E157: 24 | F157: 17440 | K157: 0 | L157: 222
A158: 21 | B158: 17541 | C158: 22 | D158: 17545 | E158: 24 | F158: 17549 | K158: 0 | L158: 222
A159: 21 | B159: 17656 | C159: 22 | D159: 17660 | E159: 24 | F159: 17665 | K159: 0 | L159: 222
A160: 21 | B160: 17770 | C160: 22 | D160: 17774 | E160: 24 | F160: 17778 | K160: 0 | L160: 222
A161: 21 | B161: 17877 | C161: 22 | D161: 17881 | E161: 24 | F161: 17885 | K161: 0 | L161: 222
A162: 21 | B162: 17985 | C162: 22 | D162: 17989 | E162: 24 | F162: 17993 | K162: 0 | L162: 222
A163: 12 | B163: 18093 | C163: 24 | D163: 18100 | E163: 24 | F163: 18107 | K163: 0 | L163: 122
A164: 21 | B164: 18218 | C164: 22 | D164: 18224 | E164: 24 | F164: 18230 | K164: 0 | L164: 222
A165: 21 | B165: 18334 | C165: 22 | D165: 18347 | E165: 24 | F165: 18355 | K165: 0 | L165: 222
A166: 21 | B166: 18456 | C166: 22 | D166: 18460 | E166: 24 | F166: 18464 | K166: 0 | L166: 222
A167: 12 | B167: 18575 | C167: 24 | D167: 18581 | E167: 24 | F167: 18588 | K167: 0 | L167: 122
A168: 12 | B168: 18689 | C168: 24 | D168: 18696 | E168: 24 | F168: 18701 | K168: 0 | L168: 122
A169: 21 | B169: 18797 | C169: 22 | D169: 18805 | E169: 13 | F169: 18812 | K169: 0 | L169: 221
A170: 21 | B170: 18914 | C170: 11 | D170: 18924 | E170: 22 | F170: 18932 | K170: 0 | L170: 212
A171: 21 | B171: 19035 | C171: 11 | D171: 19044 | E171: 22 | F171: 19053 | K171: 0 | L171: 212
A172: 21 | B172: 19153 | C172: 22 | D172: 19158 | E172: 24 | F172: 19163 | K172: 0 | L172: 222
A173: 21 | B173: 19257 | C173: 11 | D173: 19266 | E173: 22 | F173: 19273 | K173: 0 | L173: 212
A174: 21 | B174: 19372 | C174: 22 | D174: 19378 | E174: 24 | F174: 19385 | K174: 0 | L174: 222
A175: 21 | B175: 19484 | C175: 22 | D175: 19491 | E175: 24 | F175: 19497 | K175: 0 | L175: 222
A176: 21 | B176: 19606 | C176: 22 | D176: 19613 | E176: 24 | F176: 19620 | K176: 0 | L176: 222
A177: 21 | B177: 19720 | C177: 22 | D177: 19723 | E177: 24 | F177: 19728 | K177: 0 | L177: 222
A178: 12 | B178: 19830 | C178: 24 | D178: 19838 | E178: 24 | F178: 19842 | K178: 0 | L178: 122
A179: 21 | B179: 19936 | C179: 22 | D179: 19940 | E179: 24 | F179: 19945 | K179: 0 | L179: 222
A180: 21 | B180: 20045 | C180: 22 | D180: 20054 | E180: 24 | F180: 20061 | K180: 0 | L180: 222
A181: 21 | B181: 20168 | C181: 22 | D181: 20173 | E181: 24 | F181: 20180 | K181: 0 | L181: 222
A182: 12 | B182: 20282 | C182: 24 | D182: 20290 | E182: 24 | F182: 20296 | K182: 0 | L182: 122
A183: 21 | B183: 20397 | C183: 22 | D183: 20401 | E183: 24 | F183: 20405 | K183: 0 | L183: 222
A184: 21 | B184: 20505 | C184: 22 | D184: 20509 | E184: 24 | F184: 20513 | K184: 0 | L184: 222
A185: 21 | B185: 20622 | C185: 22 | D185: 20628 | E185: 24 | F185: 20635 | K185: 0 | L185: 222
A186: 21 | B186: 20734 | C186: 22 | D186: 20738 | E186: 24 | F186: 20742 | K186: 0 | L186: 222
A187: 21 | B187: 20848 | C187: 22 | D187: 20852 | E187: 24 | F187: 20859 | K187: 0 | L187: 222
A188: 21 | B188: 20960 | C188: 22 | D188: 20964 | E188: 24 | F188: 20968 | K188: 0 | L188: 222
A189: 21 | B189: 21065 | C189: 22 | D189: 21070 | E189: 13 | F189: 21080 | K189: 0 | L189: 221
A190: 21 | B190: 21182 | C190: 22 | D190: 21186 | E190: 24 | F190: 21191 | K190: 0 | L190: 222
A191: 12 | B191: 21292 | C191: 24 | D191: 21300 | E191: 24 | F191: 21307 | K191: 0 | L191: 122
A192: 21 | B192: 21413 | C192: 22 | D192: 21418 | E192: 24 | F192: 21423 | K192: 0 | L192: 222
A193: 12 | B193: 21525 | C193: 24 | D193: 21532 | E193: 24 | F193: 21537 | K193: 0 | L193: 122
A194: 12 | B194: 21636 | C194: 24 | D194: 21645 | E194: 24 | F194: 21652 | K194: 0 | L194: 122
A195: 21 | B195: 21761 | C195: 22 | D195: 21766 | E195: 24 | F195: 21771 | K195: 0 | L195: 222
A196: 12 | B196: 21872 | C196: 24 | D196: 21879 | E196: 24 | F196: 21884 | K196: 0 | L196: 122
A197: 21 | B197: 21989 | C197: 22 | D197: 21994 | E197: 24 | F197: 22002 | K197: 0 | L197: 222
A198: 21 | B198: 22097 | C198: 22 | D198: 22104 | E198: 13 | F198: 22112 | K198: 0 | L198: 221
A199: 21 | B199: 22217 | C199: 22 | D199: 22220 | E199: 24 | F199: 22225 | K199: 0 | L199: 222
A200: 21 | B200: 22328 | C200: 22 | D200: 22332 | E200: 24 | F200: 22336 | K200: 0 | L200: 222
... 14 more rows

Sheet !MC02B30.096
A1: Report for:!MC02B30.096
A2: Date: | B2: <date>
A3: Hen: | B3: <hen> | F3: Correct Sequence | G3: =Start!J2 -> 211 | P3: Total Sequences in Data | Q3: =4994-COUNTBLANK(L7:L5000) -> 206 | V3: Total Sequences in Block Data | W3: =COUNTA(L7:L40) -> 34 | AA3: Total Sequences in Block Data | AB3: =COUNTA(L41:L75) -> 35 | AF3: Total Sequences in Block Data | AG3: =COUNTA(L76:L109) -> 34 | AK3: Total Sequences in Block Data | AL3: =COUNTA(L110:L143) -> 34 | AP3: Total Sequences in Block Data | AQ3: =COUNTA(L144:L178) -> 35 | AU3: Total Sequences in Block Data | AV3: =COUNTA(L179:L212) -> 34
P4: Total Sequences in Summary | Q4: =SUM(O7:O14) -> 206 | V4: Total Sequences in Block Summary | W4: =SUM(U7:U14) -> 34 | AA4: Total Sequences in Block Summary | AB4: =SUM(Z7:Z14) -> 35 | AF4: Total Sequences in Block Summary | AG4: =SUM(AE7:AE14) -> 34 | AK4: Total Sequences in Block Summary | AL4: =SUM(AJ7:AJ14) -> 34 | AP4: Total Sequences in Block Summary | AQ4: =SUM(AO7:AO14) -> 35 | AU4: Total Sequences in Block Summary | AV4: =SUM(AT7:AT14) -> 34
T5: Block 1 | Y5: Block 2 | AD5: Block 3 | AI5: Block 4 | AN5: Block 5 | AS5: Block 6
A6: Sequence Component 1 | B6: Time 1 | C6: Sequence Component 2 | D6: Time 2 | E6: Sequence Component 3 | F6: Time 3 | G6: Sequence Component 4 | H6: Time 4 | I6: Sequence Component 5 | J6: Time 5 | K6: Correct? 0=No 1=Yes | L6: Sequence | N6: Frequency | P6: Relative Frequency | Q6: Variability | T6: Frequency | V6: Relative Frequency | W6: Variability | Y6: Frequency | AA6: Relative Frequency | AB6: Variability | AD6: Frequency | AF6: Relative Frequency | AG6: Variability | AI6: Frequency | AK6: Relative Frequency | AL6: Variability | AN6: Frequency | AP6: Relative Frequency | AQ6: Variability | AS6: Frequency | AU6: Relative Frequency | AV6: Variability
A7: 21 | B7: 16 | C7: 22 | D7: 19 | E7: 24 | F7: 23 | K7: 0 | L7: 222 | N7: 111 | O7: =COUNTIF($L$7:$L$500,N7) -> 3 | P7: =O7/$Q$4 -> 0.0145631068 | Q7: =IF(P7=0,0,(P7*((LOG(P7))/LOG(2)))) -> -0.0888573499 | T7: =N7 -> 111 | U7: =COUNTIF(L7:L40,T7) -> 1 | V7: =U7/(W4-U11) -> 0.02941176471 | W7: =IF(V7=0,0,(V7*((LOG(V7))/LOG(2)))) -> -0.14963126 | Y7: =N7 -> 111 | Z7: =COUNTIF(L41:L75,Y7) -> 0 | AA7: =Z7/(AB4-Z11) -> 0 | AB7: =IF(AA7=0,0,(AA7*((LOG(AA7))/LOG(2)))) -> 0 | AD7: =N7 -> 111 | AE7: =COUNTIF(L76:L109,AD7) -> 0 | AF7: =AE7/(AG4-AE11) -> 0 | AG7: =IF(AF7=0,0,(AF7*((LOG(AF7))/LOG(2)))) -> 0 | AI7: =N7 -> 111 | AJ7: =COUNTIF(L110:L143,AI7) -> 0 | AK7: =AJ7/(AL4-AJ11) -> 0 | AL7: =IF(AK7=0,0,(AK7*((LOG(AK7))/LOG(2)))) -> 0 | AN7: =N7 -> 111 | AO7: =COUNTIF(L144:L178,AN7) -> 0 | AP7: =AO7/(AQ4-AO11) -> 0 | AQ7: =IF(AP7=0,0,(AP7*((LOG(AP7))/LOG(2)))) -> 0 | AS7: =N7 -> 111 | AT7: =COUNTIF(L179:L212,AS7) -> 2 | AU7: =AT7/(AV4-AT11) -> 0.05882352941 | AV7: =IF(AU7=0,0,(AU7*((LOG(AU7))/LOG(2)))) -> -0.2404389907
A8: 12 | B8: 127 | C8: 24 | D8: 136 | E8: 24 | F8: 143 | K8: 0 | L8: 122 | N8: 112 | O8: =COUNTIF($L$7:$L$500,N8) -> 3 | P8: =O8/$Q$4 -> 0.0145631068 | Q8: =IF(P8=0,0,(P8*((LOG(P8))/LOG(2)))) -> -0.0888573499 | T8: =N8 -> 112 | U8: =COUNTIF(L7:L40,T8) -> 0 | V8: =U8/(W4-U11) -> 0 | W8: =IF(V8=0,0,(V8*((LOG(V8))/LOG(2)))) -> 0 | Y8: =N8 -> 112 | Z8: =COUNTIF(L41:L75,Y8) -> 0 | AA8: =Z8/(AB4-Z11) -> 0 | AB8: =IF(AA8=0,0,(AA8*((LOG(AA8))/LOG(2)))) -> 0 | AD8: =N8 -> 112 | AE8: =COUNTIF(L76:L109,AD8) -> 0 | AF8: =AE8/(AG4-AE11) -> 0 | AG8: =IF(AF8=0,0,(AF8*((LOG(AF8))/LOG(2)))) -> 0 | AI8: =N8 -> 112 | AJ8: =COUNTIF(L110:L143,AI8) -> 1 | AK8: =AJ8/(AL4-AJ11) -> 0.0303030303 | AL8: =IF(AK8=0,0,(AK8*((LOG(AK8))/LOG(2)))) -> -0.1528604279 | AN8: =N8 -> 112 | AO8: =COUNTIF(L144:L178,AN8) -> 1 | AP8: =AO8/(AQ4-AO11) -> 0.02857142857 | AQ8: =IF(AP8=0,0,(AP8*((LOG(AP8))/LOG(2)))) -> -0.1465509433 | AS8: =N8 -> 112 | AT8: =COUNTIF(L179:L212,AS8) -> 1 | AU8: =AT8/(AV4-AT11) -> 0.02941176471 | AV8: =IF(AU8=0,0,(AU8*((LOG(AU8))/LOG(2)))) -> -0.14963126
A9: 12 | B9: 245 | C9: 24 | D9: 253 | E9: 24 | F9: 258 | K9: 0 | L9: 122 | N9: 121 | O9: =COUNTIF($L$7:$L$500,N9) -> 14 | P9: =O9/$Q$4 -> 0.06796116505 | Q9: =IF(P9=0,0,(P9*((LOG(P9))/LOG(2)))) -> -0.2636312547 | T9: =N9 -> 121 | U9: =COUNTIF(L7:L40,T9) -> 0 | V9: =U9/(W4-U11) -> 0 | W9: =IF(V9=0,0,(V9*((LOG(V9))/LOG(2)))) -> 0 | Y9: =N9 -> 121 | Z9: =COUNTIF(L41:L75,Y9) -> 3 | AA9: =Z9/(AB4-Z11) -> 0.08571428571 | AB9: =IF(AA9=0,0,(AA9*((LOG(AA9))/LOG(2)))) -> -0.3037989014 | AD9: =N9 -> 121 | AE9: =COUNTIF(L76:L109,AD9) -> 4 | AF9: =AE9/(AG4-AE11) -> 0.1333333333 | AG9: =IF(AF9=0,0,(AF9*((LOG(AF9))/LOG(2)))) -> -0.3875854127 | AI9: =N9 -> 121 | AJ9: =COUNTIF(L110:L143,AI9) -> 2 | AK9: =AJ9/(AL4-AJ11) -> 0.06060606061 | AL9: =IF(AK9=0,0,(AK9*((LOG(AK9))/LOG(2)))) -> -0.2451147951 | AN9: =N9 -> 121 | AO9: =COUNTIF(L144:L178,AN9) -> 1 | AP9: =AO9/(AQ4-AO11) -> 0.02857142857 | AQ9: =IF(AP9=0,0,(AP9*((LOG(AP9))/LOG(2)))) -> -0.1465509433 | AS9: =N9 -> 121 | AT9: =COUNTIF(L179:L212,AS9) -> 4 | AU9: =AT9/(AV4-AT11) -> 0.1176470588 | AV9: =IF(AU9=0,0,(AU9*((LOG(AU9))/LOG(2)))) -> -0.3632309225
A10: 12 | B10: 364 | C10: 24 | D10: 375 | E10: 24 | F10: 380 | K10: 0 | L10: 122 | N10: 122 | O10: =COUNTIF($L$7:$L$500,N10) -> 27 | P10: =O10/$Q$4 -> 0.1310679612 | Q10: =IF(P10=0,0,(P10*((LOG(P10))/LOG(2)))) -> -0.3842405421 | T10: =N10 -> 122 | U10: =COUNTIF(L7:L40,T10) -> 10 | V10: =U10/(W4-U11) -> 0.2941176471 | W10: =IF(V10=0,0,(V10*((LOG(V10))/LOG(2)))) -> -0.5192749254 | Y10: =N10 -> 122 | Z10: =COUNTIF(L41:L75,Y10) -> 2 | AA10: =Z10/(AB4-Z11) -> 0.05714285714 | AB10: =IF(AA10=0,0,(AA10*((LOG(AA10))/LOG(2)))) -> -0.2359590295 | AD10: =N10 -> 122 | AE10: =COUNTIF(L76:L109,AD10) -> 2 | AF10: =AE10/(AG4-AE11) -> 0.06666666667 | AG10: =IF(AF10=0,0,(AF10*((LOG(AF10))/LOG(2)))) -> -0.260459373 | AI10: =N10 -> 122 | AJ10: =COUNTIF(L110:L143,AI10) -> 3 | AK10: =AJ10/(AL4-AJ11) -> 0.09090909091 | AL10: =IF(AK10=0,0,(AK10*((LOG(AK10))/LOG(2)))) -> -0.3144937835 | AN10: =N10 -> 122 | AO10: =COUNTIF(L144:L178,AN10) -> 5 | AP10: =AO10/(AQ4-AO11) -> 0.1428571429 | AQ10: =IF(AP10=0,0,(AP10*((LOG(AP10))/LOG(2)))) -> -0.4010507032 | AS10: =N10 -> 122 | AT10: =COUNTIF(L179:L212,AS10) -> 5 | AU10: =AT10/(AV4-AT11) -> 0.1470588235 | AV10: =IF(AU10=0,0,(AU10*((LOG(AU10))/LOG(2)))) -> -0.4066962862
A11: 12 | B11: 477 | C11: 13 | D11: 481 | E11: 13 | F11: 485 | K11: 0 | L11: 111 | N11: 211 | O11: =COUNTIF($L$7:$L$500,N11) -> 5 | P11: =O11/$Q$4 -> 0.02427184466 | Q11: =IF(P11=0,0,(P11*((LOG(P11))/LOG(2)))) -> -0.1302080687 | T11: =N11 -> 211 | U11: =COUNTIF(L7:L40,T11) -> 0 | Y11: =N11 -> 211 | Z11: =COUNTIF(L41:L75,Y11) -> 0 | AD11: =N11 -> 211 | AE11: =COUNTIF(L76:L109,AD11) -> 4 | AI11: =N11 -> 211 | AJ11: =COUNTIF(L110:L143,AI11) -> 1 | AN11: =N11 -> 211 | AO11: =COUNTIF(L144:L178,AN11) -> 0 | AS11: =N11 -> 211 | AT11: =COUNTIF(L179:L212,AS11) -> 0
A12: 21 | B12: 587 | C12: 22 | D12: 590 | E12: 24 | F12: 594 | K12: 0 | L12: 222 | N12: 212 | O12: =COUNTIF($L$7:$L$500,N12) -> 31 | P12: =O12/$Q$4 -> 0.1504854369 | Q12: =IF(P12=0,0,(P12*((LOG(P12))/LOG(2)))) -> -0.4111719938 | T12: =N12 -> 212 | U12: =COUNTIF(L7:L40,T12) -> 5 | V12: =U12/(W4-U11) -> 0.1470588235 | W12: =IF(V12=0,0,(V12*((LOG(V12))/LOG(2)))) -> -0.4066962862 | Y12: =N12 -> 212 | Z12: =COUNTIF(L41:L75,Y12) -> 7 | AA12: =Z12/(AB4-Z11) -> 0.2 | AB12: =IF(AA12=0,0,(AA12*((LOG(AA12))/LOG(2)))) -> -0.464385619 | AD12: =N12 -> 212 | AE12: =COUNTIF(L76:L109,AD12) -> 7 | AF12: =AE12/(AG4-AE11) -> 0.2333333333 | AG12: =IF(AF12=0,0,(AF12*((LOG(AF12))/LOG(2)))) -> -0.4898916572 | AI12: =N12 -> 212 | AJ12: =COUNTIF(L110:L143,AI12) -> 3 | AK12: =AJ12/(AL4-AJ11) -> 0.09090909091 | AL12: =IF(AK12=0,0,(AK12*((LOG(AK12))/LOG(2)))) -> -0.3144937835 | AN12: =N12 -> 212 | AO12: =COUNTIF(L144:L178,AN12) -> 5 | AP12: =AO12/(AQ4-AO11) -> 0.1428571429 | AQ12: =IF(AP12=0,0,(AP12*((LOG(AP12))/LOG(2)))) -> -0.4010507032 | AS12: =N12 -> 212 | AT12: =COUNTIF(L179:L212,AS12) -> 4 | AU12: =AT12/(AV4-AT11) -> 0.1176470588 | AV12: =IF(AU12=0,0,(AU12*((LOG(AU12))/LOG(2)))) -> -0.3632309225
A13: 12 | B13: 693 | C13: 24 | D13: 712 | E13: 24 | F13: 716 | K13: 0 | L13: 122 | N13: 221 | O13: =COUNTIF($L$7:$L$500,N13) -> 32 | P13: =O13/$Q$4 -> 0.1553398058 | Q13: =IF(P13=0,0,(P13*((LOG(P13))/LOG(2)))) -> -0.4173204702 | T13: =N13 -> 221 | U13: =COUNTIF(L7:L40,T13) -> 3 | V13: =U13/(W4-U11) -> 0.08823529412 | W13: =IF(V13=0,0,(V13*((LOG(V13))/LOG(2)))) -> -0.3090441477 | Y13: =N13 -> 221 | Z13: =COUNTIF(L41:L75,Y13) -> 4 | AA13: =Z13/(AB4-Z11) -> 0.1142857143 | AB13: =IF(AA13=0,0,(AA13*((LOG(AA13))/LOG(2)))) -> -0.3576323448 | AD13: =N13 -> 221 | AE13: =COUNTIF(L76:L109,AD13) -> 10 | AF13: =AE13/(AG4-AE11) -> 0.3333333333 | AG13: =IF(AF13=0,0,(AF13*((LOG(AF13))/LOG(2)))) -> -0.5283208336 | AI13: =N13 -> 221 | AJ13: =COUNTIF(L110:L143,AI13) -> 7 | AK13: =AJ13/(AL4-AJ11) -> 0.2121212121 | AL13: =IF(AK13=0,0,(AK13*((LOG(AK13))/LOG(2)))) -> -0.4745234661 | AN13: =N13 -> 221 | AO13: =COUNTIF(L144:L178,AN13) -> 4 | AP13: =AO13/(AQ4-AO11) -> 0.1142857143 | AQ13: =IF(AP13=0,0,(AP13*((LOG(AP13))/LOG(2)))) -> -0.3576323448 | AS13: =N13 -> 221 | AT13: =COUNTIF(L179:L212,AS13) -> 4 | AU13: =AT13/(AV4-AT11) -> 0.1176470588 | AV13: =IF(AU13=0,0,(AU13*((LOG(AU13))/LOG(2)))) -> -0.3632309225
A14: 12 | B14: 815 | C14: 24 | D14: 834 | E14: 24 | F14: 838 | K14: 0 | L14: 122 | N14: 222 | O14: =COUNTIF($L$7:$L$500,N14) -> 91 | P14: =O14/$Q$4 -> 0.4417475728 | Q14: =IF(P14=0,0,(P14*((LOG(P14))/LOG(2)))) -> -0.5206904646 | T14: =N14 -> 222 | U14: =COUNTIF(L7:L40,T14) -> 15 | V14: =U14/(W4-U11) -> 0.4411764706 | W14: =IF(V14=0,0,(V14*((LOG(V14))/LOG(2)))) -> -0.5208406966 | Y14: =N14 -> 222 | Z14: =COUNTIF(L41:L75,Y14) -> 19 | AA14: =Z14/(AB4-Z11) -> 0.5428571429 | AB14: =IF(AA14=0,0,(AA14*((LOG(AA14))/LOG(2)))) -> -0.4784501305 | AD14: =N14 -> 222 | AE14: =COUNTIF(L76:L109,AD14) -> 7 | AF14: =AE14/(AG4-AE11) -> 0.2333333333 | AG14: =IF(AF14=0,0,(AF14*((LOG(AF14))/LOG(2)))) -> -0.4898916572 | AI14: =N14 -> 222 | AJ14: =COUNTIF(L110:L143,AI14) -> 17 | AK14: =AJ14/(AL4-AJ11) -> 0.5151515152 | AL14: =IF(AK14=0,0,(AK14*((LOG(AK14))/LOG(2)))) -> -0.4929645978 | AN14: =N14 -> 222 | AO14: =COUNTIF(L144:L178,AN14) -> 19 | AP14: =AO14/(AQ4-AO11) -> 0.5428571429 | AQ14: =IF(AP14=0,0,(AP14*((LOG(AP14))/LOG(2)))) -> -0.4784501305 | AS14: =N14 -> 222 | AT14: =COUNTIF(L179:L212,AS14) -> 14 | AU14: =AT14/(AV4-AT11) -> 0.4117647059 | AV14: =IF(AU14=0,0,(AU14*((LOG(AU14))/LOG(2)))) -> -0.5271032608
A15: 21 | B15: 955 | C15: 22 | D15: 959 | E15: 24 | F15: 967 | K15: 0 | L15: 222 | P15: =SUM(P7:P14) -> 1 | Q15: =-SUM(Q7:Q14) -> 2.304977494 | V15: =SUM(V7:V14) -> 1 | W15: =-SUM(W7:W14) -> 1.905487316 | AA15: =SUM(AA7:AA14) -> 1 | AB15: =-SUM(AB7:AB14) -> 1.840226025 | AF15: =SUM(AF7:AF14) -> 1 | AG15: =-SUM(AG7:AG14) -> 2.156148934 | AK15: =SUM(AK7:AK14) -> 1 | AL15: =-SUM(AL7:AL14) -> 1.994450854 | AP15: =SUM(AP7:AP14) -> 1 | AQ15: =-SUM(AQ7:AQ14) -> 1.931285768 | AU15: =SUM(AU7:AU14) -> 1 | AV15: =-SUM(AV7:AV14) -> 2.413562565
A16: 21 | B16: 1068 | C16: 22 | D16: 1072 | E16: 24 | F16: 1077 | K16: 0 | L16: 222 | P16: U= | Q16: =Q15/(LOG(Q4)/LOG(2)) -> 0.2998734581 | V16: U1= | W16: =W15/(LOG(W4)/LOG(2)) -> 0.374545697 | AA16: U2= | AB16: =AB15/(LOG(AB4)/LOG(2)) -> 0.3587686659 | AF16: U3= | AG16: =AG15/(LOG(AG4)/LOG(2)) -> 0.4238161537 | AK16: U4= | AL16: =AL15/(LOG(AL4)/LOG(2)) -> 0.3920325153 | AP16: U5= | AQ16: =AQ15/(LOG(AQ4)/LOG(2)) -> 0.3765215844 | AU16: U6= | AV16: =AV15/(LOG(AV4)/LOG(2)) -> 0.4744137973
A17: 21 | B17: 1174 | C17: 11 | D17: 1185 | E17: 22 | F17: 1192 | K17: 0 | L17: 212
A18: 21 | B18: 1295 | C18: 22 | D18: 1301 | E18: 13 | F18: 1310 | K18: 0 | L18: 221
A19: 21 | B19: 1413 | C19: 22 | D19: 1417 | E19: 24 | F19: 1421 | K19: 0 | L19: 222 | N19: Total Target Seq
A20: 21 | B20: 1524 | C20: 11 | D20: 1532 | E20: 22 | F20: 1539 | K20: 0 | L20: 212 | N20: =COUNTIF(L7:L212,G3) -> 5 | P20: 34 | Q20: 35 | R20: 34 | S20: 34 | T20: 35 | U20: 34
A21: 21 | B21: 1640 | C21: 22 | D21: 1646 | E21: 24 | F21: 1653 | K21: 0 | L21: 222 | P21: % of reinforcement given in 6 equal intervals based on number of trials
A22: 21 | B22: 1773 | C22: 22 | D22: 1777 | E22: 24 | F22: 1782 | K22: 0 | L22: 222 | P22: %_1 | Q22: %_2 | R22: %_3 | S22: %_4 | T22: %_5 | U22: %_6
A23: 21 | B23: 1880 | C23: 22 | D23: 1884 | E23: 24 | F23: 1888 | K23: 0 | L23: 222 | O23: target sequence | P23: =$G$3 -> 211 | Q23: =$G$3 -> 211 | R23: =$G$3 -> 211 | S23: =$G$3 -> 211 | T23: =$G$3 -> 211 | U23: =$G$3 -> 211
A24: 21 | B24: 1991 | C24: 22 | D24: 1995 | E24: 24 | F24: 1999 | K24: 0 | L24: 222 | O24: total reinforcement | P24: =U11 -> 0 | Q24: =Z11 -> 0 | R24: =AE11 -> 4 | S24: =AJ11 -> 1 | T24: =AO11 -> 0 | U24: =AT11 -> 0
A25: 21 | B25: 2102 | C25: 22 | D25: 2106 | E25: 24 | F25: 2111 | K25: 0 | L25: 222 | O25: % target
A26: 21 | B26: 2211 | C26: 22 | D26: 2215 | E26: 24 | F26: 2219 | K26: 0 | L26: 222 | O26: CCRF
A27: 12 | B27: 2330 | C27: 24 | D27: 2346 | E27: 24 | F27: 2351 | K27: 0 | L27: 122 | O27: % CCRf
A28: 21 | B28: 2448 | C28: 22 | D28: 2452 | E28: 13 | F28: 2466 | K28: 0 | L28: 221 | O28: average response rate | P28: =F40/P20 -> 113.8529412 | Q28: =(F75-F40)/Q20 -> 116.4285714 | R28: =(F109-F75)/R20 -> 120 | S28: =(F143-F109)/S20 -> 116.8235294 | T28: =(F178-F143)/T20 -> 113.0285714 | U28: =(F212-F178)/U20 -> 116.5882353
A29: 21 | B29: 2561 | C29: 11 | D29: 2580 | E29: 22 | F29: 2588 | K29: 0 | L29: 212
A30: 21 | B30: 2688 | C30: 22 | D30: 2693 | E30: 24 | F30: 2705 | K30: 0 | L30: 222
A31: 12 | B31: 2812 | C31: 24 | D31: 2823 | E31: 24 | F31: 2830 | K31: 0 | L31: 122
A32: 21 | B32: 2929 | C32: 22 | D32: 2934 | E32: 13 | F32: 2942 | K32: 0 | L32: 221
A33: 21 | B33: 3041 | C33: 11 | D33: 3051 | E33: 22 | F33: 3062 | K33: 0 | L33: 212
A34: 21 | B34: 3162 | C34: 22 | D34: 3170 | E34: 24 | F34: 3177 | K34: 0 | L34: 222
A35: 21 | B35: 3280 | C35: 11 | D35: 3290 | E35: 22 | F35: 3297 | K35: 0 | L35: 212
A36: 12 | B36: 3389 | C36: 24 | D36: 3397 | E36: 24 | F36: 3402 | K36: 0 | L36: 122
A37: 12 | B37: 3515 | C37: 24 | D37: 3530 | E37: 24 | F37: 3538 | K37: 0 | L37: 122
A38: 12 | B38: 3638 | C38: 24 | D38: 3649 | E38: 24 | F38: 3654 | K38: 0 | L38: 122
A39: 21 | B39: 3752 | C39: 22 | D39: 3756 | E39: 24 | F39: 3760 | K39: 0 | L39: 222
A40: 21 | B40: 3863 | C40: 22 | D40: 3867 | E40: 24 | F40: 3871 | K40: 0 | L40: 222
A41: 21 | B41: 3973 | C41: 22 | D41: 3977 | E41: 13 | F41: 3985 | K41: 0 | L41: 221
A42: 21 | B42: 4082 | C42: 11 | D42: 4100 | E42: 22 | F42: 4110 | K42: 0 | L42: 212
A43: 21 | B43: 4210 | C43: 22 | D43: 4216 | E43: 24 | F43: 4222 | K43: 0 | L43: 222
A44: 21 | B44: 4322 | C44: 22 | D44: 4326 | E44: 24 | F44: 4331 | K44: 0 | L44: 222
A45: 12 | B45: 4436 | C45: 24 | D45: 4443 | E45: 13 | F45: 4454 | K45: 0 | L45: 121
A46: 21 | B46: 4553 | C46: 22 | D46: 4557 | E46: 24 | F46: 4560 | K46: 0 | L46: 222
A47: 21 | B47: 4657 | C47: 11 | D47: 4664 | E47: 22 | F47: 4672 | K47: 0 | L47: 212
A48: 21 | B48: 4770 | C48: 22 | D48: 4775 | E48: 24 | F48: 4781 | K48: 0 | L48: 222
A49: 21 | B49: 4881 | C49: 22 | D49: 4885 | E49: 24 | F49: 4892 | K49: 0 | L49: 222
A50: 21 | B50: 4990 | C50: 22 | D50: 4994 | E50: 24 | F50: 4998 | K50: 0 | L50: 222
A51: 21 | B51: 5094 | C51: 22 | D51: 5098 | E51: 24 | F51: 5103 | K51: 0 | L51: 222
A52: 21 | B52: 5198 | C52: 11 | D52: 5209 | E52: 22 | F52: 5216 | K52: 0 | L52: 212
A53: 21 | B53: 5316 | C53: 11 | D53: 5324 | E53: 22 | F53: 5332 | K53: 0 | L53: 212
A54: 21 | B54: 5429 | C54: 22 | D54: 5433 | E54: 24 | F54: 5437 | K54: 0 | L54: 222
A55: 12 | B55: 5540 | C55: 24 | D55: 5548 | E55: 24 | F55: 5553 | K55: 0 | L55: 122
A56: 21 | B56: 5653 | C56: 22 | D56: 5657 | E56: 24 | F56: 5661 | K56: 0 | L56: 222
A57: 21 | B57: 5767 | C57: 11 | D57: 5774 | E57: 22 | F57: 5782 | K57: 0 | L57: 212
A58: 12 | B58: 5877 | C58: 24 | D58: 5886 | E58: 24 | F58: 5891 | K58: 0 | L58: 122
A59: 12 | B59: 6021 | C59: 24 | D59: 6028 | E59: 13 | F59: 6043 | K59: 0 | L59: 121
A60: 21 | B60: 6148 | C60: 11 | D60: 6168 | E60: 22 | F60: 6176 | K60: 0 | L60: 212
A61: 21 | B61: 6275 | C61: 22 | D61: 6282 | E61: 24 | F61: 6289 | K61: 0 | L61: 222
A62: 21 | B62: 6409 | C62: 22 | D62: 6416 | E62: 24 | F62: 6423 | K62: 0 | L62: 222
A63: 21 | B63: 6519 | C63: 22 | D63: 6523 | E63: 13 | F63: 6533 | K63: 0 | L63: 221
A64: 21 | B64: 6632 | C64: 22 | D64: 6636 | E64: 24 | F64: 6640 | K64: 0 | L64: 222
A65: 21 | B65: 6747 | C65: 11 | D65: 6757 | E65: 22 | F65: 6764 | K65: 0 | L65: 212
A66: 21 | B66: 6863 | C66: 22 | D66: 6867 | E66: 24 | F66: 6882 | K66: 0 | L66: 222
A67: 21 | B67: 6992 | C67: 22 | D67: 6996 | E67: 24 | F67: 7003 | K67: 0 | L67: 222
A68: 21 | B68: 7105 | C68: 22 | D68: 7118 | E68: 24 | F68: 7124 | K68: 0 | L68: 222
A69: 21 | B69: 7221 | C69: 22 | D69: 7225 | E69: 13 | F69: 7232 | K69: 0 | L69: 221
A70: 21 | B70: 7330 | C70: 22 | D70: 7335 | E70: 24 | F70: 7339 | K70: 0 | L70: 222
A71: 21 | B71: 7448 | C71: 22 | D71: 7452 | E71: 13 | F71: 7474 | K71: 0 | L71: 221
A72: 21 | B72: 7571 | C72: 22 | D72: 7575 | E72: 24 | F72: 7589 | K72: 0 | L72: 222
A73: 21 | B73: 7694 | C73: 22 | D73: 7699 | E73: 24 | F73: 7706 | K73: 0 | L73: 222
A74: 21 | B74: 7807 | C74: 22 | D74: 7812 | E74: 24 | F74: 7816 | K74: 0 | L74: 222
A75: 12 | B75: 7927 | C75: 24 | D75: 7934 | E75: 13 | F75: 7946 | K75: 0 | L75: 121
A76: 21 | B76: 8040 | C76: 22 | D76: 8054 | E76: 13 | F76: 8063 | K76: 0 | L76: 221
A77: 21 | B77: 8160 | C77: 22 | D77: 8167 | E77: 13 | F77: 8175 | K77: 0 | L77: 221
A78: 21 | B78: 8275 | C78: 22 | D78: 8279 | E78: 24 | F78: 8284 | K78: 0 | L78: 222
A79: 21 | B79: 8382 | C79: 22 | D79: 8397 | E79: 24 | F79: 8403 | K79: 0 | L79: 222
A80: 21 | B80: 8506 | C80: 22 | D80: 8510 | E80: 13 | F80: 8527 | K80: 0 | L80: 221
A81: 21 | B81: 8633 | C81: 22 | D81: 8637 | E81: 24 | F81: 8642 | K81: 0 | L81: 222
A82: 12 | B82: 8749 | C82: 24 | D82: 8756 | E82: 13 | F82: 8770 | K82: 0 | L82: 121
A83: 21 | B83: 8869 | C83: 22 | D83: 8873 | E83: 13 | F83: 8881 | K83: 0 | L83: 221
A84: 21 | B84: 8983 | C84: 22 | D84: 8997 | E84: 13 | F84: 9004 | K84: 0 | L84: 221
A85: 21 | B85: 9098 | C85: 11 | D85: 9121 | E85: 22 | F85: 9129 | K85: 0 | L85: 212
A86: 12 | B86: 9222 | C86: 24 | D86: 9229 | E86: 24 | F86: 9234 | K86: 0 | L86: 122
A87: 21 | B87: 9339 | C87: 11 | D87: 9347 | E87: 22 | F87: 9365 | K87: 0 | L87: 212
A88: 21 | B88: 9468 | C88: 11 | D88: 9478 | E88: 11 | F88: 9493 | K88: 0 | L88: 211
A89: 21 | B89: 9597 | C89: 22 | D89: 9602 | E89: 13 | F89: 9620 | K89: 0 | L89: 221
A90: 21 | B90: 9718 | C90: 11 | D90: 9739 | E90: 11 | F90: 9754 | K90: 0 | L90: 211
A91: 21 | B91: 9853 | C91: 11 | D91: 9860 | E91: 11 | F91: 9873 | K91: 0 | L91: 211
A92: 21 | B92: 9970 | C92: 22 | D92: 9974 | E92: 13 | F92: 9984 | K92: 0 | L92: 221
A93: 21 | B93: 10084 | C93: 22 | D93: 10087 | E93: 24 | F93: 10100 | K93: 0 | L93: 222
A94: 21 | B94: 10201 | C94: 11 | D94: 10212 | E94: 22 | F94: 10222 | K94: 0 | L94: 212
A95: 21 | B95: 10322 | C95: 11 | D95: 10331 | E95: 22 | F95: 10341 | K95: 0 | L95: 212
A96: 12 | B96: 10433 | C96: 24 | D96: 10442 | E96: 13 | F96: 10450 | K96: 0 | L96: 121
A97: 21 | B97: 10550 | C97: 11 | D97: 10560 | E97: 11 | F97: 10573 | K97: 0 | L97: 211
A98: 21 | B98: 10666 | C98: 11 | D98: 10676 | E98: 22 | F98: 10685 | K98: 0 | L98: 212
A99: 21 | B99: 10785 | C99: 22 | D99: 10792 | E99: 24 | F99: 10798 | K99: 0 | L99: 222
A100: 21 | B100: 10904 | C100: 22 | D100: 10909 | E100: 13 | F100: 10918 | K100: 0 | L100: 221
A101: 21 | B101: 11016 | C101: 22 | D101: 11020 | E101: 13 | F101: 11059 | K101: 0 | L101: 221
A102: 21 | B102: 11175 | C102: 11 | D102: 11189 | E102: 22 | F102: 11199 | K102: 0 | L102: 212
A103: 21 | B103: 11301 | C103: 22 | D103: 11305 | E103: 24 | F103: 11310 | K103: 0 | L103: 222
A104: 12 | B104: 11416 | C104: 24 | D104: 11425 | E104: 24 | F104: 11429 | K104: 0 | L104: 122
A105: 12 | B105: 11544 | C105: 24 | D105: 11551 | E105: 13 | F105: 11560 | K105: 0 | L105: 121
A106: 21 | B106: 11652 | C106: 22 | D106: 11657 | E106: 24 | F106: 11670 | K106: 0 | L106: 222
A107: 21 | B107: 11777 | C107: 22 | D107: 11780 | E107: 13 | F107: 11791 | K107: 0 | L107: 221
A108: 21 | B108: 11890 | C108: 11 | D108: 11901 | E108: 22 | F108: 11909 | K108: 0 | L108: 212
A109: 12 | B109: 12005 | C109: 24 | D109: 12015 | E109: 13 | F109: 12026 | K109: 0 | L109: 121
A110: 21 | B110: 12130 | C110: 22 | D110: 12134 | E110: 13 | F110: 12145 | K110: 0 | L110: 221
A111: 21 | B111: 12242 | C111: 22 | D111: 12246 | E111: 13 | F111: 12258 | K111: 0 | L111: 221
A112: 21 | B112: 12357 | C112: 22 | D112: 12361 | E112: 24 | F112: 12365 | K112: 0 | L112: 222
A113: 21 | B113: 12464 | C113: 22 | D113: 12468 | E113: 24 | F113: 12472 | K113: 0 | L113: 222
A114: 12 | B114: 12584 | C114: 13 | D114: 12598 | E114: 24 | F114: 12612 | K114: 0 | L114: 112
A115: 21 | B115: 12710 | C115: 11 | D115: 12728 | E115: 22 | F115: 12736 | K115: 0 | L115: 212
A116: 21 | B116: 12836 | C116: 22 | D116: 12840 | E116: 13 | F116: 12848 | K116: 0 | L116: 221
A117: 12 | B117: 12956 | C117: 24 | D117: 12966 | E117: 13 | F117: 12983 | K117: 0 | L117: 121
A118: 21 | B118: 13086 | C118: 22 | D118: 13091 | E118: 24 | F118: 13095 | K118: 0 | L118: 222
A119: 12 | B119: 13200 | C119: 24 | D119: 13207 | E119: 13 | F119: 13217 | K119: 0 | L119: 121
A120: 21 | B120: 13319 | C120: 22 | D120: 13324 | E120: 24 | F120: 13329 | K120: 0 | L120: 222
A121: 21 | B121: 13421 | C121: 22 | D121: 13433 | E121: 24 | F121: 13440 | K121: 0 | L121: 222
A122: 12 | B122: 13569 | C122: 24 | D122: 13576 | E122: 24 | F122: 13593 | K122: 0 | L122: 122
A123: 21 | B123: 13695 | C123: 22 | D123: 13699 | E123: 24 | F123: 13703 | K123: 0 | L123: 222
A124: 21 | B124: 13813 | C124: 22 | D124: 13819 | E124: 24 | F124: 13823 | K124: 0 | L124: 222
A125: 21 | B125: 13928 | C125: 11 | D125: 13936 | E125: 22 | F125: 13943 | K125: 0 | L125: 212
A126: 21 | B126: 14041 | C126: 22 | D126: 14045 | E126: 24 | F126: 14050 | K126: 0 | L126: 222
A127: 21 | B127: 14150 | C127: 22 | D127: 14154 | E127: 24 | F127: 14158 | K127: 0 | L127: 222
A128: 21 | B128: 14256 | C128: 22 | D128: 14260 | E128: 24 | F128: 14264 | K128: 0 | L128: 222
A129: 21 | B129: 14364 | C129: 22 | D129: 14368 | E129: 24 | F129: 14372 | K129: 0 | L129: 222
A130: 21 | B130: 14476 | C130: 22 | D130: 14480 | E130: 13 | F130: 14488 | K130: 0 | L130: 221
A131: 12 | B131: 14597 | C131: 24 | D131: 14605 | E131: 24 | F131: 14613 | K131: 0 | L131: 122
A132: 21 | B132: 14706 | C132: 22 | D132: 14710 | E132: 24 | F132: 14715 | K132: 0 | L132: 222
A133: 21 | B133: 14814 | C133: 22 | D133: 14819 | E133: 24 | F133: 14824 | K133: 0 | L133: 222
A134: 12 | B134: 14927 | C134: 24 | D134: 14934 | E134: 24 | F134: 14940 | K134: 0 | L134: 122
A135: 21 | B135: 15047 | C135: 22 | D135: 15063 | E135: 24 | F135: 15071 | K135: 0 | L135: 222
A136: 21 | B136: 15172 | C136: 22 | D136: 15176 | E136: 24 | F136: 15182 | K136: 0 | L136: 222
A137: 21 | B137: 15280 | C137: 22 | D137: 15283 | E137: 13 | F137: 15296 | K137: 0 | L137: 221
A138: 21 | B138: 15398 | C138: 22 | D138: 15415 | E138: 24 | F138: 15425 | K138: 0 | L138: 222
A139: 21 | B139: 15524 | C139: 22 | D139: 15540 | E139: 13 | F139: 15549 | K139: 0 | L139: 221
A140: 21 | B140: 15649 | C140: 22 | D140: 15653 | E140: 13 | F140: 15660 | K140: 0 | L140: 221
A141: 21 | B141: 15759 | C141: 22 | D141: 15762 | E141: 24 | F141: 15767 | K141: 0 | L141: 222
A142: 21 | B142: 15866 | C142: 11 | D142: 15875 | E142: 22 | F142: 15882 | K142: 0 | L142: 212
A143: 21 | B143: 15977 | C143: 11 | D143: 15987 | E143: 11 | F143: 15998 | K143: 0 | L143: 211
A144: 21 | B144: 16096 | C144: 11 | D144: 16113 | E144: 22 | F144: 16120 | K144: 0 | L144: 212
A145: 21 | B145: 16220 | C145: 11 | D145: 16230 | E145: 22 | F145: 16238 | K145: 0 | L145: 212
A146: 21 | B146: 16335 | C146: 11 | D146: 16346 | E146: 22 | F146: 16355 | K146: 0 | L146: 212
A147: 21 | B147: 16457 | C147: 22 | D147: 16463 | E147: 24 | F147: 16469 | K147: 0 | L147: 222
A148: 21 | B148: 16575 | C148: 22 | D148: 16579 | E148: 24 | F148: 16585 | K148: 0 | L148: 222
A149: 21 | B149: 16682 | C149: 22 | D149: 16695 | E149: 13 | F149: 16704 | K149: 0 | L149: 221
A150: 21 | B150: 16806 | C150: 22 | D150: 16811 | E150: 24 | F150: 16815 | K150: 0 | L150: 222
A151: 21 | B151: 16912 | C151: 22 | D151: 16919 | E151: 24 | F151: 16923 | K151: 0 | L151: 222
A152: 21 | B152: 17025 | C152: 22 | D152: 17029 | E152: 24 | F152: 17033 | K152: 0 | L152: 222
A153: 21 | B153: 17133 | C153: 22 | D153: 17137 | E153: 24 | F153: 17144 | K153: 0 | L153: 222
A154: 21 | B154: 17246 | C154: 22 | D154: 17250 | E154: 24 | F154: 17254 | K154: 0 | L154: 222
A155: 21 | B155: 17354 | C155: 22 | D155: 17358 | E155: 24 | F155: 17362 | K155: 0 | L155: 222
A156: 21 | B156: 17465 | C156: 22 | D156: 17470 | E156: 13 | F156: 17480 | K156: 0 | L156: 221
A157: 21 | B157: 17579 | C157: 22 | D157: 17582 | E157: 24 | F157: 17586 | K157: 0 | L157: 222
A158: 21 | B158: 17686 | C158: 11 | D158: 17696 | E158: 22 | F158: 17704 | K158: 0 | L158: 212
A159: 21 | B159: 17804 | C159: 11 | D159: 17813 | E159: 22 | F159: 17821 | K159: 0 | L159: 212
A160: 12 | B160: 17928 | C160: 24 | D160: 17937 | E160: 13 | F160: 17946 | K160: 0 | L160: 121
A161: 21 | B161: 18043 | C161: 22 | D161: 18047 | E161: 24 | F161: 18051 | K161: 0 | L161: 222
A162: 21 | B162: 18152 | C162: 22 | D162: 18155 | E162: 24 | F162: 18159 | K162: 0 | L162: 222
A163: 21 | B163: 18253 | C163: 22 | D163: 18257 | E163: 24 | F163: 18261 | K163: 0 | L163: 222
A164: 21 | B164: 18358 | C164: 22 | D164: 18362 | E164: 13 | F164: 18370 | K164: 0 | L164: 221
A165: 21 | B165: 18470 | C165: 22 | D165: 18474 | E165: 24 | F165: 18478 | K165: 0 | L165: 222
A166: 21 | B166: 18575 | C166: 22 | D166: 18580 | E166: 24 | F166: 18584 | K166: 0 | L166: 222
A167: 12 | B167: 18685 | C167: 24 | D167: 18692 | E167: 24 | F167: 18703 | K167: 0 | L167: 122
A168: 21 | B168: 18803 | C168: 22 | D168: 18807 | E168: 24 | F168: 18810 | K168: 0 | L168: 222
A169: 12 | B169: 18910 | C169: 24 | D169: 18918 | E169: 24 | F169: 18923 | K169: 0 | L169: 122
A170: 12 | B170: 19021 | C170: 24 | D170: 19031 | E170: 24 | F170: 19035 | K170: 0 | L170: 122
A171: 12 | B171: 19134 | C171: 24 | D171: 19142 | E171: 24 | F171: 19148 | K171: 0 | L171: 122
A172: 21 | B172: 19247 | C172: 22 | D172: 19257 | E172: 24 | F172: 19264 | K172: 0 | L172: 222
A173: 21 | B173: 19357 | C173: 22 | D173: 19367 | E173: 13 | F173: 19377 | K173: 0 | L173: 221
A174: 21 | B174: 19480 | C174: 22 | D174: 19484 | E174: 24 | F174: 19488 | K174: 0 | L174: 222
A175: 12 | B175: 19587 | C175: 13 | D175: 19599 | E175: 24 | F175: 19607 | K175: 0 | L175: 112
A176: 12 | B176: 19715 | C176: 24 | D176: 19722 | E176: 24 | F176: 19728 | K176: 0 | L176: 122
A177: 21 | B177: 19828 | C177: 22 | D177: 19832 | E177: 24 | F177: 19836 | K177: 0 | L177: 222
A178: 21 | B178: 19942 | C178: 22 | D178: 19949 | E178: 24 | F178: 19954 | K178: 0 | L178: 222
A179: 21 | B179: 20059 | C179: 11 | D179: 20070 | E179: 22 | F179: 20080 | K179: 0 | L179: 212
A180: 21 | B180: 20179 | C180: 22 | D180: 20190 | E180: 13 | F180: 20200 | K180: 0 | L180: 221
A181: 21 | B181: 20306 | C181: 22 | D181: 20312 | E181: 24 | F181: 20318 | K181: 0 | L181: 222
A182: 12 | B182: 20419 | C182: 24 | D182: 20427 | E182: 24 | F182: 20431 | K182: 0 | L182: 122
A183: 21 | B183: 20528 | C183: 22 | D183: 20540 | E183: 13 | F183: 20548 | K183: 0 | L183: 221
A184: 21 | B184: 20648 | C184: 22 | D184: 20652 | E184: 24 | F184: 20657 | K184: 0 | L184: 222
A185: 21 | B185: 20770 | C185: 22 | D185: 20777 | E185: 24 | F185: 20782 | K185: 0 | L185: 222
A186: 21 | B186: 20887 | C186: 22 | D186: 20892 | E186: 24 | F186: 20895 | K186: 0 | L186: 222
A187: 12 | B187: 20996 | C187: 24 | D187: 21005 | E187: 24 | F187: 21010 | K187: 0 | L187: 122
A188: 21 | B188: 21109 | C188: 22 | D188: 21117 | E188: 24 | F188: 21121 | K188: 0 | L188: 222
A189: 12 | B189: 21218 | C189: 13 | D189: 21225 | E189: 13 | F189: 21238 | K189: 0 | L189: 111
A190: 21 | B190: 21340 | C190: 22 | D190: 21343 | E190: 24 | F190: 21349 | K190: 0 | L190: 222
A191: 21 | B191: 21447 | C191: 22 | D191: 21458 | E191: 24 | F191: 21463 | K191: 0 | L191: 222
A192: 12 | B192: 21561 | C192: 24 | D192: 21582 | E192: 24 | F192: 21588 | K192: 0 | L192: 122
A193: 21 | B193: 21690 | C193: 22 | D193: 21698 | E193: 24 | F193: 21702 | K193: 0 | L193: 222
A194: 12 | B194: 21813 | C194: 24 | D194: 21821 | E194: 24 | F194: 21825 | K194: 0 | L194: 122
A195: 21 | B195: 21924 | C195: 11 | D195: 21934 | E195: 22 | F195: 21942 | K195: 0 | L195: 212
A196: 21 | B196: 22047 | C196: 22 | D196: 22053 | E196: 13 | F196: 22061 | K196: 0 | L196: 221
A197: 12 | B197: 22163 | C197: 24 | D197: 22171 | E197: 13 | F197: 22181 | K197: 0 | L197: 121
A198: 12 | B198: 22279 | C198: 24 | D198: 22286 | E198: 13 | F198: 22294 | K198: 0 | L198: 121
A199: 12 | B199: 22391 | C199: 13 | D199: 22396 | E199: 13 | F199: 22400 | K199: 0 | L199: 111
A200: 21 | B200: 22502 | C200: 22 | D200: 22507 | E200: 24 | F200: 22511 | K200: 0 | L200: 222
... 12 more rows

Sheet !MC03830.096
A1: Report for:!MC03830.096
A2: Date: | B2: <date>
A3: Hen: | B3: <hen> | F3: Correct Sequence | G3: =Start!J2 -> 211 | P3: Total Sequences in Data | Q3: =4994-COUNTBLANK(L7:L5000) -> 208 | V3: Total Sequences in Block Data | W3: =COUNTA(L7:L41) -> 35 | AA3: Total Sequences in Block Data | AB3: =COUNTA(L42:L75) -> 34 | AF3: Total Sequences in Block Data | AG3: =COUNTA(L76:L110) -> 35 | AK3: Total Sequences in Block Data | AL3: =COUNTA(L111:L145) -> 35 | AP3: Total Sequences in Block Data | AQ3: =COUNTA(L146:L179) -> 34 | AU3: Total Sequences in Block Data | AV3: =COUNTA(L180:L214) -> 35
P4: Total Sequences in Summary | Q4: =SUM(O7:O14) -> 208 | V4: Total Sequences in Block Summary | W4: =SUM(U7:U14) -> 35 | AA4: Total Sequences in Block Summary | AB4: =SUM(Z7:Z14) -> 34 | AF4: Total Sequences in Block Summary | AG4: =SUM(AE7:AE14) -> 35 | AK4: Total Sequences in Block Summary | AL4: =SUM(AJ7:AJ14) -> 35 | AP4: Total Sequences in Block Summary | AQ4: =SUM(AO7:AO14) -> 34 | AU4: Total Sequences in Block Summary | AV4: =SUM(AT7:AT14) -> 35
T5: Block 1 | Y5: Block 2 | AD5: Block 3 | AI5: Block 4 | AN5: Block 5 | AS5: Block 6
A6: Sequence Component 1 | B6: Time 1 | C6: Sequence Component 2 | D6: Time 2 | E6: Sequence Component 3 | F6: Time 3 | G6: Sequence Component 4 | H6: Time 4 | I6: Sequence Component 5 | J6: Time 5 | K6: Correct? 0=No 1=Yes | L6: Sequence | N6: Frequency | P6: Relative Frequency | Q6: Variability | T6: Frequency | V6: Relative Frequency | W6: Variability | Y6: Frequency | AA6: Relative Frequency | AB6: Variability | AD6: Frequency | AF6: Relative Frequency | AG6: Variability | AI6: Frequency | AK6: Relative Frequency | AL6: Variability | AN6: Frequency | AP6: Relative Frequency | AQ6: Variability | AS6: Frequency | AU6: Relative Frequency | AV6: Variability
A7: 21 | B7: 14 | C7: 22 | D7: 30 | E7: 24 | F7: 35 | K7: 0 | L7: 222 | N7: 111 | O7: =COUNTIF($L$7:$L$500,N7) -> 1 | P7: =O7/$Q$4 -> 0.004807692308 | Q7: =IF(P7=0,0,(P7*((LOG(P7))/LOG(2)))) -> -0.0370213448 | T7: =N7 -> 111 | U7: =COUNTIF(L7:L41,T7) -> 1 | V7: =U7/(W4-U11) -> 0.02941176471 | W7: =IF(V7=0,0,(V7*((LOG(V7))/LOG(2)))) -> -0.14963126 | Y7: =N7 -> 111 | Z7: =COUNTIF(L42:L75,Y7) -> 0 | AA7: =Z7/(AB4-Z11) -> 0 | AB7: =IF(AA7=0,0,(AA7*((LOG(AA7))/LOG(2)))) -> 0 | AD7: =N7 -> 111 | AE7: =COUNTIF(L76:L110,AD7) -> 0 | AF7: =AE7/(AG4-AE11) -> 0 | AG7: =IF(AF7=0,0,(AF7*((LOG(AF7))/LOG(2)))) -> 0 | AI7: =N7 -> 111 | AJ7: =COUNTIF(L111:L145,AI7) -> 0 | AK7: =AJ7/(AL4-AJ11) -> 0 | AL7: =IF(AK7=0,0,(AK7*((LOG(AK7))/LOG(2)))) -> 0 | AN7: =N7 -> 111 | AO7: =COUNTIF(L146:L179,AN7) -> 0 | AP7: =AO7/(AQ4-AO11) -> 0 | AQ7: =IF(AP7=0,0,(AP7*((LOG(AP7))/LOG(2)))) -> 0 | AS7: =N7 -> 111 | AT7: =COUNTIF(L180:L214,AS7) -> 0 | AU7: =AT7/(AV4-AT11) -> 0 | AV7: =IF(AU7=0,0,(AU7*((LOG(AU7))/LOG(2)))) -> 0
A8: 21 | B8: 141 | C8: 22 | D8: 145 | E8: 24 | F8: 150 | K8: 0 | L8: 222 | N8: 112 | O8: =COUNTIF($L$7:$L$500,N8) -> 12 | P8: =O8/$Q$4 -> 0.05769230769 | Q8: =IF(P8=0,0,(P8*((LOG(P8))/LOG(2)))) -> -0.2374313779 | T8: =N8 -> 112 | U8: =COUNTIF(L7:L41,T8) -> 0 | V8: =U8/(W4-U11) -> 0 | W8: =IF(V8=0,0,(V8*((LOG(V8))/LOG(2)))) -> 0 | Y8: =N8 -> 112 | Z8: =COUNTIF(L42:L75,Y8) -> 0 | AA8: =Z8/(AB4-Z11) -> 0 | AB8: =IF(AA8=0,0,(AA8*((LOG(AA8))/LOG(2)))) -> 0 | AD8: =N8 -> 112 | AE8: =COUNTIF(L76:L110,AD8) -> 1 | AF8: =AE8/(AG4-AE11) -> 0.02857142857 | AG8: =IF(AF8=0,0,(AF8*((LOG(AF8))/LOG(2)))) -> -0.1465509433 | AI8: =N8 -> 112 | AJ8: =COUNTIF(L111:L145,AI8) -> 3 | AK8: =AJ8/(AL4-AJ11) -> 0.08571428571 | AL8: =IF(AK8=0,0,(AK8*((LOG(AK8))/LOG(2)))) -> -0.3037989014 | AN8: =N8 -> 112 | AO8: =COUNTIF(L146:L179,AN8) -> 1 | AP8: =AO8/(AQ4-AO11) -> 0.02941176471 | AQ8: =IF(AP8=0,0,(AP8*((LOG(AP8))/LOG(2)))) -> -0.14963126 | AS8: =N8 -> 112 | AT8: =COUNTIF(L180:L214,AS8) -> 7 | AU8: =AT8/(AV4-AT11) -> 0.2 | AV8: =IF(AU8=0,0,(AU8*((LOG(AU8))/LOG(2)))) -> -0.464385619
A9: 12 | B9: 263 | C9: 24 | D9: 275 | E9: 24 | F9: 286 | K9: 0 | L9: 122 | N9: 121 | O9: =COUNTIF($L$7:$L$500,N9) -> 13 | P9: =O9/$Q$4 -> 0.0625 | Q9: =IF(P9=0,0,(P9*((LOG(P9))/LOG(2)))) -> -0.25 | T9: =N9 -> 121 | U9: =COUNTIF(L7:L41,T9) -> 2 | V9: =U9/(W4-U11) -> 0.05882352941 | W9: =IF(V9=0,0,(V9*((LOG(V9))/LOG(2)))) -> -0.2404389907 | Y9: =N9 -> 121 | Z9: =COUNTIF(L42:L75,Y9) -> 1 | AA9: =Z9/(AB4-Z11) -> 0.02941176471 | AB9: =IF(AA9=0,0,(AA9*((LOG(AA9))/LOG(2)))) -> -0.14963126 | AD9: =N9 -> 121 | AE9: =COUNTIF(L76:L110,AD9) -> 3 | AF9: =AE9/(AG4-AE11) -> 0.08571428571 | AG9: =IF(AF9=0,0,(AF9*((LOG(AF9))/LOG(2)))) -> -0.3037989014 | AI9: =N9 -> 121 | AJ9: =COUNTIF(L111:L145,AI9) -> 2 | AK9: =AJ9/(AL4-AJ11) -> 0.05714285714 | AL9: =IF(AK9=0,0,(AK9*((LOG(AK9))/LOG(2)))) -> -0.2359590295 | AN9: =N9 -> 121 | AO9: =COUNTIF(L146:L179,AN9) -> 2 | AP9: =AO9/(AQ4-AO11) -> 0.05882352941 | AQ9: =IF(AP9=0,0,(AP9*((LOG(AP9))/LOG(2)))) -> -0.2404389907 | AS9: =N9 -> 121 | AT9: =COUNTIF(L180:L214,AS9) -> 3 | AU9: =AT9/(AV4-AT11) -> 0.08571428571 | AV9: =IF(AU9=0,0,(AU9*((LOG(AU9))/LOG(2)))) -> -0.3037989014
A10: 12 | B10: 380 | C10: 13 | D10: 385 | E10: 13 | F10: 389 | K10: 0 | L10: 111 | N10: 122 | O10: =COUNTIF($L$7:$L$500,N10) -> 82 | P10: =O10/$Q$4 -> 0.3942307692 | Q10: =IF(P10=0,0,(P10*((LOG(P10))/LOG(2)))) -> -0.5294076563 | T10: =N10 -> 122 | U10: =COUNTIF(L7:L41,T10) -> 7 | V10: =U10/(W4-U11) -> 0.2058823529 | W10: =IF(V10=0,0,(V10*((LOG(V10))/LOG(2)))) -> -0.4694339834 | Y10: =N10 -> 122 | Z10: =COUNTIF(L42:L75,Y10) -> 5 | AA10: =Z10/(AB4-Z11) -> 0.1470588235 | AB10: =IF(AA10=0,0,(AA10*((LOG(AA10))/LOG(2)))) -> -0.4066962862 | AD10: =N10 -> 122 | AE10: =COUNTIF(L76:L110,AD10) -> 12 | AF10: =AE10/(AG4-AE11) -> 0.3428571429 | AG10: =IF(AF10=0,0,(AF10*((LOG(AF10))/LOG(2)))) -> -0.5294813198 | AI10: =N10 -> 122 | AJ10: =COUNTIF(L111:L145,AI10) -> 15 | AK10: =AJ10/(AL4-AJ11) -> 0.4285714286 | AL10: =IF(AK10=0,0,(AK10*((LOG(AK10))/LOG(2)))) -> -0.5238824663 | AN10: =N10 -> 122 | AO10: =COUNTIF(L146:L179,AN10) -> 23 | AP10: =AO10/(AQ4-AO11) -> 0.6764705882 | AQ10: =IF(AP10=0,0,(AP10*((LOG(AP10))/LOG(2)))) -> -0.3814623635 | AS10: =N10 -> 122 | AT10: =COUNTIF(L180:L214,AS10) -> 20 | AU10: =AT10/(AV4-AT11) -> 0.5714285714 | AV10: =IF(AU10=0,0,(AU10*((LOG(AU10))/LOG(2)))) -> -0.4613456697
A11: 21 | B11: 491 | C11: 22 | D11: 497 | E11: 24 | F11: 502 | K11: 0 | L11: 222 | N11: 211 | O11: =COUNTIF($L$7:$L$500,N11) -> 1 | P11: =O11/$Q$4 -> 0.004807692308 | Q11: =IF(P11=0,0,(P11*((LOG(P11))/LOG(2)))) -> -0.0370213448 | T11: =N11 -> 211 | U11: =COUNTIF(L7:L41,T11) -> 1 | Y11: =N11 -> 211 | Z11: =COUNTIF(L42:L75,Y11) -> 0 | AD11: =N11 -> 211 | AE11: =COUNTIF(L76:L110,AD11) -> 0 | AI11: =N11 -> 211 | AJ11: =COUNTIF(L111:L145,AI11) -> 0 | AN11: =N11 -> 211 | AO11: =COUNTIF(L146:L179,AN11) -> 0 | AS11: =N11 -> 211 | AT11: =COUNTIF(L180:L214,AS11) -> 0
A12: 21 | B12: 607 | C12: 22 | D12: 614 | E12: 13 | F12: 624 | K12: 0 | L12: 221 | N12: 212 | O12: =COUNTIF($L$7:$L$500,N12) -> 19 | P12: =O12/$Q$4 -> 0.09134615385 | Q12: =IF(P12=0,0,(P12*((LOG(P12))/LOG(2)))) -> -0.315373711 | T12: =N12 -> 212 | U12: =COUNTIF(L7:L41,T12) -> 6 | V12: =U12/(W4-U11) -> 0.1764705882 | W12: =IF(V12=0,0,(V12*((LOG(V12))/LOG(2)))) -> -0.4416177072 | Y12: =N12 -> 212 | Z12: =COUNTIF(L42:L75,Y12) -> 4 | AA12: =Z12/(AB4-Z11) -> 0.1176470588 | AB12: =IF(AA12=0,0,(AA12*((LOG(AA12))/LOG(2)))) -> -0.3632309225 | AD12: =N12 -> 212 | AE12: =COUNTIF(L76:L110,AD12) -> 3 | AF12: =AE12/(AG4-AE11) -> 0.08571428571 | AG12: =IF(AF12=0,0,(AF12*((LOG(AF12))/LOG(2)))) -> -0.3037989014 | AI12: =N12 -> 212 | AJ12: =COUNTIF(L111:L145,AI12) -> 1 | AK12: =AJ12/(AL4-AJ11) -> 0.02857142857 | AL12: =IF(AK12=0,0,(AK12*((LOG(AK12))/LOG(2)))) -> -0.1465509433 | AN12: =N12 -> 212 | AO12: =COUNTIF(L146:L179,AN12) -> 3 | AP12: =AO12/(AQ4-AO11) -> 0.08823529412 | AQ12: =IF(AP12=0,0,(AP12*((LOG(AP12))/LOG(2)))) -> -0.3090441477 | AS12: =N12 -> 212 | AT12: =COUNTIF(L180:L214,AS12) -> 2 | AU12: =AT12/(AV4-AT11) -> 0.05714285714 | AV12: =IF(AU12=0,0,(AU12*((LOG(AU12))/LOG(2)))) -> -0.2359590295
A13: 21 | B13: 730 | C13: 22 | D13: 734 | E13: 24 | F13: 738 | K13: 0 | L13: 222 | N13: 221 | O13: =COUNTIF($L$7:$L$500,N13) -> 7 | P13: =O13/$Q$4 -> 0.03365384615 | Q13: =IF(P13=0,0,(P13*((LOG(P13))/LOG(2)))) -> -0.1646711229 | T13: =N13 -> 221 | U13: =COUNTIF(L7:L41,T13) -> 4 | V13: =U13/(W4-U11) -> 0.1176470588 | W13: =IF(V13=0,0,(V13*((LOG(V13))/LOG(2)))) -> -0.3632309225 | Y13: =N13 -> 221 | Z13: =COUNTIF(L42:L75,Y13) -> 2 | AA13: =Z13/(AB4-Z11) -> 0.05882352941 | AB13: =IF(AA13=0,0,(AA13*((LOG(AA13))/LOG(2)))) -> -0.2404389907 | AD13: =N13 -> 221 | AE13: =COUNTIF(L76:L110,AD13) -> 0 | AF13: =AE13/(AG4-AE11) -> 0 | AG13: =IF(AF13=0,0,(AF13*((LOG(AF13))/LOG(2)))) -> 0 | AI13: =N13 -> 221 | AJ13: =COUNTIF(L111:L145,AI13) -> 1 | AK13: =AJ13/(AL4-AJ11) -> 0.02857142857 | AL13: =IF(AK13=0,0,(AK13*((LOG(AK13))/LOG(2)))) -> -0.1465509433 | AN13: =N13 -> 221 | AO13: =COUNTIF(L146:L179,AN13) -> 0 | AP13: =AO13/(AQ4-AO11) -> 0 | AQ13: =IF(AP13=0,0,(AP13*((LOG(AP13))/LOG(2)))) -> 0 | AS13: =N13 -> 221 | AT13: =COUNTIF(L180:L214,AS13) -> 0 | AU13: =AT13/(AV4-AT11) -> 0 | AV13: =IF(AU13=0,0,(AU13*((LOG(AU13))/LOG(2)))) -> 0
A14: 21 | B14: 834 | C14: 22 | D14: 838 | E14: 24 | F14: 842 | K14: 0 | L14: 222 | N14: 222 | O14: =COUNTIF($L$7:$L$500,N14) -> 73 | P14: =O14/$Q$4 -> 0.3509615385 | Q14: =IF(P14=0,0,(P14*((LOG(P14))/LOG(2)))) -> -0.5301678203 | T14: =N14 -> 222 | U14: =COUNTIF(L7:L41,T14) -> 14 | V14: =U14/(W4-U11) -> 0.4117647059 | W14: =IF(V14=0,0,(V14*((LOG(V14))/LOG(2)))) -> -0.5271032608 | Y14: =N14 -> 222 | Z14: =COUNTIF(L42:L75,Y14) -> 22 | AA14: =Z14/(AB4-Z11) -> 0.6470588235 | AB14: =IF(AA14=0,0,(AA14*((LOG(AA14))/LOG(2)))) -> -0.406373144 | AD14: =N14 -> 222 | AE14: =COUNTIF(L76:L110,AD14) -> 16 | AF14: =AE14/(AG4-AE11) -> 0.4571428571 | AG14: =IF(AF14=0,0,(AF14*((LOG(AF14))/LOG(2)))) -> -0.5162436649 | AI14: =N14 -> 222 | AJ14: =COUNTIF(L111:L145,AI14) -> 13 | AK14: =AJ14/(AL4-AJ11) -> 0.3714285714 | AL14: =IF(AK14=0,0,(AK14*((LOG(AK14))/LOG(2)))) -> -0.5307132253 | AN14: =N14 -> 222 | AO14: =COUNTIF(L146:L179,AN14) -> 5 | AP14: =AO14/(AQ4-AO11) -> 0.1470588235 | AQ14: =IF(AP14=0,0,(AP14*((LOG(AP14))/LOG(2)))) -> -0.4066962862 | AS14: =N14 -> 222 | AT14: =COUNTIF(L180:L214,AS14) -> 3 | AU14: =AT14/(AV4-AT11) -> 0.08571428571 | AV14: =IF(AU14=0,0,(AU14*((LOG(AU14))/LOG(2)))) -> -0.3037989014
A15: 21 | B15: 940 | C15: 22 | D15: 953 | E15: 24 | F15: 961 | K15: 0 | L15: 222 | P15: =SUM(P7:P14) -> 1 | Q15: =-SUM(Q7:Q14) -> 2.101094378 | V15: =SUM(V7:V14) -> 1 | W15: =-SUM(W7:W14) -> 2.191456125 | AA15: =SUM(AA7:AA14) -> 1 | AB15: =-SUM(AB7:AB14) -> 1.566370603 | AF15: =SUM(AF7:AF14) -> 1 | AG15: =-SUM(AG7:AG14) -> 1.799873731 | AK15: =SUM(AK7:AK14) -> 1 | AL15: =-SUM(AL7:AL14) -> 1.887455509 | AP15: =SUM(AP7:AP14) -> 1 | AQ15: =-SUM(AQ7:AQ14) -> 1.487273048 | AU15: =SUM(AU7:AU14) -> 1 | AV15: =-SUM(AV7:AV14) -> 1.769288121
A16: 21 | B16: 1074 | C16: 22 | D16: 1079 | E16: 24 | F16: 1084 | K16: 0 | L16: 222 | P16: U= | Q16: =Q15/(LOG(Q4)/LOG(2)) -> 0.2728538181 | V16: U1= | W16: =W15/(LOG(W4)/LOG(2)) -> 0.4272441426 | AA16: U2= | AB16: =AB15/(LOG(AB4)/LOG(2)) -> 0.3078883625 | AF16: U3= | AG16: =AG15/(LOG(AG4)/LOG(2)) -> 0.3509016221 | AK16: U4= | AL16: =AL15/(LOG(AL4)/LOG(2)) -> 0.3679764799 | AP16: U5= | AQ16: =AQ15/(LOG(AQ4)/LOG(2)) -> 0.2923408179 | AU16: U6= | AV16: =AV15/(LOG(AV4)/LOG(2)) -> 0.3449386815
A17: 12 | B17: 1203 | C17: 24 | D17: 1217 | E17: 24 | F17: 1224 | K17: 0 | L17: 122
A18: 12 | B18: 1333 | C18: 24 | D18: 1343 | E18: 13 | F18: 1353 | K18: 0 | L18: 121
A19: 12 | B19: 1463 | C19: 24 | D19: 1474 | E19: 24 | F19: 1481 | K19: 0 | L19: 122 | N19: Total Target Seq
A20: 12 | B20: 1582 | C20: 24 | D20: 1595 | E20: 24 | F20: 1602 | K20: 0 | L20: 122 | N20: =COUNTIF(L7:L214,G3) -> 1 | P20: 35 | Q20: 34 | R20: 35 | S20: 35 | T20: 34 | U20: 35
A21: 21 | B21: 1706 | C21: 22 | D21: 1711 | E21: 13 | F21: 1721 | K21: 0 | L21: 221 | P21: % of reinforcement given in 6 equal intervals based on number of trials
A22: 21 | B22: 1823 | C22: 11 | D22: 1832 | E22: 11 | F22: 1847 | K22: 0 | L22: 211 | P22: %_1 | Q22: %_2 | R22: %_3 | S22: %_4 | T22: %_5 | U22: %_6
A23: 21 | B23: 1959 | C23: 22 | D23: 1963 | E23: 13 | F23: 1972 | K23: 0 | L23: 221 | O23: target sequence | P23: =$G$3 -> 211 | Q23: =$G$3 -> 211 | R23: =$G$3 -> 211 | S23: =$G$3 -> 211 | T23: =$G$3 -> 211 | U23: =$G$3 -> 211
A24: 12 | B24: 2084 | C24: 24 | D24: 2096 | E24: 24 | F24: 2104 | K24: 0 | L24: 122 | O24: total reinforcement | P24: =U11 -> 1 | Q24: =Z11 -> 0 | R24: =AE11 -> 0 | S24: =AJ11 -> 0 | T24: =AO11 -> 0 | U24: =AT11 -> 0
A25: 21 | B25: 2202 | C25: 11 | D25: 2219 | E25: 22 | F25: 2231 | K25: 0 | L25: 212 | O25: % target
A26: 21 | B26: 2330 | C26: 11 | D26: 2338 | E26: 22 | F26: 2348 | K26: 0 | L26: 212 | O26: CCRF
A27: 21 | B27: 2448 | C27: 11 | D27: 2459 | E27: 22 | F27: 2469 | K27: 0 | L27: 212 | O27: % CCRf
A28: 21 | B28: 2569 | C28: 22 | D28: 2576 | E28: 24 | F28: 2580 | K28: 0 | L28: 222 | O28: average response rate | P28: =F41/P20 -> 117.8285714 | Q28: =(F75-F41)/Q20 -> 116 | R28: =(F110-F75)/R20 -> 118.8 | S28: =(F145-F110)/S20 -> 114.4285714 | T28: =(F179-F145)/T20 -> 111.2352941 | U28: =(F214-F179)/U20 -> 113.7142857
A29: 12 | B29: 2689 | C29: 24 | D29: 2697 | E29: 13 | F29: 2709 | K29: 0 | L29: 121
A30: 21 | B30: 2814 | C30: 11 | D30: 2824 | E30: 22 | F30: 2833 | K30: 0 | L30: 212
A31: 21 | B31: 2930 | C31: 11 | D31: 2940 | E31: 22 | F31: 2948 | K31: 0 | L31: 212
A32: 21 | B32: 3056 | C32: 22 | D32: 3060 | E32: 24 | F32: 3067 | K32: 0 | L32: 222
A33: 12 | B33: 3177 | C33: 24 | D33: 3185 | E33: 24 | F33: 3190 | K33: 0 | L33: 122
A34: 21 | B34: 3291 | C34: 11 | D34: 3301 | E34: 22 | F34: 3309 | K34: 0 | L34: 212
A35: 21 | B35: 3403 | C35: 22 | D35: 3407 | E35: 24 | F35: 3423 | K35: 0 | L35: 222
A36: 21 | B36: 3531 | C36: 22 | D36: 3536 | E36: 24 | F36: 3544 | K36: 0 | L36: 222
A37: 21 | B37: 3644 | C37: 22 | D37: 3655 | E37: 13 | F37: 3665 | K37: 0 | L37: 221
A38: 21 | B38: 3765 | C38: 22 | D38: 3769 | E38: 24 | F38: 3773 | K38: 0 | L38: 222
A39: 21 | B39: 3875 | C39: 22 | D39: 3879 | E39: 24 | F39: 3883 | K39: 0 | L39: 222
A40: 12 | B40: 3997 | C40: 24 | D40: 4004 | E40: 24 | F40: 4012 | K40: 0 | L40: 122
A41: 21 | B41: 4114 | C41: 22 | D41: 4119 | E41: 24 | F41: 4124 | K41: 0 | L41: 222
A42: 12 | B42: 4236 | C42: 24 | D42: 4242 | E42: 24 | F42: 4250 | K42: 0 | L42: 122
A43: 21 | B43: 4354 | C43: 11 | D43: 4365 | E43: 22 | F43: 4372 | K43: 0 | L43: 212
A44: 21 | B44: 4472 | C44: 22 | D44: 4477 | E44: 24 | F44: 4482 | K44: 0 | L44: 222
A45: 12 | B45: 4594 | C45: 24 | D45: 4601 | E45: 24 | F45: 4607 | K45: 0 | L45: 122
A46: 21 | B46: 4717 | C46: 22 | D46: 4724 | E46: 24 | F46: 4728 | K46: 0 | L46: 222
A47: 21 | B47: 4828 | C47: 22 | D47: 4832 | E47: 24 | F47: 4837 | K47: 0 | L47: 222
A48: 12 | B48: 4952 | C48: 24 | D48: 4961 | E48: 13 | F48: 4971 | K48: 0 | L48: 121
A49: 21 | B49: 5069 | C49: 22 | D49: 5073 | E49: 24 | F49: 5078 | K49: 0 | L49: 222
A50: 21 | B50: 5173 | C50: 22 | D50: 5177 | E50: 13 | F50: 5188 | K50: 0 | L50: 221
A51: 21 | B51: 5287 | C51: 22 | D51: 5291 | E51: 24 | F51: 5295 | K51: 0 | L51: 222
A52: 21 | B52: 5402 | C52: 22 | D52: 5408 | E52: 24 | F52: 5413 | K52: 0 | L52: 222
A53: 21 | B53: 5512 | C53: 22 | D53: 5516 | E53: 24 | F53: 5520 | K53: 0 | L53: 222
A54: 21 | B54: 5622 | C54: 22 | D54: 5626 | E54: 24 | F54: 5630 | K54: 0 | L54: 222
A55: 12 | B55: 5743 | C55: 24 | D55: 5750 | E55: 24 | F55: 5757 | K55: 0 | L55: 122
A56: 21 | B56: 5864 | C56: 22 | D56: 5868 | E56: 24 | F56: 5872 | K56: 0 | L56: 222
A57: 21 | B57: 5975 | C57: 22 | D57: 5989 | E57: 24 | F57: 5996 | K57: 0 | L57: 222
A58: 21 | B58: 6096 | C58: 22 | D58: 6104 | E58: 13 | F58: 6116 | K58: 0 | L58: 221
A59: 21 | B59: 6217 | C59: 22 | D59: 6220 | E59: 24 | F59: 6224 | K59: 0 | L59: 222
A60: 21 | B60: 6327 | C60: 11 | D60: 6337 | E60: 22 | F60: 6343 | K60: 0 | L60: 212
A61: 21 | B61: 6448 | C61: 22 | D61: 6452 | E61: 24 | F61: 6458 | K61: 0 | L61: 222
A62: 21 | B62: 6564 | C62: 22 | D62: 6568 | E62: 24 | F62: 6572 | K62: 0 | L62: 222
A63: 21 | B63: 6678 | C63: 22 | D63: 6682 | E63: 24 | F63: 6689 | K63: 0 | L63: 222
A64: 21 | B64: 6794 | C64: 22 | D64: 6798 | E64: 24 | F64: 6802 | K64: 0 | L64: 222
A65: 21 | B65: 6917 | C65: 22 | D65: 6922 | E65: 24 | F65: 6926 | K65: 0 | L65: 222
A66: 21 | B66: 7027 | C66: 22 | D66: 7030 | E66: 24 | F66: 7034 | K66: 0 | L66: 222
A67: 21 | B67: 7134 | C67: 22 | D67: 7143 | E67: 24 | F67: 7147 | K67: 0 | L67: 222
A68: 21 | B68: 7249 | C68: 22 | D68: 7253 | E68: 24 | F68: 7257 | K68: 0 | L68: 222
A69: 21 | B69: 7366 | C69: 22 | D69: 7373 | E69: 24 | F69: 7378 | K69: 0 | L69: 222
A70: 21 | B70: 7487 | C70: 22 | D70: 7491 | E70: 24 | F70: 7495 | K70: 0 | L70: 222
A71: 12 | B71: 7596 | C71: 24 | D71: 7604 | E71: 24 | F71: 7609 | K71: 0 | L71: 122
A72: 21 | B72: 7711 | C72: 11 | D72: 7721 | E72: 22 | F72: 7728 | K72: 0 | L72: 212
A73: 21 | B73: 7826 | C73: 11 | D73: 7835 | E73: 22 | F73: 7842 | K73: 0 | L73: 212
A74: 21 | B74: 7941 | C74: 22 | D74: 7945 | E74: 24 | F74: 7949 | K74: 0 | L74: 222
A75: 12 | B75: 8056 | C75: 24 | D75: 8063 | E75: 24 | F75: 8068 | K75: 0 | L75: 122
A76: 21 | B76: 8169 | C76: 22 | D76: 8173 | E76: 24 | F76: 8176 | K76: 0 | L76: 222
A77: 12 | B77: 8293 | C77: 24 | D77: 8300 | E77: 24 | F77: 8306 | K77: 0 | L77: 122
A78: 21 | B78: 8413 | C78: 22 | D78: 8417 | E78: 24 | F78: 8421 | K78: 0 | L78: 222
A79: 12 | B79: 8536 | C79: 24 | D79: 8543 | E79: 24 | F79: 8547 | K79: 0 | L79: 122
A80: 12 | B80: 8655 | C80: 24 | D80: 8661 | E80: 24 | F80: 8668 | K80: 0 | L80: 122
A81: 12 | B81: 8778 | C81: 24 | D81: 8785 | E81: 24 | F81: 8792 | K81: 0 | L81: 122
A82: 12 | B82: 8890 | C82: 24 | D82: 8912 | E82: 24 | F82: 8916 | K82: 0 | L82: 122
A83: 21 | B83: 9018 | C83: 22 | D83: 9023 | E83: 24 | F83: 9027 | K83: 0 | L83: 222
A84: 21 | B84: 9141 | C84: 11 | D84: 9150 | E84: 22 | F84: 9157 | K84: 0 | L84: 212
A85: 21 | B85: 9255 | C85: 22 | D85: 9261 | E85: 24 | F85: 9267 | K85: 0 | L85: 222
A86: 21 | B86: 9360 | C86: 22 | D86: 9369 | E86: 24 | F86: 9375 | K86: 0 | L86: 222
A87: 12 | B87: 9478 | C87: 24 | D87: 9485 | E87: 24 | F87: 9489 | K87: 0 | L87: 122
A88: 12 | B88: 9597 | C88: 24 | D88: 9604 | E88: 13 | F88: 9618 | K88: 0 | L88: 121
A89: 21 | B89: 9728 | C89: 22 | D89: 9734 | E89: 24 | F89: 9738 | K89: 0 | L89: 222
A90: 21 | B90: 9842 | C90: 22 | D90: 9846 | E90: 24 | F90: 9853 | K90: 0 | L90: 222
A91: 12 | B91: 9969 | C91: 24 | D91: 9976 | E91: 24 | F91: 9982 | K91: 0 | L91: 122
A92: 21 | B92: 10087 | C92: 22 | D92: 10091 | E92: 24 | F92: 10094 | K92: 0 | L92: 222
A93: 12 | B93: 10205 | C93: 24 | D93: 10211 | E93: 24 | F93: 10219 | K93: 0 | L93: 122
A94: 21 | B94: 10316 | C94: 22 | D94: 10320 | E94: 24 | F94: 10324 | K94: 0 | L94: 222
A95: 21 | B95: 10433 | C95: 11 | D95: 10442 | E95: 22 | F95: 10449 | K95: 0 | L95: 212
A96: 21 | B96: 10548 | C96: 22 | D96: 10552 | E96: 24 | F96: 10556 | K96: 0 | L96: 222
A97: 12 | B97: 10665 | C97: 24 | D97: 10671 | E97: 13 | F97: 10682 | K97: 0 | L97: 121
A98: 21 | B98: 10792 | C98: 11 | D98: 10802 | E98: 22 | F98: 10809 | K98: 0 | L98: 212
A99: 21 | B99: 10904 | C99: 22 | D99: 10908 | E99: 24 | F99: 10912 | K99: 0 | L99: 222
A100: 21 | B100: 11024 | C100: 22 | D100: 11029 | E100: 24 | F100: 11033 | K100: 0 | L100: 222
A101: 12 | B101: 11146 | C101: 24 | D101: 11154 | E101: 13 | F101: 11166 | K101: 0 | L101: 121
A102: 21 | B102: 11274 | C102: 22 | D102: 11286 | E102: 24 | F102: 11292 | K102: 0 | L102: 222
A103: 12 | B103: 11390 | C103: 13 | D103: 11402 | E103: 24 | F103: 11410 | K103: 0 | L103: 112
A104: 21 | B104: 11523 | C104: 22 | D104: 11527 | E104: 24 | F104: 11531 | K104: 0 | L104: 222
A105: 12 | B105: 11630 | C105: 24 | D105: 11658 | E105: 24 | F105: 11661 | K105: 0 | L105: 122
A106: 21 | B106: 11765 | C106: 22 | D106: 11769 | E106: 24 | F106: 11777 | K106: 0 | L106: 222
A107: 12 | B107: 11880 | C107: 24 | D107: 11887 | E107: 24 | F107: 11891 | K107: 0 | L107: 122
A108: 21 | B108: 11985 | C108: 22 | D108: 11989 | E108: 24 | F108: 11997 | K108: 0 | L108: 222
A109: 12 | B109: 12098 | C109: 24 | D109: 12106 | E109: 24 | F109: 12110 | K109: 0 | L109: 122
A110: 12 | B110: 12214 | C110: 24 | D110: 12221 | E110: 24 | F110: 12226 | K110: 0 | L110: 122
A111: 12 | B111: 12325 | C111: 24 | D111: 12332 | E111: 24 | F111: 12337 | K111: 0 | L111: 122
A112: 12 | B112: 12438 | C112: 13 | D112: 12449 | E112: 24 | F112: 12456 | K112: 0 | L112: 112
A113: 21 | B113: 12553 | C113: 22 | D113: 12557 | E113: 24 | F113: 12569 | K113: 0 | L113: 222
A114: 12 | B114: 12670 | C114: 24 | D114: 12677 | E114: 24 | F114: 12682 | K114: 0 | L114: 122
A115: 21 | B115: 12787 | C115: 22 | D115: 12790 | E115: 24 | F115: 12794 | K115: 0 | L115: 222
A116: 12 | B116: 12893 | C116: 13 | D116: 12897 | E116: 24 | F116: 12907 | K116: 0 | L116: 112
A117: 21 | B117: 13010 | C117: 22 | D117: 13015 | E117: 24 | F117: 13019 | K117: 0 | L117: 222
A118: 12 | B118: 13121 | C118: 24 | D118: 13132 | E118: 24 | F118: 13135 | K118: 0 | L118: 122
A119: 12 | B119: 13234 | C119: 24 | D119: 13241 | E119: 24 | F119: 13246 | K119: 0 | L119: 122
A120: 21 | B120: 13342 | C120: 22 | D120: 13350 | E120: 24 | F120: 13355 | K120: 0 | L120: 222
A121: 12 | B121: 13454 | C121: 24 | D121: 13462 | E121: 24 | F121: 13467 | K121: 0 | L121: 122
A122: 21 | B122: 13569 | C122: 22 | D122: 13572 | E122: 24 | F122: 13576 | K122: 0 | L122: 222
A123: 12 | B123: 13678 | C123: 24 | D123: 13685 | E123: 24 | F123: 13689 | K123: 0 | L123: 122
A124: 12 | B124: 13790 | C124: 24 | D124: 13796 | E124: 24 | F124: 13803 | K124: 0 | L124: 122
A125: 21 | B125: 13907 | C125: 22 | D125: 13914 | E125: 24 | F125: 13918 | K125: 0 | L125: 222
A126: 12 | B126: 14021 | C126: 24 | D126: 14029 | E126: 24 | F126: 14034 | K126: 0 | L126: 122
A127: 12 | B127: 14137 | C127: 24 | D127: 14144 | E127: 13 | F127: 14154 | K127: 0 | L127: 121
A128: 12 | B128: 14264 | C128: 24 | D128: 14271 | E128: 24 | F128: 14277 | K128: 0 | L128: 122
A129: 12 | B129: 14382 | C129: 24 | D129: 14386 | E129: 24 | F129: 14393 | K129: 0 | L129: 122
A130: 21 | B130: 14502 | C130: 22 | D130: 14507 | E130: 24 | F130: 14511 | K130: 0 | L130: 222
A131: 12 | B131: 14610 | C131: 13 | D131: 14613 | E131: 24 | F131: 14621 | K131: 0 | L131: 112
A132: 12 | B132: 14719 | C132: 24 | D132: 14727 | E132: 24 | F132: 14731 | K132: 0 | L132: 122
A133: 21 | B133: 14847 | C133: 22 | D133: 14851 | E133: 24 | F133: 14856 | K133: 0 | L133: 222
A134: 21 | B134: 14958 | C134: 22 | D134: 14961 | E134: 24 | F134: 14965 | K134: 0 | L134: 222
A135: 12 | B135: 15063 | C135: 24 | D135: 15069 | E135: 24 | F135: 15074 | K135: 0 | L135: 122
A136: 21 | B136: 15182 | C136: 22 | D136: 15196 | E136: 24 | F136: 15202 | K136: 0 | L136: 222
A137: 21 | B137: 15298 | C137: 11 | D137: 15308 | E137: 22 | F137: 15314 | K137: 0 | L137: 212
A138: 21 | B138: 15407 | C138: 22 | D138: 15412 | E138: 13 | F138: 15423 | K138: 0 | L138: 221
A139: 12 | B139: 15526 | C139: 24 | D139: 15534 | E139: 13 | F139: 15545 | K139: 0 | L139: 121
A140: 21 | B140: 15646 | C140: 22 | D140: 15650 | E140: 24 | F140: 15654 | K140: 0 | L140: 222
A141: 21 | B141: 15759 | C141: 22 | D141: 15763 | E141: 24 | F141: 15770 | K141: 0 | L141: 222
A142: 12 | B142: 15869 | C142: 24 | D142: 15875 | E142: 24 | F142: 15880 | K142: 0 | L142: 122
A143: 12 | B143: 15980 | C143: 24 | D143: 15988 | E143: 24 | F143: 15991 | K143: 0 | L143: 122
A144: 21 | B144: 16092 | C144: 22 | D144: 16097 | E144: 24 | F144: 16104 | K144: 0 | L144: 222
A145: 12 | B145: 16201 | C145: 24 | D145: 16227 | E145: 24 | F145: 16231 | K145: 0 | L145: 122
A146: 12 | B146: 16334 | C146: 24 | D146: 16342 | E146: 24 | F146: 16346 | K146: 0 | L146: 122
A147: 21 | B147: 16451 | C147: 11 | D147: 16461 | E147: 22 | F147: 16468 | K147: 0 | L147: 212
A148: 21 | B148: 16571 | C148: 22 | D148: 16575 | E148: 24 | F148: 16579 | K148: 0 | L148: 222
A149: 12 | B149: 16677 | C149: 24 | D149: 16684 | E149: 13 | F149: 16691 | K149: 0 | L149: 121
A150: 12 | B150: 16791 | C150: 24 | D150: 16798 | E150: 24 | F150: 16802 | K150: 0 | L150: 122
A151: 12 | B151: 16901 | C151: 24 | D151: 16908 | E151: 24 | F151: 16913 | K151: 0 | L151: 122
A152: 12 | B152: 17010 | C152: 24 | D152: 17017 | E152: 13 | F152: 17028 | K152: 0 | L152: 121
A153: 21 | B153: 17138 | C153: 22 | D153: 17142 | E153: 24 | F153: 17148 | K153: 0 | L153: 222
A154: 21 | B154: 17256 | C154: 22 | D154: 17260 | E154: 24 | F154: 17264 | K154: 0 | L154: 222
A155: 12 | B155: 17362 | C155: 24 | D155: 17369 | E155: 24 | F155: 17374 | K155: 0 | L155: 122
A156: 12 | B156: 17473 | C156: 24 | D156: 17478 | E156: 24 | F156: 17482 | K156: 0 | L156: 122
A157: 12 | B157: 17580 | C157: 24 | D157: 17591 | E157: 24 | F157: 17596 | K157: 0 | L157: 122
A158: 12 | B158: 17703 | C158: 24 | D158: 17710 | E158: 24 | F158: 17717 | K158: 0 | L158: 122
A159: 12 | B159: 17814 | C159: 24 | D159: 17821 | E159: 24 | F159: 17826 | K159: 0 | L159: 122
A160: 12 | B160: 17923 | C160: 24 | D160: 17931 | E160: 24 | F160: 17935 | K160: 0 | L160: 122
A161: 12 | B161: 18032 | C161: 24 | D161: 18040 | E161: 24 | F161: 18043 | K161: 0 | L161: 122
A162: 21 | B162: 18141 | C162: 11 | D162: 18151 | E162: 22 | F162: 18159 | K162: 0 | L162: 212
A163: 12 | B163: 18252 | C163: 24 | D163: 18259 | E163: 24 | F163: 18264 | K163: 0 | L163: 122
A164: 12 | B164: 18361 | C164: 24 | D164: 18368 | E164: 24 | F164: 18373 | K164: 0 | L164: 122
A165: 12 | B165: 18473 | C165: 24 | D165: 18480 | E165: 24 | F165: 18485 | K165: 0 | L165: 122
A166: 12 | B166: 18581 | C166: 24 | D166: 18588 | E166: 24 | F166: 18593 | K166: 0 | L166: 122
A167: 21 | B167: 18697 | C167: 22 | D167: 18701 | E167: 24 | F167: 18707 | K167: 0 | L167: 222
A168: 12 | B168: 18806 | C168: 24 | D168: 18813 | E168: 24 | F168: 18817 | K168: 0 | L168: 122
A169: 12 | B169: 18916 | C169: 24 | D169: 18923 | E169: 24 | F169: 18928 | K169: 0 | L169: 122
A170: 12 | B170: 19026 | C170: 24 | D170: 19033 | E170: 24 | F170: 19038 | K170: 0 | L170: 122
A171: 12 | B171: 19135 | C171: 13 | D171: 19139 | E171: 24 | F171: 19146 | K171: 0 | L171: 112
A172: 12 | B172: 19244 | C172: 24 | D172: 19251 | E172: 24 | F172: 19256 | K172: 0 | L172: 122
A173: 21 | B173: 19348 | C173: 11 | D173: 19358 | E173: 22 | F173: 19365 | K173: 0 | L173: 212
A174: 21 | B174: 19464 | C174: 22 | D174: 19468 | E174: 24 | F174: 19472 | K174: 0 | L174: 222
A175: 12 | B175: 19569 | C175: 24 | D175: 19576 | E175: 24 | F175: 19580 | K175: 0 | L175: 122
A176: 12 | B176: 19677 | C176: 24 | D176: 19684 | E176: 24 | F176: 19688 | K176: 0 | L176: 122
A177: 12 | B177: 19786 | C177: 24 | D177: 19793 | E177: 24 | F177: 19796 | K177: 0 | L177: 122
A178: 12 | B178: 19896 | C178: 24 | D178: 19900 | E178: 24 | F178: 19904 | K178: 0 | L178: 122
A179: 12 | B179: 20002 | C179: 24 | D179: 20010 | E179: 24 | F179: 20013 | K179: 0 | L179: 122
A180: 12 | B180: 20111 | C180: 24 | D180: 20118 | E180: 24 | F180: 20122 | K180: 0 | L180: 122
A181: 21 | B181: 20237 | C181: 22 | D181: 20240 | E181: 24 | F181: 20244 | K181: 0 | L181: 222
A182: 12 | B182: 20342 | C182: 13 | D182: 20349 | E182: 24 | F182: 20357 | K182: 0 | L182: 112
A183: 21 | B183: 20461 | C183: 22 | D183: 20464 | E183: 24 | F183: 20468 | K183: 0 | L183: 222
A184: 12 | B184: 20567 | C184: 24 | D184: 20574 | E184: 24 | F184: 20578 | K184: 0 | L184: 122
A185: 21 | B185: 20682 | C185: 11 | D185: 20692 | E185: 22 | F185: 20700 | K185: 0 | L185: 212
A186: 21 | B186: 20799 | C186: 22 | D186: 20803 | E186: 24 | F186: 20809 | K186: 0 | L186: 222
A187: 12 | B187: 20906 | C187: 13 | D187: 20920 | E187: 24 | F187: 20927 | K187: 0 | L187: 112
A188: 12 | B188: 21030 | C188: 24 | D188: 21038 | E188: 13 | F188: 21047 | K188: 0 | L188: 121
A189: 12 | B189: 21145 | C189: 13 | D189: 21156 | E189: 24 | F189: 21163 | K189: 0 | L189: 112
A190: 12 | B190: 21261 | C190: 24 | D190: 21267 | E190: 24 | F190: 21272 | K190: 0 | L190: 122
A191: 12 | B191: 21370 | C191: 24 | D191: 21377 | E191: 24 | F191: 21381 | K191: 0 | L191: 122
A192: 12 | B192: 21478 | C192: 13 | D192: 21486 | E192: 24 | F192: 21497 | K192: 0 | L192: 112
A193: 12 | B193: 21594 | C193: 24 | D193: 21609 | E193: 24 | F193: 21615 | K193: 0 | L193: 122
A194: 12 | B194: 21711 | C194: 24 | D194: 21718 | E194: 24 | F194: 21727 | K194: 0 | L194: 122
A195: 12 | B195: 21825 | C195: 24 | D195: 21832 | E195: 24 | F195: 21836 | K195: 0 | L195: 122
A196: 12 | B196: 21952 | C196: 24 | D196: 21958 | E196: 24 | F196: 21966 | K196: 0 | L196: 122
A197: 12 | B197: 22064 | C197: 24 | D197: 22072 | E197: 24 | F197: 22077 | K197: 0 | L197: 122
A198: 12 | B198: 22174 | C198: 13 | D198: 22181 | E198: 24 | F198: 22189 | K198: 0 | L198: 112
A199: 12 | B199: 22287 | C199: 24 | D199: 22294 | E199: 24 | F199: 22299 | K199: 0 | L199: 122
A200: 12 | B200: 22396 | C200: 24 | D200: 22404 | E200: 24 | F200: 22410 | K200: 0 | L200: 122
... 14 more rows

Sheet !MC04B20.096
A1: Report for:!MC04B20.096
A2: Date: | B2: <date>
A3: Hen: | B3: <hen> | F3: Correct Sequence | G3: =Start!J2 -> 211 | P3: Total Sequences in Data | Q3: =4994-COUNTBLANK(L7:L5000) -> 210 | V3: Total Sequences in Block Data | W3: =COUNTA(L7:L41) -> 35 | AA3: Total Sequences in Block Data | AB3: =COUNTA(L42:L76) -> 35 | AF3: Total Sequences in Block Data | AG3: =COUNTA(L77:L111) -> 35 | AK3: Total Sequences in Block Data | AL3: =COUNTA(L112:L146) -> 35 | AP3: Total Sequences in Block Data | AQ3: =COUNTA(L147:L181) -> 35 | AU3: Total Sequences in Block Data | AV3: =COUNTA(L182:L216) -> 35
P4: Total Sequences in Summary | Q4: =SUM(O7:O14) -> 209 | V4: Total Sequences in Block Summary | W4: =SUM(U7:U14) -> 35 | AA4: Total Sequences in Block Summary | AB4: =SUM(Z7:Z14) -> 35 | AF4: Total Sequences in Block Summary | AG4: =SUM(AE7:AE14) -> 35 | AK4: Total Sequences in Block Summary | AL4: =SUM(AJ7:AJ14) -> 35 | AP4: Total Sequences in Block Summary | AQ4: =SUM(AO7:AO14) -> 35 | AU4: Total Sequences in Block Summary | AV4: =SUM(AT7:AT14) -> 34
T5: Block 1 | Y5: Block 2 | AD5: Block 3 | AI5: Block 4 | AN5: Block 5 | AS5: Block 6
A6: Sequence Component 1 | B6: Time 1 | C6: Sequence Component 2 | D6: Time 2 | E6: Sequence Component 3 | F6: Time 3 | G6: Sequence Component 4 | H6: Time 4 | I6: Sequence Component 5 | J6: Time 5 | K6: Correct? 0=No 1=Yes | L6: Sequence | N6: Frequency | P6: Relative Frequency | Q6: Variability | T6: Frequency | V6: Relative Frequency | W6: Variability | Y6: Frequency | AA6: Relative Frequency | AB6: Variability | AD6: Frequency | AF6: Relative Frequency | AG6: Variability | AI6: Frequency | AK6: Relative Frequency | AL6: Variability | AN6: Frequency | AP6: Relative Frequency | AQ6: Variability | AS6: Frequency | AU6: Relative Frequency | AV6: Variability
A7: 21 | B7: 41 | C7: 22 | D7: 46 | E7: 24 | F7: 53 | K7: 0 | L7: 222 | N7: 111 | O7: =COUNTIF($L$7:$L$500,N7) -> 8 | P7: =O7/$Q$4 -> 0.03827751196 | Q7: =IF(P7=0,0,(P7*((LOG(P7))/LOG(2)))) -> -0.1801859955 | T7: =N7 -> 111 | U7: =COUNTIF(L7:L41,T7) -> 2 | V7: =U7/(W4-U11) -> 0.05714285714 | W7: =IF(V7=0,0,(V7*((LOG(V7))/LOG(2)))) -> -0.2359590295 | Y7: =N7 -> 111 | Z7: =COUNTIF(L42:L76,Y7) -> 0 | AA7: =Z7/(AB4-Z11) -> 0 | AB7: =IF(AA7=0,0,(AA7*((LOG(AA7))/LOG(2)))) -> 0 | AD7: =N7 -> 111 | AE7: =COUNTIF(L77:L111,AD7) -> 0 | AF7: =AE7/(AG4-AE11) -> 0 | AG7: =IF(AF7=0,0,(AF7*((LOG(AF7))/LOG(2)))) -> 0 | AI7: =N7 -> 111 | AJ7: =COUNTIF(L112:L146,AI7) -> 4 | AK7: =AJ7/(AL4-AJ11) -> 0.1142857143 | AL7: =IF(AK7=0,0,(AK7*((LOG(AK7))/LOG(2)))) -> -0.3576323448 | AN7: =N7 -> 111 | AO7: =COUNTIF(L147:L181,AN7) -> 2 | AP7: =AO7/(AQ4-AO11) -> 0.05714285714 | AQ7: =IF(AP7=0,0,(AP7*((LOG(AP7))/LOG(2)))) -> -0.2359590295 | AS7: =N7 -> 111 | AT7: =COUNTIF(L182:L216,AS7) -> 0 | AU7: =AT7/(AV4-AT11) -> 0 | AV7: =IF(AU7=0,0,(AU7*((LOG(AU7))/LOG(2)))) -> 0
A8: 21 | B8: 161 | C8: 22 | D8: 165 | E8: 24 | F8: 169 | K8: 0 | L8: 222 | N8: 112 | O8: =COUNTIF($L$7:$L$500,N8) -> 53 | P8: =O8/$Q$4 -> 0.2535885167 | Q8: =IF(P8=0,0,(P8*((LOG(P8))/LOG(2)))) -> -0.5019629182 | T8: =N8 -> 112 | U8: =COUNTIF(L7:L41,T8) -> 5 | V8: =U8/(W4-U11) -> 0.1428571429 | W8: =IF(V8=0,0,(V8*((LOG(V8))/LOG(2)))) -> -0.4010507032 | Y8: =N8 -> 112 | Z8: =COUNTIF(L42:L76,Y8) -> 4 | AA8: =Z8/(AB4-Z11) -> 0.1142857143 | AB8: =IF(AA8=0,0,(AA8*((LOG(AA8))/LOG(2)))) -> -0.3576323448 | AD8: =N8 -> 112 | AE8: =COUNTIF(L77:L111,AD8) -> 6 | AF8: =AE8/(AG4-AE11) -> 0.1714285714 | AG8: =IF(AF8=0,0,(AF8*((LOG(AF8))/LOG(2)))) -> -0.4361692314 | AI8: =N8 -> 112 | AJ8: =COUNTIF(L112:L146,AI8) -> 9 | AK8: =AJ8/(AL4-AJ11) -> 0.2571428571 | AL8: =IF(AK8=0,0,(AK8*((LOG(AK8))/LOG(2)))) -> -0.5038349183 | AN8: =N8 -> 112 | AO8: =COUNTIF(L147:L181,AN8) -> 19 | AP8: =AO8/(AQ4-AO11) -> 0.5428571429 | AQ8: =IF(AP8=0,0,(AP8*((LOG(AP8))/LOG(2)))) -> -0.4784501305 | AS8: =N8 -> 112 | AT8: =COUNTIF(L182:L216,AS8) -> 10 | AU8: =AT8/(AV4-AT11) -> 0.2941176471 | AV8: =IF(AU8=0,0,(AU8*((LOG(AU8))/LOG(2)))) -> -0.5192749254
A9: 21 | B9: 273 | C9: 22 | D9: 277 | E9: 24 | F9: 281 | K9: 0 | L9: 222 | N9: 121 | O9: =COUNTIF($L$7:$L$500,N9) -> 15 | P9: =O9/$Q$4 -> 0.07177033493 | Q9: =IF(P9=0,0,(P9*((LOG(P9))/LOG(2)))) -> -0.2727608997 | T9: =N9 -> 121 | U9: =COUNTIF(L7:L41,T9) -> 4 | V9: =U9/(W4-U11) -> 0.1142857143 | W9: =IF(V9=0,0,(V9*((LOG(V9))/LOG(2)))) -> -0.3576323448 | Y9: =N9 -> 121 | Z9: =COUNTIF(L42:L76,Y9) -> 0 | AA9: =Z9/(AB4-Z11) -> 0 | AB9: =IF(AA9=0,0,(AA9*((LOG(AA9))/LOG(2)))) -> 0 | AD9: =N9 -> 121 | AE9: =COUNTIF(L77:L111,AD9) -> 3 | AF9: =AE9/(AG4-AE11) -> 0.08571428571 | AG9: =IF(AF9=0,0,(AF9*((LOG(AF9))/LOG(2)))) -> -0.3037989014 | AI9: =N9 -> 121 | AJ9: =COUNTIF(L112:L146,AI9) -> 4 | AK9: =AJ9/(AL4-AJ11) -> 0.1142857143 | AL9: =IF(AK9=0,0,(AK9*((LOG(AK9))/LOG(2)))) -> -0.3576323448 | AN9: =N9 -> 121 | AO9: =COUNTIF(L147:L181,AN9) -> 0 | AP9: =AO9/(AQ4-AO11) -> 0 | AQ9: =IF(AP9=0,0,(AP9*((LOG(AP9))/LOG(2)))) -> 0 | AS9: =N9 -> 121 | AT9: =COUNTIF(L182:L216,AS9) -> 4 | AU9: =AT9/(AV4-AT11) -> 0.1176470588 | AV9: =IF(AU9=0,0,(AU9*((LOG(AU9))/LOG(2)))) -> -0.3632309225
A10: 12 | B10: 381 | C10: 13 | D10: 385 | E10: 13 | F10: 393 | K10: 0 | L10: 111 | N10: 122 | O10: =COUNTIF($L$7:$L$500,N10) -> 81 | P10: =O10/$Q$4 -> 0.3875598086 | Q10: =IF(P10=0,0,(P10*((LOG(P10))/LOG(2)))) -> -0.5299915764 | T10: =N10 -> 122 | U10: =COUNTIF(L7:L41,T10) -> 12 | V10: =U10/(W4-U11) -> 0.3428571429 | W10: =IF(V10=0,0,(V10*((LOG(V10))/LOG(2)))) -> -0.5294813198 | Y10: =N10 -> 122 | Z10: =COUNTIF(L42:L76,Y10) -> 12 | AA10: =Z10/(AB4-Z11) -> 0.3428571429 | AB10: =IF(AA10=0,0,(AA10*((LOG(AA10))/LOG(2)))) -> -0.5294813198 | AD10: =N10 -> 122 | AE10: =COUNTIF(L77:L111,AD10) -> 20 | AF10: =AE10/(AG4-AE11) -> 0.5714285714 | AG10: =IF(AF10=0,0,(AF10*((LOG(AF10))/LOG(2)))) -> -0.4613456697 | AI10: =N10 -> 122 | AJ10: =COUNTIF(L112:L146,AI10) -> 15 | AK10: =AJ10/(AL4-AJ11) -> 0.4285714286 | AL10: =IF(AK10=0,0,(AK10*((LOG(AK10))/LOG(2)))) -> -0.5238824663 | AN10: =N10 -> 122 | AO10: =COUNTIF(L147:L181,AN10) -> 10 | AP10: =AO10/(AQ4-AO11) -> 0.2857142857 | AQ10: =IF(AP10=0,0,(AP10*((LOG(AP10))/LOG(2)))) -> -0.5163871206 | AS10: =N10 -> 122 | AT10: =COUNTIF(L182:L216,AS10) -> 12 | AU10: =AT10/(AV4-AT11) -> 0.3529411765 | AV10: =IF(AU10=0,0,(AU10*((LOG(AU10))/LOG(2)))) -> -0.5302942378
A11: 21 | B11: 497 | C11: 22 | D11: 502 | E11: 24 | F11: 509 | K11: 0 | L11: 222 | N11: 211 | O11: =COUNTIF($L$7:$L$500,N11) -> 0 | P11: =O11/$Q$4 -> 0 | Q11: =IF(P11=0,0,(P11*((LOG(P11))/LOG(2)))) -> 0 | T11: =N11 -> 211 | U11: =COUNTIF(L7:L41,T11) -> 0 | Y11: =N11 -> 211 | Z11: =COUNTIF(L42:L76,Y11) -> 0 | AD11: =N11 -> 211 | AE11: =COUNTIF(L77:L111,AD11) -> 0 | AI11: =N11 -> 211 | AJ11: =COUNTIF(L112:L146,AI11) -> 0 | AN11: =N11 -> 211 | AO11: =COUNTIF(L147:L181,AN11) -> 0 | AS11: =N11 -> 211 | AT11: =COUNTIF(L182:L216,AS11) -> 0
A12: 12 | B12: 609 | C12: 24 | D12: 616 | E12: 24 | F12: 621 | K12: 0 | L12: 122 | N12: 212 | O12: =COUNTIF($L$7:$L$500,N12) -> 11 | P12: =O12/$Q$4 -> 0.05263157895 | Q12: =IF(P12=0,0,(P12*((LOG(P12))/LOG(2)))) -> -0.2235751323 | T12: =N12 -> 212 | U12: =COUNTIF(L7:L41,T12) -> 2 | V12: =U12/(W4-U11) -> 0.05714285714 | W12: =IF(V12=0,0,(V12*((LOG(V12))/LOG(2)))) -> -0.2359590295 | Y12: =N12 -> 212 | Z12: =COUNTIF(L42:L76,Y12) -> 5 | AA12: =Z12/(AB4-Z11) -> 0.1428571429 | AB12: =IF(AA12=0,0,(AA12*((LOG(AA12))/LOG(2)))) -> -0.4010507032 | AD12: =N12 -> 212 | AE12: =COUNTIF(L77:L111,AD12) -> 2 | AF12: =AE12/(AG4-AE11) -> 0.05714285714 | AG12: =IF(AF12=0,0,(AF12*((LOG(AF12))/LOG(2)))) -> -0.2359590295 | AI12: =N12 -> 212 | AJ12: =COUNTIF(L112:L146,AI12) -> 1 | AK12: =AJ12/(AL4-AJ11) -> 0.02857142857 | AL12: =IF(AK12=0,0,(AK12*((LOG(AK12))/LOG(2)))) -> -0.1465509433 | AN12: =N12 -> 212 | AO12: =COUNTIF(L147:L181,AN12) -> 0 | AP12: =AO12/(AQ4-AO11) -> 0 | AQ12: =IF(AP12=0,0,(AP12*((LOG(AP12))/LOG(2)))) -> 0 | AS12: =N12 -> 212 | AT12: =COUNTIF(L182:L216,AS12) -> 1 | AU12: =AT12/(AV4-AT11) -> 0.02941176471 | AV12: =IF(AU12=0,0,(AU12*((LOG(AU12))/LOG(2)))) -> -0.14963126
A13: 12 | B13: 722 | C13: 24 | D13: 730 | E13: 24 | F13: 734 | K13: 0 | L13: 122 | N13: 221 | O13: =COUNTIF($L$7:$L$500,N13) -> 8 | P13: =O13/$Q$4 -> 0.03827751196 | Q13: =IF(P13=0,0,(P13*((LOG(P13))/LOG(2)))) -> -0.1801859955 | T13: =N13 -> 221 | U13: =COUNTIF(L7:L41,T13) -> 2 | V13: =U13/(W4-U11) -> 0.05714285714 | W13: =IF(V13=0,0,(V13*((LOG(V13))/LOG(2)))) -> -0.2359590295 | Y13: =N13 -> 221 | Z13: =COUNTIF(L42:L76,Y13) -> 2 | AA13: =Z13/(AB4-Z11) -> 0.05714285714 | AB13: =IF(AA13=0,0,(AA13*((LOG(AA13))/LOG(2)))) -> -0.2359590295 | AD13: =N13 -> 221 | AE13: =COUNTIF(L77:L111,AD13) -> 1 | AF13: =AE13/(AG4-AE11) -> 0.02857142857 | AG13: =IF(AF13=0,0,(AF13*((LOG(AF13))/LOG(2)))) -> -0.1465509433 | AI13: =N13 -> 221 | AJ13: =COUNTIF(L112:L146,AI13) -> 1 | AK13: =AJ13/(AL4-AJ11) -> 0.02857142857 | AL13: =IF(AK13=0,0,(AK13*((LOG(AK13))/LOG(2)))) -> -0.1465509433 | AN13: =N13 -> 221 | AO13: =COUNTIF(L147:L181,AN13) -> 2 | AP13: =AO13/(AQ4-AO11) -> 0.05714285714 | AQ13: =IF(AP13=0,0,(AP13*((LOG(AP13))/LOG(2)))) -> -0.2359590295 | AS13: =N13 -> 221 | AT13: =COUNTIF(L182:L216,AS13) -> 0 | AU13: =AT13/(AV4-AT11) -> 0 | AV13: =IF(AU13=0,0,(AU13*((LOG(AU13))/LOG(2)))) -> 0
A14: 12 | B14: 832 | C14: 24 | D14: 840 | E14: 24 | F14: 843 | K14: 0 | L14: 122 | N14: 222 | O14: =COUNTIF($L$7:$L$500,N14) -> 33 | P14: =O14/$Q$4 -> 0.1578947368 | Q14: =IF(P14=0,0,(P14*((LOG(P14))/LOG(2)))) -> -0.4204681599 | T14: =N14 -> 222 | U14: =COUNTIF(L7:L41,T14) -> 8 | V14: =U14/(W4-U11) -> 0.2285714286 | W14: =IF(V14=0,0,(V14*((LOG(V14))/LOG(2)))) -> -0.486693261 | Y14: =N14 -> 222 | Z14: =COUNTIF(L42:L76,Y14) -> 12 | AA14: =Z14/(AB4-Z11) -> 0.3428571429 | AB14: =IF(AA14=0,0,(AA14*((LOG(AA14))/LOG(2)))) -> -0.5294813198 | AD14: =N14 -> 222 | AE14: =COUNTIF(L77:L111,AD14) -> 3 | AF14: =AE14/(AG4-AE11) -> 0.08571428571 | AG14: =IF(AF14=0,0,(AF14*((LOG(AF14))/LOG(2)))) -> -0.3037989014 | AI14: =N14 -> 222 | AJ14: =COUNTIF(L112:L146,AI14) -> 1 | AK14: =AJ14/(AL4-AJ11) -> 0.02857142857 | AL14: =IF(AK14=0,0,(AK14*((LOG(AK14))/LOG(2)))) -> -0.1465509433 | AN14: =N14 -> 222 | AO14: =COUNTIF(L147:L181,AN14) -> 2 | AP14: =AO14/(AQ4-AO11) -> 0.05714285714 | AQ14: =IF(AP14=0,0,(AP14*((LOG(AP14))/LOG(2)))) -> -0.2359590295 | AS14: =N14 -> 222 | AT14: =COUNTIF(L182:L216,AS14) -> 7 | AU14: =AT14/(AV4-AT11) -> 0.2058823529 | AV14: =IF(AU14=0,0,(AU14*((LOG(AU14))/LOG(2)))) -> -0.4694339834
A15: 12 | B15: 943 | C15: 24 | D15: 950 | E15: 24 | F15: 954 | K15: 0 | L15: 122 | P15: =SUM(P7:P14) -> 1 | Q15: =-SUM(Q7:Q14) -> 2.309130678 | V15: =SUM(V7:V14) -> 1 | W15: =-SUM(W7:W14) -> 2.482734717 | AA15: =SUM(AA7:AA14) -> 1 | AB15: =-SUM(AB7:AB14) -> 2.053604717 | AF15: =SUM(AF7:AF14) -> 1 | AG15: =-SUM(AG7:AG14) -> 1.887622677 | AK15: =SUM(AK7:AK14) -> 1 | AL15: =-SUM(AL7:AL14) -> 2.182634904 | AP15: =SUM(AP7:AP14) -> 1 | AQ15: =-SUM(AQ7:AQ14) -> 1.70271434 | AU15: =SUM(AU7:AU14) -> 1 | AV15: =-SUM(AV7:AV14) -> 2.031865329
A16: 12 | B16: 1057 | C16: 13 | D16: 1064 | E16: 24 | F16: 1072 | K16: 0 | L16: 112 | P16: U= | Q16: =Q15/(LOG(Q4)/LOG(2)) -> 0.2996007631 | V16: U1= | W16: =W15/(LOG(W4)/LOG(2)) -> 0.4840315321 | AA16: U2= | AB16: =AB15/(LOG(AB4)/LOG(2)) -> 0.400368767 | AF16: U3= | AG16: =AG15/(LOG(AG4)/LOG(2)) -> 0.3680090708 | AK16: U4= | AL16: =AL15/(LOG(AL4)/LOG(2)) -> 0.4255243661 | AP16: U5= | AQ16: =AQ15/(LOG(AQ4)/LOG(2)) -> 0.3319595222 | AU16: U6= | AV16: =AV15/(LOG(AV4)/LOG(2)) -> 0.3993867656
A17: 12 | B17: 1168 | C17: 24 | D17: 1177 | E17: 24 | F17: 1186 | K17: 0 | L17: 122
A18: 12 | B18: 1297 | C18: 13 | D18: 1308 | E18: 24 | F18: 1319 | K18: 0 | L18: 112
A19: 12 | B19: 1418 | C19: 24 | D19: 1423 | E19: 24 | F19: 1428 | K19: 0 | L19: 122 | N19: Total Target Seq
A20: 21 | B20: 1534 | C20: 22 | D20: 1541 | E20: 24 | F20: 1550 | K20: 0 | L20: 222 | N20: =COUNTIF(L7:L216,G3) -> 0 | P20: 35 | Q20: 35 | R20: 35 | S20: 35 | T20: 35 | U20: 35
A21: 12 | B21: 1659 | C21: 24 | D21: 1666 | E21: 24 | F21: 1688 | K21: 0 | L21: 122 | P21: % of reinforcement given in 6 equal intervals based on number of trials
A22: 12 | B22: 1787 | C22: 24 | D22: 1795 | E22: 13 | F22: 1803 | K22: 0 | L22: 121 | P22: %_1 | Q22: %_2 | R22: %_3 | S22: %_4 | T22: %_5 | U22: %_6
A23: 21 | B23: 1903 | C23: 22 | D23: 1919 | E23: 24 | F23: 1925 | K23: 0 | L23: 222 | O23: target sequence | P23: =$G$3 -> 211 | Q23: =$G$3 -> 211 | R23: =$G$3 -> 211 | S23: =$G$3 -> 211 | T23: =$G$3 -> 211 | U23: =$G$3 -> 211
A24: 12 | B24: 2042 | C24: 24 | D24: 2052 | E24: 24 | F24: 2057 | K24: 0 | L24: 122 | O24: total reinforcement | P24: =U11 -> 0 | Q24: =Z11 -> 0 | R24: =AE11 -> 0 | S24: =AJ11 -> 0 | T24: =AO11 -> 0 | U24: =AT11 -> 0
A25: 12 | B25: 2156 | C25: 24 | D25: 2164 | E25: 24 | F25: 2171 | K25: 0 | L25: 122 | O25: % target
A26: 12 | B26: 2281 | C26: 13 | D26: 2292 | E26: 13 | F26: 2312 | K26: 0 | L26: 111 | O26: CCRF
A27: 12 | B27: 2425 | C27: 24 | D27: 2432 | E27: 24 | F27: 2439 | K27: 0 | L27: 122 | O27: % CCRf
A28: 12 | B28: 2549 | C28: 24 | D28: 2556 | E28: 24 | F28: 2563 | K28: 0 | L28: 122 | O28: average response rate | P28: =F41/P20 -> 117.1714286 | Q28: =(F76-F41)/Q20 -> 113.9142857 | R28: =(F111-F76)/R20 -> 112.4571429 | S28: =(F146-F111)/S20 -> 112.2285714 | T28: =(F181-F146)/T20 -> 113.0857143 | U28: =(F216-F181)/U20 -> -568.8571429
A29: 12 | B29: 2672 | C29: 24 | D29: 2677 | E29: 24 | F29: 2681 | K29: 0 | L29: 122
A30: 12 | B30: 2787 | C30: 24 | D30: 2793 | E30: 13 | F30: 2806 | K30: 0 | L30: 121
A31: 21 | B31: 2902 | C31: 22 | D31: 2918 | E31: 13 | F31: 2925 | K31: 0 | L31: 221
A32: 12 | B32: 3041 | C32: 24 | D32: 3048 | E32: 13 | F32: 3057 | K32: 0 | L32: 121
A33: 12 | B33: 3168 | C33: 24 | D33: 3176 | E33: 13 | F33: 3185 | K33: 0 | L33: 121
A34: 12 | B34: 3283 | C34: 13 | D34: 3295 | E34: 24 | F34: 3302 | K34: 0 | L34: 112
A35: 21 | B35: 3401 | C35: 11 | D35: 3410 | E35: 22 | F35: 3417 | K35: 0 | L35: 212
A36: 21 | B36: 3517 | C36: 22 | D36: 3521 | E36: 24 | F36: 3525 | K36: 0 | L36: 222
A37: 12 | B37: 3628 | C37: 13 | D37: 3637 | E37: 24 | F37: 3644 | K37: 0 | L37: 112
A38: 21 | B38: 3748 | C38: 22 | D38: 3752 | E38: 24 | F38: 3756 | K38: 0 | L38: 222
A39: 21 | B39: 3855 | C39: 11 | D39: 3863 | E39: 22 | F39: 3870 | K39: 0 | L39: 212
A40: 21 | B40: 3962 | C40: 22 | D40: 3966 | E40: 13 | F40: 3976 | K40: 0 | L40: 221
A41: 12 | B41: 4076 | C41: 13 | D41: 4087 | E41: 24 | F41: 4101 | K41: 0 | L41: 112
A42: 21 | B42: 4197 | C42: 22 | D42: 4202 | E42: 24 | F42: 4206 | K42: 0 | L42: 222
A43: 21 | B43: 4306 | C43: 22 | D43: 4310 | E43: 24 | F43: 4315 | K43: 0 | L43: 222
A44: 21 | B44: 4414 | C44: 22 | D44: 4418 | E44: 13 | F44: 4440 | K44: 0 | L44: 221
A45: 12 | B45: 4539 | C45: 24 | D45: 4546 | E45: 24 | F45: 4551 | K45: 0 | L45: 122
A46: 21 | B46: 4662 | C46: 22 | D46: 4667 | E46: 24 | F46: 4674 | K46: 0 | L46: 222
A47: 21 | B47: 4776 | C47: 22 | D47: 4780 | E47: 13 | F47: 4788 | K47: 0 | L47: 221
A48: 12 | B48: 4888 | C48: 24 | D48: 4896 | E48: 24 | F48: 4914 | K48: 0 | L48: 122
A49: 21 | B49: 5015 | C49: 11 | D49: 5025 | E49: 22 | F49: 5031 | K49: 0 | L49: 212
A50: 21 | B50: 5134 | C50: 22 | D50: 5151 | E50: 24 | F50: 5159 | K50: 0 | L50: 222
A51: 12 | B51: 5258 | C51: 24 | D51: 5265 | E51: 24 | F51: 5270 | K51: 0 | L51: 122
A52: 21 | B52: 5370 | C52: 22 | D52: 5374 | E52: 24 | F52: 5378 | K52: 0 | L52: 222
A53: 21 | B53: 5487 | C53: 11 | D53: 5497 | E53: 22 | F53: 5503 | K53: 0 | L53: 212
A54: 21 | B54: 5602 | C54: 22 | D54: 5607 | E54: 24 | F54: 5610 | K54: 0 | L54: 222
A55: 21 | B55: 5706 | C55: 11 | D55: 5715 | E55: 22 | F55: 5723 | K55: 0 | L55: 212
A56: 21 | B56: 5820 | C56: 11 | D56: 5830 | E56: 22 | F56: 5837 | K56: 0 | L56: 212
A57: 21 | B57: 5934 | C57: 22 | D57: 5939 | E57: 24 | F57: 5946 | K57: 0 | L57: 222
A58: 21 | B58: 6050 | C58: 22 | D58: 6058 | E58: 24 | F58: 6065 | K58: 0 | L58: 222
A59: 21 | B59: 6161 | C59: 22 | D59: 6166 | E59: 24 | F59: 6170 | K59: 0 | L59: 222
A60: 12 | B60: 6268 | C60: 13 | D60: 6279 | E60: 24 | F60: 6285 | K60: 0 | L60: 112
A61: 12 | B61: 6384 | C61: 24 | D61: 6391 | E61: 24 | F61: 6396 | K61: 0 | L61: 122
A62: 12 | B62: 6494 | C62: 24 | D62: 6501 | E62: 24 | F62: 6506 | K62: 0 | L62: 122
A63: 12 | B63: 6606 | C63: 24 | D63: 6615 | E63: 24 | F63: 6619 | K63: 0 | L63: 122
A64: 12 | B64: 6719 | C64: 24 | D64: 6727 | E64: 24 | F64: 6731 | K64: 0 | L64: 122
A65: 12 | B65: 6829 | C65: 24 | D65: 6836 | E65: 24 | F65: 6841 | K65: 0 | L65: 122
A66: 12 | B66: 6938 | C66: 24 | D66: 6946 | E66: 24 | F66: 6950 | K66: 0 | L66: 122
A67: 12 | B67: 7047 | C67: 13 | D67: 7058 | E67: 24 | F67: 7065 | K67: 0 | L67: 112
A68: 21 | B68: 7162 | C68: 11 | D68: 7172 | E68: 22 | F68: 7179 | K68: 0 | L68: 212
A69: 21 | B69: 7281 | C69: 22 | D69: 7288 | E69: 24 | F69: 7295 | K69: 0 | L69: 222
A70: 12 | B70: 7392 | C70: 24 | D70: 7399 | E70: 24 | F70: 7403 | K70: 0 | L70: 122
A71: 12 | B71: 7501 | C71: 13 | D71: 7513 | E71: 24 | F71: 7520 | K71: 0 | L71: 112
A72: 21 | B72: 7640 | C72: 22 | D72: 7645 | E72: 24 | F72: 7652 | K72: 0 | L72: 222
A73: 21 | B73: 7747 | C73: 22 | D73: 7751 | E73: 24 | F73: 7755 | K73: 0 | L73: 222
A74: 12 | B74: 7852 | C74: 24 | D74: 7861 | E74: 24 | F74: 7865 | K74: 0 | L74: 122
A75: 12 | B75: 7963 | C75: 24 | D75: 7970 | E75: 24 | F75: 7975 | K75: 0 | L75: 122
A76: 12 | B76: 8071 | C76: 13 | D76: 8080 | E76: 24 | F76: 8088 | K76: 0 | L76: 112
A77: 12 | B77: 8185 | C77: 24 | D77: 8193 | E77: 24 | F77: 8197 | K77: 0 | L77: 122
A78: 12 | B78: 8293 | C78: 13 | D78: 8301 | E78: 24 | F78: 8317 | K78: 0 | L78: 112
A79: 12 | B79: 8416 | C79: 13 | D79: 8424 | E79: 24 | F79: 8431 | K79: 0 | L79: 112
A80: 21 | B80: 8535 | C80: 22 | D80: 8539 | E80: 24 | F80: 8545 | K80: 0 | L80: 222
A81: 12 | B81: 8645 | C81: 24 | D81: 8653 | E81: 13 | F81: 8662 | K81: 0 | L81: 121
A82: 21 | B82: 8761 | C82: 11 | D82: 8769 | E82: 22 | F82: 8776 | K82: 0 | L82: 212
A83: 21 | B83: 8876 | C83: 22 | D83: 8880 | E83: 24 | F83: 8884 | K83: 0 | L83: 222
A84: 12 | B84: 8986 | C84: 24 | D84: 8994 | E84: 24 | F84: 9003 | K84: 0 | L84: 122
A85: 12 | B85: 9102 | C85: 13 | D85: 9111 | E85: 24 | F85: 9118 | K85: 0 | L85: 112
A86: 12 | B86: 9216 | C86: 24 | D86: 9224 | E86: 24 | F86: 9229 | K86: 0 | L86: 122
A87: 12 | B87: 9327 | C87: 24 | D87: 9334 | E87: 24 | F87: 9338 | K87: 0 | L87: 122
A88: 21 | B88: 9433 | C88: 22 | D88: 9438 | E88: 24 | F88: 9443 | K88: 0 | L88: 222
A89: 12 | B89: 9540 | C89: 24 | D89: 9547 | E89: 24 | F89: 9551 | K89: 0 | L89: 122
A90: 12 | B90: 9650 | C90: 24 | D90: 9657 | E90: 24 | F90: 9662 | K90: 0 | L90: 122
A91: 12 | B91: 9766 | C91: 24 | D91: 9774 | E91: 24 | F91: 9779 | K91: 0 | L91: 122
A92: 12 | B92: 9876 | C92: 13 | D92: 9884 | E92: 24 | F92: 9891 | K92: 0 | L92: 112
A93: 12 | B93: 9987 | C93: 24 | D93: 9995 | E93: 24 | F93: 10011 | K93: 0 | L93: 122
A94: 21 | B94: 10108 | C94: 22 | D94: 10112 | E94: 13 | F94: 10119 | K94: 0 | L94: 221
A95: 12 | B95: 10217 | C95: 24 | D95: 10224 | E95: 24 | F95: 10228 | K95: 0 | L95: 122
A96: 12 | B96: 10325 | C96: 24 | D96: 10332 | E96: 24 | F96: 10337 | K96: 0 | L96: 122
A97: 12 | B97: 10443 | C97: 24 | D97: 10449 | E97: 24 | F97: 10456 | K97: 0 | L97: 122
A98: 12 | B98: 10552 | C98: 24 | D98: 10560 | E98: 24 | F98: 10564 | K98: 0 | L98: 122
A99: 12 | B99: 10662 | C99: 24 | D99: 10669 | E99: 24 | F99: 10673 | K99: 0 | L99: 122
A100: 12 | B100: 10770 | C100: 24 | D100: 10777 | E100: 24 | F100: 10781 | K100: 0 | L100: 122
A101: 12 | B101: 10874 | C101: 24 | D101: 10882 | E101: 24 | F101: 10887 | K101: 0 | L101: 122
A102: 12 | B102: 10983 | C102: 24 | D102: 10991 | E102: 24 | F102: 11003 | K102: 0 | L102: 122
A103: 12 | B103: 11099 | C103: 24 | D103: 11107 | E103: 24 | F103: 11111 | K103: 0 | L103: 122
A104: 12 | B104: 11208 | C104: 24 | D104: 11215 | E104: 13 | F104: 11223 | K104: 0 | L104: 121
A105: 12 | B105: 11319 | C105: 13 | D105: 11327 | E105: 24 | F105: 11334 | K105: 0 | L105: 112
A106: 12 | B106: 11431 | C106: 24 | D106: 11439 | E106: 24 | F106: 11443 | K106: 0 | L106: 122
A107: 12 | B107: 11540 | C107: 13 | D107: 11548 | E107: 24 | F107: 11555 | K107: 0 | L107: 112
A108: 12 | B108: 11647 | C108: 24 | D108: 11654 | E108: 24 | F108: 11659 | K108: 0 | L108: 122
A109: 21 | B109: 11773 | C109: 11 | D109: 11781 | E109: 22 | F109: 11790 | K109: 0 | L109: 212
A110: 12 | B110: 11898 | C110: 24 | D110: 11905 | E110: 24 | F110: 11911 | K110: 0 | L110: 122
A111: 12 | B111: 12007 | C111: 24 | D111: 12015 | E111: 13 | F111: 12024 | K111: 0 | L111: 121
A112: 21 | B112: 12122 | C112: 11 | D112: 12129 | E112: 22 | F112: 12136 | K112: 0 | L112: 212
A113: 21 | B113: 12238 | C113: 22 | D113: 12242 | E113: 13 | F113: 12252 | K113: 0 | L113: 221
A114: 12 | B114: 12349 | C114: 24 | D114: 12356 | E114: 24 | F114: 12362 | K114: 0 | L114: 122
A115: 12 | B115: 12459 | C115: 24 | D115: 12466 | E115: 24 | F115: 12470 | K115: 0 | L115: 122
A116: 12 | B116: 12566 | C116: 13 | D116: 12573 | E116: 24 | F116: 12581 | K116: 0 | L116: 112
A117: 12 | B117: 12677 | C117: 13 | D117: 12684 | E117: 24 | F117: 12691 | K117: 0 | L117: 112
A118: 12 | B118: 12789 | C118: 24 | D118: 12796 | E118: 24 | F118: 12800 | K118: 0 | L118: 122
A119: 12 | B119: 12897 | C119: 13 | D119: 12901 | E119: 13 | F119: 12913 | K119: 0 | L119: 111
A120: 12 | B120: 13009 | C120: 24 | D120: 13017 | E120: 24 | F120: 13021 | K120: 0 | L120: 122
A121: 12 | B121: 13117 | C121: 24 | D121: 13124 | E121: 13 | F121: 13134 | K121: 0 | L121: 121
A122: 12 | B122: 13231 | C122: 24 | D122: 13239 | E122: 24 | F122: 13243 | K122: 0 | L122: 122
A123: 12 | B123: 13340 | C123: 13 | D123: 13350 | E123: 24 | F123: 13357 | K123: 0 | L123: 112
A124: 12 | B124: 13453 | C124: 13 | D124: 13457 | E124: 24 | F124: 13464 | K124: 0 | L124: 112
A125: 12 | B125: 13561 | C125: 13 | D125: 13569 | E125: 24 | F125: 13576 | K125: 0 | L125: 112
A126: 12 | B126: 13668 | C126: 24 | D126: 13676 | E126: 24 | F126: 13681 | K126: 0 | L126: 122
A127: 12 | B127: 13777 | C127: 24 | D127: 13785 | E127: 24 | F127: 13789 | K127: 0 | L127: 122
A128: 12 | B128: 13885 | C128: 24 | D128: 13894 | E128: 24 | F128: 13898 | K128: 0 | L128: 122
A129: 12 | B129: 13995 | C129: 24 | D129: 14003 | E129: 24 | F129: 14007 | K129: 0 | L129: 122
A130: 12 | B130: 14104 | C130: 13 | D130: 14118 | E130: 24 | F130: 14127 | K130: 0 | L130: 112
A131: 12 | B131: 14222 | C131: 24 | D131: 14230 | E131: 13 | F131: 14241 | K131: 0 | L131: 121
A132: 12 | B132: 14339 | C132: 24 | D132: 14347 | E132: 24 | F132: 14351 | K132: 0 | L132: 122
A133: 12 | B133: 14459 | C133: 24 | D133: 14466 | E133: 24 | F133: 14473 | K133: 0 | L133: 122
A134: 12 | B134: 14570 | C134: 24 | D134: 14579 | E134: 24 | F134: 14585 | K134: 0 | L134: 122
A135: 12 | B135: 14696 | C135: 24 | D135: 14706 | E135: 13 | F135: 14714 | K135: 0 | L135: 121
A136: 12 | B136: 14816 | C136: 13 | D136: 14823 | E136: 24 | F136: 14831 | K136: 0 | L136: 112
A137: 12 | B137: 14923 | C137: 24 | D137: 14931 | E137: 13 | F137: 14940 | K137: 0 | L137: 121
A138: 12 | B138: 15037 | C138: 13 | D138: 15045 | E138: 24 | F138: 15051 | K138: 0 | L138: 112
A139: 12 | B139: 15148 | C139: 24 | D139: 15156 | E139: 24 | F139: 15160 | K139: 0 | L139: 122
A140: 12 | B140: 15256 | C140: 13 | D140: 15260 | E140: 13 | F140: 15268 | K140: 0 | L140: 111
A141: 21 | B141: 15372 | C141: 22 | D141: 15376 | E141: 24 | F141: 15382 | K141: 0 | L141: 222
A142: 12 | B142: 15485 | C142: 13 | D142: 15498 | E142: 24 | F142: 15511 | K142: 0 | L142: 112
A143: 12 | B143: 15608 | C143: 13 | D143: 15612 | E143: 13 | F143: 15626 | K143: 0 | L143: 111
A144: 12 | B144: 15719 | C144: 24 | D144: 15726 | E144: 24 | F144: 15730 | K144: 0 | L144: 122
A145: 12 | B145: 15825 | C145: 13 | D145: 15829 | E145: 13 | F145: 15837 | K145: 0 | L145: 111
A146: 12 | B146: 15934 | C146: 24 | D146: 15946 | E146: 24 | F146: 15952 | K146: 0 | L146: 122
A147: 12 | B147: 16056 | C147: 24 | D147: 16063 | E147: 24 | F147: 16068 | K147: 0 | L147: 122
A148: 12 | B148: 16164 | C148: 13 | D148: 16171 | E148: 24 | F148: 16178 | K148: 0 | L148: 112
A149: 12 | B149: 16276 | C149: 13 | D149: 16284 | E149: 24 | F149: 16291 | K149: 0 | L149: 112
A150: 12 | B150: 16387 | C150: 13 | D150: 16391 | E150: 13 | F150: 16396 | K150: 0 | L150: 111
A151: 12 | B151: 16493 | C151: 13 | D151: 16501 | E151: 24 | F151: 16508 | K151: 0 | L151: 112
A152: 12 | B152: 16604 | C152: 13 | D152: 16608 | E152: 24 | F152: 16616 | K152: 0 | L152: 112
A153: 12 | B153: 16713 | C153: 24 | D153: 16720 | E153: 24 | F153: 16724 | K153: 0 | L153: 122
A154: 12 | B154: 16818 | C154: 13 | D154: 16830 | E154: 24 | F154: 16840 | K154: 0 | L154: 112
A155: 21 | B155: 16942 | C155: 22 | D155: 16946 | E155: 13 | F155: 16954 | K155: 0 | L155: 221
A156: 12 | B156: 17050 | C156: 13 | D156: 17067 | E156: 24 | F156: 17074 | K156: 0 | L156: 112
A157: 12 | B157: 17180 | C157: 24 | D157: 17187 | E157: 24 | F157: 17195 | K157: 0 | L157: 122
A158: 12 | B158: 17292 | C158: 13 | D158: 17302 | E158: 24 | F158: 17310 | K158: 0 | L158: 112
A159: 12 | B159: 17407 | C159: 24 | D159: 17415 | E159: 24 | F159: 17419 | K159: 0 | L159: 122
A160: 12 | B160: 17521 | C160: 13 | D160: 17528 | E160: 24 | F160: 17535 | K160: 0 | L160: 112
A161: 12 | B161: 17635 | C161: 24 | D161: 17643 | E161: 24 | F161: 17647 | K161: 0 | L161: 122
A162: 21 | B162: 17743 | C162: 22 | D162: 17757 | E162: 24 | F162: 17763 | K162: 0 | L162: 222
A163: 12 | B163: 17861 | C163: 13 | D163: 17868 | E163: 24 | F163: 17875 | K163: 0 | L163: 112
A164: 12 | B164: 17972 | C164: 13 | D164: 17980 | E164: 24 | F164: 17987 | K164: 0 | L164: 112
A165: 12 | B165: 18083 | C165: 13 | D165: 18097 | E165: 24 | F165: 18104 | K165: 0 | L165: 112
A166: 12 | B166: 18201 | C166: 13 | D166: 18209 | E166: 24 | F166: 18217 | K166: 0 | L166: 112
A167: 12 | B167: 18309 | C167: 24 | D167: 18317 | E167: 24 | F167: 18322 | K167: 0 | L167: 122
A168: 12 | B168: 18419 | C168: 13 | D168: 18424 | E168: 24 | F168: 18437 | K168: 0 | L168: 112
A169: 12 | B169: 18542 | C169: 24 | D169: 18549 | E169: 24 | F169: 18556 | K169: 0 | L169: 122
A170: 21 | B170: 18657 | C170: 22 | D170: 18661 | E170: 24 | F170: 18664 | K170: 0 | L170: 222
A171: 12 | B171: 18761 | C171: 13 | D171: 18765 | E171: 13 | F171: 18771 | K171: 0 | L171: 111
A172: 12 | B172: 18868 | C172: 24 | D172: 18876 | E172: 24 | F172: 18880 | K172: 0 | L172: 122
A173: 12 | B173: 18977 | C173: 13 | D173: 18985 | E173: 24 | F173: 18992 | K173: 0 | L173: 112
A174: 21 | B174: 19094 | C174: 22 | D174: 19099 | E174: 13 | F174: 19108 | K174: 0 | L174: 221
A175: 12 | B175: 19206 | C175: 13 | D175: 19213 | E175: 24 | F175: 19221 | K175: 0 | L175: 112
A176: 12 | B176: 19318 | C176: 13 | D176: 19328 | E176: 24 | F176: 19335 | K176: 0 | L176: 112
A177: 12 | B177: 19435 | C177: 13 | D177: 19441 | E177: 24 | F177: 19449 | K177: 0 | L177: 112
A178: 12 | B178: 19556 | C178: 24 | D178: 19563 | E178: 24 | F178: 19569 | K178: 0 | L178: 122
A179: 12 | B179: 19668 | C179: 24 | D179: 19675 | E179: 24 | F179: 19679 | K179: 0 | L179: 122
A180: 12 | B180: 19785 | C180: 13 | D180: 19789 | E180: 24 | F180: 19801 | K180: 0 | L180: 112
A181: 12 | B181: 19898 | C181: 13 | D181: 19902 | E181: 24 | F181: 19910 | K181: 0 | L181: 112
A182: 12 | B182: 20005 | C182: 13 | D182: 20010 | E182: 24 | F182: 20018 | K182: 0 | L182: 112
A183: 12 | B183: 20115 | C183: 24 | D183: 20122 | E183: 24 | F183: 20127 | K183: 0 | L183: 122
A184: 12 | B184: 20223 | C184: 24 | D184: 20232 | E184: 24 | F184: 20236 | K184: 0 | L184: 122
A185: 12 | B185: 20334 | C185: 24 | D185: 20352 | E185: 13 | F185: 20362 | K185: 0 | L185: 121
A186: 12 | B186: 20459 | C186: 24 | D186: 20471 | E186: 24 | F186: 20476 | K186: 0 | L186: 122
A187: 12 | B187: 20571 | C187: 13 | D187: 20587 | E187: 24 | F187: 20594 | K187: 0 | L187: 112
A188: 12 | B188: 20692 | C188: 24 | D188: 20703 | E188: 13 | F188: 20711 | K188: 0 | L188: 121
A189: 12 | B189: 20808 | C189: 13 | D189: 20819 | E189: 24 | F189: 20827 | K189: 0 | L189: 112
A190: 12 | B190: 20924 | C190: 13 | D190: 20928 | E190: 24 | F190: 20935 | K190: 0 | L190: 112
A191: 12 | B191: 21032 | C191: 24 | D191: 21042 | E191: 24 | F191: 21046 | K191: 0 | L191: 122
A192: 12 | B192: 21144 | C192: 24 | D192: 21151 | E192: 24 | F192: 21159 | K192: 0 | L192: 122
A193: 12 | B193: 21258 | C193: 24 | D193: 21268 | E193: 24 | F193: 21273 | K193: 0 | L193: 122
A194: 12 | B194: 21370 | C194: 13 | D194: 21374 | E194: 24 | F194: 21382 | K194: 0 | L194: 112
A195: 12 | B195: 21480 | C195: 13 | D195: 21489 | E195: 24 | F195: 21497 | K195: 0 | L195: 112
A196: 12 | B196: 21599 | C196: 13 | D196: 21608 | E196: 24 | F196: 21615 | K196: 0 | L196: 112
A197: 12 | B197: 21723 | C197: 24 | D197: 21730 | E197: 24 | F197: 21741 | K197: 0 | L197: 122
A198: 12 | B198: 21848 | C198: 24 | D198: 21856 | E198: 24 | F198: 21862 | K198: 0 | L198: 122
A199: 21 | B199: 21962 | C199: 22 | D199: 21978 | E199: 24 | F199: 21984 | K199: 0 | L199: 222
A200: 21 | B200: 22101 | C200: 11 | D200: 22115 | E200: 22 | F200: 22128 | K200: 0 | L200: 212
... 16 more rows

Sheet !MC05950.096
A1: Report for:!MC05950.096
A2: Date: | B2: <date>
A3: Hen: | B3: <hen> | F3: Correct Sequence | G3: =Start!J2 -> 211 | P3: Total Sequences in Data | Q3: =4994-COUNTBLANK(L7:L5000) -> 208 | V3: Total Sequences in Block Data | W3: =COUNTA(L7:L41) -> 35 | AA3: Total Sequences in Block Data | AB3: =COUNTA(L42:L75) -> 34 | AF3: Total Sequences in Block Data | AG3: =COUNTA(L76:L110) -> 35 | AK3: Total Sequences in Block Data | AL3: =COUNTA(L111:L145) -> 35 | AP3: Total Sequences in Block Data | AQ3: =COUNTA(L146:L179) -> 34 | AU3: Total Sequences in Block Data | AV3: =COUNTA(L180:L214) -> 35
P4: Total Sequences in Summary | Q4: =SUM(O7:O14) -> 207 | V4: Total Sequences in Block Summary | W4: =SUM(U7:U14) -> 35 | AA4: Total Sequences in Block Summary | AB4: =SUM(Z7:Z14) -> 34 | AF4: Total Sequences in Block Summary | AG4: =SUM(AE7:AE14) -> 35 | AK4: Total Sequences in Block Summary | AL4: =SUM(AJ7:AJ14) -> 35 | AP4: Total Sequences in Block Summary | AQ4: =SUM(AO7:AO14) -> 34 | AU4: Total Sequences in Block Summary | AV4: =SUM(AT7:AT14) -> 34
T5: Block 1 | Y5: Block 2 | AD5: Block 3 | AI5: Block 4 | AN5: Block 5 | AS5: Block 6
A6: Sequence Component 1 | B6: Time 1 | C6: Sequence Component 2 | D6: Time 2 | E6: Sequence Component 3 | F6: Time 3 | G6: Sequence Component 4 | H6: Time 4 | I6: Sequence Component 5 | J6: Time 5 | K6: Correct? 0=No 1=Yes | L6: Sequence | N6: Frequency | P6: Relative Frequency | Q6: Variability | T6: Frequency | V6: Relative Frequency | W6: Variability | Y6: Frequency | AA6: Relative Frequency | AB6: Variability | AD6: Frequency | AF6: Relative Frequency | AG6: Variability | AI6: Frequency | AK6: Relative Frequency | AL6: Variability | AN6: Frequency | AP6: Relative Frequency | AQ6: Variability | AS6: Frequency | AU6: Relative Frequency | AV6: Variability
A7: 21 | B7: 11 | C7: 22 | D7: 15 | E7: 24 | F7: 20 | K7: 0 | L7: 222 | N7: 111 | O7: =COUNTIF($L$7:$L$500,N7) -> 19 | P7: =O7/$Q$4 -> 0.09178743961 | Q7: =IF(P7=0,0,(P7*((LOG(P7))/LOG(2)))) -> -0.3162590794 | T7: =N7 -> 111 | U7: =COUNTIF(L7:L41,T7) -> 6 | V7: =U7/(W4-U11) -> 0.1714285714 | W7: =IF(V7=0,0,(V7*((LOG(V7))/LOG(2)))) -> -0.4361692314 | Y7: =N7 -> 111 | Z7: =COUNTIF(L42:L75,Y7) -> 2 | AA7: =Z7/(AB4-Z11) -> 0.05882352941 | AB7: =IF(AA7=0,0,(AA7*((LOG(AA7))/LOG(2)))) -> -0.2404389907 | AD7: =N7 -> 111 | AE7: =COUNTIF(L76:L110,AD7) -> 1 | AF7: =AE7/(AG4-AE11) -> 0.02857142857 | AG7: =IF(AF7=0,0,(AF7*((LOG(AF7))/LOG(2)))) -> -0.1465509433 | AI7: =N7 -> 111 | AJ7: =COUNTIF(L111:L145,AI7) -> 2 | AK7: =AJ7/(AL4-AJ11) -> 0.05714285714 | AL7: =IF(AK7=0,0,(AK7*((LOG(AK7))/LOG(2)))) -> -0.2359590295 | AN7: =N7 -> 111 | AO7: =COUNTIF(L146:L179,AN7) -> 4 | AP7: =AO7/(AQ4-AO11) -> 0.1176470588 | AQ7: =IF(AP7=0,0,(AP7*((LOG(AP7))/LOG(2)))) -> -0.3632309225 | AS7: =N7 -> 111 | AT7: =COUNTIF(L180:L214,AS7) -> 4 | AU7: =AT7/(AV4-AT11) -> 0.1176470588 | AV7: =IF(AU7=0,0,(AU7*((LOG(AU7))/LOG(2)))) -> -0.3632309225
A8: 21 | B8: 124 | C8: 22 | D8: 128 | E8: 13 | F8: 138 | K8: 0 | L8: 221 | N8: 112 | O8: =COUNTIF($L$7:$L$500,N8) -> 46 | P8: =O8/$Q$4 -> 0.2222222222 | Q8: =IF(P8=0,0,(P8*((LOG(P8))/LOG(2)))) -> -0.4822055559 | T8: =N8 -> 112 | U8: =COUNTIF(L7:L41,T8) -> 3 | V8: =U8/(W4-U11) -> 0.08571428571 | W8: =IF(V8=0,0,(V8*((LOG(V8))/LOG(2)))) -> -0.3037989014 | Y8: =N8 -> 112 | Z8: =COUNTIF(L42:L75,Y8) -> 1 | AA8: =Z8/(AB4-Z11) -> 0.02941176471 | AB8: =IF(AA8=0,0,(AA8*((LOG(AA8))/LOG(2)))) -> -0.14963126 | AD8: =N8 -> 112 | AE8: =COUNTIF(L76:L110,AD8) -> 7 | AF8: =AE8/(AG4-AE11) -> 0.2 | AG8: =IF(AF8=0,0,(AF8*((LOG(AF8))/LOG(2)))) -> -0.464385619 | AI8: =N8 -> 112 | AJ8: =COUNTIF(L111:L145,AI8) -> 7 | AK8: =AJ8/(AL4-AJ11) -> 0.2 | AL8: =IF(AK8=0,0,(AK8*((LOG(AK8))/LOG(2)))) -> -0.464385619 | AN8: =N8 -> 112 | AO8: =COUNTIF(L146:L179,AN8) -> 13 | AP8: =AO8/(AQ4-AO11) -> 0.3823529412 | AQ8: =IF(AP8=0,0,(AP8*((LOG(AP8))/LOG(2)))) -> -0.5303323706 | AS8: =N8 -> 112 | AT8: =COUNTIF(L180:L214,AS8) -> 15 | AU8: =AT8/(AV4-AT11) -> 0.4411764706 | AV8: =IF(AU8=0,0,(AU8*((LOG(AU8))/LOG(2)))) -> -0.5208406966
A9: 12 | B9: 248 | C9: 24 | D9: 255 | E9: 24 | F9: 262 | K9: 0 | L9: 122 | N9: 121 | O9: =COUNTIF($L$7:$L$500,N9) -> 9 | P9: =O9/$Q$4 -> 0.04347826087 | Q9: =IF(P9=0,0,(P9*((LOG(P9))/LOG(2)))) -> -0.1966766068 | T9: =N9 -> 121 | U9: =COUNTIF(L7:L41,T9) -> 2 | V9: =U9/(W4-U11) -> 0.05714285714 | W9: =IF(V9=0,0,(V9*((LOG(V9))/LOG(2)))) -> -0.2359590295 | Y9: =N9 -> 121 | Z9: =COUNTIF(L42:L75,Y9) -> 1 | AA9: =Z9/(AB4-Z11) -> 0.02941176471 | AB9: =IF(AA9=0,0,(AA9*((LOG(AA9))/LOG(2)))) -> -0.14963126 | AD9: =N9 -> 121 | AE9: =COUNTIF(L76:L110,AD9) -> 2 | AF9: =AE9/(AG4-AE11) -> 0.05714285714 | AG9: =IF(AF9=0,0,(AF9*((LOG(AF9))/LOG(2)))) -> -0.2359590295 | AI9: =N9 -> 121 | AJ9: =COUNTIF(L111:L145,AI9) -> 3 | AK9: =AJ9/(AL4-AJ11) -> 0.08571428571 | AL9: =IF(AK9=0,0,(AK9*((LOG(AK9))/LOG(2)))) -> -0.3037989014 | AN9: =N9 -> 121 | AO9: =COUNTIF(L146:L179,AN9) -> 1 | AP9: =AO9/(AQ4-AO11) -> 0.02941176471 | AQ9: =IF(AP9=0,0,(AP9*((LOG(AP9))/LOG(2)))) -> -0.14963126 | AS9: =N9 -> 121 | AT9: =COUNTIF(L180:L214,AS9) -> 0 | AU9: =AT9/(AV4-AT11) -> 0 | AV9: =IF(AU9=0,0,(AU9*((LOG(AU9))/LOG(2)))) -> 0
A10: 12 | B10: 361 | C10: 13 | D10: 366 | E10: 24 | F10: 374 | K10: 0 | L10: 112 | N10: 122 | O10: =COUNTIF($L$7:$L$500,N10) -> 61 | P10: =O10/$Q$4 -> 0.2946859903 | Q10: =IF(P10=0,0,(P10*((LOG(P10))/LOG(2)))) -> -0.5194576175 | T10: =N10 -> 122 | U10: =COUNTIF(L7:L41,T10) -> 8 | V10: =U10/(W4-U11) -> 0.2285714286 | W10: =IF(V10=0,0,(V10*((LOG(V10))/LOG(2)))) -> -0.486693261 | Y10: =N10 -> 122 | Z10: =COUNTIF(L42:L75,Y10) -> 9 | AA10: =Z10/(AB4-Z11) -> 0.2647058824 | AB10: =IF(AA10=0,0,(AA10*((LOG(AA10))/LOG(2)))) -> -0.5075835458 | AD10: =N10 -> 122 | AE10: =COUNTIF(L76:L110,AD10) -> 10 | AF10: =AE10/(AG4-AE11) -> 0.2857142857 | AG10: =IF(AF10=0,0,(AF10*((LOG(AF10))/LOG(2)))) -> -0.5163871206 | AI10: =N10 -> 122 | AJ10: =COUNTIF(L111:L145,AI10) -> 12 | AK10: =AJ10/(AL4-AJ11) -> 0.3428571429 | AL10: =IF(AK10=0,0,(AK10*((LOG(AK10))/LOG(2)))) -> -0.5294813198 | AN10: =N10 -> 122 | AO10: =COUNTIF(L146:L179,AN10) -> 10 | AP10: =AO10/(AQ4-AO11) -> 0.2941176471 | AQ10: =IF(AP10=0,0,(AP10*((LOG(AP10))/LOG(2)))) -> -0.5192749254 | AS10: =N10 -> 122 | AT10: =COUNTIF(L180:L214,AS10) -> 12 | AU10: =AT10/(AV4-AT11) -> 0.3529411765 | AV10: =IF(AU10=0,0,(AU10*((LOG(AU10))/LOG(2)))) -> -0.5302942378
A11: 21 | B11: 485 | C11: 11 | D11: 494 | E11: 22 | F11: 501 | K11: 0 | L11: 212 | N11: 211 | O11: =COUNTIF($L$7:$L$500,N11) -> 0 | P11: =O11/$Q$4 -> 0 | Q11: =IF(P11=0,0,(P11*((LOG(P11))/LOG(2)))) -> 0 | T11: =N11 -> 211 | U11: =COUNTIF(L7:L41,T11) -> 0 | Y11: =N11 -> 211 | Z11: =COUNTIF(L42:L75,Y11) -> 0 | AD11: =N11 -> 211 | AE11: =COUNTIF(L76:L110,AD11) -> 0 | AI11: =N11 -> 211 | AJ11: =COUNTIF(L111:L145,AI11) -> 0 | AN11: =N11 -> 211 | AO11: =COUNTIF(L146:L179,AN11) -> 0 | AS11: =N11 -> 211 | AT11: =COUNTIF(L180:L214,AS11) -> 0
A12: 21 | B12: 607 | C12: 22 | D12: 612 | E12: 24 | F12: 619 | K12: 0 | L12: 222 | N12: 212 | O12: =COUNTIF($L$7:$L$500,N12) -> 13 | P12: =O12/$Q$4 -> 0.06280193237 | Q12: =IF(P12=0,0,(P12*((LOG(P12))/LOG(2)))) -> -0.2507710827 | T12: =N12 -> 212 | U12: =COUNTIF(L7:L41,T12) -> 2 | V12: =U12/(W4-U11) -> 0.05714285714 | W12: =IF(V12=0,0,(V12*((LOG(V12))/LOG(2)))) -> -0.2359590295 | Y12: =N12 -> 212 | Z12: =COUNTIF(L42:L75,Y12) -> 2 | AA12: =Z12/(AB4-Z11) -> 0.05882352941 | AB12: =IF(AA12=0,0,(AA12*((LOG(AA12))/LOG(2)))) -> -0.2404389907 | AD12: =N12 -> 212 | AE12: =COUNTIF(L76:L110,AD12) -> 3 | AF12: =AE12/(AG4-AE11) -> 0.08571428571 | AG12: =IF(AF12=0,0,(AF12*((LOG(AF12))/LOG(2)))) -> -0.3037989014 | AI12: =N12 -> 212 | AJ12: =COUNTIF(L111:L145,AI12) -> 3 | AK12: =AJ12/(AL4-AJ11) -> 0.08571428571 | AL12: =IF(AK12=0,0,(AK12*((LOG(AK12))/LOG(2)))) -> -0.3037989014 | AN12: =N12 -> 212 | AO12: =COUNTIF(L146:L179,AN12) -> 2 | AP12: =AO12/(AQ4-AO11) -> 0.05882352941 | AQ12: =IF(AP12=0,0,(AP12*((LOG(AP12))/LOG(2)))) -> -0.2404389907 | AS12: =N12 -> 212 | AT12: =COUNTIF(L180:L214,AS12) -> 1 | AU12: =AT12/(AV4-AT11) -> 0.02941176471 | AV12: =IF(AU12=0,0,(AU12*((LOG(AU12))/LOG(2)))) -> -0.14963126
A13: 12 | B13: 717 | C13: 24 | D13: 726 | E13: 24 | F13: 730 | K13: 0 | L13: 122 | N13: 221 | O13: =COUNTIF($L$7:$L$500,N13) -> 11 | P13: =O13/$Q$4 -> 0.05314009662 | Q13: =IF(P13=0,0,(P13*((LOG(P13))/LOG(2)))) -> -0.2249981098 | T13: =N13 -> 221 | U13: =COUNTIF(L7:L41,T13) -> 2 | V13: =U13/(W4-U11) -> 0.05714285714 | W13: =IF(V13=0,0,(V13*((LOG(V13))/LOG(2)))) -> -0.2359590295 | Y13: =N13 -> 221 | Z13: =COUNTIF(L42:L75,Y13) -> 5 | AA13: =Z13/(AB4-Z11) -> 0.1470588235 | AB13: =IF(AA13=0,0,(AA13*((LOG(AA13))/LOG(2)))) -> -0.4066962862 | AD13: =N13 -> 221 | AE13: =COUNTIF(L76:L110,AD13) -> 2 | AF13: =AE13/(AG4-AE11) -> 0.05714285714 | AG13: =IF(AF13=0,0,(AF13*((LOG(AF13))/LOG(2)))) -> -0.2359590295 | AI13: =N13 -> 221 | AJ13: =COUNTIF(L111:L145,AI13) -> 2 | AK13: =AJ13/(AL4-AJ11) -> 0.05714285714 | AL13: =IF(AK13=0,0,(AK13*((LOG(AK13))/LOG(2)))) -> -0.2359590295 | AN13: =N13 -> 221 | AO13: =COUNTIF(L146:L179,AN13) -> 0 | AP13: =AO13/(AQ4-AO11) -> 0 | AQ13: =IF(AP13=0,0,(AP13*((LOG(AP13))/LOG(2)))) -> 0 | AS13: =N13 -> 221 | AT13: =COUNTIF(L180:L214,AS13) -> 0 | AU13: =AT13/(AV4-AT11) -> 0 | AV13: =IF(AU13=0,0,(AU13*((LOG(AU13))/LOG(2)))) -> 0
A14: 21 | B14: 826 | C14: 22 | D14: 831 | E14: 24 | F14: 835 | K14: 0 | L14: 222 | N14: 222 | O14: =COUNTIF($L$7:$L$500,N14) -> 48 | P14: =O14/$Q$4 -> 0.231884058 | Q14: =IF(P14=0,0,(P14*((LOG(P14))/LOG(2)))) -> -0.4889332074 | T14: =N14 -> 222 | U14: =COUNTIF(L7:L41,T14) -> 12 | V14: =U14/(W4-U11) -> 0.3428571429 | W14: =IF(V14=0,0,(V14*((LOG(V14))/LOG(2)))) -> -0.5294813198 | Y14: =N14 -> 222 | Z14: =COUNTIF(L42:L75,Y14) -> 14 | AA14: =Z14/(AB4-Z11) -> 0.4117647059 | AB14: =IF(AA14=0,0,(AA14*((LOG(AA14))/LOG(2)))) -> -0.5271032608 | AD14: =N14 -> 222 | AE14: =COUNTIF(L76:L110,AD14) -> 10 | AF14: =AE14/(AG4-AE11) -> 0.2857142857 | AG14: =IF(AF14=0,0,(AF14*((LOG(AF14))/LOG(2)))) -> -0.5163871206 | AI14: =N14 -> 222 | AJ14: =COUNTIF(L111:L145,AI14) -> 6 | AK14: =AJ14/(AL4-AJ11) -> 0.1714285714 | AL14: =IF(AK14=0,0,(AK14*((LOG(AK14))/LOG(2)))) -> -0.4361692314 | AN14: =N14 -> 222 | AO14: =COUNTIF(L146:L179,AN14) -> 4 | AP14: =AO14/(AQ4-AO11) -> 0.1176470588 | AQ14: =IF(AP14=0,0,(AP14*((LOG(AP14))/LOG(2)))) -> -0.3632309225 | AS14: =N14 -> 222 | AT14: =COUNTIF(L180:L214,AS14) -> 2 | AU14: =AT14/(AV4-AT11) -> 0.05882352941 | AV14: =IF(AU14=0,0,(AU14*((LOG(AU14))/LOG(2)))) -> -0.2404389907
A15: 12 | B15: 933 | C15: 13 | D15: 950 | E15: 24 | F15: 958 | K15: 0 | L15: 112 | P15: =SUM(P7:P14) -> 1 | Q15: =-SUM(Q7:Q14) -> 2.479301259 | V15: =SUM(V7:V14) -> 1 | W15: =-SUM(W7:W14) -> 2.464019802 | AA15: =SUM(AA7:AA14) -> 1 | AB15: =-SUM(AB7:AB14) -> 2.221523594 | AF15: =SUM(AF7:AF14) -> 1 | AG15: =-SUM(AG7:AG14) -> 2.419427764 | AK15: =SUM(AK7:AK14) -> 1 | AL15: =-SUM(AL7:AL14) -> 2.509552032 | AP15: =SUM(AP7:AP14) -> 1 | AQ15: =-SUM(AQ7:AQ14) -> 2.166139392 | AU15: =SUM(AU7:AU14) -> 1 | AV15: =-SUM(AV7:AV14) -> 1.804436108
A16: 12 | B16: 1061 | C16: 24 | D16: 1068 | E16: 24 | F16: 1082 | K16: 0 | L16: 122 | P16: U= | Q16: =Q15/(LOG(Q4)/LOG(2)) -> 0.3222597599 | V16: U1= | W16: =W15/(LOG(W4)/LOG(2)) -> 0.4803828906 | AA16: U2= | AB16: =AB15/(LOG(AB4)/LOG(2)) -> 0.4366663037 | AF16: U3= | AG16: =AG15/(LOG(AG4)/LOG(2)) -> 0.4716892704 | AK16: U4= | AL16: =AL15/(LOG(AL4)/LOG(2)) -> 0.4892598096 | AP16: U5= | AQ16: =AQ15/(LOG(AQ4)/LOG(2)) -> 0.4257798945 | AU16: U6= | AV16: =AV15/(LOG(AV4)/LOG(2)) -> 0.3546829066
A17: 12 | B17: 1183 | C17: 24 | D17: 1190 | E17: 24 | F17: 1197 | K17: 0 | L17: 122
A18: 12 | B18: 1295 | C18: 13 | D18: 1299 | E18: 13 | F18: 1304 | K18: 0 | L18: 111
A19: 21 | B19: 1409 | C19: 11 | D19: 1417 | E19: 22 | F19: 1424 | K19: 0 | L19: 212 | N19: Total Target Seq
A20: 21 | B20: 1529 | C20: 22 | D20: 1533 | E20: 24 | F20: 1541 | K20: 0 | L20: 222 | N20: =COUNTIF(L7:L214,G3) -> 0 | P20: 35 | Q20: 34 | R20: 35 | S20: 35 | T20: 34 | U20: 35
A21: 21 | B21: 1637 | C21: 22 | D21: 1653 | E21: 24 | F21: 1667 | K21: 0 | L21: 222 | P21: % of reinforcement given in 6 equal intervals based on number of trials
A22: 21 | B22: 1769 | C22: 22 | D22: 1782 | E22: 13 | F22: 1802 | K22: 0 | L22: 221 | P22: %_1 | Q22: %_2 | R22: %_3 | S22: %_4 | T22: %_5 | U22: %_6
A23: 12 | B23: 1913 | C23: 24 | D23: 1920 | E23: 24 | F23: 1927 | K23: 0 | L23: 122 | O23: target sequence | P23: =$G$3 -> 211 | Q23: =$G$3 -> 211 | R23: =$G$3 -> 211 | S23: =$G$3 -> 211 | T23: =$G$3 -> 211 | U23: =$G$3 -> 211
A24: 21 | B24: 2025 | C24: 22 | D24: 2037 | E24: 24 | F24: 2053 | K24: 0 | L24: 222 | O24: total reinforcement | P24: =U11 -> 0 | Q24: =Z11 -> 0 | R24: =AE11 -> 0 | S24: =AJ11 -> 0 | T24: =AO11 -> 0 | U24: =AT11 -> 0
A25: 12 | B25: 2150 | C25: 13 | D25: 2154 | E25: 13 | F25: 2159 | K25: 0 | L25: 111 | O25: % target
A26: 12 | B26: 2259 | C26: 13 | D26: 2273 | E26: 24 | F26: 2280 | K26: 0 | L26: 112 | O26: CCRF
A27: 12 | B27: 2380 | C27: 24 | D27: 2388 | E27: 24 | F27: 2392 | K27: 0 | L27: 122 | O27: % CCRf
A28: 12 | B28: 2493 | C28: 13 | D28: 2497 | E28: 13 | F28: 2501 | K28: 0 | L28: 111 | O28: average response rate | P28: =F41/P20 -> 114.6285714 | Q28: =(F75-F41)/Q20 -> 115.8235294 | R28: =(F110-F75)/R20 -> 113.8857143 | S28: =(F145-F110)/S20 -> 116.9428571 | T28: =(F179-F145)/T20 -> 116.2941176 | U28: =(F214-F179)/U20 -> -570.9428571
A29: 12 | B29: 2596 | C29: 24 | D29: 2605 | E29: 13 | F29: 2615 | K29: 0 | L29: 121
A30: 12 | B30: 2713 | C30: 13 | D30: 2727 | E30: 13 | F30: 2738 | K30: 0 | L30: 111
A31: 12 | B31: 2835 | C31: 13 | D31: 2839 | E31: 13 | F31: 2843 | K31: 0 | L31: 111
A32: 12 | B32: 2945 | C32: 24 | D32: 2952 | E32: 24 | F32: 2957 | K32: 0 | L32: 122
A33: 21 | B33: 3057 | C33: 22 | D33: 3062 | E33: 24 | F33: 3066 | K33: 0 | L33: 222
A34: 12 | B34: 3163 | C34: 24 | D34: 3171 | E34: 24 | F34: 3175 | K34: 0 | L34: 122
A35: 21 | B35: 3273 | C35: 22 | D35: 3276 | E35: 24 | F35: 3288 | K35: 0 | L35: 222
A36: 21 | B36: 3387 | C36: 22 | D36: 3399 | E36: 24 | F36: 3423 | K36: 0 | L36: 222
A37: 12 | B37: 3532 | C37: 24 | D37: 3539 | E37: 13 | F37: 3550 | K37: 0 | L37: 121
A38: 21 | B38: 3652 | C38: 22 | D38: 3656 | E38: 24 | F38: 3670 | K38: 0 | L38: 222
A39: 21 | B39: 3768 | C39: 22 | D39: 3784 | E39: 24 | F39: 3791 | K39: 0 | L39: 222
A40: 21 | B40: 3897 | C40: 22 | D40: 3904 | E40: 24 | F40: 3908 | K40: 0 | L40: 222
A41: 12 | B41: 4003 | C41: 13 | D41: 4008 | E41: 13 | F41: 4012 | K41: 0 | L41: 111
A42: 21 | B42: 4120 | C42: 22 | D42: 4124 | E42: 24 | F42: 4129 | K42: 0 | L42: 222
A43: 21 | B43: 4234 | C43: 22 | D43: 4238 | E43: 13 | F43: 4265 | K43: 0 | L43: 221
A44: 21 | B44: 4364 | C44: 22 | D44: 4369 | E44: 13 | F44: 4380 | K44: 0 | L44: 221
A45: 21 | B45: 4479 | C45: 22 | D45: 4483 | E45: 24 | F45: 4507 | K45: 0 | L45: 222
A46: 12 | B46: 4604 | C46: 13 | D46: 4612 | E46: 13 | F46: 4616 | K46: 0 | L46: 111
A47: 12 | B47: 4723 | C47: 24 | D47: 4730 | E47: 24 | F47: 4744 | K47: 0 | L47: 122
A48: 21 | B48: 4845 | C48: 22 | D48: 4849 | E48: 24 | F48: 4854 | K48: 0 | L48: 222
A49: 12 | B49: 4950 | C49: 13 | D49: 4954 | E49: 24 | F49: 4961 | K49: 0 | L49: 112
A50: 21 | B50: 5058 | C50: 22 | D50: 5062 | E50: 24 | F50: 5066 | K50: 0 | L50: 222
A51: 21 | B51: 5163 | C51: 22 | D51: 5171 | E51: 24 | F51: 5175 | K51: 0 | L51: 222
A52: 12 | B52: 5273 | C52: 24 | D52: 5281 | E52: 24 | F52: 5288 | K52: 0 | L52: 122
A53: 21 | B53: 5389 | C53: 22 | D53: 5418 | E53: 24 | F53: 5432 | K53: 0 | L53: 222
A54: 21 | B54: 5532 | C54: 11 | D54: 5545 | E54: 22 | F54: 5552 | K54: 0 | L54: 212
A55: 12 | B55: 5658 | C55: 24 | D55: 5665 | E55: 24 | F55: 5672 | K55: 0 | L55: 122
A56: 12 | B56: 5770 | C56: 24 | D56: 5777 | E56: 24 | F56: 5782 | K56: 0 | L56: 122
A57: 12 | B57: 5892 | C57: 24 | D57: 5899 | E57: 24 | F57: 5904 | K57: 0 | L57: 122
A58: 21 | B58: 6001 | C58: 22 | D58: 6006 | E58: 24 | F58: 6010 | K58: 0 | L58: 222
A59: 21 | B59: 6107 | C59: 22 | D59: 6111 | E59: 13 | F59: 6121 | K59: 0 | L59: 221
A60: 21 | B60: 6217 | C60: 22 | D60: 6221 | E60: 24 | F60: 6228 | K60: 0 | L60: 222
A61: 21 | B61: 6331 | C61: 22 | D61: 6335 | E61: 13 | F61: 6349 | K61: 0 | L61: 221
A62: 12 | B62: 6449 | C62: 24 | D62: 6456 | E62: 13 | F62: 6467 | K62: 0 | L62: 121
A63: 12 | B63: 6572 | C63: 24 | D63: 6580 | E63: 24 | F63: 6587 | K63: 0 | L63: 122
A64: 12 | B64: 6690 | C64: 13 | D64: 6701 | E64: 13 | F64: 6718 | K64: 0 | L64: 111
A65: 21 | B65: 6817 | C65: 22 | D65: 6821 | E65: 13 | F65: 6837 | K65: 0 | L65: 221
A66: 21 | B66: 6947 | C66: 11 | D66: 6959 | E66: 22 | F66: 6969 | K66: 0 | L66: 212
A67: 21 | B67: 7066 | C67: 22 | D67: 7070 | E67: 24 | F67: 7075 | K67: 0 | L67: 222
A68: 21 | B68: 7174 | C68: 22 | D68: 7178 | E68: 24 | F68: 7182 | K68: 0 | L68: 222
A69: 12 | B69: 7279 | C69: 24 | D69: 7286 | E69: 24 | F69: 7290 | K69: 0 | L69: 122
A70: 21 | B70: 7391 | C70: 22 | D70: 7394 | E70: 24 | F70: 7398 | K70: 0 | L70: 222
A71: 21 | B71: 7502 | C71: 22 | D71: 7506 | E71: 24 | F71: 7513 | K71: 0 | L71: 222
A72: 21 | B72: 7609 | C72: 22 | D72: 7614 | E72: 24 | F72: 7618 | K72: 0 | L72: 222
A73: 12 | B73: 7717 | C73: 24 | D73: 7724 | E73: 24 | F73: 7728 | K73: 0 | L73: 122
A74: 21 | B74: 7831 | C74: 22 | D74: 7836 | E74: 24 | F74: 7840 | K74: 0 | L74: 222
A75: 12 | B75: 7937 | C75: 24 | D75: 7945 | E75: 24 | F75: 7950 | K75: 0 | L75: 122
A76: 12 | B76: 8048 | C76: 24 | D76: 8055 | E76: 24 | F76: 8059 | K76: 0 | L76: 122
A77: 12 | B77: 8157 | C77: 13 | D77: 8164 | E77: 24 | F77: 8171 | K77: 0 | L77: 112
A78: 12 | B78: 8268 | C78: 13 | D78: 8273 | E78: 24 | F78: 8281 | K78: 0 | L78: 112
A79: 21 | B79: 8388 | C79: 22 | D79: 8393 | E79: 24 | F79: 8397 | K79: 0 | L79: 222
A80: 12 | B80: 8494 | C80: 13 | D80: 8498 | E80: 13 | F80: 8508 | K80: 0 | L80: 111
A81: 12 | B81: 8603 | C81: 24 | D81: 8610 | E81: 24 | F81: 8616 | K81: 0 | L81: 122
A82: 21 | B82: 8721 | C82: 22 | D82: 8731 | E82: 24 | F82: 8738 | K82: 0 | L82: 222
A83: 12 | B83: 8836 | C83: 24 | D83: 8843 | E83: 24 | F83: 8847 | K83: 0 | L83: 122
A84: 21 | B84: 8946 | C84: 22 | D84: 8951 | E84: 24 | F84: 8955 | K84: 0 | L84: 222
A85: 21 | B85: 9059 | C85: 22 | D85: 9063 | E85: 24 | F85: 9070 | K85: 0 | L85: 222
A86: 12 | B86: 9169 | C86: 24 | D86: 9176 | E86: 24 | F86: 9182 | K86: 0 | L86: 122
A87: 21 | B87: 9284 | C87: 22 | D87: 9289 | E87: 13 | F87: 9299 | K87: 0 | L87: 221
A88: 21 | B88: 9398 | C88: 22 | D88: 9401 | E88: 24 | F88: 9405 | K88: 0 | L88: 222
A89: 12 | B89: 9501 | C89: 13 | D89: 9511 | E89: 24 | F89: 9519 | K89: 0 | L89: 112
A90: 21 | B90: 9624 | C90: 22 | D90: 9628 | E90: 24 | F90: 9639 | K90: 0 | L90: 222
A91: 21 | B91: 9735 | C91: 11 | D91: 9755 | E91: 22 | F91: 9766 | K91: 0 | L91: 212
A92: 12 | B92: 9868 | C92: 24 | D92: 9879 | E92: 24 | F92: 9886 | K92: 0 | L92: 122
A93: 21 | B93: 9996 | C93: 22 | D93: 10000 | E93: 13 | F93: 10010 | K93: 0 | L93: 221
A94: 12 | B94: 10106 | C94: 13 | D94: 10110 | E94: 24 | F94: 10117 | K94: 0 | L94: 112
A95: 12 | B95: 10213 | C95: 13 | D95: 10217 | E95: 24 | F95: 10225 | K95: 0 | L95: 112
A96: 12 | B96: 10322 | C96: 13 | D96: 10331 | E96: 24 | F96: 10338 | K96: 0 | L96: 112
A97: 12 | B97: 10435 | C97: 24 | D97: 10446 | E97: 13 | F97: 10456 | K97: 0 | L97: 121
A98: 12 | B98: 10556 | C98: 24 | D98: 10563 | E98: 24 | F98: 10567 | K98: 0 | L98: 122
A99: 21 | B99: 10668 | C99: 22 | D99: 10671 | E99: 24 | F99: 10675 | K99: 0 | L99: 222
A100: 12 | B100: 10774 | C100: 24 | D100: 10781 | E100: 24 | F100: 10785 | K100: 0 | L100: 122
A101: 21 | B101: 10888 | C101: 22 | D101: 10893 | E101: 24 | F101: 10896 | K101: 0 | L101: 222
A102: 12 | B102: 10994 | C102: 24 | D102: 11002 | E102: 24 | F102: 11006 | K102: 0 | L102: 122
A103: 12 | B103: 11107 | C103: 13 | D103: 11117 | E103: 24 | F103: 11128 | K103: 0 | L103: 112
A104: 12 | B104: 11235 | C104: 24 | D104: 11243 | E104: 13 | F104: 11253 | K104: 0 | L104: 121
A105: 21 | B105: 11358 | C105: 22 | D105: 11362 | E105: 24 | F105: 11365 | K105: 0 | L105: 222
A106: 21 | B106: 11465 | C106: 22 | D106: 11469 | E106: 24 | F106: 11473 | K106: 0 | L106: 222
A107: 12 | B107: 11576 | C107: 24 | D107: 11583 | E107: 24 | F107: 11589 | K107: 0 | L107: 122
A108: 21 | B108: 11688 | C108: 11 | D108: 11697 | E108: 22 | F108: 11704 | K108: 0 | L108: 212
A109: 12 | B109: 11796 | C109: 24 | D109: 11805 | E109: 24 | F109: 11809 | K109: 0 | L109: 122
A110: 21 | B110: 11913 | C110: 11 | D110: 11926 | E110: 22 | F110: 11936 | K110: 0 | L110: 212
A111: 21 | B111: 12036 | C111: 22 | D111: 12041 | E111: 24 | F111: 12047 | K111: 0 | L111: 222
A112: 12 | B112: 12145 | C112: 24 | D112: 12152 | E112: 24 | F112: 12157 | K112: 0 | L112: 122
A113: 21 | B113: 12269 | C113: 22 | D113: 12273 | E113: 24 | F113: 12289 | K113: 0 | L113: 222
A114: 21 | B114: 12391 | C114: 22 | D114: 12395 | E114: 24 | F114: 12400 | K114: 0 | L114: 222
A115: 12 | B115: 12498 | C115: 13 | D115: 12507 | E115: 24 | F115: 12514 | K115: 0 | L115: 112
A116: 21 | B116: 12618 | C116: 22 | D116: 12622 | E116: 24 | F116: 12626 | K116: 0 | L116: 222
A117: 12 | B117: 12723 | C117: 13 | D117: 12731 | E117: 24 | F117: 12745 | K117: 0 | L117: 112
A118: 12 | B118: 12845 | C118: 24 | D118: 12854 | E118: 13 | F118: 12865 | K118: 0 | L118: 121
A119: 12 | B119: 12962 | C119: 13 | D119: 12966 | E119: 13 | F119: 12971 | K119: 0 | L119: 111
A120: 12 | B120: 13067 | C120: 24 | D120: 13084 | E120: 13 | F120: 13094 | K120: 0 | L120: 121
A121: 21 | B121: 13194 | C121: 22 | D121: 13197 | E121: 13 | F121: 13211 | K121: 0 | L121: 221
A122: 12 | B122: 13307 | C122: 13 | D122: 13312 | E122: 13 | F122: 13323 | K122: 0 | L122: 111
A123: 12 | B123: 13423 | C123: 24 | D123: 13430 | E123: 24 | F123: 13443 | K123: 0 | L123: 122
A124: 12 | B124: 13543 | C124: 24 | D124: 13553 | E124: 24 | F124: 13557 | K124: 0 | L124: 122
A125: 21 | B125: 13659 | C125: 22 | D125: 13663 | E125: 13 | F125: 13676 | K125: 0 | L125: 221
A126: 21 | B126: 13780 | C126: 22 | D126: 13784 | E126: 24 | F126: 13794 | K126: 0 | L126: 222
A127: 12 | B127: 13892 | C127: 24 | D127: 13900 | E127: 24 | F127: 13908 | K127: 0 | L127: 122
A128: 21 | B128: 14006 | C128: 11 | D128: 14022 | E128: 22 | F128: 14030 | K128: 0 | L128: 212
A129: 21 | B129: 14124 | C129: 11 | D129: 14133 | E129: 22 | F129: 14140 | K129: 0 | L129: 212
A130: 21 | B130: 14242 | C130: 22 | D130: 14246 | E130: 24 | F130: 14252 | K130: 0 | L130: 222
A131: 12 | B131: 14349 | C131: 13 | D131: 14357 | E131: 24 | F131: 14365 | K131: 0 | L131: 112
A132: 12 | B132: 14466 | C132: 24 | D132: 14473 | E132: 24 | F132: 14481 | K132: 0 | L132: 122
A133: 12 | B133: 14578 | C133: 24 | D133: 14585 | E133: 24 | F133: 14589 | K133: 0 | L133: 122
A134: 12 | B134: 14714 | C134: 24 | D134: 14722 | E134: 24 | F134: 14729 | K134: 0 | L134: 122
A135: 12 | B135: 14836 | C135: 24 | D135: 14844 | E135: 24 | F135: 14854 | K135: 0 | L135: 122
A136: 12 | B136: 14964 | C136: 24 | D136: 14975 | E136: 24 | F136: 14983 | K136: 0 | L136: 122
A137: 12 | B137: 15080 | C137: 24 | D137: 15094 | E137: 24 | F137: 15098 | K137: 0 | L137: 122
A138: 12 | B138: 15195 | C138: 13 | D138: 15203 | E138: 24 | F138: 15210 | K138: 0 | L138: 112
A139: 12 | B139: 15326 | C139: 24 | D139: 15336 | E139: 13 | F139: 15346 | K139: 0 | L139: 121
A140: 12 | B140: 15444 | C140: 13 | D140: 15456 | E140: 24 | F140: 15464 | K140: 0 | L140: 112
A141: 12 | B141: 15561 | C141: 24 | D141: 15569 | E141: 24 | F141: 15573 | K141: 0 | L141: 122
A142: 12 | B142: 15669 | C142: 13 | D142: 15677 | E142: 24 | F142: 15685 | K142: 0 | L142: 112
A143: 12 | B143: 15782 | C143: 13 | D143: 15790 | E143: 24 | F143: 15798 | K143: 0 | L143: 112
A144: 12 | B144: 15896 | C144: 24 | D144: 15904 | E144: 24 | F144: 15908 | K144: 0 | L144: 122
A145: 21 | B145: 16012 | C145: 11 | D145: 16021 | E145: 22 | F145: 16029 | K145: 0 | L145: 212
A146: 21 | B146: 16128 | C146: 22 | D146: 16132 | E146: 24 | F146: 16138 | K146: 0 | L146: 222
A147: 12 | B147: 16235 | C147: 13 | D147: 16245 | E147: 24 | F147: 16252 | K147: 0 | L147: 112
A148: 12 | B148: 16350 | C148: 24 | D148: 16365 | E148: 24 | F148: 16371 | K148: 0 | L148: 122
A149: 12 | B149: 16464 | C149: 24 | D149: 16479 | E149: 13 | F149: 16489 | K149: 0 | L149: 121
A150: 12 | B150: 16591 | C150: 24 | D150: 16605 | E150: 24 | F150: 16609 | K150: 0 | L150: 122
A151: 12 | B151: 16707 | C151: 13 | D151: 16715 | E151: 24 | F151: 16722 | K151: 0 | L151: 112
A152: 12 | B152: 16820 | C152: 13 | D152: 16824 | E152: 13 | F152: 16835 | K152: 0 | L152: 111
A153: 12 | B153: 16932 | C153: 13 | D153: 16940 | E153: 24 | F153: 16950 | K153: 0 | L153: 112
A154: 12 | B154: 17047 | C154: 13 | D154: 17051 | E154: 24 | F154: 17059 | K154: 0 | L154: 112
A155: 12 | B155: 17162 | C155: 24 | D155: 17170 | E155: 24 | F155: 17177 | K155: 0 | L155: 122
A156: 21 | B156: 17280 | C156: 22 | D156: 17284 | E156: 24 | F156: 17288 | K156: 0 | L156: 222
A157: 12 | B157: 17386 | C157: 13 | D157: 17391 | E157: 13 | F157: 17399 | K157: 0 | L157: 111
A158: 12 | B158: 17498 | C158: 24 | D158: 17506 | E158: 24 | F158: 17510 | K158: 0 | L158: 122
A159: 12 | B159: 17610 | C159: 24 | D159: 17619 | E159: 24 | F159: 17623 | K159: 0 | L159: 122
A160: 12 | B160: 17720 | C160: 24 | D160: 17728 | E160: 24 | F160: 17733 | K160: 0 | L160: 122
A161: 12 | B161: 17831 | C161: 13 | D161: 17838 | E161: 24 | F161: 17848 | K161: 0 | L161: 112
A162: 12 | B162: 17959 | C162: 24 | D162: 17966 | E162: 24 | F162: 17973 | K162: 0 | L162: 122
A163: 12 | B163: 18072 | C163: 13 | D163: 18080 | E163: 24 | F163: 18087 | K163: 0 | L163: 112
A164: 12 | B164: 18185 | C164: 24 | D164: 18192 | E164: 24 | F164: 18196 | K164: 0 | L164: 122
A165: 21 | B165: 18304 | C165: 22 | D165: 18308 | E165: 24 | F165: 18315 | K165: 0 | L165: 222
A166: 12 | B166: 18413 | C166: 13 | D166: 18428 | E166: 24 | F166: 18436 | K166: 0 | L166: 112
A167: 12 | B167: 18534 | C167: 13 | D167: 18541 | E167: 24 | F167: 18548 | K167: 0 | L167: 112
A168: 12 | B168: 18649 | C168: 24 | D168: 18657 | E168: 24 | F168: 18662 | K168: 0 | L168: 122
A169: 12 | B169: 18761 | C169: 13 | D169: 18775 | E169: 24 | F169: 18785 | K169: 0 | L169: 112
A170: 12 | B170: 18882 | C170: 13 | D170: 18886 | E170: 13 | F170: 18899 | K170: 0 | L170: 111
A171: 12 | B171: 18996 | C171: 13 | D171: 19003 | E171: 24 | F171: 19010 | K171: 0 | L171: 112
A172: 12 | B172: 19107 | C172: 13 | D172: 19114 | E172: 24 | F172: 19121 | K172: 0 | L172: 112
A173: 12 | B173: 19225 | C173: 24 | D173: 19232 | E173: 24 | F173: 19237 | K173: 0 | L173: 122
A174: 12 | B174: 19335 | C174: 13 | D174: 19341 | E174: 24 | F174: 19349 | K174: 0 | L174: 112
A175: 12 | B175: 19446 | C175: 13 | D175: 19458 | E175: 24 | F175: 19466 | K175: 0 | L175: 112
A176: 12 | B176: 19563 | C176: 13 | D176: 19567 | E176: 13 | F176: 19578 | K176: 0 | L176: 111
A177: 21 | B177: 19679 | C177: 11 | D177: 19697 | E177: 22 | F177: 19705 | K177: 0 | L177: 212
A178: 21 | B178: 19807 | C178: 22 | D178: 19811 | E178: 24 | F178: 19818 | K178: 0 | L178: 222
A179: 21 | B179: 19958 | C179: 11 | D179: 19972 | E179: 22 | F179: 19983 | K179: 0 | L179: 212
A180: 21 | B180: 20088 | C180: 22 | D180: 20095 | E180: 24 | F180: 20100 | K180: 0 | L180: 222
A181: 12 | B181: 20202 | C181: 24 | D181: 20210 | E181: 24 | F181: 20214 | K181: 0 | L181: 122
A182: 12 | B182: 20311 | C182: 13 | D182: 20318 | E182: 24 | F182: 20326 | K182: 0 | L182: 112
A183: 12 | B183: 20423 | C183: 24 | D183: 20435 | E183: 24 | F183: 20439 | K183: 0 | L183: 122
A184: 12 | B184: 20536 | C184: 13 | D184: 20539 | E184: 13 | F184: 20544 | K184: 0 | L184: 111
A185: 12 | B185: 20643 | C185: 13 | D185: 20650 | E185: 24 | F185: 20658 | K185: 0 | L185: 112
A186: 12 | B186: 20771 | C186: 24 | D186: 20778 | E186: 24 | F186: 20784 | K186: 0 | L186: 122
A187: 12 | B187: 20882 | C187: 13 | D187: 20889 | E187: 24 | F187: 20896 | K187: 0 | L187: 112
A188: 12 | B188: 20998 | C188: 13 | D188: 21005 | E188: 24 | F188: 21013 | K188: 0 | L188: 112
A189: 12 | B189: 21113 | C189: 13 | D189: 21117 | E189: 13 | F189: 21129 | K189: 0 | L189: 111
A190: 12 | B190: 21227 | C190: 13 | D190: 21234 | E190: 24 | F190: 21241 | K190: 0 | L190: 112
A191: 12 | B191: 21341 | C191: 24 | D191: 21352 | E191: 24 | F191: 21358 | K191: 0 | L191: 122
A192: 12 | B192: 21456 | C192: 13 | D192: 21461 | E192: 24 | F192: 21469 | K192: 0 | L192: 112
A193: 12 | B193: 21565 | C193: 13 | D193: 21570 | E193: 13 | F193: 21579 | K193: 0 | L193: 111
A194: 12 | B194: 21679 | C194: 13 | D194: 21690 | E194: 24 | F194: 21697 | K194: 0 | L194: 112
A195: 12 | B195: 21794 | C195: 13 | D195: 21801 | E195: 24 | F195: 21808 | K195: 0 | L195: 112
A196: 12 | B196: 21905 | C196: 24 | D196: 21928 | E196: 24 | F196: 21933 | K196: 0 | L196: 122
A197: 12 | B197: 22033 | C197: 24 | D197: 22041 | E197: 24 | F197: 22046 | K197: 0 | L197: 122
A198: 12 | B198: 22144 | C198: 13 | D198: 22148 | E198: 24 | F198: 22159 | K198: 0 | L198: 112
A199: 21 | B199: 22264 | C199: 11 | D199: 22276 | E199: 22 | F199: 22283 | K199: 0 | L199: 212
A200: 21 | B200: 22388 | C200: 22 | D200: 22392 | E200: 24 | F200: 22403 | K200: 0 | L200: 222
... 14 more rows

Sheet !MC07B00.096
A1: Report for:!MC07B00.096
A2: Date: | B2: <date>
A3: Hen: | B3: <hen> | F3: Correct Sequence | G3: =Start!J2 -> 211 | P3: Total Sequences in Data | Q3: =4994-COUNTBLANK(L7:L5000) -> 208 | V3: Total Sequences in Block Data | W3: =COUNTA(L7:L41) -> 35 | AA3: Total Sequences in Block Data | AB3: =COUNTA(L42:L75) -> 34 | AF3: Total Sequences in Block Data | AG3: =COUNTA(L76:L110) -> 35 | AK3: Total Sequences in Block Data | AL3: =COUNTA(L111:L145) -> 35 | AP3: Total Sequences in Block Data | AQ3: =COUNTA(L146:L179) -> 34 | AU3: Total Sequences in Block Data | AV3: =COUNTA(L180:L214) -> 35
P4: Total Sequences in Summary | Q4: =SUM(O7:O14) -> 208 | V4: Total Sequences in Block Summary | W4: =SUM(U7:U14) -> 35 | AA4: Total Sequences in Block Summary | AB4: =SUM(Z7:Z14) -> 34 | AF4: Total Sequences in Block Summary | AG4: =SUM(AE7:AE14) -> 35 | AK4: Total Sequences in Block Summary | AL4: =SUM(AJ7:AJ14) -> 35 | AP4: Total Sequences in Block Summary | AQ4: =SUM(AO7:AO14) -> 34 | AU4: Total Sequences in Block Summary | AV4: =SUM(AT7:AT14) -> 35
T5: Block 1 | Y5: Block 2 | AD5: Block 3 | AI5: Block 4 | AN5: Block 5 | AS5: Block 6
A6: Sequence Component 1 | B6: Time 1 | C6: Sequence Component 2 | D6: Time 2 | E6: Sequence Component 3 | F6: Time 3 | G6: Sequence Component 4 | H6: Time 4 | I6: Sequence Component 5 | J6: Time 5 | K6: Correct? 0=No 1=Yes | L6: Sequence | N6: Frequency | P6: Relative Frequency | Q6: Variability | T6: Frequency | V6: Relative Frequency | W6: Variability | Y6: Frequency | AA6: Relative Frequency | AB6: Variability | AD6: Frequency | AF6: Relative Frequency | AG6: Variability | AI6: Frequency | AK6: Relative Frequency | AL6: Variability | AN6: Frequency | AP6: Relative Frequency | AQ6: Variability | AS6: Frequency | AU6: Relative Frequency | AV6: Variability
A7: 12 | B7: 8 | C7: 13 | D7: 14 | E7: 13 | F7: 19 | K7: 0 | L7: 111 | N7: 111 | O7: =COUNTIF($L$7:$L$500,N7) -> 29 | P7: =O7/$Q$4 -> 0.1394230769 | Q7: =IF(P7=0,0,(P7*((LOG(P7))/LOG(2)))) -> -0.3963043412 | T7: =N7 -> 111 | U7: =COUNTIF(L7:L41,T7) -> 8 | V7: =U7/(W4-U11) -> 0.2285714286 | W7: =IF(V7=0,0,(V7*((LOG(V7))/LOG(2)))) -> -0.486693261 | Y7: =N7 -> 111 | Z7: =COUNTIF(L42:L75,Y7) -> 2 | AA7: =Z7/(AB4-Z11) -> 0.05882352941 | AB7: =IF(AA7=0,0,(AA7*((LOG(AA7))/LOG(2)))) -> -0.2404389907 | AD7: =N7 -> 111 | AE7: =COUNTIF(L76:L110,AD7) -> 4 | AF7: =AE7/(AG4-AE11) -> 0.1142857143 | AG7: =IF(AF7=0,0,(AF7*((LOG(AF7))/LOG(2)))) -> -0.3576323448 | AI7: =N7 -> 111 | AJ7: =COUNTIF(L111:L145,AI7) -> 6 | AK7: =AJ7/(AL4-AJ11) -> 0.1714285714 | AL7: =IF(AK7=0,0,(AK7*((LOG(AK7))/LOG(2)))) -> -0.4361692314 | AN7: =N7 -> 111 | AO7: =COUNTIF(L146:L179,AN7) -> 7 | AP7: =AO7/(AQ4-AO11) -> 0.2058823529 | AQ7: =IF(AP7=0,0,(AP7*((LOG(AP7))/LOG(2)))) -> -0.4694339834 | AS7: =N7 -> 111 | AT7: =COUNTIF(L180:L214,AS7) -> 2 | AU7: =AT7/(AV4-AT11) -> 0.05714285714 | AV7: =IF(AU7=0,0,(AU7*((LOG(AU7))/LOG(2)))) -> -0.2359590295
A8: 12 | B8: 123 | C8: 24 | D8: 130 | E8: 24 | F8: 137 | K8: 0 | L8: 122 | N8: 112 | O8: =COUNTIF($L$7:$L$500,N8) -> 74 | P8: =O8/$Q$4 -> 0.3557692308 | Q8: =IF(P8=0,0,(P8*((LOG(P8))/LOG(2)))) -> -0.5304470677 | T8: =N8 -> 112 | U8: =COUNTIF(L7:L41,T8) -> 6 | V8: =U8/(W4-U11) -> 0.1714285714 | W8: =IF(V8=0,0,(V8*((LOG(V8))/LOG(2)))) -> -0.4361692314 | Y8: =N8 -> 112 | Z8: =COUNTIF(L42:L75,Y8) -> 11 | AA8: =Z8/(AB4-Z11) -> 0.3235294118 | AB8: =IF(AA8=0,0,(AA8*((LOG(AA8))/LOG(2)))) -> -0.5267159838 | AD8: =N8 -> 112 | AE8: =COUNTIF(L76:L110,AD8) -> 15 | AF8: =AE8/(AG4-AE11) -> 0.4285714286 | AG8: =IF(AF8=0,0,(AF8*((LOG(AF8))/LOG(2)))) -> -0.5238824663 | AI8: =N8 -> 112 | AJ8: =COUNTIF(L111:L145,AI8) -> 18 | AK8: =AJ8/(AL4-AJ11) -> 0.5142857143 | AL8: =IF(AK8=0,0,(AK8*((LOG(AK8))/LOG(2)))) -> -0.4933841223 | AN8: =N8 -> 112 | AO8: =COUNTIF(L146:L179,AN8) -> 9 | AP8: =AO8/(AQ4-AO11) -> 0.2647058824 | AQ8: =IF(AP8=0,0,(AP8*((LOG(AP8))/LOG(2)))) -> -0.5075835458 | AS8: =N8 -> 112 | AT8: =COUNTIF(L180:L214,AS8) -> 15 | AU8: =AT8/(AV4-AT11) -> 0.4285714286 | AV8: =IF(AU8=0,0,(AU8*((LOG(AU8))/LOG(2)))) -> -0.5238824663
A9: 12 | B9: 242 | C9: 24 | D9: 250 | E9: 24 | F9: 256 | K9: 0 | L9: 122 | N9: 121 | O9: =COUNTIF($L$7:$L$500,N9) -> 6 | P9: =O9/$Q$4 -> 0.02884615385 | Q9: =IF(P9=0,0,(P9*((LOG(P9))/LOG(2)))) -> -0.1475618428 | T9: =N9 -> 121 | U9: =COUNTIF(L7:L41,T9) -> 2 | V9: =U9/(W4-U11) -> 0.05714285714 | W9: =IF(V9=0,0,(V9*((LOG(V9))/LOG(2)))) -> -0.2359590295 | Y9: =N9 -> 121 | Z9: =COUNTIF(L42:L75,Y9) -> 1 | AA9: =Z9/(AB4-Z11) -> 0.02941176471 | AB9: =IF(AA9=0,0,(AA9*((LOG(AA9))/LOG(2)))) -> -0.14963126 | AD9: =N9 -> 121 | AE9: =COUNTIF(L76:L110,AD9) -> 1 | AF9: =AE9/(AG4-AE11) -> 0.02857142857 | AG9: =IF(AF9=0,0,(AF9*((LOG(AF9))/LOG(2)))) -> -0.1465509433 | AI9: =N9 -> 121 | AJ9: =COUNTIF(L111:L145,AI9) -> 2 | AK9: =AJ9/(AL4-AJ11) -> 0.05714285714 | AL9: =IF(AK9=0,0,(AK9*((LOG(AK9))/LOG(2)))) -> -0.2359590295 | AN9: =N9 -> 121 | AO9: =COUNTIF(L146:L179,AN9) -> 0 | AP9: =AO9/(AQ4-AO11) -> 0 | AQ9: =IF(AP9=0,0,(AP9*((LOG(AP9))/LOG(2)))) -> 0 | AS9: =N9 -> 121 | AT9: =COUNTIF(L180:L214,AS9) -> 0 | AU9: =AT9/(AV4-AT11) -> 0 | AV9: =IF(AU9=0,0,(AU9*((LOG(AU9))/LOG(2)))) -> 0
A10: 21 | B10: 351 | C10: 22 | D10: 355 | E10: 24 | F10: 359 | K10: 0 | L10: 222 | N10: 122 | O10: =COUNTIF($L$7:$L$500,N10) -> 35 | P10: =O10/$Q$4 -> 0.1682692308 | Q10: =IF(P10=0,0,(P10*((LOG(P10))/LOG(2)))) -> -0.4326465603 | T10: =N10 -> 122 | U10: =COUNTIF(L7:L41,T10) -> 8 | V10: =U10/(W4-U11) -> 0.2285714286 | W10: =IF(V10=0,0,(V10*((LOG(V10))/LOG(2)))) -> -0.486693261 | Y10: =N10 -> 122 | Z10: =COUNTIF(L42:L75,Y10) -> 2 | AA10: =Z10/(AB4-Z11) -> 0.05882352941 | AB10: =IF(AA10=0,0,(AA10*((LOG(AA10))/LOG(2)))) -> -0.2404389907 | AD10: =N10 -> 122 | AE10: =COUNTIF(L76:L110,AD10) -> 6 | AF10: =AE10/(AG4-AE11) -> 0.1714285714 | AG10: =IF(AF10=0,0,(AF10*((LOG(AF10))/LOG(2)))) -> -0.4361692314 | AI10: =N10 -> 122 | AJ10: =COUNTIF(L111:L145,AI10) -> 3 | AK10: =AJ10/(AL4-AJ11) -> 0.08571428571 | AL10: =IF(AK10=0,0,(AK10*((LOG(AK10))/LOG(2)))) -> -0.3037989014 | AN10: =N10 -> 122 | AO10: =COUNTIF(L146:L179,AN10) -> 9 | AP10: =AO10/(AQ4-AO11) -> 0.2647058824 | AQ10: =IF(AP10=0,0,(AP10*((LOG(AP10))/LOG(2)))) -> -0.5075835458 | AS10: =N10 -> 122 | AT10: =COUNTIF(L180:L214,AS10) -> 7 | AU10: =AT10/(AV4-AT11) -> 0.2 | AV10: =IF(AU10=0,0,(AU10*((LOG(AU10))/LOG(2)))) -> -0.464385619
A11: 12 | B11: 458 | C11: 24 | D11: 465 | E11: 24 | F11: 470 | K11: 0 | L11: 122 | N11: 211 | O11: =COUNTIF($L$7:$L$500,N11) -> 0 | P11: =O11/$Q$4 -> 0 | Q11: =IF(P11=0,0,(P11*((LOG(P11))/LOG(2)))) -> 0 | T11: =N11 -> 211 | U11: =COUNTIF(L7:L41,T11) -> 0 | Y11: =N11 -> 211 | Z11: =COUNTIF(L42:L75,Y11) -> 0 | AD11: =N11 -> 211 | AE11: =COUNTIF(L76:L110,AD11) -> 0 | AI11: =N11 -> 211 | AJ11: =COUNTIF(L111:L145,AI11) -> 0 | AN11: =N11 -> 211 | AO11: =COUNTIF(L146:L179,AN11) -> 0 | AS11: =N11 -> 211 | AT11: =COUNTIF(L180:L214,AS11) -> 0
A12: 12 | B12: 568 | C12: 13 | D12: 572 | E12: 24 | F12: 606 | K12: 0 | L12: 112 | N12: 212 | O12: =COUNTIF($L$7:$L$500,N12) -> 17 | P12: =O12/$Q$4 -> 0.08173076923 | Q12: =IF(P12=0,0,(P12*((LOG(P12))/LOG(2)))) -> -0.2952913794 | T12: =N12 -> 212 | U12: =COUNTIF(L7:L41,T12) -> 1 | V12: =U12/(W4-U11) -> 0.02857142857 | W12: =IF(V12=0,0,(V12*((LOG(V12))/LOG(2)))) -> -0.1465509433 | Y12: =N12 -> 212 | Z12: =COUNTIF(L42:L75,Y12) -> 6 | AA12: =Z12/(AB4-Z11) -> 0.1764705882 | AB12: =IF(AA12=0,0,(AA12*((LOG(AA12))/LOG(2)))) -> -0.4416177072 | AD12: =N12 -> 212 | AE12: =COUNTIF(L76:L110,AD12) -> 6 | AF12: =AE12/(AG4-AE11) -> 0.1714285714 | AG12: =IF(AF12=0,0,(AF12*((LOG(AF12))/LOG(2)))) -> -0.4361692314 | AI12: =N12 -> 212 | AJ12: =COUNTIF(L111:L145,AI12) -> 1 | AK12: =AJ12/(AL4-AJ11) -> 0.02857142857 | AL12: =IF(AK12=0,0,(AK12*((LOG(AK12))/LOG(2)))) -> -0.1465509433 | AN12: =N12 -> 212 | AO12: =COUNTIF(L146:L179,AN12) -> 3 | AP12: =AO12/(AQ4-AO11) -> 0.08823529412 | AQ12: =IF(AP12=0,0,(AP12*((LOG(AP12))/LOG(2)))) -> -0.3090441477 | AS12: =N12 -> 212 | AT12: =COUNTIF(L180:L214,AS12) -> 0 | AU12: =AT12/(AV4-AT11) -> 0 | AV12: =IF(AU12=0,0,(AU12*((LOG(AU12))/LOG(2)))) -> 0
A13: 21 | B13: 703 | C13: 22 | D13: 707 | E13: 24 | F13: 716 | K13: 0 | L13: 222 | N13: 221 | O13: =COUNTIF($L$7:$L$500,N13) -> 19 | P13: =O13/$Q$4 -> 0.09134615385 | Q13: =IF(P13=0,0,(P13*((LOG(P13))/LOG(2)))) -> -0.315373711 | T13: =N13 -> 221 | U13: =COUNTIF(L7:L41,T13) -> 3 | V13: =U13/(W4-U11) -> 0.08571428571 | W13: =IF(V13=0,0,(V13*((LOG(V13))/LOG(2)))) -> -0.3037989014 | Y13: =N13 -> 221 | Z13: =COUNTIF(L42:L75,Y13) -> 8 | AA13: =Z13/(AB4-Z11) -> 0.2352941176 | AB13: =IF(AA13=0,0,(AA13*((LOG(AA13))/LOG(2)))) -> -0.4911677274 | AD13: =N13 -> 221 | AE13: =COUNTIF(L76:L110,AD13) -> 2 | AF13: =AE13/(AG4-AE11) -> 0.05714285714 | AG13: =IF(AF13=0,0,(AF13*((LOG(AF13))/LOG(2)))) -> -0.2359590295 | AI13: =N13 -> 221 | AJ13: =COUNTIF(L111:L145,AI13) -> 2 | AK13: =AJ13/(AL4-AJ11) -> 0.05714285714 | AL13: =IF(AK13=0,0,(AK13*((LOG(AK13))/LOG(2)))) -> -0.2359590295 | AN13: =N13 -> 221 | AO13: =COUNTIF(L146:L179,AN13) -> 3 | AP13: =AO13/(AQ4-AO11) -> 0.08823529412 | AQ13: =IF(AP13=0,0,(AP13*((LOG(AP13))/LOG(2)))) -> -0.3090441477 | AS13: =N13 -> 221 | AT13: =COUNTIF(L180:L214,AS13) -> 1 | AU13: =AT13/(AV4-AT11) -> 0.02857142857 | AV13: =IF(AU13=0,0,(AU13*((LOG(AU13))/LOG(2)))) -> -0.1465509433
A14: 12 | B14: 820 | C14: 24 | D14: 827 | E14: 24 | F14: 834 | K14: 0 | L14: 122 | N14: 222 | O14: =COUNTIF($L$7:$L$500,N14) -> 28 | P14: =O14/$Q$4 -> 0.1346153846 | Q14: =IF(P14=0,0,(P14*((LOG(P14))/LOG(2)))) -> -0.3894537225 | T14: =N14 -> 222 | U14: =COUNTIF(L7:L41,T14) -> 7 | V14: =U14/(W4-U11) -> 0.2 | W14: =IF(V14=0,0,(V14*((LOG(V14))/LOG(2)))) -> -0.464385619 | Y14: =N14 -> 222 | Z14: =COUNTIF(L42:L75,Y14) -> 4 | AA14: =Z14/(AB4-Z11) -> 0.1176470588 | AB14: =IF(AA14=0,0,(AA14*((LOG(AA14))/LOG(2)))) -> -0.3632309225 | AD14: =N14 -> 222 | AE14: =COUNTIF(L76:L110,AD14) -> 1 | AF14: =AE14/(AG4-AE11) -> 0.02857142857 | AG14: =IF(AF14=0,0,(AF14*((LOG(AF14))/LOG(2)))) -> -0.1465509433 | AI14: =N14 -> 222 | AJ14: =COUNTIF(L111:L145,AI14) -> 3 | AK14: =AJ14/(AL4-AJ11) -> 0.08571428571 | AL14: =IF(AK14=0,0,(AK14*((LOG(AK14))/LOG(2)))) -> -0.3037989014 | AN14: =N14 -> 222 | AO14: =COUNTIF(L146:L179,AN14) -> 3 | AP14: =AO14/(AQ4-AO11) -> 0.08823529412 | AQ14: =IF(AP14=0,0,(AP14*((LOG(AP14))/LOG(2)))) -> -0.3090441477 | AS14: =N14 -> 222 | AT14: =COUNTIF(L180:L214,AS14) -> 10 | AU14: =AT14/(AV4-AT11) -> 0.2857142857 | AV14: =IF(AU14=0,0,(AU14*((LOG(AU14))/LOG(2)))) -> -0.5163871206
A15: 12 | B15: 937 | C15: 24 | D15: 944 | E15: 24 | F15: 954 | K15: 0 | L15: 122 | P15: =SUM(P7:P14) -> 1 | Q15: =-SUM(Q7:Q14) -> 2.507078625 | V15: =SUM(V7:V14) -> 1 | W15: =-SUM(W7:W14) -> 2.560250247 | AA15: =SUM(AA7:AA14) -> 1 | AB15: =-SUM(AB7:AB14) -> 2.453241582 | AF15: =SUM(AF7:AF14) -> 1 | AG15: =-SUM(AG7:AG14) -> 2.28291419 | AK15: =SUM(AK7:AK14) -> 1 | AL15: =-SUM(AL7:AL14) -> 2.155620159 | AP15: =SUM(AP7:AP14) -> 1 | AQ15: =-SUM(AQ7:AQ14) -> 2.411733518 | AU15: =SUM(AU7:AU14) -> 1 | AV15: =-SUM(AV7:AV14) -> 1.887165179
A16: 12 | B16: 1055 | C16: 24 | D16: 1062 | E16: 24 | F16: 1067 | K16: 0 | L16: 122 | P16: U= | Q16: =Q15/(LOG(Q4)/LOG(2)) -> 0.3255760342 | V16: U1= | W16: =W15/(LOG(W4)/LOG(2)) -> 0.4991438839 | AA16: U2= | AB16: =AB15/(LOG(AB4)/LOG(2)) -> 0.4822131696 | AF16: U3= | AG16: =AG15/(LOG(AG4)/LOG(2)) -> 0.4450747176 | AK16: U4= | AL16: =AL15/(LOG(AL4)/LOG(2)) -> 0.4202575977 | AP16: U5= | AQ16: =AQ15/(LOG(AQ4)/LOG(2)) -> 0.4740542768 | AU16: U6= | AV16: =AV15/(LOG(AV4)/LOG(2)) -> 0.3679198774
A17: 12 | B17: 1166 | C17: 13 | D17: 1169 | E17: 13 | F17: 1173 | K17: 0 | L17: 111
A18: 12 | B18: 1270 | C18: 13 | D18: 1274 | E18: 13 | F18: 1284 | K18: 0 | L18: 111
A19: 21 | B19: 1383 | C19: 22 | D19: 1388 | E19: 13 | F19: 1398 | K19: 0 | L19: 221 | N19: Total Target Seq
A20: 21 | B20: 1498 | C20: 22 | D20: 1502 | E20: 24 | F20: 1506 | K20: 0 | L20: 222 | N20: =COUNTIF(L7:L214,G3) -> 0 | P20: 35 | Q20: 34 | R20: 35 | S20: 35 | T20: 34 | U20: 35
A21: 21 | B21: 1604 | C21: 22 | D21: 1607 | E21: 24 | F21: 1612 | K21: 0 | L21: 222 | P21: % of reinforcement given in 6 equal intervals based on number of trials
A22: 12 | B22: 1713 | C22: 13 | D22: 1717 | E22: 13 | F22: 1722 | K22: 0 | L22: 111 | P22: %_1 | Q22: %_2 | R22: %_3 | S22: %_4 | T22: %_5 | U22: %_6
A23: 21 | B23: 1824 | C23: 22 | D23: 1828 | E23: 24 | F23: 1832 | K23: 0 | L23: 222 | O23: target sequence | P23: =$G$3 -> 211 | Q23: =$G$3 -> 211 | R23: =$G$3 -> 211 | S23: =$G$3 -> 211 | T23: =$G$3 -> 211 | U23: =$G$3 -> 211
A24: 12 | B24: 1931 | C24: 13 | D24: 1934 | E24: 13 | F24: 1938 | K24: 0 | L24: 111 | O24: total reinforcement | P24: =U11 -> 0 | Q24: =Z11 -> 0 | R24: =AE11 -> 0 | S24: =AJ11 -> 0 | T24: =AO11 -> 0 | U24: =AT11 -> 0
A25: 12 | B25: 2044 | C25: 24 | D25: 2051 | E25: 24 | F25: 2057 | K25: 0 | L25: 122 | O25: % target
A26: 12 | B26: 2155 | C26: 13 | D26: 2164 | E26: 24 | F26: 2170 | K26: 0 | L26: 112 | O26: CCRF
A27: 21 | B27: 2271 | C27: 22 | D27: 2284 | E27: 13 | F27: 2291 | K27: 0 | L27: 221 | O27: % CCRf
A28: 12 | B28: 2396 | C28: 24 | D28: 2403 | E28: 24 | F28: 2423 | K28: 0 | L28: 122 | O28: average response rate | P28: =F41/P20 -> 113.4857143 | Q28: =(F75-F41)/Q20 -> 117.9117647 | R28: =(F110-F75)/R20 -> 115.8285714 | S28: =(F145-F110)/S20 -> 114.5428571 | T28: =(F179-F145)/T20 -> 115.7941176 | U28: =(F214-F179)/U20 -> 112.2285714
A29: 12 | B29: 2539 | C29: 24 | D29: 2559 | E29: 13 | F29: 2569 | K29: 0 | L29: 121
A30: 21 | B30: 2670 | C30: 11 | D30: 2678 | E30: 22 | F30: 2685 | K30: 0 | L30: 212
A31: 21 | B31: 2782 | C31: 22 | D31: 2786 | E31: 13 | F31: 2796 | K31: 0 | L31: 221
A32: 12 | B32: 2896 | C32: 13 | D32: 2907 | E32: 24 | F32: 2917 | K32: 0 | L32: 112
A33: 12 | B33: 3025 | C33: 13 | D33: 3043 | E33: 24 | F33: 3054 | K33: 0 | L33: 112
A34: 12 | B34: 3153 | C34: 13 | D34: 3160 | E34: 13 | F34: 3171 | K34: 0 | L34: 111
A35: 21 | B35: 3273 | C35: 22 | D35: 3277 | E35: 24 | F35: 3284 | K35: 0 | L35: 222
A36: 12 | B36: 3386 | C36: 13 | D36: 3395 | E36: 24 | F36: 3403 | K36: 0 | L36: 112
A37: 12 | B37: 3500 | C37: 13 | D37: 3506 | E37: 13 | F37: 3510 | K37: 0 | L37: 111
A38: 12 | B38: 3615 | C38: 13 | D38: 3625 | E38: 24 | F38: 3633 | K38: 0 | L38: 112
A39: 21 | B39: 3733 | C39: 22 | D39: 3737 | E39: 24 | F39: 3742 | K39: 0 | L39: 222
A40: 12 | B40: 3839 | C40: 13 | D40: 3845 | E40: 13 | F40: 3852 | K40: 0 | L40: 111
A41: 12 | B41: 3953 | C41: 24 | D41: 3961 | E41: 13 | F41: 3972 | K41: 0 | L41: 121
A42: 21 | B42: 4071 | C42: 11 | D42: 4084 | E42: 22 | F42: 4092 | K42: 0 | L42: 212
A43: 21 | B43: 4191 | C43: 22 | D43: 4199 | E43: 13 | F43: 4209 | K43: 0 | L43: 221
A44: 12 | B44: 4312 | C44: 24 | D44: 4319 | E44: 24 | F44: 4325 | K44: 0 | L44: 122
A45: 21 | B45: 4426 | C45: 22 | D45: 4430 | E45: 13 | F45: 4437 | K45: 0 | L45: 221
A46: 12 | B46: 4541 | C46: 24 | D46: 4549 | E46: 24 | F46: 4571 | K46: 0 | L46: 122
A47: 21 | B47: 4688 | C47: 22 | D47: 4696 | E47: 13 | F47: 4703 | K47: 0 | L47: 221
A48: 21 | B48: 4809 | C48: 11 | D48: 4817 | E48: 22 | F48: 4825 | K48: 0 | L48: 212
A49: 21 | B49: 4925 | C49: 11 | D49: 4935 | E49: 22 | F49: 4943 | K49: 0 | L49: 212
A50: 21 | B50: 5042 | C50: 22 | D50: 5046 | E50: 24 | F50: 5053 | K50: 0 | L50: 222
A51: 21 | B51: 5150 | C51: 22 | D51: 5153 | E51: 24 | F51: 5158 | K51: 0 | L51: 222
A52: 12 | B52: 5256 | C52: 13 | D52: 5264 | E52: 24 | F52: 5282 | K52: 0 | L52: 112
A53: 12 | B53: 5392 | C53: 24 | D53: 5410 | E53: 13 | F53: 5427 | K53: 0 | L53: 121
A54: 21 | B54: 5530 | C54: 11 | D54: 5555 | E54: 22 | F54: 5567 | K54: 0 | L54: 212
A55: 21 | B55: 5668 | C55: 11 | D55: 5676 | E55: 22 | F55: 5694 | K55: 0 | L55: 212
A56: 21 | B56: 5794 | C56: 11 | D56: 5802 | E56: 22 | F56: 5811 | K56: 0 | L56: 212
A57: 21 | B57: 5911 | C57: 22 | D57: 5920 | E57: 13 | F57: 5927 | K57: 0 | L57: 221
A58: 21 | B58: 6039 | C58: 22 | D58: 6043 | E58: 13 | F58: 6055 | K58: 0 | L58: 221
A59: 21 | B59: 6163 | C59: 22 | D59: 6168 | E59: 13 | F59: 6181 | K59: 0 | L59: 221
A60: 21 | B60: 6284 | C60: 22 | D60: 6288 | E60: 13 | F60: 6302 | K60: 0 | L60: 221
A61: 12 | B61: 6403 | C61: 13 | D61: 6410 | E61: 24 | F61: 6418 | K61: 0 | L61: 112
A62: 12 | B62: 6516 | C62: 13 | D62: 6523 | E62: 24 | F62: 6532 | K62: 0 | L62: 112
A63: 21 | B63: 6627 | C63: 22 | D63: 6631 | E63: 24 | F63: 6635 | K63: 0 | L63: 222
A64: 21 | B64: 6733 | C64: 22 | D64: 6736 | E64: 24 | F64: 6753 | K64: 0 | L64: 222
A65: 12 | B65: 6851 | C65: 13 | D65: 6858 | E65: 24 | F65: 6866 | K65: 0 | L65: 112
A66: 12 | B66: 6964 | C66: 13 | D66: 6971 | E66: 24 | F66: 6978 | K66: 0 | L66: 112
A67: 12 | B67: 7075 | C67: 13 | D67: 7079 | E67: 13 | F67: 7083 | K67: 0 | L67: 111
A68: 12 | B68: 7181 | C68: 13 | D68: 7189 | E68: 24 | F68: 7200 | K68: 0 | L68: 112
A69: 12 | B69: 7297 | C69: 13 | D69: 7308 | E69: 24 | F69: 7315 | K69: 0 | L69: 112
A70: 21 | B70: 7410 | C70: 22 | D70: 7415 | E70: 13 | F70: 7428 | K70: 0 | L70: 221
A71: 12 | B71: 7529 | C71: 13 | D71: 7537 | E71: 24 | F71: 7546 | K71: 0 | L71: 112
A72: 12 | B72: 7643 | C72: 13 | D72: 7650 | E72: 24 | F72: 7657 | K72: 0 | L72: 112
A73: 12 | B73: 7754 | C73: 13 | D73: 7758 | E73: 24 | F73: 7765 | K73: 0 | L73: 112
A74: 12 | B74: 7863 | C74: 13 | D74: 7867 | E74: 13 | F74: 7870 | K74: 0 | L74: 111
A75: 12 | B75: 7967 | C75: 13 | D75: 7974 | E75: 24 | F75: 7981 | K75: 0 | L75: 112
A76: 12 | B76: 8079 | C76: 13 | D76: 8086 | E76: 24 | F76: 8093 | K76: 0 | L76: 112
A77: 12 | B77: 8190 | C77: 13 | D77: 8194 | E77: 13 | F77: 8201 | K77: 0 | L77: 111
A78: 12 | B78: 8298 | C78: 24 | D78: 8307 | E78: 24 | F78: 8311 | K78: 0 | L78: 122
A79: 21 | B79: 8411 | C79: 11 | D79: 8425 | E79: 22 | F79: 8431 | K79: 0 | L79: 212
A80: 12 | B80: 8524 | C80: 24 | D80: 8531 | E80: 24 | F80: 8536 | K80: 0 | L80: 122
A81: 12 | B81: 8632 | C81: 13 | D81: 8636 | E81: 24 | F81: 8647 | K81: 0 | L81: 112
A82: 12 | B82: 8745 | C82: 13 | D82: 8749 | E82: 24 | F82: 8756 | K82: 0 | L82: 112
A83: 12 | B83: 8853 | C83: 13 | D83: 8860 | E83: 24 | F83: 8868 | K83: 0 | L83: 112
A84: 21 | B84: 8979 | C84: 11 | D84: 8998 | E84: 22 | F84: 9011 | K84: 0 | L84: 212
A85: 21 | B85: 9110 | C85: 11 | D85: 9122 | E85: 22 | F85: 9144 | K85: 0 | L85: 212
A86: 21 | B86: 9245 | C86: 22 | D86: 9249 | E86: 24 | F86: 9252 | K86: 0 | L86: 222
A87: 21 | B87: 9347 | C87: 11 | D87: 9362 | E87: 22 | F87: 9370 | K87: 0 | L87: 212
A88: 12 | B88: 9473 | C88: 13 | D88: 9488 | E88: 24 | F88: 9496 | K88: 0 | L88: 112
A89: 12 | B89: 9594 | C89: 13 | D89: 9600 | E89: 24 | F89: 9608 | K89: 0 | L89: 112
A90: 12 | B90: 9705 | C90: 24 | D90: 9715 | E90: 24 | F90: 9723 | K90: 0 | L90: 122
A91: 12 | B91: 9819 | C91: 13 | D91: 9833 | E91: 24 | F91: 9843 | K91: 0 | L91: 112
A92: 12 | B92: 9940 | C92: 13 | D92: 9947 | E92: 24 | F92: 9958 | K92: 0 | L92: 112
A93: 12 | B93: 10057 | C93: 13 | D93: 10069 | E93: 24 | F93: 10076 | K93: 0 | L93: 112
A94: 12 | B94: 10172 | C94: 13 | D94: 10176 | E94: 13 | F94: 10179 | K94: 0 | L94: 111
A95: 12 | B95: 10284 | C95: 24 | D95: 10292 | E95: 24 | F95: 10298 | K95: 0 | L95: 122
A96: 12 | B96: 10394 | C96: 13 | D96: 10398 | E96: 13 | F96: 10409 | K96: 0 | L96: 111
A97: 12 | B97: 10513 | C97: 24 | D97: 10520 | E97: 24 | F97: 10525 | K97: 0 | L97: 122
A98: 12 | B98: 10624 | C98: 13 | D98: 10628 | E98: 24 | F98: 10635 | K98: 0 | L98: 112
A99: 12 | B99: 10736 | C99: 13 | D99: 10746 | E99: 24 | F99: 10756 | K99: 0 | L99: 112
A100: 21 | B100: 10855 | C100: 11 | D100: 10863 | E100: 22 | F100: 10870 | K100: 0 | L100: 212
A101: 21 | B101: 10968 | C101: 22 | D101: 10973 | E101: 13 | F101: 10981 | K101: 0 | L101: 221
A102: 12 | B102: 11080 | C102: 24 | D102: 11090 | E102: 24 | F102: 11098 | K102: 0 | L102: 122
A103: 12 | B103: 11195 | C103: 13 | D103: 11202 | E103: 24 | F103: 11213 | K103: 0 | L103: 112
A104: 12 | B104: 11312 | C104: 13 | D104: 11316 | E104: 24 | F104: 11325 | K104: 0 | L104: 112
A105: 12 | B105: 11423 | C105: 13 | D105: 11427 | E105: 13 | F105: 11435 | K105: 0 | L105: 111
A106: 12 | B106: 11542 | C106: 24 | D106: 11549 | E106: 13 | F106: 11561 | K106: 0 | L106: 121
A107: 12 | B107: 11661 | C107: 13 | D107: 11670 | E107: 24 | F107: 11677 | K107: 0 | L107: 112
A108: 12 | B108: 11774 | C108: 13 | D108: 11781 | E108: 24 | F108: 11792 | K108: 0 | L108: 112
A109: 21 | B109: 11895 | C109: 11 | D109: 11905 | E109: 22 | F109: 11912 | K109: 0 | L109: 212
A110: 21 | B110: 12012 | C110: 22 | D110: 12016 | E110: 13 | F110: 12035 | K110: 0 | L110: 221
A111: 21 | B111: 12132 | C111: 22 | D111: 12147 | E111: 13 | F111: 12155 | K111: 0 | L111: 221
A112: 12 | B112: 12253 | C112: 13 | D112: 12260 | E112: 13 | F112: 12267 | K112: 0 | L112: 111
A113: 12 | B113: 12364 | C113: 13 | D113: 12376 | E113: 24 | F113: 12383 | K113: 0 | L113: 112
A114: 12 | B114: 12487 | C114: 13 | D114: 12499 | E114: 24 | F114: 12509 | K114: 0 | L114: 112
A115: 12 | B115: 12605 | C115: 13 | D115: 12608 | E115: 13 | F115: 12615 | K115: 0 | L115: 111
A116: 21 | B116: 12713 | C116: 22 | D116: 12718 | E116: 13 | F116: 12726 | K116: 0 | L116: 221
A117: 12 | B117: 12824 | C117: 13 | D117: 12838 | E117: 24 | F117: 12845 | K117: 0 | L117: 112
A118: 12 | B118: 12943 | C118: 13 | D118: 12954 | E118: 24 | F118: 12961 | K118: 0 | L118: 112
A119: 12 | B119: 13058 | C119: 13 | D119: 13062 | E119: 24 | F119: 13070 | K119: 0 | L119: 112
A120: 12 | B120: 13167 | C120: 13 | D120: 13176 | E120: 24 | F120: 13184 | K120: 0 | L120: 112
A121: 12 | B121: 13280 | C121: 13 | D121: 13283 | E121: 13 | F121: 13291 | K121: 0 | L121: 111
A122: 12 | B122: 13387 | C122: 13 | D122: 13393 | E122: 24 | F122: 13400 | K122: 0 | L122: 112
A123: 12 | B123: 13497 | C123: 13 | D123: 13501 | E123: 24 | F123: 13509 | K123: 0 | L123: 112
A124: 12 | B124: 13607 | C124: 13 | D124: 13612 | E124: 24 | F124: 13619 | K124: 0 | L124: 112
A125: 12 | B125: 13718 | C125: 13 | D125: 13721 | E125: 13 | F125: 13734 | K125: 0 | L125: 111
A126: 12 | B126: 13839 | C126: 24 | D126: 13847 | E126: 13 | F126: 13857 | K126: 0 | L126: 121
A127: 21 | B127: 13973 | C127: 22 | D127: 13990 | E127: 24 | F127: 14009 | K127: 0 | L127: 222
A128: 21 | B128: 14115 | C128: 11 | D128: 14122 | E128: 22 | F128: 14144 | K128: 0 | L128: 212
A129: 12 | B129: 14236 | C129: 24 | D129: 14246 | E129: 13 | F129: 14256 | K129: 0 | L129: 121
A130: 21 | B130: 14359 | C130: 22 | D130: 14363 | E130: 24 | F130: 14367 | K130: 0 | L130: 222
A131: 12 | B131: 14463 | C131: 13 | D131: 14467 | E131: 24 | F131: 14474 | K131: 0 | L131: 112
A132: 12 | B132: 14571 | C132: 24 | D132: 14579 | E132: 24 | F132: 14583 | K132: 0 | L132: 122
A133: 12 | B133: 14679 | C133: 13 | D133: 14684 | E133: 24 | F133: 14691 | K133: 0 | L133: 112
A134: 12 | B134: 14789 | C134: 24 | D134: 14796 | E134: 24 | F134: 14800 | K134: 0 | L134: 122
A135: 12 | B135: 14897 | C135: 13 | D135: 14900 | E135: 24 | F135: 14909 | K135: 0 | L135: 112
A136: 12 | B136: 15007 | C136: 13 | D136: 15011 | E136: 24 | F136: 15018 | K136: 0 | L136: 112
A137: 21 | B137: 15118 | C137: 22 | D137: 15122 | E137: 24 | F137: 15137 | K137: 0 | L137: 222
A138: 12 | B138: 15234 | C138: 13 | D138: 15238 | E138: 24 | F138: 15244 | K138: 0 | L138: 112
A139: 12 | B139: 15341 | C139: 13 | D139: 15354 | E139: 24 | F139: 15361 | K139: 0 | L139: 112
A140: 12 | B140: 15460 | C140: 13 | D140: 15464 | E140: 13 | F140: 15471 | K140: 0 | L140: 111
A141: 12 | B141: 15568 | C141: 13 | D141: 15572 | E141: 13 | F141: 15579 | K141: 0 | L141: 111
A142: 12 | B142: 15677 | C142: 13 | D142: 15689 | E142: 24 | F142: 15696 | K142: 0 | L142: 112
A143: 12 | B143: 15798 | C143: 13 | D143: 15813 | E143: 24 | F143: 15821 | K143: 0 | L143: 112
A144: 12 | B144: 15917 | C144: 13 | D144: 15921 | E144: 24 | F144: 15930 | K144: 0 | L144: 112
A145: 12 | B145: 16029 | C145: 24 | D145: 16038 | E145: 24 | F145: 16044 | K145: 0 | L145: 122
A146: 12 | B146: 16142 | C146: 13 | D146: 16146 | E146: 24 | F146: 16155 | K146: 0 | L146: 112
A147: 21 | B147: 16253 | C147: 11 | D147: 16265 | E147: 22 | F147: 16273 | K147: 0 | L147: 212
A148: 21 | B148: 16369 | C148: 22 | D148: 16374 | E148: 13 | F148: 16385 | K148: 0 | L148: 221
A149: 12 | B149: 16483 | C149: 13 | D149: 16487 | E149: 24 | F149: 16495 | K149: 0 | L149: 112
A150: 12 | B150: 16590 | C150: 24 | D150: 16598 | E150: 24 | F150: 16607 | K150: 0 | L150: 122
A151: 12 | B151: 16704 | C151: 13 | D151: 16708 | E151: 13 | F151: 16716 | K151: 0 | L151: 111
A152: 12 | B152: 16815 | C152: 13 | D152: 16825 | E152: 24 | F152: 16831 | K152: 0 | L152: 112
A153: 12 | B153: 16931 | C153: 13 | D153: 16938 | E153: 24 | F153: 16945 | K153: 0 | L153: 112
A154: 21 | B154: 17049 | C154: 11 | D154: 17058 | E154: 22 | F154: 17065 | K154: 0 | L154: 212
A155: 21 | B155: 17173 | C155: 22 | D155: 17183 | E155: 24 | F155: 17190 | K155: 0 | L155: 222
A156: 12 | B156: 17288 | C156: 13 | D156: 17294 | E156: 13 | F156: 17301 | K156: 0 | L156: 111
A157: 12 | B157: 17406 | C157: 24 | D157: 17413 | E157: 24 | F157: 17420 | K157: 0 | L157: 122
A158: 12 | B158: 17521 | C158: 13 | D158: 17530 | E158: 13 | F158: 17543 | K158: 0 | L158: 111
A159: 12 | B159: 17649 | C159: 24 | D159: 17656 | E159: 24 | F159: 17663 | K159: 0 | L159: 122
A160: 21 | B160: 17761 | C160: 22 | D160: 17765 | E160: 24 | F160: 17771 | K160: 0 | L160: 222
A161: 12 | B161: 17870 | C161: 24 | D161: 17881 | E161: 24 | F161: 17887 | K161: 0 | L161: 122
A162: 12 | B162: 17986 | C162: 13 | D162: 17990 | E162: 13 | F162: 17998 | K162: 0 | L162: 111
A163: 21 | B163: 18099 | C163: 11 | D163: 18109 | E163: 22 | F163: 18116 | K163: 0 | L163: 212
A164: 21 | B164: 18216 | C164: 22 | D164: 18220 | E164: 13 | F164: 18233 | K164: 0 | L164: 221
A165: 12 | B165: 18330 | C165: 13 | D165: 18337 | E165: 24 | F165: 18349 | K165: 0 | L165: 112
A166: 12 | B166: 18449 | C166: 13 | D166: 18453 | E166: 24 | F166: 18460 | K166: 0 | L166: 112
A167: 12 | B167: 18565 | C167: 24 | D167: 18572 | E167: 24 | F167: 18592 | K167: 0 | L167: 122
A168: 12 | B168: 18685 | C168: 24 | D168: 18696 | E168: 24 | F168: 18708 | K168: 0 | L168: 122
A169: 12 | B169: 18806 | C169: 13 | D169: 18809 | E169: 13 | F169: 18819 | K169: 0 | L169: 111
A170: 12 | B170: 18917 | C170: 13 | D170: 18921 | E170: 13 | F170: 18928 | K170: 0 | L170: 111
A171: 21 | B171: 19033 | C171: 22 | D171: 19037 | E171: 13 | F171: 19047 | K171: 0 | L171: 221
A172: 12 | B172: 19151 | C172: 13 | D172: 19161 | E172: 24 | F172: 19169 | K172: 0 | L172: 112
A173: 21 | B173: 19269 | C173: 22 | D173: 19288 | E173: 24 | F173: 19295 | K173: 0 | L173: 222
A174: 12 | B174: 19392 | C174: 24 | D174: 19403 | E174: 24 | F174: 19410 | K174: 0 | L174: 122
A175: 12 | B175: 19509 | C175: 13 | D175: 19514 | E175: 24 | F175: 19522 | K175: 0 | L175: 112
A176: 12 | B176: 19621 | C176: 24 | D176: 19629 | E176: 24 | F176: 19636 | K176: 0 | L176: 122
A177: 12 | B177: 19746 | C177: 24 | D177: 19754 | E177: 24 | F177: 19761 | K177: 0 | L177: 122
A178: 12 | B178: 19858 | C178: 13 | D178: 19862 | E178: 13 | F178: 19869 | K178: 0 | L178: 111
A179: 12 | B179: 19967 | C179: 13 | D179: 19974 | E179: 24 | F179: 19981 | K179: 0 | L179: 112
A180: 12 | B180: 20085 | C180: 24 | D180: 20092 | E180: 24 | F180: 20098 | K180: 0 | L180: 122
A181: 12 | B181: 20196 | C181: 13 | D181: 20204 | E181: 13 | F181: 20213 | K181: 0 | L181: 111
A182: 12 | B182: 20311 | C182: 13 | D182: 20314 | E182: 13 | F182: 20321 | K182: 0 | L182: 111
A183: 12 | B183: 20419 | C183: 24 | D183: 20427 | E183: 24 | F183: 20431 | K183: 0 | L183: 122
A184: 12 | B184: 20529 | C184: 13 | D184: 20539 | E184: 24 | F184: 20546 | K184: 0 | L184: 112
A185: 21 | B185: 20646 | C185: 22 | D185: 20650 | E185: 24 | F185: 20655 | K185: 0 | L185: 222
A186: 21 | B186: 20751 | C186: 22 | D186: 20755 | E186: 24 | F186: 20760 | K186: 0 | L186: 222
A187: 21 | B187: 20858 | C187: 22 | D187: 20861 | E187: 24 | F187: 20865 | K187: 0 | L187: 222
A188: 21 | B188: 20968 | C188: 22 | D188: 20971 | E188: 24 | F188: 20976 | K188: 0 | L188: 222
A189: 21 | B189: 21076 | C189: 22 | D189: 21079 | E189: 24 | F189: 21084 | K189: 0 | L189: 222
A190: 12 | B190: 21181 | C190: 24 | D190: 21192 | E190: 24 | F190: 21200 | K190: 0 | L190: 122
A191: 12 | B191: 21298 | C191: 13 | D191: 21305 | E191: 24 | F191: 21313 | K191: 0 | L191: 112
A192: 12 | B192: 21415 | C192: 13 | D192: 21426 | E192: 24 | F192: 21432 | K192: 0 | L192: 112
A193: 21 | B193: 21531 | C193: 22 | D193: 21535 | E193: 24 | F193: 21539 | K193: 0 | L193: 222
A194: 12 | B194: 21641 | C194: 24 | D194: 21651 | E194: 24 | F194: 21659 | K194: 0 | L194: 122
A195: 12 | B195: 21759 | C195: 13 | D195: 21763 | E195: 24 | F195: 21773 | K195: 0 | L195: 112
A196: 12 | B196: 21884 | C196: 24 | D196: 21892 | E196: 24 | F196: 21899 | K196: 0 | L196: 122
A197: 12 | B197: 21998 | C197: 13 | D197: 22007 | E197: 24 | F197: 22015 | K197: 0 | L197: 112
A198: 12 | B198: 22113 | C198: 24 | D198: 22120 | E198: 24 | F198: 22124 | K198: 0 | L198: 122
A199: 21 | B199: 22224 | C199: 22 | D199: 22231 | E199: 24 | F199: 22235 | K199: 0 | L199: 222
A200: 12 | B200: 22334 | C200: 13 | D200: 22340 | E200: 24 | F200: 22347 | K200: 0 | L200: 112
... 14 more rows

Sheet !MC08A10.096
A1: Report for:!MC08A10.096
A2: Date: | B2: <date>
A3: Hen: | B3: <hen> | F3: Correct Sequence | G3: =Start!J2 -> 211 | P3: Total Sequences in Data | Q3: =4994-COUNTBLANK(L7:L5000) -> 207 | V3: Total Sequences in Block Data | W3: =COUNTA(L7:L41) -> 35 | AA3: Total Sequences in Block Data | AB3: =COUNTA(L42:L75) -> 34 | AF3: Total Sequences in Block Data | AG3: =COUNTA(L76:L110) -> 35 | AK3: Total Sequences in Block Data | AL3: =COUNTA(L111:L144) -> 34 | AP3: Total Sequences in Block Data | AQ3: =COUNTA(L145:L179) -> 35 | AU3: Total Sequences in Block Data | AV3: =COUNTA(L180:L213) -> 34
P4: Total Sequences in Summary | Q4: =SUM(O7:O14) -> 207 | V4: Total Sequences in Block Summary | W4: =SUM(U7:U14) -> 35 | AA4: Total Sequences in Block Summary | AB4: =SUM(Z7:Z14) -> 34 | AF4: Total Sequences in Block Summary | AG4: =SUM(AE7:AE14) -> 35 | AK4: Total Sequences in Block Summary | AL4: =SUM(AJ7:AJ14) -> 34 | AP4: Total Sequences in Block Summary | AQ4: =SUM(AO7:AO14) -> 35 | AU4: Total Sequences in Block Summary | AV4: =SUM(AT7:AT14) -> 34
T5: Block 1 | Y5: Block 2 | AD5: Block 3 | AI5: Block 4 | AN5: Block 5 | AS5: Block 6
A6: Sequence Component 1 | B6: Time 1 | C6: Sequence Component 2 | D6: Time 2 | E6: Sequence Component 3 | F6: Time 3 | G6: Sequence Component 4 | H6: Time 4 | I6: Sequence Component 5 | J6: Time 5 | K6: Correct? 0=No 1=Yes | L6: Sequence | N6: Frequency | P6: Relative Frequency | Q6: Variability | T6: Frequency | V6: Relative Frequency | W6: Variability | Y6: Frequency | AA6: Relative Frequency | AB6: Variability | AD6: Frequency | AF6: Relative Frequency | AG6: Variability | AI6: Frequency | AK6: Relative Frequency | AL6: Variability | AN6: Frequency | AP6: Relative Frequency | AQ6: Variability | AS6: Frequency | AU6: Relative Frequency | AV6: Variability
A7: 12 | B7: 12 | C7: 13 | D7: 42 | E7: 24 | F7: 51 | K7: 0 | L7: 112 | N7: 111 | O7: =COUNTIF($L$7:$L$500,N7) -> 26 | P7: =O7/$Q$4 -> 0.1256038647 | Q7: =IF(P7=0,0,(P7*((LOG(P7))/LOG(2)))) -> -0.3759383006 | T7: =N7 -> 111 | U7: =COUNTIF(L7:L41,T7) -> 6 | V7: =U7/(W4-U11) -> 0.1714285714 | W7: =IF(V7=0,0,(V7*((LOG(V7))/LOG(2)))) -> -0.4361692314 | Y7: =N7 -> 111 | Z7: =COUNTIF(L42:L75,Y7) -> 1 | AA7: =Z7/(AB4-Z11) -> 0.0303030303 | AB7: =IF(AA7=0,0,(AA7*((LOG(AA7))/LOG(2)))) -> -0.1528604279 | AD7: =N7 -> 111 | AE7: =COUNTIF(L76:L110,AD7) -> 9 | AF7: =AE7/(AG4-AE11) -> 0.2571428571 | AG7: =IF(AF7=0,0,(AF7*((LOG(AF7))/LOG(2)))) -> -0.5038349183 | AI7: =N7 -> 111 | AJ7: =COUNTIF(L111:L144,AI7) -> 3 | AK7: =AJ7/(AL4-AJ11) -> 0.09090909091 | AL7: =IF(AK7=0,0,(AK7*((LOG(AK7))/LOG(2)))) -> -0.3144937835 | AN7: =N7 -> 111 | AO7: =COUNTIF(L145:L179,AN7) -> 4 | AP7: =AO7/(AQ4-AO11) -> 0.1142857143 | AQ7: =IF(AP7=0,0,(AP7*((LOG(AP7))/LOG(2)))) -> -0.3576323448 | AS7: =N7 -> 111 | AT7: =COUNTIF(L180:L213,AS7) -> 3 | AU7: =AT7/(AV4-AT11) -> 0.08823529412 | AV7: =IF(AU7=0,0,(AU7*((LOG(AU7))/LOG(2)))) -> -0.3090441477
A8: 12 | B8: 151 | C8: 13 | D8: 155 | E8: 24 | F8: 165 | K8: 0 | L8: 112 | N8: 112 | O8: =COUNTIF($L$7:$L$500,N8) -> 75 | P8: =O8/$Q$4 -> 0.3623188406 | Q8: =IF(P8=0,0,(P8*((LOG(P8))/LOG(2)))) -> -0.5306769083 | T8: =N8 -> 112 | U8: =COUNTIF(L7:L41,T8) -> 11 | V8: =U8/(W4-U11) -> 0.3142857143 | W8: =IF(V8=0,0,(V8*((LOG(V8))/LOG(2)))) -> -0.5248104395 | Y8: =N8 -> 112 | Z8: =COUNTIF(L42:L75,Y8) -> 12 | AA8: =Z8/(AB4-Z11) -> 0.3636363636 | AB8: =IF(AA8=0,0,(AA8*((LOG(AA8))/LOG(2)))) -> -0.5307024068 | AD8: =N8 -> 112 | AE8: =COUNTIF(L76:L110,AD8) -> 7 | AF8: =AE8/(AG4-AE11) -> 0.2 | AG8: =IF(AF8=0,0,(AF8*((LOG(AF8))/LOG(2)))) -> -0.464385619 | AI8: =N8 -> 112 | AJ8: =COUNTIF(L111:L144,AI8) -> 15 | AK8: =AJ8/(AL4-AJ11) -> 0.4545454545 | AL8: =IF(AK8=0,0,(AK8*((LOG(AK8))/LOG(2)))) -> -0.5170470562 | AN8: =N8 -> 112 | AO8: =COUNTIF(L145:L179,AN8) -> 16 | AP8: =AO8/(AQ4-AO11) -> 0.4571428571 | AQ8: =IF(AP8=0,0,(AP8*((LOG(AP8))/LOG(2)))) -> -0.5162436649 | AS8: =N8 -> 112 | AT8: =COUNTIF(L180:L213,AS8) -> 14 | AU8: =AT8/(AV4-AT11) -> 0.4117647059 | AV8: =IF(AU8=0,0,(AU8*((LOG(AU8))/LOG(2)))) -> -0.5271032608
A9: 12 | B9: 267 | C9: 13 | D9: 272 | E9: 24 | F9: 281 | K9: 0 | L9: 112 | N9: 121 | O9: =COUNTIF($L$7:$L$500,N9) -> 11 | P9: =O9/$Q$4 -> 0.05314009662 | Q9: =IF(P9=0,0,(P9*((LOG(P9))/LOG(2)))) -> -0.2249981098 | T9: =N9 -> 121 | U9: =COUNTIF(L7:L41,T9) -> 1 | V9: =U9/(W4-U11) -> 0.02857142857 | W9: =IF(V9=0,0,(V9*((LOG(V9))/LOG(2)))) -> -0.1465509433 | Y9: =N9 -> 121 | Z9: =COUNTIF(L42:L75,Y9) -> 2 | AA9: =Z9/(AB4-Z11) -> 0.06060606061 | AB9: =IF(AA9=0,0,(AA9*((LOG(AA9))/LOG(2)))) -> -0.2451147951 | AD9: =N9 -> 121 | AE9: =COUNTIF(L76:L110,AD9) -> 2 | AF9: =AE9/(AG4-AE11) -> 0.05714285714 | AG9: =IF(AF9=0,0,(AF9*((LOG(AF9))/LOG(2)))) -> -0.2359590295 | AI9: =N9 -> 121 | AJ9: =COUNTIF(L111:L144,AI9) -> 1 | AK9: =AJ9/(AL4-AJ11) -> 0.0303030303 | AL9: =IF(AK9=0,0,(AK9*((LOG(AK9))/LOG(2)))) -> -0.1528604279 | AN9: =N9 -> 121 | AO9: =COUNTIF(L145:L179,AN9) -> 0 | AP9: =AO9/(AQ4-AO11) -> 0 | AQ9: =IF(AP9=0,0,(AP9*((LOG(AP9))/LOG(2)))) -> 0 | AS9: =N9 -> 121 | AT9: =COUNTIF(L180:L213,AS9) -> 5 | AU9: =AT9/(AV4-AT11) -> 0.1470588235 | AV9: =IF(AU9=0,0,(AU9*((LOG(AU9))/LOG(2)))) -> -0.4066962862
A10: 21 | B10: 427 | C10: 22 | D10: 431 | E10: 24 | F10: 438 | K10: 0 | L10: 222 | N10: 122 | O10: =COUNTIF($L$7:$L$500,N10) -> 48 | P10: =O10/$Q$4 -> 0.231884058 | Q10: =IF(P10=0,0,(P10*((LOG(P10))/LOG(2)))) -> -0.4889332074 | T10: =N10 -> 122 | U10: =COUNTIF(L7:L41,T10) -> 8 | V10: =U10/(W4-U11) -> 0.2285714286 | W10: =IF(V10=0,0,(V10*((LOG(V10))/LOG(2)))) -> -0.486693261 | Y10: =N10 -> 122 | Z10: =COUNTIF(L42:L75,Y10) -> 5 | AA10: =Z10/(AB4-Z11) -> 0.1515151515 | AB10: =IF(AA10=0,0,(AA10*((LOG(AA10))/LOG(2)))) -> -0.4124948522 | AD10: =N10 -> 122 | AE10: =COUNTIF(L76:L110,AD10) -> 10 | AF10: =AE10/(AG4-AE11) -> 0.2857142857 | AG10: =IF(AF10=0,0,(AF10*((LOG(AF10))/LOG(2)))) -> -0.5163871206 | AI10: =N10 -> 122 | AJ10: =COUNTIF(L111:L144,AI10) -> 10 | AK10: =AJ10/(AL4-AJ11) -> 0.303030303 | AL10: =IF(AK10=0,0,(AK10*((LOG(AK10))/LOG(2)))) -> -0.5219594014 | AN10: =N10 -> 122 | AO10: =COUNTIF(L145:L179,AN10) -> 9 | AP10: =AO10/(AQ4-AO11) -> 0.2571428571 | AQ10: =IF(AP10=0,0,(AP10*((LOG(AP10))/LOG(2)))) -> -0.5038349183 | AS10: =N10 -> 122 | AT10: =COUNTIF(L180:L213,AS10) -> 6 | AU10: =AT10/(AV4-AT11) -> 0.1764705882 | AV10: =IF(AU10=0,0,(AU10*((LOG(AU10))/LOG(2)))) -> -0.4416177072
A11: 21 | B11: 535 | C11: 22 | D11: 539 | E11: 24 | F11: 543 | K11: 0 | L11: 222 | N11: 211 | O11: =COUNTIF($L$7:$L$500,N11) -> 2 | P11: =O11/$Q$4 -> 0.009661835749 | Q11: =IF(P11=0,0,(P11*((LOG(P11))/LOG(2)))) -> -0.06467137157 | T11: =N11 -> 211 | U11: =COUNTIF(L7:L41,T11) -> 0 | Y11: =N11 -> 211 | Z11: =COUNTIF(L42:L75,Y11) -> 1 | AD11: =N11 -> 211 | AE11: =COUNTIF(L76:L110,AD11) -> 0 | AI11: =N11 -> 211 | AJ11: =COUNTIF(L111:L144,AI11) -> 1 | AN11: =N11 -> 211 | AO11: =COUNTIF(L145:L179,AN11) -> 0 | AS11: =N11 -> 211 | AT11: =COUNTIF(L180:L213,AS11) -> 0
A12: 12 | B12: 642 | C12: 24 | D12: 667 | E12: 24 | F12: 671 | K12: 0 | L12: 122 | N12: 212 | O12: =COUNTIF($L$7:$L$500,N12) -> 16 | P12: =O12/$Q$4 -> 0.07729468599 | Q12: =IF(P12=0,0,(P12*((LOG(P12))/LOG(2)))) -> -0.2854869146 | T12: =N12 -> 212 | U12: =COUNTIF(L7:L41,T12) -> 1 | V12: =U12/(W4-U11) -> 0.02857142857 | W12: =IF(V12=0,0,(V12*((LOG(V12))/LOG(2)))) -> -0.1465509433 | Y12: =N12 -> 212 | Z12: =COUNTIF(L42:L75,Y12) -> 6 | AA12: =Z12/(AB4-Z11) -> 0.1818181818 | AB12: =IF(AA12=0,0,(AA12*((LOG(AA12))/LOG(2)))) -> -0.4471693852 | AD12: =N12 -> 212 | AE12: =COUNTIF(L76:L110,AD12) -> 2 | AF12: =AE12/(AG4-AE11) -> 0.05714285714 | AG12: =IF(AF12=0,0,(AF12*((LOG(AF12))/LOG(2)))) -> -0.2359590295 | AI12: =N12 -> 212 | AJ12: =COUNTIF(L111:L144,AI12) -> 0 | AK12: =AJ12/(AL4-AJ11) -> 0 | AL12: =IF(AK12=0,0,(AK12*((LOG(AK12))/LOG(2)))) -> 0 | AN12: =N12 -> 212 | AO12: =COUNTIF(L145:L179,AN12) -> 3 | AP12: =AO12/(AQ4-AO11) -> 0.08571428571 | AQ12: =IF(AP12=0,0,(AP12*((LOG(AP12))/LOG(2)))) -> -0.3037989014 | AS12: =N12 -> 212 | AT12: =COUNTIF(L180:L213,AS12) -> 4 | AU12: =AT12/(AV4-AT11) -> 0.1176470588 | AV12: =IF(AU12=0,0,(AU12*((LOG(AU12))/LOG(2)))) -> -0.3632309225
A13: 12 | B13: 769 | C13: 13 | D13: 773 | E13: 13 | F13: 777 | K13: 0 | L13: 111 | N13: 221 | O13: =COUNTIF($L$7:$L$500,N13) -> 15 | P13: =O13/$Q$4 -> 0.07246376812 | Q13: =IF(P13=0,0,(P13*((LOG(P13))/LOG(2)))) -> -0.2743910407 | T13: =N13 -> 221 | U13: =COUNTIF(L7:L41,T13) -> 1 | V13: =U13/(W4-U11) -> 0.02857142857 | W13: =IF(V13=0,0,(V13*((LOG(V13))/LOG(2)))) -> -0.1465509433 | Y13: =N13 -> 221 | Z13: =COUNTIF(L42:L75,Y13) -> 5 | AA13: =Z13/(AB4-Z11) -> 0.1515151515 | AB13: =IF(AA13=0,0,(AA13*((LOG(AA13))/LOG(2)))) -> -0.4124948522 | AD13: =N13 -> 221 | AE13: =COUNTIF(L76:L110,AD13) -> 2 | AF13: =AE13/(AG4-AE11) -> 0.05714285714 | AG13: =IF(AF13=0,0,(AF13*((LOG(AF13))/LOG(2)))) -> -0.2359590295 | AI13: =N13 -> 221 | AJ13: =COUNTIF(L111:L144,AI13) -> 3 | AK13: =AJ13/(AL4-AJ11) -> 0.09090909091 | AL13: =IF(AK13=0,0,(AK13*((LOG(AK13))/LOG(2)))) -> -0.3144937835 | AN13: =N13 -> 221 | AO13: =COUNTIF(L145:L179,AN13) -> 2 | AP13: =AO13/(AQ4-AO11) -> 0.05714285714 | AQ13: =IF(AP13=0,0,(AP13*((LOG(AP13))/LOG(2)))) -> -0.2359590295 | AS13: =N13 -> 221 | AT13: =COUNTIF(L180:L213,AS13) -> 2 | AU13: =AT13/(AV4-AT11) -> 0.05882352941 | AV13: =IF(AU13=0,0,(AU13*((LOG(AU13))/LOG(2)))) -> -0.2404389907
A14: 21 | B14: 875 | C14: 22 | D14: 878 | E14: 24 | F14: 882 | K14: 0 | L14: 222 | N14: 222 | O14: =COUNTIF($L$7:$L$500,N14) -> 14 | P14: =O14/$Q$4 -> 0.06763285024 | Q14: =IF(P14=0,0,(P14*((LOG(P14))/LOG(2)))) -> -0.262830186 | T14: =N14 -> 222 | U14: =COUNTIF(L7:L41,T14) -> 7 | V14: =U14/(W4-U11) -> 0.2 | W14: =IF(V14=0,0,(V14*((LOG(V14))/LOG(2)))) -> -0.464385619 | Y14: =N14 -> 222 | Z14: =COUNTIF(L42:L75,Y14) -> 2 | AA14: =Z14/(AB4-Z11) -> 0.06060606061 | AB14: =IF(AA14=0,0,(AA14*((LOG(AA14))/LOG(2)))) -> -0.2451147951 | AD14: =N14 -> 222 | AE14: =COUNTIF(L76:L110,AD14) -> 3 | AF14: =AE14/(AG4-AE11) -> 0.08571428571 | AG14: =IF(AF14=0,0,(AF14*((LOG(AF14))/LOG(2)))) -> -0.3037989014 | AI14: =N14 -> 222 | AJ14: =COUNTIF(L111:L144,AI14) -> 1 | AK14: =AJ14/(AL4-AJ11) -> 0.0303030303 | AL14: =IF(AK14=0,0,(AK14*((LOG(AK14))/LOG(2)))) -> -0.1528604279 | AN14: =N14 -> 222 | AO14: =COUNTIF(L145:L179,AN14) -> 1 | AP14: =AO14/(AQ4-AO11) -> 0.02857142857 | AQ14: =IF(AP14=0,0,(AP14*((LOG(AP14))/LOG(2)))) -> -0.1465509433 | AS14: =N14 -> 222 | AT14: =COUNTIF(L180:L213,AS14) -> 0 | AU14: =AT14/(AV4-AT11) -> 0 | AV14: =IF(AU14=0,0,(AU14*((LOG(AU14))/LOG(2)))) -> 0
A15: 12 | B15: 997 | C15: 24 | D15: 1015 | E15: 24 | F15: 1022 | K15: 0 | L15: 122 | P15: =SUM(P7:P14) -> 1 | Q15: =-SUM(Q7:Q14) -> 2.507926039 | V15: =SUM(V7:V14) -> 1 | W15: =-SUM(W7:W14) -> 2.351711381 | AA15: =SUM(AA7:AA14) -> 1 | AB15: =-SUM(AB7:AB14) -> 2.445951514 | AF15: =SUM(AF7:AF14) -> 1 | AG15: =-SUM(AG7:AG14) -> 2.496283648 | AK15: =SUM(AK7:AK14) -> 1 | AL15: =-SUM(AL7:AL14) -> 1.97371488 | AP15: =SUM(AP7:AP14) -> 1 | AQ15: =-SUM(AQ7:AQ14) -> 2.064019802 | AU15: =SUM(AU7:AU14) -> 1 | AV15: =-SUM(AV7:AV14) -> 2.288131315
A16: 12 | B16: 1122 | C16: 13 | D16: 1130 | E16: 13 | F16: 1134 | K16: 0 | L16: 111 | P16: U= | Q16: =Q15/(LOG(Q4)/LOG(2)) -> 0.3259804108 | V16: U1= | W16: =W15/(LOG(W4)/LOG(2)) -> 0.4584873506 | AA16: U2= | AB16: =AB15/(LOG(AB4)/LOG(2)) -> 0.480780222 | AF16: U3= | AG16: =AG15/(LOG(AG4)/LOG(2)) -> 0.4866730184 | AK16: U4= | AL16: =AL15/(LOG(AL4)/LOG(2)) -> 0.3879566184 | AP16: U5= | AQ16: =AQ15/(LOG(AQ4)/LOG(2)) -> 0.4023992818 | AU16: U6= | AV16: =AV15/(LOG(AV4)/LOG(2)) -> 0.4497588261
A17: 21 | B17: 1231 | C17: 22 | D17: 1236 | E17: 24 | F17: 1240 | K17: 0 | L17: 222
A18: 12 | B18: 1338 | C18: 13 | D18: 1341 | E18: 13 | F18: 1345 | K18: 0 | L18: 111
A19: 21 | B19: 1444 | C19: 22 | D19: 1447 | E19: 24 | F19: 1451 | K19: 0 | L19: 222 | N19: Total Target Seq
A20: 12 | B20: 1552 | C20: 13 | D20: 1555 | E20: 13 | F20: 1561 | K20: 0 | L20: 111 | N20: =COUNTIF(L7:L213,G3) -> 2 | P20: 35 | Q20: 34 | R20: 35 | S20: 34 | T20: 35 | U20: 34
A21: 12 | B21: 1664 | C21: 24 | D21: 1672 | E21: 24 | F21: 1683 | K21: 0 | L21: 122 | P21: % of reinforcement given in 6 equal intervals based on number of trials
A22: 12 | B22: 1786 | C22: 13 | D22: 1801 | E22: 24 | F22: 1811 | K22: 0 | L22: 112 | P22: %_1 | Q22: %_2 | R22: %_3 | S22: %_4 | T22: %_5 | U22: %_6
A23: 12 | B23: 1908 | C23: 13 | D23: 1914 | E23: 24 | F23: 1922 | K23: 0 | L23: 112 | O23: target sequence | P23: =$G$3 -> 211 | Q23: =$G$3 -> 211 | R23: =$G$3 -> 211 | S23: =$G$3 -> 211 | T23: =$G$3 -> 211 | U23: =$G$3 -> 211
A24: 12 | B24: 2022 | C24: 13 | D24: 2031 | E24: 24 | F24: 2039 | K24: 0 | L24: 112 | O24: total reinforcement | P24: =U11 -> 0 | Q24: =Z11 -> 1 | R24: =AE11 -> 0 | S24: =AJ11 -> 1 | T24: =AO11 -> 0 | U24: =AT11 -> 0
A25: 12 | B25: 2137 | C25: 13 | D25: 2144 | E25: 24 | F25: 2151 | K25: 0 | L25: 112 | O25: % target
A26: 12 | B26: 2252 | C26: 13 | D26: 2267 | E26: 24 | F26: 2276 | K26: 0 | L26: 112 | O26: CCRF
A27: 12 | B27: 2380 | C27: 24 | D27: 2388 | E27: 24 | F27: 2396 | K27: 0 | L27: 122 | O27: % CCRf
A28: 21 | B28: 2495 | C28: 22 | D28: 2499 | E28: 24 | F28: 2503 | K28: 0 | L28: 222 | O28: average response rate | P28: =F41/P20 -> 116 | Q28: =(F75-F41)/Q20 -> 117.8235294 | R28: =(F110-F75)/R20 -> 113.9714286 | S28: =(F144-F110)/S20 -> 116.2647059 | T28: =(F179-F144)/T20 -> 114.8571429 | U28: =(F213-F179)/U20 -> 116.1470588
A29: 12 | B29: 2604 | C29: 13 | D29: 2607 | E29: 13 | F29: 2612 | K29: 0 | L29: 111
A30: 21 | B30: 2712 | C30: 22 | D30: 2716 | E30: 24 | F30: 2719 | K30: 0 | L30: 222
A31: 21 | B31: 2831 | C31: 11 | D31: 2839 | E31: 22 | F31: 2847 | K31: 0 | L31: 212
A32: 12 | B32: 2938 | C32: 24 | D32: 2947 | E32: 24 | F32: 2954 | K32: 0 | L32: 122
A33: 12 | B33: 3067 | C33: 24 | D33: 3083 | E33: 24 | F33: 3093 | K33: 0 | L33: 122
A34: 12 | B34: 3194 | C34: 13 | D34: 3198 | E34: 24 | F34: 3208 | K34: 0 | L34: 112
A35: 12 | B35: 3313 | C35: 24 | D35: 3321 | E35: 24 | F35: 3328 | K35: 0 | L35: 122
A36: 12 | B36: 3432 | C36: 13 | D36: 3440 | E36: 13 | F36: 3458 | K36: 0 | L36: 111
A37: 12 | B37: 3570 | C37: 24 | D37: 3577 | E37: 24 | F37: 3592 | K37: 0 | L37: 122
A38: 12 | B38: 3697 | C38: 24 | D38: 3708 | E38: 13 | F38: 3718 | K38: 0 | L38: 121
A39: 12 | B39: 3818 | C39: 13 | D39: 3825 | E39: 24 | F39: 3832 | K39: 0 | L39: 112
A40: 12 | B40: 3932 | C40: 13 | D40: 3936 | E40: 24 | F40: 3946 | K40: 0 | L40: 112
A41: 21 | B41: 4047 | C41: 22 | D41: 4051 | E41: 13 | F41: 4060 | K41: 0 | L41: 221
A42: 21 | B42: 4163 | C42: 22 | D42: 4168 | E42: 13 | F42: 4177 | K42: 0 | L42: 221
A43: 21 | B43: 4283 | C43: 11 | D43: 4296 | E43: 22 | F43: 4311 | K43: 0 | L43: 212
A44: 21 | B44: 4411 | C44: 22 | D44: 4415 | E44: 13 | F44: 4425 | K44: 0 | L44: 221
A45: 21 | B45: 4525 | C45: 22 | D45: 4529 | E45: 24 | F45: 4533 | K45: 0 | L45: 222
A46: 21 | B46: 4631 | C46: 22 | D46: 4635 | E46: 13 | F46: 4645 | K46: 0 | L46: 221
A47: 12 | B47: 4748 | C47: 24 | D47: 4756 | E47: 24 | F47: 4762 | K47: 0 | L47: 122
A48: 12 | B48: 4861 | C48: 13 | D48: 4867 | E48: 24 | F48: 4875 | K48: 0 | L48: 112
A49: 12 | B49: 4978 | C49: 24 | D49: 4986 | E49: 24 | F49: 5005 | K49: 0 | L49: 122
A50: 12 | B50: 5105 | C50: 13 | D50: 5111 | E50: 24 | F50: 5121 | K50: 0 | L50: 112
A51: 12 | B51: 5224 | C51: 13 | D51: 5229 | E51: 24 | F51: 5239 | K51: 0 | L51: 112
A52: 12 | B52: 5337 | C52: 13 | D52: 5342 | E52: 24 | F52: 5351 | K52: 0 | L52: 112
A53: 12 | B53: 5448 | C53: 13 | D53: 5456 | E53: 24 | F53: 5465 | K53: 0 | L53: 112
A54: 12 | B54: 5569 | C54: 24 | D54: 5577 | E54: 13 | F54: 5587 | K54: 0 | L54: 121
A55: 21 | B55: 5689 | C55: 22 | D55: 5694 | E55: 24 | F55: 5700 | K55: 0 | L55: 222
A56: 12 | B56: 5804 | C56: 24 | D56: 5812 | E56: 24 | F56: 5823 | K56: 0 | L56: 122
A57: 12 | B57: 5922 | C57: 13 | D57: 5933 | E57: 24 | F57: 5944 | K57: 0 | L57: 112
A58: 12 | B58: 6042 | C58: 13 | D58: 6050 | E58: 24 | F58: 6058 | K58: 0 | L58: 112
A59: 12 | B59: 6156 | C59: 13 | D59: 6165 | E59: 24 | F59: 6172 | K59: 0 | L59: 112
A60: 21 | B60: 6274 | C60: 22 | D60: 6278 | E60: 13 | F60: 6291 | K60: 0 | L60: 221
A61: 12 | B61: 6390 | C61: 13 | D61: 6397 | E61: 24 | F61: 6405 | K61: 0 | L61: 112
A62: 12 | B62: 6503 | C62: 13 | D62: 6507 | E62: 24 | F62: 6522 | K62: 0 | L62: 112
A63: 12 | B63: 6622 | C63: 24 | D63: 6629 | E63: 24 | F63: 6636 | K63: 0 | L63: 122
A64: 12 | B64: 6733 | C64: 13 | D64: 6740 | E64: 24 | F64: 6748 | K64: 0 | L64: 112
A65: 21 | B65: 6851 | C65: 11 | D65: 6860 | E65: 22 | F65: 6869 | K65: 0 | L65: 212
A66: 21 | B66: 6961 | C66: 11 | D66: 6974 | E66: 22 | F66: 6988 | K66: 0 | L66: 212
A67: 21 | B67: 7087 | C67: 22 | D67: 7097 | E67: 13 | F67: 7107 | K67: 0 | L67: 221
A68: 21 | B68: 7202 | C68: 11 | D68: 7213 | E68: 11 | F68: 7228 | K68: 0 | L68: 211
A69: 21 | B69: 7331 | C69: 11 | D69: 7339 | E69: 22 | F69: 7356 | K69: 0 | L69: 212
A70: 21 | B70: 7456 | C70: 11 | D70: 7466 | E70: 22 | F70: 7476 | K70: 0 | L70: 212
A71: 12 | B71: 7567 | C71: 13 | D71: 7581 | E71: 24 | F71: 7591 | K71: 0 | L71: 112
A72: 12 | B72: 7691 | C72: 24 | D72: 7699 | E72: 13 | F72: 7710 | K72: 0 | L72: 121
A73: 12 | B73: 7808 | C73: 13 | D73: 7811 | E73: 13 | F73: 7824 | K73: 0 | L73: 111
A74: 12 | B74: 7931 | C74: 24 | D74: 7939 | E74: 24 | F74: 7947 | K74: 0 | L74: 122
A75: 21 | B75: 8049 | C75: 11 | D75: 8058 | E75: 22 | F75: 8066 | K75: 0 | L75: 212
A76: 12 | B76: 8171 | C76: 24 | D76: 8181 | E76: 24 | F76: 8196 | K76: 0 | L76: 122
A77: 12 | B77: 8294 | C77: 13 | D77: 8301 | E77: 24 | F77: 8311 | K77: 0 | L77: 112
A78: 12 | B78: 8409 | C78: 13 | D78: 8412 | E78: 13 | F78: 8419 | K78: 0 | L78: 111
A79: 21 | B79: 8527 | C79: 22 | D79: 8532 | E79: 24 | F79: 8538 | K79: 0 | L79: 222
A80: 12 | B80: 8636 | C80: 13 | D80: 8639 | E80: 13 | F80: 8643 | K80: 0 | L80: 111
A81: 21 | B81: 8750 | C81: 22 | D81: 8755 | E81: 13 | F81: 8767 | K81: 0 | L81: 221
A82: 21 | B82: 8869 | C82: 22 | D82: 8873 | E82: 24 | F82: 8877 | K82: 0 | L82: 222
A83: 12 | B83: 8975 | C83: 24 | D83: 8988 | E83: 13 | F83: 8996 | K83: 0 | L83: 121
A84: 12 | B84: 9094 | C84: 24 | D84: 9102 | E84: 24 | F84: 9107 | K84: 0 | L84: 122
A85: 12 | B85: 9206 | C85: 13 | D85: 9210 | E85: 13 | F85: 9219 | K85: 0 | L85: 111
A86: 12 | B86: 9318 | C86: 13 | D86: 9325 | E86: 13 | F86: 9334 | K86: 0 | L86: 111
A87: 12 | B87: 9432 | C87: 13 | D87: 9435 | E87: 13 | F87: 9439 | K87: 0 | L87: 111
A88: 12 | B88: 9537 | C88: 13 | D88: 9542 | E88: 24 | F88: 9549 | K88: 0 | L88: 112
A89: 12 | B89: 9646 | C89: 24 | D89: 9653 | E89: 24 | F89: 9658 | K89: 0 | L89: 122
A90: 21 | B90: 9753 | C90: 22 | D90: 9768 | E90: 24 | F90: 9776 | K90: 0 | L90: 222
A91: 12 | B91: 9873 | C91: 13 | D91: 9877 | E91: 24 | F91: 9884 | K91: 0 | L91: 112
A92: 12 | B92: 9984 | C92: 24 | D92: 9992 | E92: 24 | F92: 9997 | K92: 0 | L92: 122
A93: 12 | B93: 10093 | C93: 24 | D93: 10105 | E93: 24 | F93: 10113 | K93: 0 | L93: 122
A94: 12 | B94: 10211 | C94: 13 | D94: 10220 | E94: 24 | F94: 10227 | K94: 0 | L94: 112
A95: 12 | B95: 10327 | C95: 24 | D95: 10341 | E95: 24 | F95: 10348 | K95: 0 | L95: 122
A96: 12 | B96: 10446 | C96: 24 | D96: 10453 | E96: 24 | F96: 10457 | K96: 0 | L96: 122
A97: 12 | B97: 10556 | C97: 13 | D97: 10562 | E97: 24 | F97: 10573 | K97: 0 | L97: 112
A98: 12 | B98: 10670 | C98: 13 | D98: 10677 | E98: 13 | F98: 10685 | K98: 0 | L98: 111
A99: 21 | B99: 10790 | C99: 11 | D99: 10800 | E99: 22 | F99: 10808 | K99: 0 | L99: 212
A100: 12 | B100: 10911 | C100: 24 | D100: 10921 | E100: 13 | F100: 10931 | K100: 0 | L100: 121
A101: 12 | B101: 11029 | C101: 13 | D101: 11035 | E101: 24 | F101: 11043 | K101: 0 | L101: 112
A102: 21 | B102: 11138 | C102: 11 | D102: 11157 | E102: 22 | F102: 11164 | K102: 0 | L102: 212
A103: 21 | B103: 11267 | C103: 22 | D103: 11271 | E103: 13 | F103: 11280 | K103: 0 | L103: 221
A104: 12 | B104: 11377 | C104: 13 | D104: 11381 | E104: 13 | F104: 11385 | K104: 0 | L104: 111
A105: 12 | B105: 11483 | C105: 24 | D105: 11496 | E105: 24 | F105: 11500 | K105: 0 | L105: 122
A106: 12 | B106: 11599 | C106: 24 | D106: 11606 | E106: 24 | F106: 11611 | K106: 0 | L106: 122
A107: 12 | B107: 11709 | C107: 13 | D107: 11713 | E107: 24 | F107: 11720 | K107: 0 | L107: 112
A108: 12 | B108: 11817 | C108: 13 | D108: 11820 | E108: 13 | F108: 11832 | K108: 0 | L108: 111
A109: 12 | B109: 11929 | C109: 13 | D109: 11933 | E109: 13 | F109: 11936 | K109: 0 | L109: 111
A110: 12 | B110: 12031 | C110: 24 | D110: 12040 | E110: 24 | F110: 12055 | K110: 0 | L110: 122
A111: 12 | B111: 12153 | C111: 13 | D111: 12157 | E111: 24 | F111: 12164 | K111: 0 | L111: 112
A112: 12 | B112: 12261 | C112: 13 | D112: 12268 | E112: 24 | F112: 12279 | K112: 0 | L112: 112
A113: 12 | B113: 12377 | C113: 24 | D113: 12385 | E113: 24 | F113: 12393 | K113: 0 | L113: 122
A114: 12 | B114: 12491 | C114: 13 | D114: 12495 | E114: 24 | F114: 12503 | K114: 0 | L114: 112
A115: 12 | B115: 12602 | C115: 13 | D115: 12610 | E115: 24 | F115: 12620 | K115: 0 | L115: 112
A116: 12 | B116: 12718 | C116: 13 | D116: 12722 | E116: 13 | F116: 12729 | K116: 0 | L116: 111
A117: 12 | B117: 12827 | C117: 24 | D117: 12834 | E117: 24 | F117: 12842 | K117: 0 | L117: 122
A118: 12 | B118: 12942 | C118: 13 | D118: 12949 | E118: 24 | F118: 12963 | K118: 0 | L118: 112
A119: 12 | B119: 13061 | C119: 13 | D119: 13068 | E119: 24 | F119: 13076 | K119: 0 | L119: 112
A120: 12 | B120: 13172 | C120: 13 | D120: 13180 | E120: 24 | F120: 13196 | K120: 0 | L120: 112
A121: 12 | B121: 13294 | C121: 24 | D121: 13301 | E121: 24 | F121: 13305 | K121: 0 | L121: 122
A122: 21 | B122: 13413 | C122: 22 | D122: 13418 | E122: 13 | F122: 13428 | K122: 0 | L122: 221
A123: 12 | B123: 13526 | C123: 13 | D123: 13543 | E123: 24 | F123: 13553 | K123: 0 | L123: 112
A124: 12 | B124: 13652 | C124: 24 | D124: 13661 | E124: 13 | F124: 13670 | K124: 0 | L124: 121
A125: 12 | B125: 13775 | C125: 24 | D125: 13783 | E125: 24 | F125: 13789 | K125: 0 | L125: 122
A126: 12 | B126: 13889 | C126: 24 | D126: 13899 | E126: 24 | F126: 13907 | K126: 0 | L126: 122
A127: 12 | B127: 14005 | C127: 13 | D127: 14008 | E127: 13 | F127: 14016 | K127: 0 | L127: 111
A128: 12 | B128: 14112 | C128: 13 | D128: 14119 | E128: 24 | F128: 14127 | K128: 0 | L128: 112
A129: 21 | B129: 14231 | C129: 22 | D129: 14236 | E129: 13 | F129: 14248 | K129: 0 | L129: 221
A130: 12 | B130: 14347 | C130: 24 | D130: 14359 | E130: 24 | F130: 14363 | K130: 0 | L130: 122
A131: 12 | B131: 14461 | C131: 13 | D131: 14468 | E131: 24 | F131: 14476 | K131: 0 | L131: 112
A132: 21 | B132: 14585 | C132: 11 | D132: 14595 | E132: 11 | F132: 14629 | K132: 0 | L132: 211
A133: 21 | B133: 14728 | C133: 22 | D133: 14739 | E133: 13 | F133: 14747 | K133: 0 | L133: 221
A134: 12 | B134: 14847 | C134: 13 | D134: 14862 | E134: 24 | F134: 14872 | K134: 0 | L134: 112
A135: 12 | B135: 14971 | C135: 13 | D135: 14975 | E135: 24 | F135: 14986 | K135: 0 | L135: 112
A136: 12 | B136: 15083 | C136: 13 | D136: 15086 | E136: 13 | F136: 15091 | K136: 0 | L136: 111
A137: 12 | B137: 15189 | C137: 13 | D137: 15193 | E137: 24 | F137: 15200 | K137: 0 | L137: 112
A138: 21 | B138: 15299 | C138: 22 | D138: 15311 | E138: 24 | F138: 15316 | K138: 0 | L138: 222
A139: 12 | B139: 15413 | C139: 24 | D139: 15421 | E139: 24 | F139: 15425 | K139: 0 | L139: 122
A140: 12 | B140: 15523 | C140: 24 | D140: 15531 | E140: 24 | F140: 15536 | K140: 0 | L140: 122
A141: 12 | B141: 15638 | C141: 13 | D141: 15652 | E141: 24 | F141: 15662 | K141: 0 | L141: 112
A142: 12 | B142: 15761 | C142: 13 | D142: 15764 | E142: 24 | F142: 15772 | K142: 0 | L142: 112
A143: 12 | B143: 15872 | C143: 24 | D143: 15880 | E143: 24 | F143: 15884 | K143: 0 | L143: 122
A144: 12 | B144: 15986 | C144: 24 | D144: 15997 | E144: 24 | F144: 16008 | K144: 0 | L144: 122
A145: 12 | B145: 16106 | C145: 24 | D145: 16116 | E145: 24 | F145: 16124 | K145: 0 | L145: 122
A146: 12 | B146: 16221 | C146: 13 | D146: 16224 | E146: 24 | F146: 16232 | K146: 0 | L146: 112
A147: 12 | B147: 16329 | C147: 24 | D147: 16336 | E147: 24 | F147: 16341 | K147: 0 | L147: 122
A148: 12 | B148: 16438 | C148: 13 | D148: 16442 | E148: 13 | F148: 16450 | K148: 0 | L148: 111
A149: 12 | B149: 16548 | C149: 13 | D149: 16559 | E149: 24 | F149: 16566 | K149: 0 | L149: 112
A150: 12 | B150: 16665 | C150: 13 | D150: 16669 | E150: 13 | F150: 16681 | K150: 0 | L150: 111
A151: 21 | B151: 16784 | C151: 11 | D151: 16796 | E151: 22 | F151: 16806 | K151: 0 | L151: 212
A152: 21 | B152: 16906 | C152: 22 | D152: 16911 | E152: 13 | F152: 16921 | K152: 0 | L152: 221
A153: 12 | B153: 17020 | C153: 24 | D153: 17028 | E153: 24 | F153: 17036 | K153: 0 | L153: 122
A154: 12 | B154: 17134 | C154: 13 | D154: 17140 | E154: 24 | F154: 17150 | K154: 0 | L154: 112
A155: 12 | B155: 17247 | C155: 13 | D155: 17252 | E155: 24 | F155: 17260 | K155: 0 | L155: 112
A156: 12 | B156: 17362 | C156: 13 | D156: 17370 | E156: 24 | F156: 17381 | K156: 0 | L156: 112
A157: 12 | B157: 17481 | C157: 24 | D157: 17494 | E157: 24 | F157: 17501 | K157: 0 | L157: 122
A158: 12 | B158: 17598 | C158: 13 | D158: 17610 | E158: 24 | F158: 17619 | K158: 0 | L158: 112
A159: 12 | B159: 17722 | C159: 24 | D159: 17729 | E159: 24 | F159: 17735 | K159: 0 | L159: 122
A160: 12 | B160: 17833 | C160: 13 | D160: 17836 | E160: 13 | F160: 17852 | K160: 0 | L160: 111
A161: 12 | B161: 17951 | C161: 13 | D161: 17956 | E161: 13 | F161: 17964 | K161: 0 | L161: 111
A162: 12 | B162: 18063 | C162: 13 | D162: 18070 | E162: 24 | F162: 18079 | K162: 0 | L162: 112
A163: 12 | B163: 18180 | C163: 13 | D163: 18192 | E163: 24 | F163: 18202 | K163: 0 | L163: 112
A164: 21 | B164: 18312 | C164: 11 | D164: 18321 | E164: 22 | F164: 18332 | K164: 0 | L164: 212
A165: 21 | B165: 18442 | C165: 22 | D165: 18451 | E165: 24 | F165: 18458 | K165: 0 | L165: 222
A166: 12 | B166: 18561 | C166: 24 | D166: 18569 | E166: 24 | F166: 18576 | K166: 0 | L166: 122
A167: 12 | B167: 18673 | C167: 13 | D167: 18677 | E167: 24 | F167: 18684 | K167: 0 | L167: 112
A168: 12 | B168: 18782 | C168: 24 | D168: 18792 | E168: 24 | F168: 18796 | K168: 0 | L168: 122
A169: 12 | B169: 18894 | C169: 24 | D169: 18902 | E169: 24 | F169: 18907 | K169: 0 | L169: 122
A170: 21 | B170: 19010 | C170: 11 | D170: 19019 | E170: 22 | F170: 19029 | K170: 0 | L170: 212
A171: 21 | B171: 19127 | C171: 22 | D171: 19131 | E171: 13 | F171: 19141 | K171: 0 | L171: 221
A172: 12 | B172: 19238 | C172: 13 | D172: 19242 | E172: 24 | F172: 19249 | K172: 0 | L172: 112
A173: 12 | B173: 19346 | C173: 13 | D173: 19350 | E173: 24 | F173: 19357 | K173: 0 | L173: 112
A174: 12 | B174: 19454 | C174: 13 | D174: 19458 | E174: 24 | F174: 19465 | K174: 0 | L174: 112
A175: 12 | B175: 19563 | C175: 24 | D175: 19573 | E175: 24 | F175: 19577 | K175: 0 | L175: 122
A176: 12 | B176: 19674 | C176: 13 | D176: 19678 | E176: 24 | F176: 19688 | K176: 0 | L176: 112
A177: 12 | B177: 19785 | C177: 13 | D177: 19788 | E177: 24 | F177: 19798 | K177: 0 | L177: 112
A178: 12 | B178: 19895 | C178: 13 | D178: 19902 | E178: 24 | F178: 19913 | K178: 0 | L178: 112
A179: 12 | B179: 20016 | C179: 13 | D179: 20021 | E179: 24 | F179: 20028 | K179: 0 | L179: 112
A180: 12 | B180: 20125 | C180: 13 | D180: 20128 | E180: 24 | F180: 20136 | K180: 0 | L180: 112
A181: 12 | B181: 20239 | C181: 13 | D181: 20246 | E181: 24 | F181: 20255 | K181: 0 | L181: 112
A182: 12 | B182: 20353 | C182: 13 | D182: 20361 | E182: 24 | F182: 20368 | K182: 0 | L182: 112
A183: 12 | B183: 20491 | C183: 24 | D183: 20499 | E183: 13 | F183: 20512 | K183: 0 | L183: 121
A184: 12 | B184: 20610 | C184: 13 | D184: 20618 | E184: 24 | F184: 20626 | K184: 0 | L184: 112
A185: 12 | B185: 20727 | C185: 24 | D185: 20737 | E185: 24 | F185: 20744 | K185: 0 | L185: 122
A186: 12 | B186: 20842 | C186: 13 | D186: 20848 | E186: 24 | F186: 20855 | K186: 0 | L186: 112
A187: 12 | B187: 20951 | C187: 24 | D187: 20960 | E187: 24 | F187: 20965 | K187: 0 | L187: 122
A188: 12 | B188: 21062 | C188: 13 | D188: 21066 | E188: 24 | F188: 21074 | K188: 0 | L188: 112
A189: 12 | B189: 21172 | C189: 13 | D189: 21179 | E189: 24 | F189: 21186 | K189: 0 | L189: 112
A190: 12 | B190: 21284 | C190: 24 | D190: 21295 | E190: 13 | F190: 21305 | K190: 0 | L190: 121
A191: 21 | B191: 21408 | C191: 11 | D191: 21418 | E191: 22 | F191: 21425 | K191: 0 | L191: 212
A192: 21 | B192: 21527 | C192: 11 | D192: 21535 | E192: 22 | F192: 21546 | K192: 0 | L192: 212
A193: 12 | B193: 21633 | C193: 24 | D193: 21642 | E193: 13 | F193: 21651 | K193: 0 | L193: 121
A194: 12 | B194: 21749 | C194: 13 | D194: 21756 | E194: 24 | F194: 21763 | K194: 0 | L194: 112
A195: 12 | B195: 21862 | C195: 13 | D195: 21868 | E195: 24 | F195: 21875 | K195: 0 | L195: 112
A196: 12 | B196: 21973 | C196: 13 | D196: 21976 | E196: 24 | F196: 21986 | K196: 0 | L196: 112
A197: 12 | B197: 22085 | C197: 13 | D197: 22090 | E197: 13 | F197: 22098 | K197: 0 | L197: 111
A198: 12 | B198: 22197 | C198: 13 | D198: 22200 | E198: 13 | F198: 22211 | K198: 0 | L198: 111
A199: 21 | B199: 22316 | C199: 11 | D199: 22326 | E199: 22 | F199: 22335 | K199: 0 | L199: 212
A200: 21 | B200: 22428 | C200: 22 | D200: 22433 | E200: 13 | F200: 22442 | K200: 0 | L200: 221
... 13 more rows

Sheet !MC09A50.096
A1: Report for:!MC09A50.096
A2: Date: | B2: <date>
A3: Hen: | B3: <hen> | F3: Correct Sequence | G3: =Start!J2 -> 211 | P3: Total Sequences in Data | Q3: =4994-COUNTBLANK(L7:L5000) -> 203 | V3: Total Sequences in Block Data | W3: =COUNTA(L7:L40) -> 34 | AA3: Total Sequences in Block Data | AB3: =COUNTA(L41:L74) -> 34 | AF3: Total Sequences in Block Data | AG3: =COUNTA(L75:L107) -> 33 | AK3: Total Sequences in Block Data | AL3: =COUNTA(L108:L141) -> 34 | AP3: Total Sequences in Block Data | AQ3: =COUNTA(L142:L175) -> 34 | AU3: Total Sequences in Block Data | AV3: =COUNTA(L176:L209) -> 34
P4: Total Sequences in Summary | Q4: =SUM(O7:O14) -> 203 | V4: Total Sequences in Block Summary | W4: =SUM(U7:U14) -> 34 | AA4: Total Sequences in Block Summary | AB4: =SUM(Z7:Z14) -> 34 | AF4: Total Sequences in Block Summary | AG4: =SUM(AE7:AE14) -> 33 | AK4: Total Sequences in Block Summary | AL4: =SUM(AJ7:AJ14) -> 34 | AP4: Total Sequences in Block Summary | AQ4: =SUM(AO7:AO14) -> 34 | AU4: Total Sequences in Block Summary | AV4: =SUM(AT7:AT14) -> 34
T5: Block 1 | Y5: Block 2 | AD5: Block 3 | AI5: Block 4 | AN5: Block 5 | AS5: Block 6
A6: Sequence Component 1 | B6: Time 1 | C6: Sequence Component 2 | D6: Time 2 | E6: Sequence Component 3 | F6: Time 3 | G6: Sequence Component 4 | H6: Time 4 | I6: Sequence Component 5 | J6: Time 5 | K6: Correct? 0=No 1=Yes | L6: Sequence | N6: Frequency | P6: Relative Frequency | Q6: Variability | T6: Frequency | V6: Relative Frequency | W6: Variability | Y6: Frequency | AA6: Relative Frequency | AB6: Variability | AD6: Frequency | AF6: Relative Frequency | AG6: Variability | AI6: Frequency | AK6: Relative Frequency | AL6: Variability | AN6: Frequency | AP6: Relative Frequency | AQ6: Variability | AS6: Frequency | AU6: Relative Frequency | AV6: Variability
A7: 12 | B7: 7 | C7: 13 | D7: 12 | E7: 24 | F7: 41 | K7: 0 | L7: 112 | N7: 111 | O7: =COUNTIF($L$7:$L$500,N7) -> 58 | P7: =O7/$Q$4 -> 0.2857142857 | Q7: =IF(P7=0,0,(P7*((LOG(P7))/LOG(2)))) -> -0.5163871206 | T7: =N7 -> 111 | U7: =COUNTIF(L7:L40,T7) -> 12 | V7: =U7/(W4-U11) -> 0.3529411765 | W7: =IF(V7=0,0,(V7*((LOG(V7))/LOG(2)))) -> -0.5302942378 | Y7: =N7 -> 111 | Z7: =COUNTIF(L41:L74,Y7) -> 12 | AA7: =Z7/(AB4-Z11) -> 0.3529411765 | AB7: =IF(AA7=0,0,(AA7*((LOG(AA7))/LOG(2)))) -> -0.5302942378 | AD7: =N7 -> 111 | AE7: =COUNTIF(L75:L107,AD7) -> 11 | AF7: =AE7/(AG4-AE11) -> 0.3333333333 | AG7: =IF(AF7=0,0,(AF7*((LOG(AF7))/LOG(2)))) -> -0.5283208336 | AI7: =N7 -> 111 | AJ7: =COUNTIF(L108:L141,AI7) -> 5 | AK7: =AJ7/(AL4-AJ11) -> 0.1515151515 | AL7: =IF(AK7=0,0,(AK7*((LOG(AK7))/LOG(2)))) -> -0.4124948522 | AN7: =N7 -> 111 | AO7: =COUNTIF(L142:L175,AN7) -> 11 | AP7: =AO7/(AQ4-AO11) -> 0.3235294118 | AQ7: =IF(AP7=0,0,(AP7*((LOG(AP7))/LOG(2)))) -> -0.5267159838 | AS7: =N7 -> 111 | AT7: =COUNTIF(L176:L209,AS7) -> 7 | AU7: =AT7/(AV4-AT11) -> 0.2058823529 | AV7: =IF(AU7=0,0,(AU7*((LOG(AU7))/LOG(2)))) -> -0.4694339834
A8: 12 | B8: 138 | C8: 13 | D8: 142 | E8: 24 | F8: 179 | K8: 0 | L8: 112 | N8: 112 | O8: =COUNTIF($L$7:$L$500,N8) -> 83 | P8: =O8/$Q$4 -> 0.4088669951 | Q8: =IF(P8=0,0,(P8*((LOG(P8))/LOG(2)))) -> -0.5275596469 | T8: =N8 -> 112 | U8: =COUNTIF(L7:L40,T8) -> 11 | V8: =U8/(W4-U11) -> 0.3235294118 | W8: =IF(V8=0,0,(V8*((LOG(V8))/LOG(2)))) -> -0.5267159838 | Y8: =N8 -> 112 | Z8: =COUNTIF(L41:L74,Y8) -> 10 | AA8: =Z8/(AB4-Z11) -> 0.2941176471 | AB8: =IF(AA8=0,0,(AA8*((LOG(AA8))/LOG(2)))) -> -0.5192749254 | AD8: =N8 -> 112 | AE8: =COUNTIF(L75:L107,AD8) -> 14 | AF8: =AE8/(AG4-AE11) -> 0.4242424242 | AG8: =IF(AF8=0,0,(AF8*((LOG(AF8))/LOG(2)))) -> -0.5248045079 | AI8: =N8 -> 112 | AJ8: =COUNTIF(L108:L141,AI8) -> 15 | AK8: =AJ8/(AL4-AJ11) -> 0.4545454545 | AL8: =IF(AK8=0,0,(AK8*((LOG(AK8))/LOG(2)))) -> -0.5170470562 | AN8: =N8 -> 112 | AO8: =COUNTIF(L142:L175,AN8) -> 15 | AP8: =AO8/(AQ4-AO11) -> 0.4411764706 | AQ8: =IF(AP8=0,0,(AP8*((LOG(AP8))/LOG(2)))) -> -0.5208406966 | AS8: =N8 -> 112 | AT8: =COUNTIF(L176:L209,AS8) -> 18 | AU8: =AT8/(AV4-AT11) -> 0.5294117647 | AV8: =IF(AU8=0,0,(AU8*((LOG(AU8))/LOG(2)))) -> -0.485755327
A9: 12 | B9: 297 | C9: 13 | D9: 311 | E9: 24 | F9: 325 | K9: 0 | L9: 112 | N9: 121 | O9: =COUNTIF($L$7:$L$500,N9) -> 9 | P9: =O9/$Q$4 -> 0.04433497537 | Q9: =IF(P9=0,0,(P9*((LOG(P9))/LOG(2)))) -> -0.1993039322 | T9: =N9 -> 121 | U9: =COUNTIF(L7:L40,T9) -> 2 | V9: =U9/(W4-U11) -> 0.05882352941 | W9: =IF(V9=0,0,(V9*((LOG(V9))/LOG(2)))) -> -0.2404389907 | Y9: =N9 -> 121 | Z9: =COUNTIF(L41:L74,Y9) -> 0 | AA9: =Z9/(AB4-Z11) -> 0 | AB9: =IF(AA9=0,0,(AA9*((LOG(AA9))/LOG(2)))) -> 0 | AD9: =N9 -> 121 | AE9: =COUNTIF(L75:L107,AD9) -> 1 | AF9: =AE9/(AG4-AE11) -> 0.0303030303 | AG9: =IF(AF9=0,0,(AF9*((LOG(AF9))/LOG(2)))) -> -0.1528604279 | AI9: =N9 -> 121 | AJ9: =COUNTIF(L108:L141,AI9) -> 2 | AK9: =AJ9/(AL4-AJ11) -> 0.06060606061 | AL9: =IF(AK9=0,0,(AK9*((LOG(AK9))/LOG(2)))) -> -0.2451147951 | AN9: =N9 -> 121 | AO9: =COUNTIF(L142:L175,AN9) -> 1 | AP9: =AO9/(AQ4-AO11) -> 0.02941176471 | AQ9: =IF(AP9=0,0,(AP9*((LOG(AP9))/LOG(2)))) -> -0.14963126 | AS9: =N9 -> 121 | AT9: =COUNTIF(L176:L209,AS9) -> 3 | AU9: =AT9/(AV4-AT11) -> 0.08823529412 | AV9: =IF(AU9=0,0,(AU9*((LOG(AU9))/LOG(2)))) -> -0.3090441477
A10: 12 | B10: 424 | C10: 13 | D10: 441 | E10: 24 | F10: 452 | K10: 0 | L10: 112 | N10: 122 | O10: =COUNTIF($L$7:$L$500,N10) -> 17 | P10: =O10/$Q$4 -> 0.08374384236 | Q10: =IF(P10=0,0,(P10*((LOG(P10))/LOG(2)))) -> -0.2996248389 | T10: =N10 -> 122 | U10: =COUNTIF(L7:L40,T10) -> 6 | V10: =U10/(W4-U11) -> 0.1764705882 | W10: =IF(V10=0,0,(V10*((LOG(V10))/LOG(2)))) -> -0.4416177072 | Y10: =N10 -> 122 | Z10: =COUNTIF(L41:L74,Y10) -> 2 | AA10: =Z10/(AB4-Z11) -> 0.05882352941 | AB10: =IF(AA10=0,0,(AA10*((LOG(AA10))/LOG(2)))) -> -0.2404389907 | AD10: =N10 -> 122 | AE10: =COUNTIF(L75:L107,AD10) -> 1 | AF10: =AE10/(AG4-AE11) -> 0.0303030303 | AG10: =IF(AF10=0,0,(AF10*((LOG(AF10))/LOG(2)))) -> -0.1528604279 | AI10: =N10 -> 122 | AJ10: =COUNTIF(L108:L141,AI10) -> 3 | AK10: =AJ10/(AL4-AJ11) -> 0.09090909091 | AL10: =IF(AK10=0,0,(AK10*((LOG(AK10))/LOG(2)))) -> -0.3144937835 | AN10: =N10 -> 122 | AO10: =COUNTIF(L142:L175,AN10) -> 3 | AP10: =AO10/(AQ4-AO11) -> 0.08823529412 | AQ10: =IF(AP10=0,0,(AP10*((LOG(AP10))/LOG(2)))) -> -0.3090441477 | AS10: =N10 -> 122 | AT10: =COUNTIF(L176:L209,AS10) -> 2 | AU10: =AT10/(AV4-AT11) -> 0.05882352941 | AV10: =IF(AU10=0,0,(AU10*((LOG(AU10))/LOG(2)))) -> -0.2404389907
A11: 12 | B11: 553 | C11: 24 | D11: 583 | E11: 24 | F11: 599 | K11: 0 | L11: 122 | N11: 211 | O11: =COUNTIF($L$7:$L$500,N11) -> 1 | P11: =O11/$Q$4 -> 0.004926108374 | Q11: =IF(P11=0,0,(P11*((LOG(P11))/LOG(2)))) -> -0.03776027545 | T11: =N11 -> 211 | U11: =COUNTIF(L7:L40,T11) -> 0 | Y11: =N11 -> 211 | Z11: =COUNTIF(L41:L74,Y11) -> 0 | AD11: =N11 -> 211 | AE11: =COUNTIF(L75:L107,AD11) -> 0 | AI11: =N11 -> 211 | AJ11: =COUNTIF(L108:L141,AI11) -> 1 | AN11: =N11 -> 211 | AO11: =COUNTIF(L142:L175,AN11) -> 0 | AS11: =N11 -> 211 | AT11: =COUNTIF(L176:L209,AS11) -> 0
A12: 12 | B12: 711 | C12: 24 | D12: 730 | E12: 24 | F12: 737 | K12: 0 | L12: 122 | N12: 212 | O12: =COUNTIF($L$7:$L$500,N12) -> 6 | P12: =O12/$Q$4 -> 0.02955665025 | Q12: =IF(P12=0,0,(P12*((LOG(P12))/LOG(2)))) -> -0.1501588202 | T12: =N12 -> 212 | U12: =COUNTIF(L7:L40,T12) -> 0 | V12: =U12/(W4-U11) -> 0 | W12: =IF(V12=0,0,(V12*((LOG(V12))/LOG(2)))) -> 0 | Y12: =N12 -> 212 | Z12: =COUNTIF(L41:L74,Y12) -> 2 | AA12: =Z12/(AB4-Z11) -> 0.05882352941 | AB12: =IF(AA12=0,0,(AA12*((LOG(AA12))/LOG(2)))) -> -0.2404389907 | AD12: =N12 -> 212 | AE12: =COUNTIF(L75:L107,AD12) -> 0 | AF12: =AE12/(AG4-AE11) -> 0 | AG12: =IF(AF12=0,0,(AF12*((LOG(AF12))/LOG(2)))) -> 0 | AI12: =N12 -> 212 | AJ12: =COUNTIF(L108:L141,AI12) -> 3 | AK12: =AJ12/(AL4-AJ11) -> 0.09090909091 | AL12: =IF(AK12=0,0,(AK12*((LOG(AK12))/LOG(2)))) -> -0.3144937835 | AN12: =N12 -> 212 | AO12: =COUNTIF(L142:L175,AN12) -> 1 | AP12: =AO12/(AQ4-AO11) -> 0.02941176471 | AQ12: =IF(AP12=0,0,(AP12*((LOG(AP12))/LOG(2)))) -> -0.14963126 | AS12: =N12 -> 212 | AT12: =COUNTIF(L176:L209,AS12) -> 0 | AU12: =AT12/(AV4-AT11) -> 0 | AV12: =IF(AU12=0,0,(AU12*((LOG(AU12))/LOG(2)))) -> 0
A13: 12 | B13: 837 | C13: 24 | D13: 873 | E13: 24 | F13: 877 | K13: 0 | L13: 122 | N13: 221 | O13: =COUNTIF($L$7:$L$500,N13) -> 12 | P13: =O13/$Q$4 -> 0.05911330049 | Q13: =IF(P13=0,0,(P13*((LOG(P13))/LOG(2)))) -> -0.2412043399 | T13: =N13 -> 221 | U13: =COUNTIF(L7:L40,T13) -> 2 | V13: =U13/(W4-U11) -> 0.05882352941 | W13: =IF(V13=0,0,(V13*((LOG(V13))/LOG(2)))) -> -0.2404389907 | Y13: =N13 -> 221 | Z13: =COUNTIF(L41:L74,Y13) -> 4 | AA13: =Z13/(AB4-Z11) -> 0.1176470588 | AB13: =IF(AA13=0,0,(AA13*((LOG(AA13))/LOG(2)))) -> -0.3632309225 | AD13: =N13 -> 221 | AE13: =COUNTIF(L75:L107,AD13) -> 2 | AF13: =AE13/(AG4-AE11) -> 0.06060606061 | AG13: =IF(AF13=0,0,(AF13*((LOG(AF13))/LOG(2)))) -> -0.2451147951 | AI13: =N13 -> 221 | AJ13: =COUNTIF(L108:L141,AI13) -> 3 | AK13: =AJ13/(AL4-AJ11) -> 0.09090909091 | AL13: =IF(AK13=0,0,(AK13*((LOG(AK13))/LOG(2)))) -> -0.3144937835 | AN13: =N13 -> 221 | AO13: =COUNTIF(L142:L175,AN13) -> 1 | AP13: =AO13/(AQ4-AO11) -> 0.02941176471 | AQ13: =IF(AP13=0,0,(AP13*((LOG(AP13))/LOG(2)))) -> -0.14963126 | AS13: =N13 -> 221 | AT13: =COUNTIF(L176:L209,AS13) -> 0 | AU13: =AT13/(AV4-AT11) -> 0 | AV13: =IF(AU13=0,0,(AU13*((LOG(AU13))/LOG(2)))) -> 0
A14: 12 | B14: 983 | C14: 13 | D14: 993 | E14: 13 | F14: 1001 | K14: 0 | L14: 111 | N14: 222 | O14: =COUNTIF($L$7:$L$500,N14) -> 17 | P14: =O14/$Q$4 -> 0.08374384236 | Q14: =IF(P14=0,0,(P14*((LOG(P14))/LOG(2)))) -> -0.2996248389 | T14: =N14 -> 222 | U14: =COUNTIF(L7:L40,T14) -> 1 | V14: =U14/(W4-U11) -> 0.02941176471 | W14: =IF(V14=0,0,(V14*((LOG(V14))/LOG(2)))) -> -0.14963126 | Y14: =N14 -> 222 | Z14: =COUNTIF(L41:L74,Y14) -> 4 | AA14: =Z14/(AB4-Z11) -> 0.1176470588 | AB14: =IF(AA14=0,0,(AA14*((LOG(AA14))/LOG(2)))) -> -0.3632309225 | AD14: =N14 -> 222 | AE14: =COUNTIF(L75:L107,AD14) -> 4 | AF14: =AE14/(AG4-AE11) -> 0.1212121212 | AG14: =IF(AF14=0,0,(AF14*((LOG(AF14))/LOG(2)))) -> -0.369017469 | AI14: =N14 -> 222 | AJ14: =COUNTIF(L108:L141,AI14) -> 2 | AK14: =AJ14/(AL4-AJ11) -> 0.06060606061 | AL14: =IF(AK14=0,0,(AK14*((LOG(AK14))/LOG(2)))) -> -0.2451147951 | AN14: =N14 -> 222 | AO14: =COUNTIF(L142:L175,AN14) -> 2 | AP14: =AO14/(AQ4-AO11) -> 0.05882352941 | AQ14: =IF(AP14=0,0,(AP14*((LOG(AP14))/LOG(2)))) -> -0.2404389907 | AS14: =N14 -> 222 | AT14: =COUNTIF(L176:L209,AS14) -> 4 | AU14: =AT14/(AV4-AT11) -> 0.1176470588 | AV14: =IF(AU14=0,0,(AU14*((LOG(AU14))/LOG(2)))) -> -0.3632309225
A15: 12 | B15: 1103 | C15: 24 | D15: 1115 | E15: 24 | F15: 1119 | K15: 0 | L15: 122 | P15: =SUM(P7:P14) -> 1 | Q15: =-SUM(Q7:Q14) -> 2.271623813 | V15: =SUM(V7:V14) -> 1 | W15: =-SUM(W7:W14) -> 2.12913717 | AA15: =SUM(AA7:AA14) -> 1 | AB15: =-SUM(AB7:AB14) -> 2.25690899 | AF15: =SUM(AF7:AF14) -> 1 | AG15: =-SUM(AG7:AG14) -> 1.972978461 | AK15: =SUM(AK7:AK14) -> 1 | AL15: =-SUM(AL7:AL14) -> 2.363252849 | AP15: =SUM(AP7:AP14) -> 1 | AQ15: =-SUM(AQ7:AQ14) -> 2.045933599 | AU15: =SUM(AU7:AU14) -> 1 | AV15: =-SUM(AV7:AV14) -> 1.867903371
A16: 12 | B16: 1257 | C16: 13 | D16: 1261 | E16: 24 | F16: 1277 | K16: 0 | L16: 112 | P16: U= | Q16: =Q15/(LOG(Q4)/LOG(2)) -> 0.2963501975 | V16: U1= | W16: =W15/(LOG(W4)/LOG(2)) -> 0.4185066774 | AA16: U2= | AB16: =AB15/(LOG(AB4)/LOG(2)) -> 0.4436217148 | AF16: U3= | AG16: =AG15/(LOG(AG4)/LOG(2)) -> 0.3911229802 | AK16: U4= | AL16: =AL15/(LOG(AL4)/LOG(2)) -> 0.4645248374 | AP16: U5= | AQ16: =AQ15/(LOG(AQ4)/LOG(2)) -> 0.4021520476 | AU16: U6= | AV16: =AV15/(LOG(AV4)/LOG(2)) -> 0.3671581355
A17: 12 | B17: 1393 | C17: 13 | D17: 1398 | E17: 13 | F17: 1405 | K17: 0 | L17: 111
A18: 12 | B18: 1506 | C18: 13 | D18: 1514 | E18: 13 | F18: 1518 | K18: 0 | L18: 111
A19: 12 | B19: 1622 | C19: 13 | D19: 1626 | E19: 13 | F19: 1630 | K19: 0 | L19: 111 | N19: Total Target Seq
A20: 12 | B20: 1734 | C20: 13 | D20: 1760 | E20: 13 | F20: 1771 | K20: 0 | L20: 111 | N20: =COUNTIF(L7:L209,G3) -> 1 | P20: 34 | Q20: 34 | R20: 33 | S20: 34 | T20: 34 | U20: 34
A21: 21 | B21: 1882 | C21: 22 | D21: 1886 | E21: 13 | F21: 1897 | K21: 0 | L21: 221 | P21: % of reinforcement given in 6 equal intervals based on number of trials
A22: 12 | B22: 2022 | C22: 13 | D22: 2027 | E22: 24 | F22: 2038 | K22: 0 | L22: 112 | P22: %_1 | Q22: %_2 | R22: %_3 | S22: %_4 | T22: %_5 | U22: %_6
A23: 12 | B23: 2139 | C23: 13 | D23: 2143 | E23: 13 | F23: 2151 | K23: 0 | L23: 111 | O23: target sequence | P23: =$G$3 -> 211 | Q23: =$G$3 -> 211 | R23: =$G$3 -> 211 | S23: =$G$3 -> 211 | T23: =$G$3 -> 211 | U23: =$G$3 -> 211
A24: 12 | B24: 2248 | C24: 13 | D24: 2261 | E24: 13 | F24: 2265 | K24: 0 | L24: 111 | O24: total reinforcement | P24: =U11 -> 0 | Q24: =Z11 -> 0 | R24: =AE11 -> 0 | S24: =AJ11 -> 1 | T24: =AO11 -> 0 | U24: =AT11 -> 0
A25: 12 | B25: 2364 | C25: 13 | D25: 2368 | E25: 24 | F25: 2382 | K25: 0 | L25: 112 | O25: % target
A26: 12 | B26: 2485 | C26: 13 | D26: 2493 | E26: 13 | F26: 2496 | K26: 0 | L26: 111 | O26: CCRF
A27: 12 | B27: 2596 | C27: 13 | D27: 2600 | E27: 13 | F27: 2604 | K27: 0 | L27: 111 | O27: % CCRf
A28: 12 | B28: 2706 | C28: 13 | D28: 2710 | E28: 24 | F28: 2725 | K28: 0 | L28: 112 | O28: average response rate | P28: =F40/P20 -> 122.1176471 | Q28: =(F74-F40)/Q20 -> 115.8529412 | R28: =(F107-F74)/R20 -> 112.4545455 | S28: =(F141-F107)/S20 -> 120.5 | T28: =(F175-F141)/T20 -> 117 | U28: =(F209-F175)/U20 -> 119.2058824
A29: 12 | B29: 2834 | C29: 13 | D29: 2838 | E29: 24 | F29: 2848 | K29: 0 | L29: 112
A30: 12 | B30: 2964 | C30: 24 | D30: 2972 | E30: 13 | F30: 2982 | K30: 0 | L30: 121
A31: 12 | B31: 3091 | C31: 24 | D31: 3099 | E31: 13 | F31: 3109 | K31: 0 | L31: 121
A32: 12 | B32: 3211 | C32: 13 | D32: 3225 | E32: 24 | F32: 3235 | K32: 0 | L32: 112
A33: 21 | B33: 3333 | C33: 22 | D33: 3337 | E33: 13 | F33: 3347 | K33: 0 | L33: 221
A34: 12 | B34: 3447 | C34: 24 | D34: 3459 | E34: 24 | F34: 3464 | K34: 0 | L34: 122
A35: 12 | B35: 3561 | C35: 13 | D35: 3568 | E35: 24 | F35: 3579 | K35: 0 | L35: 112
A36: 12 | B36: 3677 | C36: 24 | D36: 3691 | E36: 24 | F36: 3699 | K36: 0 | L36: 122
A37: 12 | B37: 3801 | C37: 13 | D37: 3809 | E37: 13 | F37: 3813 | K37: 0 | L37: 111
A38: 12 | B38: 3921 | C38: 13 | D38: 3929 | E38: 13 | F38: 3939 | K38: 0 | L38: 111
A39: 21 | B39: 4039 | C39: 22 | D39: 4043 | E39: 24 | F39: 4047 | K39: 0 | L39: 222
A40: 12 | B40: 4145 | C40: 13 | D40: 4148 | E40: 13 | F40: 4152 | K40: 0 | L40: 111
A41: 12 | B41: 4253 | C41: 13 | D41: 4257 | E41: 13 | F41: 4262 | K41: 0 | L41: 111
A42: 12 | B42: 4363 | C42: 13 | D42: 4378 | E42: 24 | F42: 4392 | K42: 0 | L42: 112
A43: 12 | B43: 4496 | C43: 13 | D43: 4500 | E43: 24 | F43: 4514 | K43: 0 | L43: 112
A44: 21 | B44: 4613 | C44: 11 | D44: 4624 | E44: 22 | F44: 4636 | K44: 0 | L44: 212
A45: 21 | B45: 4736 | C45: 11 | D45: 4745 | E45: 22 | F45: 4760 | K45: 0 | L45: 212
A46: 21 | B46: 4859 | C46: 22 | D46: 4874 | E46: 13 | F46: 4881 | K46: 0 | L46: 221
A47: 12 | B47: 4983 | C47: 13 | D47: 4988 | E47: 24 | F47: 5000 | K47: 0 | L47: 112
A48: 12 | B48: 5099 | C48: 24 | D48: 5114 | E48: 24 | F48: 5118 | K48: 0 | L48: 122
A49: 12 | B49: 5219 | C49: 13 | D49: 5223 | E49: 13 | F49: 5227 | K49: 0 | L49: 111
A50: 12 | B50: 5327 | C50: 13 | D50: 5335 | E50: 13 | F50: 5339 | K50: 0 | L50: 111
A51: 12 | B51: 5438 | C51: 13 | D51: 5441 | E51: 13 | F51: 5447 | K51: 0 | L51: 111
A52: 12 | B52: 5545 | C52: 13 | D52: 5549 | E52: 13 | F52: 5553 | K52: 0 | L52: 111
A53: 12 | B53: 5650 | C53: 13 | D53: 5657 | E53: 13 | F53: 5661 | K53: 0 | L53: 111
A54: 21 | B54: 5777 | C54: 22 | D54: 5782 | E54: 13 | F54: 5796 | K54: 0 | L54: 221
A55: 12 | B55: 5894 | C55: 13 | D55: 5898 | E55: 24 | F55: 5909 | K55: 0 | L55: 112
A56: 21 | B56: 6007 | C56: 22 | D56: 6011 | E56: 24 | F56: 6025 | K56: 0 | L56: 222
A57: 12 | B57: 6125 | C57: 13 | D57: 6128 | E57: 13 | F57: 6135 | K57: 0 | L57: 111
A58: 12 | B58: 6236 | C58: 13 | D58: 6240 | E58: 24 | F58: 6248 | K58: 0 | L58: 112
A59: 12 | B59: 6351 | C59: 24 | D59: 6363 | E59: 24 | F59: 6370 | K59: 0 | L59: 122
A60: 21 | B60: 6470 | C60: 22 | D60: 6474 | E60: 24 | F60: 6488 | K60: 0 | L60: 222
A61: 21 | B61: 6598 | C61: 22 | D61: 6610 | E61: 24 | F61: 6620 | K61: 0 | L61: 222
A62: 12 | B62: 6726 | C62: 13 | D62: 6731 | E62: 13 | F62: 6736 | K62: 0 | L62: 111
A63: 12 | B63: 6837 | C63: 13 | D63: 6844 | E63: 24 | F63: 6852 | K63: 0 | L63: 112
A64: 12 | B64: 6950 | C64: 13 | D64: 6954 | E64: 13 | F64: 6958 | K64: 0 | L64: 111
A65: 21 | B65: 7057 | C65: 22 | D65: 7061 | E65: 13 | F65: 7076 | K65: 0 | L65: 221
A66: 12 | B66: 7177 | C66: 13 | D66: 7181 | E66: 24 | F66: 7192 | K66: 0 | L66: 112
A67: 12 | B67: 7290 | C67: 13 | D67: 7293 | E67: 24 | F67: 7305 | K67: 0 | L67: 112
A68: 12 | B68: 7403 | C68: 13 | D68: 7419 | E68: 13 | F68: 7426 | K68: 0 | L68: 111
A69: 21 | B69: 7524 | C69: 22 | D69: 7529 | E69: 13 | F69: 7540 | K69: 0 | L69: 221
A70: 12 | B70: 7638 | C70: 13 | D70: 7641 | E70: 13 | F70: 7645 | K70: 0 | L70: 111
A71: 12 | B71: 7743 | C71: 13 | D71: 7751 | E71: 13 | F71: 7755 | K71: 0 | L71: 111
A72: 12 | B72: 7853 | C72: 13 | D72: 7856 | E72: 24 | F72: 7866 | K72: 0 | L72: 112
A73: 12 | B73: 7966 | C73: 13 | D73: 7971 | E73: 24 | F73: 7979 | K73: 0 | L73: 112
A74: 21 | B74: 8082 | C74: 22 | D74: 8086 | E74: 24 | F74: 8091 | K74: 0 | L74: 222
A75: 12 | B75: 8190 | C75: 13 | D75: 8193 | E75: 24 | F75: 8204 | K75: 0 | L75: 112
A76: 21 | B76: 8310 | C76: 22 | D76: 8315 | E76: 24 | F76: 8336 | K76: 0 | L76: 222
A77: 12 | B77: 8433 | C77: 13 | D77: 8437 | E77: 13 | F77: 8448 | K77: 0 | L77: 111
A78: 21 | B78: 8549 | C78: 22 | D78: 8553 | E78: 24 | F78: 8563 | K78: 0 | L78: 222
A79: 12 | B79: 8661 | C79: 13 | D79: 8668 | E79: 13 | F79: 8672 | K79: 0 | L79: 111
A80: 12 | B80: 8772 | C80: 13 | D80: 8776 | E80: 24 | F80: 8784 | K80: 0 | L80: 112
A81: 12 | B81: 8880 | C81: 13 | D81: 8887 | E81: 24 | F81: 8900 | K81: 0 | L81: 112
A82: 12 | B82: 8998 | C82: 13 | D82: 9001 | E82: 13 | F82: 9005 | K82: 0 | L82: 111
A83: 12 | B83: 9103 | C83: 13 | D83: 9106 | E83: 13 | F83: 9117 | K83: 0 | L83: 111
A84: 12 | B84: 9214 | C84: 13 | D84: 9217 | E84: 13 | F84: 9222 | K84: 0 | L84: 111
A85: 12 | B85: 9319 | C85: 13 | D85: 9326 | E85: 24 | F85: 9336 | K85: 0 | L85: 112
A86: 12 | B86: 9434 | C86: 13 | D86: 9437 | E86: 13 | F86: 9444 | K86: 0 | L86: 111
A87: 12 | B87: 9544 | C87: 13 | D87: 9548 | E87: 24 | F87: 9555 | K87: 0 | L87: 112
A88: 12 | B88: 9652 | C88: 13 | D88: 9657 | E88: 24 | F88: 9666 | K88: 0 | L88: 112
A89: 21 | B89: 9767 | C89: 22 | D89: 9772 | E89: 13 | F89: 9782 | K89: 0 | L89: 221
A90: 12 | B90: 9879 | C90: 13 | D90: 9883 | E90: 13 | F90: 9887 | K90: 0 | L90: 111
A91: 12 | B91: 9985 | C91: 13 | D91: 9995 | E91: 24 | F91: 10003 | K91: 0 | L91: 112
A92: 12 | B92: 10102 | C92: 13 | D92: 10106 | E92: 13 | F92: 10112 | K92: 0 | L92: 111
A93: 12 | B93: 10211 | C93: 13 | D93: 10221 | E93: 24 | F93: 10235 | K93: 0 | L93: 112
A94: 12 | B94: 10334 | C94: 13 | D94: 10338 | E94: 24 | F94: 10346 | K94: 0 | L94: 112
A95: 12 | B95: 10443 | C95: 13 | D95: 10447 | E95: 24 | F95: 10463 | K95: 0 | L95: 112
A96: 12 | B96: 10562 | C96: 13 | D96: 10565 | E96: 24 | F96: 10576 | K96: 0 | L96: 112
A97: 12 | B97: 10674 | C97: 13 | D97: 10677 | E97: 13 | F97: 10682 | K97: 0 | L97: 111
A98: 12 | B98: 10779 | C98: 13 | D98: 10787 | E98: 24 | F98: 10797 | K98: 0 | L98: 112
A99: 12 | B99: 10894 | C99: 13 | D99: 10897 | E99: 13 | F99: 10902 | K99: 0 | L99: 111
A100: 12 | B100: 11000 | C100: 13 | D100: 11004 | E100: 13 | F100: 11008 | K100: 0 | L100: 111
A101: 12 | B101: 11106 | C101: 13 | D101: 11110 | E101: 24 | F101: 11118 | K101: 0 | L101: 112
A102: 12 | B102: 11225 | C102: 24 | D102: 11234 | E102: 13 | F102: 11244 | K102: 0 | L102: 121
A103: 12 | B103: 11342 | C103: 13 | D103: 11346 | E103: 24 | F103: 11353 | K103: 0 | L103: 112
A104: 12 | B104: 11452 | C104: 24 | D104: 11459 | E104: 24 | F104: 11466 | K104: 0 | L104: 122
A105: 21 | B105: 11561 | C105: 22 | D105: 11569 | E105: 13 | F105: 11579 | K105: 0 | L105: 221
A106: 21 | B106: 11682 | C106: 22 | D106: 11686 | E106: 24 | F106: 11691 | K106: 0 | L106: 222
A107: 21 | B107: 11794 | C107: 22 | D107: 11798 | E107: 24 | F107: 11802 | K107: 0 | L107: 222
A108: 12 | B108: 11899 | C108: 13 | D108: 11903 | E108: 24 | F108: 11911 | K108: 0 | L108: 112
A109: 12 | B109: 12009 | C109: 13 | D109: 12012 | E109: 13 | F109: 12017 | K109: 0 | L109: 111
A110: 12 | B110: 12116 | C110: 13 | D110: 12124 | E110: 24 | F110: 12130 | K110: 0 | L110: 112
A111: 12 | B111: 12231 | C111: 13 | D111: 12242 | E111: 13 | F111: 12249 | K111: 0 | L111: 111
A112: 21 | B112: 12391 | C112: 11 | D112: 12404 | E112: 11 | F112: 12426 | K112: 0 | L112: 211
A113: 21 | B113: 12528 | C113: 22 | D113: 12533 | E113: 24 | F113: 12546 | K113: 0 | L113: 222
A114: 21 | B114: 12640 | C114: 22 | D114: 12645 | E114: 13 | F114: 12655 | K114: 0 | L114: 221
A115: 12 | B115: 12773 | C115: 24 | D115: 12787 | E115: 13 | F115: 12826 | K115: 0 | L115: 121
A116: 12 | B116: 12924 | C116: 13 | D116: 12928 | E116: 24 | F116: 12938 | K116: 0 | L116: 112
A117: 12 | B117: 13034 | C117: 13 | D117: 13041 | E117: 24 | F117: 13051 | K117: 0 | L117: 112
A118: 12 | B118: 13150 | C118: 13 | D118: 13153 | E118: 24 | F118: 13163 | K118: 0 | L118: 112
A119: 12 | B119: 13264 | C119: 13 | D119: 13271 | E119: 24 | F119: 13282 | K119: 0 | L119: 112
A120: 21 | B120: 13386 | C120: 22 | D120: 13390 | E120: 24 | F120: 13405 | K120: 0 | L120: 222
A121: 12 | B121: 13503 | C121: 13 | D121: 13506 | E121: 24 | F121: 13513 | K121: 0 | L121: 112
A122: 12 | B122: 13611 | C122: 13 | D122: 13615 | E122: 24 | F122: 13624 | K122: 0 | L122: 112
A123: 12 | B123: 13722 | C123: 13 | D123: 13730 | E123: 24 | F123: 13740 | K123: 0 | L123: 112
A124: 12 | B124: 13837 | C124: 13 | D124: 13840 | E124: 13 | F124: 13849 | K124: 0 | L124: 111
A125: 12 | B125: 13947 | C125: 13 | D125: 13950 | E125: 24 | F125: 13958 | K125: 0 | L125: 112
A126: 12 | B126: 14056 | C126: 13 | D126: 14060 | E126: 24 | F126: 14072 | K126: 0 | L126: 112
A127: 21 | B127: 14188 | C127: 11 | D127: 14199 | E127: 22 | F127: 14206 | K127: 0 | L127: 212
A128: 21 | B128: 14307 | C128: 22 | D128: 14311 | E128: 13 | F128: 14325 | K128: 0 | L128: 221
A129: 12 | B129: 14426 | C129: 24 | D129: 14435 | E129: 24 | F129: 14456 | K129: 0 | L129: 122
A130: 12 | B130: 14560 | C130: 24 | D130: 14569 | E130: 24 | F130: 14579 | K130: 0 | L130: 122
A131: 12 | B131: 14677 | C131: 13 | D131: 14680 | E131: 13 | F131: 14686 | K131: 0 | L131: 111
A132: 12 | B132: 14784 | C132: 13 | D132: 14788 | E132: 24 | F132: 14797 | K132: 0 | L132: 112
A133: 12 | B133: 14902 | C133: 24 | D133: 14917 | E133: 13 | F133: 14939 | K133: 0 | L133: 121
A134: 12 | B134: 15038 | C134: 13 | D134: 15042 | E134: 24 | F134: 15053 | K134: 0 | L134: 112
A135: 21 | B135: 15161 | C135: 11 | D135: 15171 | E135: 22 | F135: 15178 | K135: 0 | L135: 212
A136: 21 | B136: 15281 | C136: 11 | D136: 15290 | E136: 22 | F136: 15299 | K136: 0 | L136: 212
A137: 21 | B137: 15398 | C137: 22 | D137: 15402 | E137: 13 | F137: 15412 | K137: 0 | L137: 221
A138: 12 | B138: 15511 | C138: 13 | D138: 15515 | E138: 24 | F138: 15522 | K138: 0 | L138: 112
A139: 12 | B139: 15620 | C139: 13 | D139: 15623 | E139: 13 | F139: 15630 | K139: 0 | L139: 111
A140: 12 | B140: 15728 | C140: 13 | D140: 15732 | E140: 24 | F140: 15739 | K140: 0 | L140: 112
A141: 12 | B141: 15871 | C141: 24 | D141: 15879 | E141: 24 | F141: 15899 | K141: 0 | L141: 122
A142: 12 | B142: 16001 | C142: 24 | D142: 16021 | E142: 13 | F142: 16035 | K142: 0 | L142: 121
A143: 12 | B143: 16136 | C143: 13 | D143: 16140 | E143: 24 | F143: 16147 | K143: 0 | L143: 112
A144: 12 | B144: 16245 | C144: 13 | D144: 16248 | E144: 13 | F144: 16258 | K144: 0 | L144: 111
A145: 12 | B145: 16355 | C145: 13 | D145: 16358 | E145: 13 | F145: 16362 | K145: 0 | L145: 111
A146: 21 | B146: 16486 | C146: 22 | D146: 16506 | E146: 13 | F146: 16521 | K146: 0 | L146: 221
A147: 12 | B147: 16620 | C147: 13 | D147: 16627 | E147: 24 | F147: 16639 | K147: 0 | L147: 112
A148: 12 | B148: 16737 | C148: 13 | D148: 16740 | E148: 24 | F148: 16748 | K148: 0 | L148: 112
A149: 12 | B149: 16847 | C149: 13 | D149: 16851 | E149: 24 | F149: 16882 | K149: 0 | L149: 112
A150: 12 | B150: 16980 | C150: 13 | D150: 16990 | E150: 24 | F150: 17000 | K150: 0 | L150: 112
A151: 12 | B151: 17097 | C151: 13 | D151: 17101 | E151: 13 | F151: 17113 | K151: 0 | L151: 111
A152: 12 | B152: 17211 | C152: 13 | D152: 17214 | E152: 13 | F152: 17219 | K152: 0 | L152: 111
A153: 12 | B153: 17318 | C153: 13 | D153: 17322 | E153: 13 | F153: 17326 | K153: 0 | L153: 111
A154: 12 | B154: 17424 | C154: 13 | D154: 17428 | E154: 24 | F154: 17436 | K154: 0 | L154: 112
A155: 21 | B155: 17544 | C155: 22 | D155: 17564 | E155: 24 | F155: 17580 | K155: 0 | L155: 222
A156: 12 | B156: 17677 | C156: 13 | D156: 17681 | E156: 24 | F156: 17688 | K156: 0 | L156: 112
A157: 12 | B157: 17786 | C157: 13 | D157: 17790 | E157: 13 | F157: 17793 | K157: 0 | L157: 111
A158: 12 | B158: 17892 | C158: 13 | D158: 17897 | E158: 24 | F158: 17906 | K158: 0 | L158: 112
A159: 12 | B159: 18004 | C159: 13 | D159: 18008 | E159: 24 | F159: 18016 | K159: 0 | L159: 112
A160: 12 | B160: 18116 | C160: 24 | D160: 18137 | E160: 24 | F160: 18155 | K160: 0 | L160: 122
A161: 12 | B161: 18254 | C161: 24 | D161: 18264 | E161: 24 | F161: 18280 | K161: 0 | L161: 122
A162: 12 | B162: 18381 | C162: 13 | D162: 18385 | E162: 13 | F162: 18392 | K162: 0 | L162: 111
A163: 12 | B163: 18489 | C163: 13 | D163: 18493 | E163: 24 | F163: 18502 | K163: 0 | L163: 112
A164: 12 | B164: 18600 | C164: 13 | D164: 18604 | E164: 13 | F164: 18611 | K164: 0 | L164: 111
A165: 21 | B165: 18729 | C165: 11 | D165: 18739 | E165: 22 | F165: 18747 | K165: 0 | L165: 212
A166: 21 | B166: 18845 | C166: 22 | D166: 18849 | E166: 24 | F166: 18861 | K166: 0 | L166: 222
A167: 12 | B167: 18959 | C167: 13 | D167: 18962 | E167: 24 | F167: 18970 | K167: 0 | L167: 112
A168: 12 | B168: 19077 | C168: 24 | D168: 19086 | E168: 24 | F168: 19104 | K168: 0 | L168: 122
A169: 12 | B169: 19201 | C169: 13 | D169: 19207 | E169: 13 | F169: 19212 | K169: 0 | L169: 111
A170: 12 | B170: 19312 | C170: 13 | D170: 19316 | E170: 24 | F170: 19324 | K170: 0 | L170: 112
A171: 12 | B171: 19423 | C171: 13 | D171: 19427 | E171: 24 | F171: 19434 | K171: 0 | L171: 112
A172: 12 | B172: 19532 | C172: 13 | D172: 19537 | E172: 13 | F172: 19542 | K172: 0 | L172: 111
A173: 12 | B173: 19644 | C173: 13 | D173: 19648 | E173: 24 | F173: 19657 | K173: 0 | L173: 112
A174: 12 | B174: 19755 | C174: 13 | D174: 19759 | E174: 13 | F174: 19769 | K174: 0 | L174: 111
A175: 12 | B175: 19866 | C175: 13 | D175: 19870 | E175: 24 | F175: 19877 | K175: 0 | L175: 112
A176: 12 | B176: 19976 | C176: 13 | D176: 19980 | E176: 13 | F176: 19990 | K176: 0 | L176: 111
A177: 12 | B177: 20119 | C177: 24 | D177: 20127 | E177: 13 | F177: 20144 | K177: 0 | L177: 121
A178: 12 | B178: 20243 | C178: 24 | D178: 20267 | E178: 13 | F178: 20281 | K178: 0 | L178: 121
A179: 12 | B179: 20380 | C179: 24 | D179: 20388 | E179: 24 | F179: 20396 | K179: 0 | L179: 122
A180: 21 | B180: 20513 | C180: 22 | D180: 20517 | E180: 24 | F180: 20536 | K180: 0 | L180: 222
A181: 12 | B181: 20633 | C181: 13 | D181: 20637 | E181: 24 | F181: 20647 | K181: 0 | L181: 112
A182: 12 | B182: 20746 | C182: 13 | D182: 20750 | E182: 24 | F182: 20758 | K182: 0 | L182: 112
A183: 12 | B183: 20857 | C183: 13 | D183: 20861 | E183: 13 | F183: 20868 | K183: 0 | L183: 111
A184: 12 | B184: 20967 | C184: 13 | D184: 20970 | E184: 24 | F184: 20980 | K184: 0 | L184: 112
A185: 12 | B185: 21076 | C185: 24 | D185: 21084 | E185: 13 | F185: 21104 | K185: 0 | L185: 121
A186: 12 | B186: 21201 | C186: 13 | D186: 21205 | E186: 13 | F186: 21214 | K186: 0 | L186: 111
A187: 12 | B187: 21312 | C187: 13 | D187: 21316 | E187: 24 | F187: 21332 | K187: 0 | L187: 112
A188: 12 | B188: 21430 | C188: 13 | D188: 21434 | E188: 13 | F188: 21442 | K188: 0 | L188: 111
A189: 12 | B189: 21539 | C189: 13 | D189: 21544 | E189: 24 | F189: 21553 | K189: 0 | L189: 112
A190: 12 | B190: 21652 | C190: 13 | D190: 21663 | E190: 24 | F190: 21673 | K190: 0 | L190: 112
A191: 12 | B191: 21771 | C191: 13 | D191: 21780 | E191: 24 | F191: 21807 | K191: 0 | L191: 112
A192: 12 | B192: 21906 | C192: 13 | D192: 21916 | E192: 24 | F192: 21924 | K192: 0 | L192: 112
A193: 12 | B193: 22024 | C193: 13 | D193: 22028 | E193: 24 | F193: 22038 | K193: 0 | L193: 112
A194: 12 | B194: 22143 | C194: 13 | D194: 22154 | E194: 24 | F194: 22161 | K194: 0 | L194: 112
A195: 12 | B195: 22260 | C195: 13 | D195: 22263 | E195: 13 | F195: 22274 | K195: 0 | L195: 111
A196: 12 | B196: 22376 | C196: 24 | D196: 22385 | E196: 24 | F196: 22398 | K196: 0 | L196: 122
A197: 12 | B197: 22497 | C197: 13 | D197: 22508 | E197: 24 | F197: 22516 | K197: 0 | L197: 112
A198: 21 | B198: 22622 | C198: 22 | D198: 22636 | E198: 24 | F198: 22643 | K198: 0 | L198: 222
A199: 21 | B199: 22743 | C199: 22 | D199: 22756 | E199: 24 | F199: 22763 | K199: 0 | L199: 222
A200: 12 | B200: 22860 | C200: 13 | D200: 22865 | E200: 24 | F200: 22872 | K200: 0 | L200: 112
... 9 more rows

Sheet !MC10B30.096
A1: Report for:!MC10B30.096
A2: Date: | B2: <date>
A3: Hen: | B3: <hen> | F3: Correct Sequence | G3: =Start!J2 -> 211 | P3: Total Sequences in Data | Q3: =4994-COUNTBLANK(L7:L5000) -> 202 | V3: Total Sequences in Block Data | W3: =COUNTA(L7:L40) -> 34 | AA3: Total Sequences in Block Data | AB3: =COUNTA(L41:L73) -> 33 | AF3: Total Sequences in Block Data | AG3: =COUNTA(L74:L107) -> 34 | AK3: Total Sequences in Block Data | AL3: =COUNTA(L108:L141) -> 34 | AP3: Total Sequences in Block Data | AQ3: =COUNTA(L142:L174) -> 33 | AU3: Total Sequences in Block Data | AV3: =COUNTA(L175:L208) -> 34
P4: Total Sequences in Summary | Q4: =SUM(O7:O14) -> 201 | V4: Total Sequences in Block Summary | W4: =SUM(U7:U14) -> 34 | AA4: Total Sequences in Block Summary | AB4: =SUM(Z7:Z14) -> 33 | AF4: Total Sequences in Block Summary | AG4: =SUM(AE7:AE14) -> 34 | AK4: Total Sequences in Block Summary | AL4: =SUM(AJ7:AJ14) -> 34 | AP4: Total Sequences in Block Summary | AQ4: =SUM(AO7:AO14) -> 33 | AU4: Total Sequences in Block Summary | AV4: =SUM(AT7:AT14) -> 33
T5: Block 1 | Y5: Block 2 | AD5: Block 3 | AI5: Block 4 | AN5: Block 5 | AS5: Block 6
A6: Sequence Component 1 | B6: Time 1 | C6: Sequence Component 2 | D6: Time 2 | E6: Sequence Component 3 | F6: Time 3 | G6: Sequence Component 4 | H6: Time 4 | I6: Sequence Component 5 | J6: Time 5 | K6: Correct? 0=No 1=Yes | L6: Sequence | N6: Frequency | P6: Relative Frequency | Q6: Variability | T6: Frequency | V6: Relative Frequency | W6: Variability | Y6: Frequency | AA6: Relative Frequency | AB6: Variability | AD6: Frequency | AF6: Relative Frequency | AG6: Variability | AI6: Frequency | AK6: Relative Frequency | AL6: Variability | AN6: Frequency | AP6: Relative Frequency | AQ6: Variability | AS6: Frequency | AU6: Relative Frequency | AV6: Variability
A7: 12 | B7: 7 | C7: 13 | D7: 11 | E7: 13 | F7: 15 | K7: 0 | L7: 111 | N7: 111 | O7: =COUNTIF($L$7:$L$500,N7) -> 68 | P7: =O7/$Q$4 -> 0.3383084577 | Q7: =IF(P7=0,0,(P7*((LOG(P7))/LOG(2)))) -> -0.5289753323 | T7: =N7 -> 111 | U7: =COUNTIF(L7:L40,T7) -> 9 | V7: =U7/(W4-U11) -> 0.2647058824 | W7: =IF(V7=0,0,(V7*((LOG(V7))/LOG(2)))) -> -0.5075835458 | Y7: =N7 -> 111 | Z7: =COUNTIF(L41:L73,Y7) -> 12 | AA7: =Z7/(AB4-Z11) -> 0.3636363636 | AB7: =IF(AA7=0,0,(AA7*((LOG(AA7))/LOG(2)))) -> -0.5307024068 | AD7: =N7 -> 111 | AE7: =COUNTIF(L74:L107,AD7) -> 16 | AF7: =AE7/(AG4-AE11) -> 0.4848484848 | AG7: =IF(AF7=0,0,(AF7*((LOG(AF7))/LOG(2)))) -> -0.5063729064 | AI7: =N7 -> 111 | AJ7: =COUNTIF(L108:L141,AI7) -> 13 | AK7: =AJ7/(AL4-AJ11) -> 0.3939393939 | AL7: =IF(AK7=0,0,(AK7*((LOG(AK7))/LOG(2)))) -> -0.5294365823 | AN7: =N7 -> 111 | AO7: =COUNTIF(L142:L174,AN7) -> 8 | AP7: =AO7/(AQ4-AO11) -> 0.2424242424 | AQ7: =IF(AP7=0,0,(AP7*((LOG(AP7))/LOG(2)))) -> -0.4956106956 | AS7: =N7 -> 111 | AT7: =COUNTIF(L175:L208,AS7) -> 10 | AU7: =AT7/(AV4-AT11) -> 0.303030303 | AV7: =IF(AU7=0,0,(AU7*((LOG(AU7))/LOG(2)))) -> -0.5219594014
A8: 12 | B8: 115 | C8: 13 | D8: 123 | E8: 13 | F8: 130 | K8: 0 | L8: 111 | N8: 112 | O8: =COUNTIF($L$7:$L$500,N8) -> 51 | P8: =O8/$Q$4 -> 0.2537313433 | Q8: =IF(P8=0,0,(P8*((LOG(P8))/LOG(2)))) -> -0.5020395214 | T8: =N8 -> 112 | U8: =COUNTIF(L7:L40,T8) -> 5 | V8: =U8/(W4-U11) -> 0.1470588235 | W8: =IF(V8=0,0,(V8*((LOG(V8))/LOG(2)))) -> -0.4066962862 | Y8: =N8 -> 112 | Z8: =COUNTIF(L41:L73,Y8) -> 9 | AA8: =Z8/(AB4-Z11) -> 0.2727272727 | AB8: =IF(AA8=0,0,(AA8*((LOG(AA8))/LOG(2)))) -> -0.5112188503 | AD8: =N8 -> 112 | AE8: =COUNTIF(L74:L107,AD8) -> 10 | AF8: =AE8/(AG4-AE11) -> 0.303030303 | AG8: =IF(AF8=0,0,(AF8*((LOG(AF8))/LOG(2)))) -> -0.5219594014 | AI8: =N8 -> 112 | AJ8: =COUNTIF(L108:L141,AI8) -> 9 | AK8: =AJ8/(AL4-AJ11) -> 0.2727272727 | AL8: =IF(AK8=0,0,(AK8*((LOG(AK8))/LOG(2)))) -> -0.5112188503 | AN8: =N8 -> 112 | AO8: =COUNTIF(L142:L174,AN8) -> 11 | AP8: =AO8/(AQ4-AO11) -> 0.3333333333 | AQ8: =IF(AP8=0,0,(AP8*((LOG(AP8))/LOG(2)))) -> -0.5283208336 | AS8: =N8 -> 112 | AT8: =COUNTIF(L175:L208,AS8) -> 7 | AU8: =AT8/(AV4-AT11) -> 0.2121212121 | AV8: =IF(AU8=0,0,(AU8*((LOG(AU8))/LOG(2)))) -> -0.4745234661
A9: 21 | B9: 231 | C9: 11 | D9: 241 | E9: 22 | F9: 252 | K9: 0 | L9: 212 | N9: 121 | O9: =COUNTIF($L$7:$L$500,N9) -> 10 | P9: =O9/$Q$4 -> 0.04975124378 | Q9: =IF(P9=0,0,(P9*((LOG(P9))/LOG(2)))) -> -0.2153792834 | T9: =N9 -> 121 | U9: =COUNTIF(L7:L40,T9) -> 0 | V9: =U9/(W4-U11) -> 0 | W9: =IF(V9=0,0,(V9*((LOG(V9))/LOG(2)))) -> 0 | Y9: =N9 -> 121 | Z9: =COUNTIF(L41:L73,Y9) -> 0 | AA9: =Z9/(AB4-Z11) -> 0 | AB9: =IF(AA9=0,0,(AA9*((LOG(AA9))/LOG(2)))) -> 0 | AD9: =N9 -> 121 | AE9: =COUNTIF(L74:L107,AD9) -> 1 | AF9: =AE9/(AG4-AE11) -> 0.0303030303 | AG9: =IF(AF9=0,0,(AF9*((LOG(AF9))/LOG(2)))) -> -0.1528604279 | AI9: =N9 -> 121 | AJ9: =COUNTIF(L108:L141,AI9) -> 2 | AK9: =AJ9/(AL4-AJ11) -> 0.06060606061 | AL9: =IF(AK9=0,0,(AK9*((LOG(AK9))/LOG(2)))) -> -0.2451147951 | AN9: =N9 -> 121 | AO9: =COUNTIF(L142:L174,AN9) -> 3 | AP9: =AO9/(AQ4-AO11) -> 0.09090909091 | AQ9: =IF(AP9=0,0,(AP9*((LOG(AP9))/LOG(2)))) -> -0.3144937835 | AS9: =N9 -> 121 | AT9: =COUNTIF(L175:L208,AS9) -> 4 | AU9: =AT9/(AV4-AT11) -> 0.1212121212 | AV9: =IF(AU9=0,0,(AU9*((LOG(AU9))/LOG(2)))) -> -0.369017469
A10: 21 | B10: 349 | C10: 22 | D10: 353 | E10: 24 | F10: 361 | K10: 0 | L10: 222 | N10: 122 | O10: =COUNTIF($L$7:$L$500,N10) -> 12 | P10: =O10/$Q$4 -> 0.05970149254 | Q10: =IF(P10=0,0,(P10*((LOG(P10))/LOG(2)))) -> -0.2427515935 | T10: =N10 -> 122 | U10: =COUNTIF(L7:L40,T10) -> 2 | V10: =U10/(W4-U11) -> 0.05882352941 | W10: =IF(V10=0,0,(V10*((LOG(V10))/LOG(2)))) -> -0.2404389907 | Y10: =N10 -> 122 | Z10: =COUNTIF(L41:L73,Y10) -> 2 | AA10: =Z10/(AB4-Z11) -> 0.06060606061 | AB10: =IF(AA10=0,0,(AA10*((LOG(AA10))/LOG(2)))) -> -0.2451147951 | AD10: =N10 -> 122 | AE10: =COUNTIF(L74:L107,AD10) -> 0 | AF10: =AE10/(AG4-AE11) -> 0 | AG10: =IF(AF10=0,0,(AF10*((LOG(AF10))/LOG(2)))) -> 0 | AI10: =N10 -> 122 | AJ10: =COUNTIF(L108:L141,AI10) -> 0 | AK10: =AJ10/(AL4-AJ11) -> 0 | AL10: =IF(AK10=0,0,(AK10*((LOG(AK10))/LOG(2)))) -> 0 | AN10: =N10 -> 122 | AO10: =COUNTIF(L142:L174,AN10) -> 4 | AP10: =AO10/(AQ4-AO11) -> 0.1212121212 | AQ10: =IF(AP10=0,0,(AP10*((LOG(AP10))/LOG(2)))) -> -0.369017469 | AS10: =N10 -> 122 | AT10: =COUNTIF(L175:L208,AS10) -> 4 | AU10: =AT10/(AV4-AT11) -> 0.1212121212 | AV10: =IF(AU10=0,0,(AU10*((LOG(AU10))/LOG(2)))) -> -0.369017469
A11: 21 | B11: 464 | C11: 22 | D11: 469 | E11: 24 | F11: 491 | K11: 0 | L11: 222 | N11: 211 | O11: =COUNTIF($L$7:$L$500,N11) -> 2 | P11: =O11/$Q$4 -> 0.009950248756 | Q11: =IF(P11=0,0,(P11*((LOG(P11))/LOG(2)))) -> -0.06617961882 | T11: =N11 -> 211 | U11: =COUNTIF(L7:L40,T11) -> 0 | Y11: =N11 -> 211 | Z11: =COUNTIF(L41:L73,Y11) -> 0 | AD11: =N11 -> 211 | AE11: =COUNTIF(L74:L107,AD11) -> 1 | AI11: =N11 -> 211 | AJ11: =COUNTIF(L108:L141,AI11) -> 1 | AN11: =N11 -> 211 | AO11: =COUNTIF(L142:L174,AN11) -> 0 | AS11: =N11 -> 211 | AT11: =COUNTIF(L175:L208,AS11) -> 0
A12: 21 | B12: 590 | C12: 22 | D12: 594 | E12: 13 | F12: 603 | K12: 0 | L12: 221 | N12: 212 | O12: =COUNTIF($L$7:$L$500,N12) -> 20 | P12: =O12/$Q$4 -> 0.09950248756 | Q12: =IF(P12=0,0,(P12*((LOG(P12))/LOG(2)))) -> -0.3312560792 | T12: =N12 -> 212 | U12: =COUNTIF(L7:L40,T12) -> 6 | V12: =U12/(W4-U11) -> 0.1764705882 | W12: =IF(V12=0,0,(V12*((LOG(V12))/LOG(2)))) -> -0.4416177072 | Y12: =N12 -> 212 | Z12: =COUNTIF(L41:L73,Y12) -> 3 | AA12: =Z12/(AB4-Z11) -> 0.09090909091 | AB12: =IF(AA12=0,0,(AA12*((LOG(AA12))/LOG(2)))) -> -0.3144937835 | AD12: =N12 -> 212 | AE12: =COUNTIF(L74:L107,AD12) -> 1 | AF12: =AE12/(AG4-AE11) -> 0.0303030303 | AG12: =IF(AF12=0,0,(AF12*((LOG(AF12))/LOG(2)))) -> -0.1528604279 | AI12: =N12 -> 212 | AJ12: =COUNTIF(L108:L141,AI12) -> 3 | AK12: =AJ12/(AL4-AJ11) -> 0.09090909091 | AL12: =IF(AK12=0,0,(AK12*((LOG(AK12))/LOG(2)))) -> -0.3144937835 | AN12: =N12 -> 212 | AO12: =COUNTIF(L142:L174,AN12) -> 3 | AP12: =AO12/(AQ4-AO11) -> 0.09090909091 | AQ12: =IF(AP12=0,0,(AP12*((LOG(AP12))/LOG(2)))) -> -0.3144937835 | AS12: =N12 -> 212 | AT12: =COUNTIF(L175:L208,AS12) -> 4 | AU12: =AT12/(AV4-AT11) -> 0.1212121212 | AV12: =IF(AU12=0,0,(AU12*((LOG(AU12))/LOG(2)))) -> -0.369017469
A13: 21 | B13: 709 | C13: 11 | D13: 729 | E13: 22 | F13: 741 | K13: 0 | L13: 212 | N13: 221 | O13: =COUNTIF($L$7:$L$500,N13) -> 17 | P13: =O13/$Q$4 -> 0.08457711443 | Q13: =IF(P13=0,0,(P13*((LOG(P13))/LOG(2)))) -> -0.3013980619 | T13: =N13 -> 221 | U13: =COUNTIF(L7:L40,T13) -> 5 | V13: =U13/(W4-U11) -> 0.1470588235 | W13: =IF(V13=0,0,(V13*((LOG(V13))/LOG(2)))) -> -0.4066962862 | Y13: =N13 -> 221 | Z13: =COUNTIF(L41:L73,Y13) -> 4 | AA13: =Z13/(AB4-Z11) -> 0.1212121212 | AB13: =IF(AA13=0,0,(AA13*((LOG(AA13))/LOG(2)))) -> -0.369017469 | AD13: =N13 -> 221 | AE13: =COUNTIF(L74:L107,AD13) -> 1 | AF13: =AE13/(AG4-AE11) -> 0.0303030303 | AG13: =IF(AF13=0,0,(AF13*((LOG(AF13))/LOG(2)))) -> -0.1528604279 | AI13: =N13 -> 221 | AJ13: =COUNTIF(L108:L141,AI13) -> 2 | AK13: =AJ13/(AL4-AJ11) -> 0.06060606061 | AL13: =IF(AK13=0,0,(AK13*((LOG(AK13))/LOG(2)))) -> -0.2451147951 | AN13: =N13 -> 221 | AO13: =COUNTIF(L142:L174,AN13) -> 2 | AP13: =AO13/(AQ4-AO11) -> 0.06060606061 | AQ13: =IF(AP13=0,0,(AP13*((LOG(AP13))/LOG(2)))) -> -0.2451147951 | AS13: =N13 -> 221 | AT13: =COUNTIF(L175:L208,AS13) -> 3 | AU13: =AT13/(AV4-AT11) -> 0.09090909091 | AV13: =IF(AU13=0,0,(AU13*((LOG(AU13))/LOG(2)))) -> -0.3144937835
A14: 12 | B14: 833 | C14: 24 | D14: 840 | E14: 24 | F14: 849 | K14: 0 | L14: 122 | N14: 222 | O14: =COUNTIF($L$7:$L$500,N14) -> 21 | P14: =O14/$Q$4 -> 0.1044776119 | Q14: =IF(P14=0,0,(P14*((LOG(P14))/LOG(2)))) -> -0.3404647743 | T14: =N14 -> 222 | U14: =COUNTIF(L7:L40,T14) -> 7 | V14: =U14/(W4-U11) -> 0.2058823529 | W14: =IF(V14=0,0,(V14*((LOG(V14))/LOG(2)))) -> -0.4694339834 | Y14: =N14 -> 222 | Z14: =COUNTIF(L41:L73,Y14) -> 3 | AA14: =Z14/(AB4-Z11) -> 0.09090909091 | AB14: =IF(AA14=0,0,(AA14*((LOG(AA14))/LOG(2)))) -> -0.3144937835 | AD14: =N14 -> 222 | AE14: =COUNTIF(L74:L107,AD14) -> 4 | AF14: =AE14/(AG4-AE11) -> 0.1212121212 | AG14: =IF(AF14=0,0,(AF14*((LOG(AF14))/LOG(2)))) -> -0.369017469 | AI14: =N14 -> 222 | AJ14: =COUNTIF(L108:L141,AI14) -> 4 | AK14: =AJ14/(AL4-AJ11) -> 0.1212121212 | AL14: =IF(AK14=0,0,(AK14*((LOG(AK14))/LOG(2)))) -> -0.369017469 | AN14: =N14 -> 222 | AO14: =COUNTIF(L142:L174,AN14) -> 2 | AP14: =AO14/(AQ4-AO11) -> 0.06060606061 | AQ14: =IF(AP14=0,0,(AP14*((LOG(AP14))/LOG(2)))) -> -0.2451147951 | AS14: =N14 -> 222 | AT14: =COUNTIF(L175:L208,AS14) -> 1 | AU14: =AT14/(AV4-AT11) -> 0.0303030303 | AV14: =IF(AU14=0,0,(AU14*((LOG(AU14))/LOG(2)))) -> -0.1528604279
A15: 12 | B15: 954 | C15: 13 | D15: 958 | E15: 24 | F15: 965 | K15: 0 | L15: 112 | P15: =SUM(P7:P14) -> 1 | Q15: =-SUM(Q7:Q14) -> 2.528444265 | V15: =SUM(V7:V14) -> 1 | W15: =-SUM(W7:W14) -> 2.472466799 | AA15: =SUM(AA7:AA14) -> 1 | AB15: =-SUM(AB7:AB14) -> 2.285041088 | AF15: =SUM(AF7:AF14) -> 1 | AG15: =-SUM(AG7:AG14) -> 1.85593106 | AK15: =SUM(AK7:AK14) -> 1 | AL15: =-SUM(AL7:AL14) -> 2.214396275 | AP15: =SUM(AP7:AP14) -> 1 | AQ15: =-SUM(AQ7:AQ14) -> 2.512166155 | AU15: =SUM(AU7:AU14) -> 1 | AV15: =-SUM(AV7:AV14) -> 2.570889486
A16: 12 | B16: 1063 | C16: 24 | D16: 1071 | E16: 24 | F16: 1078 | K16: 0 | L16: 122 | P16: U= | Q16: =Q15/(LOG(Q4)/LOG(2)) -> 0.3304701585 | V16: U1= | W16: =W15/(LOG(W4)/LOG(2)) -> 0.4859921097 | AA16: U2= | AB16: =AB15/(LOG(AB4)/LOG(2)) -> 0.4529862327 | AF16: U3= | AG16: =AG15/(LOG(AG4)/LOG(2)) -> 0.3648048385 | AK16: U4= | AL16: =AL15/(LOG(AL4)/LOG(2)) -> 0.4352653463 | AP16: U5= | AQ16: =AQ15/(LOG(AQ4)/LOG(2)) -> 0.4980114749 | AU16: U6= | AV16: =AV15/(LOG(AV4)/LOG(2)) -> 0.5096527799
A17: 12 | B17: 1178 | C17: 13 | D17: 1185 | E17: 13 | F17: 1188 | K17: 0 | L17: 111
A18: 21 | B18: 1291 | C18: 11 | D18: 1306 | E18: 22 | F18: 1313 | K18: 0 | L18: 212
A19: 21 | B19: 1418 | C19: 22 | D19: 1428 | E19: 24 | F19: 1445 | K19: 0 | L19: 222 | N19: Total Target Seq
A20: 12 | B20: 1545 | C20: 13 | D20: 1549 | E20: 13 | F20: 1554 | K20: 0 | L20: 111 | N20: =COUNTIF(L7:L208,G3) -> 2 | P20: 34 | Q20: 33 | R20: 34 | S20: 34 | T20: 33 | U20: 34
A21: 21 | B21: 1666 | C21: 22 | D21: 1673 | E21: 13 | F21: 1687 | K21: 0 | L21: 221 | P21: % of reinforcement given in 6 equal intervals based on number of trials
A22: 21 | B22: 1796 | C22: 11 | D22: 1825 | E22: 22 | F22: 1837 | K22: 0 | L22: 212 | P22: %_1 | Q22: %_2 | R22: %_3 | S22: %_4 | T22: %_5 | U22: %_6
A23: 21 | B23: 1938 | C23: 11 | D23: 1954 | E23: 22 | F23: 1962 | K23: 0 | L23: 212 | O23: target sequence | P23: =$G$3 -> 211 | Q23: =$G$3 -> 211 | R23: =$G$3 -> 211 | S23: =$G$3 -> 211 | T23: =$G$3 -> 211 | U23: =$G$3 -> 211
A24: 21 | B24: 2062 | C24: 22 | D24: 2067 | E24: 24 | F24: 2082 | K24: 0 | L24: 222 | O24: total reinforcement | P24: =U11 -> 0 | Q24: =Z11 -> 0 | R24: =AE11 -> 1 | S24: =AJ11 -> 1 | T24: =AO11 -> 0 | U24: =AT11 -> 0
A25: 21 | B25: 2186 | C25: 22 | D25: 2193 | E25: 13 | F25: 2200 | K25: 0 | L25: 221 | O25: % target
A26: 12 | B26: 2302 | C26: 13 | D26: 2306 | E26: 13 | F26: 2310 | K26: 0 | L26: 111 | O26: CCRF
A27: 21 | B27: 2411 | C27: 22 | D27: 2415 | E27: 24 | F27: 2418 | K27: 0 | L27: 222 | O27: % CCRf
A28: 12 | B28: 2519 | C28: 13 | D28: 2527 | E28: 24 | F28: 2554 | K28: 0 | L28: 112 | O28: average response rate | P28: =F40/P20 -> 116.9411765 | Q28: =(F73-F40)/Q20 -> 119.5151515 | R28: =(F107-F73)/R20 -> 115.5882353 | S28: =(F141-F107)/S20 -> 119.3529412 | T28: =(F174-F141)/T20 -> 117.4242424 | U28: =(F208-F174)/U20 -> -581.8529412
A29: 21 | B29: 2667 | C29: 22 | D29: 2672 | E29: 13 | F29: 2688 | K29: 0 | L29: 221
A30: 21 | B30: 2789 | C30: 22 | D30: 2793 | E30: 13 | F30: 2803 | K30: 0 | L30: 221
A31: 21 | B31: 2909 | C31: 22 | D31: 2914 | E31: 24 | F31: 2918 | K31: 0 | L31: 222
A32: 12 | B32: 3020 | C32: 13 | D32: 3027 | E32: 24 | F32: 3035 | K32: 0 | L32: 112
A33: 12 | B33: 3134 | C33: 13 | D33: 3138 | E33: 24 | F33: 3153 | K33: 0 | L33: 112
A34: 12 | B34: 3252 | C34: 13 | D34: 3256 | E34: 13 | F34: 3270 | K34: 0 | L34: 111
A35: 12 | B35: 3369 | C35: 13 | D35: 3373 | E35: 13 | F35: 3379 | K35: 0 | L35: 111
A36: 12 | B36: 3478 | C36: 13 | D36: 3482 | E36: 13 | F36: 3490 | K36: 0 | L36: 111
A37: 21 | B37: 3596 | C37: 11 | D37: 3607 | E37: 22 | F37: 3623 | K37: 0 | L37: 212
A38: 21 | B38: 3724 | C38: 22 | D38: 3738 | E38: 24 | F38: 3752 | K38: 0 | L38: 222
A39: 12 | B39: 3852 | C39: 13 | D39: 3862 | E39: 24 | F39: 3870 | K39: 0 | L39: 112
A40: 12 | B40: 3968 | C40: 13 | D40: 3972 | E40: 13 | F40: 3976 | K40: 0 | L40: 111
A41: 12 | B41: 4082 | C41: 13 | D41: 4086 | E41: 24 | F41: 4097 | K41: 0 | L41: 112
A42: 12 | B42: 4196 | C42: 13 | D42: 4206 | E42: 24 | F42: 4225 | K42: 0 | L42: 112
A43: 21 | B43: 4324 | C43: 22 | D43: 4328 | E43: 13 | F43: 4338 | K43: 0 | L43: 221
A44: 21 | B44: 4441 | C44: 22 | D44: 4446 | E44: 24 | F44: 4450 | K44: 0 | L44: 222
A45: 12 | B45: 4549 | C45: 13 | D45: 4553 | E45: 13 | F45: 4561 | K45: 0 | L45: 111
A46: 12 | B46: 4663 | C46: 13 | D46: 4667 | E46: 24 | F46: 4684 | K46: 0 | L46: 112
A47: 21 | B47: 4792 | C47: 22 | D47: 4799 | E47: 13 | F47: 4809 | K47: 0 | L47: 221
A48: 12 | B48: 4912 | C48: 13 | D48: 4916 | E48: 13 | F48: 4920 | K48: 0 | L48: 111
A49: 21 | B49: 5031 | C49: 11 | D49: 5043 | E49: 22 | F49: 5051 | K49: 0 | L49: 212
A50: 12 | B50: 5146 | C50: 13 | D50: 5151 | E50: 24 | F50: 5184 | K50: 0 | L50: 112
A51: 12 | B51: 5283 | C51: 13 | D51: 5287 | E51: 13 | F51: 5291 | K51: 0 | L51: 111
A52: 21 | B52: 5399 | C52: 22 | D52: 5409 | E52: 13 | F52: 5423 | K52: 0 | L52: 221
A53: 12 | B53: 5524 | C53: 13 | D53: 5531 | E53: 24 | F53: 5555 | K53: 0 | L53: 112
A54: 12 | B54: 5653 | C54: 13 | D54: 5657 | E54: 24 | F54: 5669 | K54: 0 | L54: 112
A55: 12 | B55: 5771 | C55: 24 | D55: 5783 | E55: 24 | F55: 5802 | K55: 0 | L55: 122
A56: 21 | B56: 5907 | C56: 11 | D56: 5917 | E56: 22 | F56: 5924 | K56: 0 | L56: 212
A57: 21 | B57: 6027 | C57: 22 | D57: 6036 | E57: 24 | F57: 6046 | K57: 0 | L57: 222
A58: 12 | B58: 6147 | C58: 13 | D58: 6150 | E58: 13 | F58: 6154 | K58: 0 | L58: 111
A59: 21 | B59: 6269 | C59: 11 | D59: 6279 | E59: 22 | F59: 6287 | K59: 0 | L59: 212
A60: 21 | B60: 6389 | C60: 22 | D60: 6407 | E60: 24 | F60: 6413 | K60: 0 | L60: 222
A61: 12 | B61: 6516 | C61: 13 | D61: 6520 | E61: 13 | F61: 6537 | K61: 0 | L61: 111
A62: 12 | B62: 6637 | C62: 13 | D62: 6647 | E62: 24 | F62: 6655 | K62: 0 | L62: 112
A63: 12 | B63: 6755 | C63: 13 | D63: 6767 | E63: 13 | F63: 6773 | K63: 0 | L63: 111
A64: 12 | B64: 6870 | C64: 13 | D64: 6874 | E64: 13 | F64: 6877 | K64: 0 | L64: 111
A65: 12 | B65: 6978 | C65: 13 | D65: 6985 | E65: 24 | F65: 6992 | K65: 0 | L65: 112
A66: 12 | B66: 7093 | C66: 13 | D66: 7098 | E66: 13 | F66: 7103 | K66: 0 | L66: 111
A67: 12 | B67: 7201 | C67: 13 | D67: 7205 | E67: 13 | F67: 7209 | K67: 0 | L67: 111
A68: 12 | B68: 7308 | C68: 13 | D68: 7313 | E68: 13 | F68: 7319 | K68: 0 | L68: 111
A69: 12 | B69: 7419 | C69: 24 | D69: 7427 | E69: 24 | F69: 7433 | K69: 0 | L69: 122
A70: 12 | B70: 7535 | C70: 13 | D70: 7539 | E70: 13 | F70: 7543 | K70: 0 | L70: 111
A71: 12 | B71: 7644 | C71: 13 | D71: 7656 | E71: 13 | F71: 7660 | K71: 0 | L71: 111
A72: 21 | B72: 7762 | C72: 22 | D72: 7767 | E72: 13 | F72: 7777 | K72: 0 | L72: 221
A73: 12 | B73: 7887 | C73: 13 | D73: 7906 | E73: 24 | F73: 7920 | K73: 0 | L73: 112
A74: 12 | B74: 8022 | C74: 13 | D74: 8026 | E74: 13 | F74: 8030 | K74: 0 | L74: 111
A75: 12 | B75: 8129 | C75: 13 | D75: 8132 | E75: 13 | F75: 8136 | K75: 0 | L75: 111
A76: 12 | B76: 8239 | C76: 13 | D76: 8244 | E76: 24 | F76: 8251 | K76: 0 | L76: 112
A77: 12 | B77: 8362 | C77: 13 | D77: 8382 | E77: 13 | F77: 8389 | K77: 0 | L77: 111
A78: 21 | B78: 8497 | C78: 11 | D78: 8507 | E78: 11 | F78: 8524 | K78: 0 | L78: 211
A79: 21 | B79: 8638 | C79: 22 | D79: 8644 | E79: 13 | F79: 8660 | K79: 0 | L79: 221
A80: 12 | B80: 8760 | C80: 13 | D80: 8764 | E80: 13 | F80: 8769 | K80: 0 | L80: 111
A81: 12 | B81: 8869 | C81: 13 | D81: 8873 | E81: 24 | F81: 8882 | K81: 0 | L81: 112
A82: 12 | B82: 8980 | C82: 13 | D82: 8984 | E82: 13 | F82: 8994 | K82: 0 | L82: 111
A83: 21 | B83: 9098 | C83: 22 | D83: 9101 | E83: 24 | F83: 9105 | K83: 0 | L83: 222
A84: 12 | B84: 9203 | C84: 13 | D84: 9207 | E84: 24 | F84: 9218 | K84: 0 | L84: 112
A85: 21 | B85: 9323 | C85: 22 | D85: 9328 | E85: 24 | F85: 9332 | K85: 0 | L85: 222
A86: 12 | B86: 9430 | C86: 13 | D86: 9433 | E86: 13 | F86: 9438 | K86: 0 | L86: 111
A87: 12 | B87: 9536 | C87: 13 | D87: 9540 | E87: 13 | F87: 9550 | K87: 0 | L87: 111
A88: 12 | B88: 9648 | C88: 13 | D88: 9652 | E88: 13 | F88: 9656 | K88: 0 | L88: 111
A89: 12 | B89: 9754 | C89: 13 | D89: 9758 | E89: 13 | F89: 9762 | K89: 0 | L89: 111
A90: 12 | B90: 9862 | C90: 13 | D90: 9867 | E90: 13 | F90: 9871 | K90: 0 | L90: 111
A91: 12 | B91: 9972 | C91: 13 | D91: 9977 | E91: 24 | F91: 9985 | K91: 0 | L91: 112
A92: 12 | B92: 10086 | C92: 13 | D92: 10090 | E92: 13 | F92: 10095 | K92: 0 | L92: 111
A93: 12 | B93: 10195 | C93: 13 | D93: 10198 | E93: 24 | F93: 10214 | K93: 0 | L93: 112
A94: 12 | B94: 10312 | C94: 13 | D94: 10316 | E94: 13 | F94: 10321 | K94: 0 | L94: 111
A95: 12 | B95: 10422 | C95: 13 | D95: 10426 | E95: 13 | F95: 10431 | K95: 0 | L95: 111
A96: 12 | B96: 10543 | C96: 13 | D96: 10560 | E96: 24 | F96: 10583 | K96: 0 | L96: 112
A97: 12 | B97: 10683 | C97: 13 | D97: 10687 | E97: 13 | F97: 10691 | K97: 0 | L97: 111
A98: 12 | B98: 10792 | C98: 13 | D98: 10795 | E98: 24 | F98: 10807 | K98: 0 | L98: 112
A99: 12 | B99: 10912 | C99: 13 | D99: 10916 | E99: 24 | F99: 10925 | K99: 0 | L99: 112
A100: 21 | B100: 11022 | C100: 22 | D100: 11026 | E100: 24 | F100: 11033 | K100: 0 | L100: 222
A101: 12 | B101: 11133 | C101: 13 | D101: 11137 | E101: 13 | F101: 11157 | K101: 0 | L101: 111
A102: 12 | B102: 11256 | C102: 13 | D102: 11260 | E102: 24 | F102: 11268 | K102: 0 | L102: 112
A103: 21 | B103: 11367 | C103: 11 | D103: 11377 | E103: 22 | F103: 11385 | K103: 0 | L103: 212
A104: 21 | B104: 11487 | C104: 22 | D104: 11504 | E104: 24 | F104: 11512 | K104: 0 | L104: 222
A105: 12 | B105: 11613 | C105: 24 | D105: 11622 | E105: 13 | F105: 11635 | K105: 0 | L105: 121
A106: 12 | B106: 11734 | C106: 13 | D106: 11738 | E106: 13 | F106: 11742 | K106: 0 | L106: 111
A107: 12 | B107: 11836 | C107: 13 | D107: 11840 | E107: 24 | F107: 11850 | K107: 0 | L107: 112
A108: 12 | B108: 11951 | C108: 13 | D108: 11958 | E108: 13 | F108: 11979 | K108: 0 | L108: 111
A109: 12 | B109: 12078 | C109: 13 | D109: 12082 | E109: 13 | F109: 12101 | K109: 0 | L109: 111
A110: 21 | B110: 12196 | C110: 22 | D110: 12204 | E110: 24 | F110: 12219 | K110: 0 | L110: 222
A111: 12 | B111: 12323 | C111: 13 | D111: 12333 | E111: 13 | F111: 12341 | K111: 0 | L111: 111
A112: 12 | B112: 12442 | C112: 13 | D112: 12445 | E112: 13 | F112: 12450 | K112: 0 | L112: 111
A113: 12 | B113: 12548 | C113: 13 | D113: 12552 | E113: 13 | F113: 12557 | K113: 0 | L113: 111
A114: 12 | B114: 12657 | C114: 13 | D114: 12660 | E114: 13 | F114: 12686 | K114: 0 | L114: 111
A115: 12 | B115: 12793 | C115: 24 | D115: 12801 | E115: 13 | F115: 12812 | K115: 0 | L115: 121
A116: 12 | B116: 12917 | C116: 13 | D116: 12920 | E116: 24 | F116: 12931 | K116: 0 | L116: 112
A117: 12 | B117: 13032 | C117: 13 | D117: 13036 | E117: 13 | F117: 13040 | K117: 0 | L117: 111
A118: 12 | B118: 13141 | C118: 13 | D118: 13145 | E118: 13 | F118: 13151 | K118: 0 | L118: 111
A119: 12 | B119: 13249 | C119: 13 | D119: 13253 | E119: 13 | F119: 13257 | K119: 0 | L119: 111
A120: 12 | B120: 13357 | C120: 13 | D120: 13363 | E120: 24 | F120: 13372 | K120: 0 | L120: 112
A121: 21 | B121: 13479 | C121: 11 | D121: 13488 | E121: 22 | F121: 13496 | K121: 0 | L121: 212
A122: 21 | B122: 13613 | C122: 22 | D122: 13621 | E122: 24 | F122: 13645 | K122: 0 | L122: 222
A123: 12 | B123: 13745 | C123: 13 | D123: 13748 | E123: 13 | F123: 13753 | K123: 0 | L123: 111
A124: 12 | B124: 13864 | C124: 13 | D124: 13868 | E124: 13 | F124: 13875 | K124: 0 | L124: 111
A125: 12 | B125: 13975 | C125: 13 | D125: 13980 | E125: 24 | F125: 13987 | K125: 0 | L125: 112
A126: 21 | B126: 14089 | C126: 22 | D126: 14093 | E126: 24 | F126: 14097 | K126: 0 | L126: 222
A127: 12 | B127: 14196 | C127: 13 | D127: 14204 | E127: 13 | F127: 14211 | K127: 0 | L127: 111
A128: 12 | B128: 14309 | C128: 13 | D128: 14317 | E128: 13 | F128: 14323 | K128: 0 | L128: 111
A129: 21 | B129: 14443 | C129: 11 | D129: 14455 | E129: 22 | F129: 14463 | K129: 0 | L129: 212
A130: 21 | B130: 14555 | C130: 11 | D130: 14573 | E130: 22 | F130: 14581 | K130: 0 | L130: 212
A131: 21 | B131: 14680 | C131: 11 | D131: 14688 | E131: 11 | F131: 14703 | K131: 0 | L131: 211
A132: 21 | B132: 14827 | C132: 22 | D132: 14837 | E132: 13 | F132: 14849 | K132: 0 | L132: 221
A133: 12 | B133: 14952 | C133: 24 | D133: 14963 | E133: 13 | F133: 14970 | K133: 0 | L133: 121
A134: 21 | B134: 15083 | C134: 22 | D134: 15087 | E134: 13 | F134: 15097 | K134: 0 | L134: 221
A135: 12 | B135: 15196 | C135: 13 | D135: 15200 | E135: 24 | F135: 15208 | K135: 0 | L135: 112
A136: 12 | B136: 15307 | C136: 13 | D136: 15310 | E136: 24 | F136: 15320 | K136: 0 | L136: 112
A137: 21 | B137: 15429 | C137: 22 | D137: 15433 | E137: 24 | F137: 15444 | K137: 0 | L137: 222
A138: 12 | B138: 15550 | C138: 13 | D138: 15560 | E138: 24 | F138: 15568 | K138: 0 | L138: 112
A139: 12 | B139: 15669 | C139: 13 | D139: 15673 | E139: 24 | F139: 15686 | K139: 0 | L139: 112
A140: 12 | B140: 15786 | C140: 13 | D140: 15790 | E140: 24 | F140: 15799 | K140: 0 | L140: 112
A141: 12 | B141: 15897 | C141: 13 | D141: 15901 | E141: 24 | F141: 15908 | K141: 0 | L141: 112
A142: 21 | B142: 16007 | C142: 22 | D142: 16011 | E142: 24 | F142: 16018 | K142: 0 | L142: 222
A143: 12 | B143: 16116 | C143: 13 | D143: 16119 | E143: 13 | F143: 16123 | K143: 0 | L143: 111
A144: 12 | B144: 16218 | C144: 24 | D144: 16226 | E144: 24 | F144: 16230 | K144: 0 | L144: 122
A145: 12 | B145: 16330 | C145: 13 | D145: 16333 | E145: 24 | F145: 16346 | K145: 0 | L145: 112
A146: 12 | B146: 16447 | C146: 13 | D146: 16450 | E146: 24 | F146: 16458 | K146: 0 | L146: 112
A147: 21 | B147: 16576 | C147: 22 | D147: 16583 | E147: 13 | F147: 16601 | K147: 0 | L147: 221
A148: 12 | B148: 16702 | C148: 24 | D148: 16713 | E148: 13 | F148: 16727 | K148: 0 | L148: 121
A149: 12 | B149: 16824 | C149: 13 | D149: 16828 | E149: 24 | F149: 16838 | K149: 0 | L149: 112
A150: 12 | B150: 16936 | C150: 13 | D150: 16940 | E150: 24 | F150: 16954 | K150: 0 | L150: 112
A151: 12 | B151: 17054 | C151: 13 | D151: 17058 | E151: 24 | F151: 17071 | K151: 0 | L151: 112
A152: 12 | B152: 17170 | C152: 24 | D152: 17184 | E152: 24 | F152: 17195 | K152: 0 | L152: 122
A153: 21 | B153: 17303 | C153: 22 | D153: 17307 | E153: 24 | F153: 17311 | K153: 0 | L153: 222
A154: 12 | B154: 17412 | C154: 13 | D154: 17417 | E154: 13 | F154: 17421 | K154: 0 | L154: 111
A155: 12 | B155: 17522 | C155: 13 | D155: 17525 | E155: 13 | F155: 17533 | K155: 0 | L155: 111
A156: 12 | B156: 17634 | C156: 13 | D156: 17637 | E156: 24 | F156: 17645 | K156: 0 | L156: 112
A157: 12 | B157: 17745 | C157: 13 | D157: 17749 | E157: 13 | F157: 17753 | K157: 0 | L157: 111
A158: 12 | B158: 17852 | C158: 24 | D158: 17860 | E158: 24 | F158: 17867 | K158: 0 | L158: 122
A159: 12 | B159: 17976 | C159: 24 | D159: 17997 | E159: 24 | F159: 18004 | K159: 0 | L159: 122
A160: 12 | B160: 18102 | C160: 13 | D160: 18106 | E160: 13 | F160: 18112 | K160: 0 | L160: 111
A161: 12 | B161: 18225 | C161: 24 | D161: 18235 | E161: 13 | F161: 18248 | K161: 0 | L161: 121
A162: 12 | B162: 18350 | C162: 13 | D162: 18355 | E162: 24 | F162: 18362 | K162: 0 | L162: 112
A163: 12 | B163: 18460 | C163: 13 | D163: 18463 | E163: 24 | F163: 18472 | K163: 0 | L163: 112
A164: 12 | B164: 18572 | C164: 13 | D164: 18576 | E164: 24 | F164: 18587 | K164: 0 | L164: 112
A165: 12 | B165: 18687 | C165: 13 | D165: 18691 | E165: 13 | F165: 18701 | K165: 0 | L165: 111
A166: 12 | B166: 18803 | C166: 13 | D166: 18811 | E166: 13 | F166: 18817 | K166: 0 | L166: 111
A167: 12 | B167: 18918 | C167: 13 | D167: 18921 | E167: 24 | F167: 18932 | K167: 0 | L167: 112
A168: 12 | B168: 19031 | C168: 13 | D168: 19035 | E168: 24 | F168: 19045 | K168: 0 | L168: 112
A169: 12 | B169: 19143 | C169: 13 | D169: 19147 | E169: 13 | F169: 19152 | K169: 0 | L169: 111
A170: 12 | B170: 19250 | C170: 24 | D170: 19262 | E170: 13 | F170: 19280 | K170: 0 | L170: 121
A171: 21 | B171: 19394 | C171: 11 | D171: 19403 | E171: 22 | F171: 19413 | K171: 0 | L171: 212
A172: 21 | B172: 19524 | C172: 11 | D172: 19533 | E172: 22 | F172: 19544 | K172: 0 | L172: 212
A173: 21 | B173: 19648 | C173: 11 | D173: 19657 | E173: 22 | F173: 19667 | K173: 0 | L173: 212
A174: 21 | B174: 19769 | C174: 22 | D174: 19774 | E174: 13 | F174: 19783 | K174: 0 | L174: 221
A175: 12 | B175: 19883 | C175: 13 | D175: 19886 | E175: 24 | F175: 19897 | K175: 0 | L175: 112
A176: 12 | B176: 19997 | C176: 13 | D176: 20001 | E176: 24 | F176: 20012 | K176: 0 | L176: 112
A177: 12 | B177: 20110 | C177: 13 | D177: 20114 | E177: 13 | F177: 20118 | K177: 0 | L177: 111
A178: 12 | B178: 20218 | C178: 13 | D178: 20222 | E178: 13 | F178: 20227 | K178: 0 | L178: 111
A179: 12 | B179: 20326 | C179: 13 | D179: 20340 | E179: 13 | F179: 20348 | K179: 0 | L179: 111
A180: 12 | B180: 20450 | C180: 13 | D180: 20461 | E180: 13 | F180: 20481 | K180: 0 | L180: 111
A181: 12 | B181: 20584 | C181: 13 | D181: 20589 | E181: 13 | F181: 20594 | K181: 0 | L181: 111
A182: 21 | B182: 20709 | C182: 11 | D182: 20725 | E182: 22 | F182: 20735 | K182: 0 | L182: 212
A183: 21 | B183: 20843 | C183: 11 | D183: 20854 | E183: 22 | F183: 20864 | K183: 0 | L183: 212
A184: 12 | B184: 20973 | C184: 24 | D184: 20983 | E184: 13 | F184: 20995 | K184: 0 | L184: 121
A185: 12 | B185: 21096 | C185: 13 | D185: 21100 | E185: 13 | F185: 21105 | K185: 0 | L185: 111
A186: 12 | B186: 21212 | C186: 13 | D186: 21215 | E186: 24 | F186: 21223 | K186: 0 | L186: 112
A187: 12 | B187: 21337 | C187: 13 | D187: 21354 | E187: 13 | F187: 21375 | K187: 0 | L187: 111
A188: 12 | B188: 21475 | C188: 13 | D188: 21484 | E188: 24 | F188: 21494 | K188: 0 | L188: 112
A189: 12 | B189: 21615 | C189: 24 | D189: 21633 | E189: 13 | F189: 21647 | K189: 0 | L189: 121
A190: 12 | B190: 21746 | C190: 13 | D190: 21749 | E190: 13 | F190: 21768 | K190: 0 | L190: 111
A191: 12 | B191: 21869 | C191: 13 | D191: 21873 | E191: 13 | F191: 21890 | K191: 0 | L191: 111
A192: 12 | B192: 21996 | C192: 24 | D192: 22004 | E192: 13 | F192: 22018 | K192: 0 | L192: 121
A193: 12 | B193: 22120 | C193: 24 | D193: 22135 | E193: 13 | F193: 22147 | K193: 0 | L193: 121
A194: 12 | B194: 22251 | C194: 24 | D194: 22258 | E194: 24 | F194: 22265 | K194: 0 | L194: 122
A195: 12 | B195: 22367 | C195: 13 | D195: 22371 | E195: 24 | F195: 22379 | K195: 0 | L195: 112
A196: 12 | B196: 22489 | C196: 24 | D196: 22496 | E196: 24 | F196: 22506 | K196: 0 | L196: 122
A197: 12 | B197: 22626 | C197: 24 | D197: 22638 | E197: 24 | F197: 22645 | K197: 0 | L197: 122
A198: 21 | B198: 22751 | C198: 22 | D198: 22755 | E198: 24 | F198: 22760 | K198: 0 | L198: 222
A199: 12 | B199: 22873 | C199: 24 | D199: 22886 | E199: 24 | F199: 22895 | K199: 0 | L199: 122
A200: 21 | B200: 23015 | C200: 11 | D200: 23035 | E200: 22 | F200: 23044 | K200: 0 | L200: 212
... 8 more rows

Sheet !MC16A00.096
A1: Report for:!MC16A00.096
A2: Date: | B2: <date>
A3: Hen: | B3: <hen> | F3: Correct Sequence | G3: =Start!J2 -> 211 | P3: Total Sequences in Data | Q3: =4994-COUNTBLANK(L7:L5000) -> 150 | V3: Total Sequences in Block Data | W3: =COUNTA(L7:L31) -> 25 | AA3: Total Sequences in Block Data | AB3: =COUNTA(L32:L56) -> 25 | AF3: Total Sequences in Block Data | AG3: =COUNTA(L57:L81) -> 25 | AK3: Total Sequences in Block Data | AL3: =COUNTA(L82:L106) -> 25 | AP3: Total Sequences in Block Data | AQ3: =COUNTA(L107:L131) -> 25 | AU3: Total Sequences in Block Data | AV3: =COUNTA(L132:L156) -> 25
P4: Total Sequences in Summary | Q4: =SUM(O7:O14) -> 150 | V4: Total Sequences in Block Summary | W4: =SUM(U7:U14) -> 25 | AA4: Total Sequences in Block Summary | AB4: =SUM(Z7:Z14) -> 25 | AF4: Total Sequences in Block Summary | AG4: =SUM(AE7:AE14) -> 25 | AK4: Total Sequences in Block Summary | AL4: =SUM(AJ7:AJ14) -> 25 | AP4: Total Sequences in Block Summary | AQ4: =SUM(AO7:AO14) -> 25 | AU4: Total Sequences in Block Summary | AV4: =SUM(AT7:AT14) -> 25
